Workbook

Sheet CAPA
B1: SPARTA | C1: Ver. Escassez/GD | R1: DF | S1: Sudeste/Centro Oeste
B2: Helenístico LX | C2: 0.93 | M2: =C23 -> 117 | N2: =C22 -> 405
C3: Macro Ver.
C4: 80.62
B6: EMT | C6: =VLOOKUP(B6,TabEmpresas[#Data],5,FALSE) -> NÃO SUPRIDA | L6: CodigoSamp | M6: Empresa | N6: Nome Completo | O6: IdSgtAg | P6: CodigoSamp | Q6: Supridora/suprida | R6: Financeiro 243 (TUSD) | S6: Databse Fin. 243 | T6: Contrato de Concessão | U6: Data Aditivo (Cont Novo) | V6: Cidade Sede | W6: CNPJ | X6: Novo/Antigo
B7: =VLOOKUP(B6,TabEmpresas[#Data],2,FALSE) -> Energisa Mato Grosso - Distribuidora de Energia S.A. | C7: Revisão | G7: Últ. Atualização | L7: 7019 | M7: Amazonas Energia | N7: Amazonas Energia S.A. | O7: 102 | P7: 7019 | Q7: NÃO SUPRIDA | T7: 1/2019 | U7: 42579 | V7: Manaus - AM | W7: 02.341.467/0001-20 | X7: N
B8: CÓDIGO DA EMPRESA | C8: ="D" & TEXT(C23-100,"00") -> D17 | F8: Info iniciais | G8: 2023-03-30T09:54:00 | L8: 31 | M8: CEA | N8: Companhia de Eletricidade do Amapá | O8: 107 | P8: 31 | Q8: NÃO SUPRIDA | T8: 01/2021 | U8: 42606 | V8: Macapá - AP | W8: 05.965.546/0001-09 | X8: N
B9: Data do Reajuste/Revisão Anterior | C9: 44659 | F9: Energia do ano anterior (CM compra, MWh Mercado, R$ Mercado) | L9: 5707 | M9: CEEE-D | N9: Companhia Estadual de Distribuição de Energia Elétrica | O9: 110 | P9: 5707 | Q9: NÃO SUPRIDA | T9: 81/1999 | U9: 42347 | V9: Porto Alegre - RS | W9: 08.467.115/0001-00 | X9: N
B10: Data de Reajuste/Revisão em Processamento | C10: 45024 | F10: Perda de RB /Perdas Regulatórias /TUSDgONS-RB | L10: 5697 | M10: Celesc-Dis | N10: Celesc Distribuição S.A. | O10: 111 | P10: 5697 | Q10: NÃO SUPRIDA | U10: 42347 | V10: Florianópolis - SC | W10: 08.336.783/0001-90 | X10: N
F11: Financeiros ano anterior (CVA 5º dia útil, RTE restante) | L11: 4950 | M11: Cemig-D | N11: Cemig Distribuição S.A. | O11: 118 | P11: 4950 | Q11: NÃO SUPRIDA | T11: 3/1997 | U11: 42359 | V11: Belo Horizonte - MG | W11: 06.981.180/0001-16 | X11: N
F12: Encargos ano anterior (não RTE) | L12: 103 | M12: CHESP | N12: Companhia Hidroelétrica São Patrício | O12: 123 | P12: 103 | Q12: SUPRIDA | T12: 44/1999 | U12: 42347 | V12: Ceres - GO | W12: 01.377.555/0001-10 | X12: N
F13: Dados da Revisão, Fator X e DecFec | L13: 82 | M13: Cocel | N13: Companhia Campolarguense de Energia | O13: 128 | P13: 82 | Q13: SUPRIDA | T13: 27/1998 | U13: 42347 | V13: Campo Largo - PR | W13: 75.805.895/0001-30 | X13: N
F14: Previsão de Subsidios dos Processos Anteriores | L14: 2904 | M14: Cooperaliança | N14: Cooperativa Aliança | O14: 131 | P14: 2904 | Q14: SUPRIDA | T14: 145/2002 | U14: 42347 | V14: Iraça - SC | W14: 83.647.990/0001-81 | X14: N
B15: Período de Referencia final | C15: =DATE(YEAR($C$10),MONTH($C$10)-1,1) -> 44986 | F15: Conexão ano anterior | L15: 2866 | M15: Copel-Dis | N15: Copel Distribuição S.A. | O15: 132 | P15: 2866 | Q15: NÃO SUPRIDA | T15: 46/1999 | U15: 42347 | V15: Curitiba - PR | W15: 04.368.898/0001-06 | X15: N
B16: Período de Referencia inicial | C16: =DATE(YEAR($C$10)-1,MONTH($C$10),1) -> 44652 | F16: Energia (CCEAR, Bil., Itaipu) | G16: 2023-03-15T14:08:57 | L16: 63 | M16: CPFL Paulista | N16: Companhia Paulista de Força e Luz | O16: 136 | P16: 63 | Q16: NÃO SUPRIDA | T16: 14/1997 | V16: Campinas - SP | W16: 33.050.196/0001-88 | X16: A
B17: Índice IGPM na data Revisão/Reajuste | C17: =VLOOKUP(C15,Índices!$B$7:$F$500,2,FALSE) -> 1163.359 | F17: CCEAR | L17: 2937 | M17: CPFL Piratininga | N17: Companhia Piratininga de Força e Luz | O17: 135 | P17: 2937 | Q17: NÃO SUPRIDA | T17: 9/2002 | V17: Sorocaba - SP | W17: 04.172.213/0001-51 | X17: A
B18: Índice IPCA na data Revisão/Reajuste | C18: =VLOOKUP(C15,Índices!$B$7:$F$500,3,FALSE) -> 6611.932056 | L18: 1000041 | M18: CPFL Santa Cruz | N18: Companhia Jaguari de Energia | O18: 166 | P18: 1000041 | Q18: NÃO SUPRIDA | T18: 15/1999 | U18: 42347 | V18: Jaguariúna - SP | W18: 53.859.112/0001-69 | X18: N
B19: IGPM para o período de Referência | C19: =VLOOKUP(DATE(YEAR($C$10),MONTH($C$10)-1,1),Índices!$B$7:$F$500,2,FALSE)/VLOOKUP(DATE(YEAR($C$9),MONTH($C$9)-1,1),Índices!$B$7:$F$500,2,FALSE)-1 -> 0.001671232924 | F19: Itaipu (Energia, Transporte, MUST) | L19: 87 | M19: DCELT | N19: Distribuidora Catarinense de Energia Elétrica Ltda | O19: 158 | P19: 87 | Q19: NÃO SUPRIDA | T19: 50/1999 | U19: 42353 | V19: Xanxerê - SC | W19: 83.855.973/0001-30 | X19: N
B20: IPCA para o período de Referência | C20: =VLOOKUP(DATE(YEAR(C10),MONTH(C10)-1,1),Índices!$B$7:$F$500,3,FALSE)/VLOOKUP(DATE(YEAR($C$9),MONTH($C$9)-1,1),Índices!$B$7:$F$500,3,FALSE)-1 -> 0.04686594946 | F20: Cotas Lei/Angra | L20: 95 | M20: Demei | N20: Departamento Municipal de Energia de Ijuí | O20: 138 | P20: 95 | Q20: SUPRIDA | T20: 85/2000 | U20: 42347 | V20: Ijuí - RS | W20: 95.289.500/0001-00 | X20: N
B21: Dados Gerenciais | F21: Encargos DRP | G21: 2023-03-15T16:09:47 | L21: 51 | M21: DME-D | N21: DME Distribuição S.A. | O21: 139 | P21: 51 | Q21: NÃO SUPRIDA | T21: 49/1999 | U21: 42347 | V21: Poços de Caldas - MG | W21: 23.664.303/0001-04 | X21: N
B22: IdAgente | C22: =VLOOKUP(B6,TabEmpresas[#Data],4,FALSE) -> 405 | F22: Indicadores Econômicos / Dólar | G22: 2023-03-30T09:54:08 | L22: 26 | M22: EAC | N22: Energisa Acre - Distribuidora de Energia S.A | O22: 146 | P22: 26 | Q22: NÃO SUPRIDA | T22: 3/2018 | U22: 42579 | V22: Rio Branco - AC | W22: 04.065.033/0001-70 | X22: N
B23: ID Concessão | C23: =VLOOKUP(B6,TabEmpresas[#Data],3,FALSE) -> 117 | F23: Tudo de Mercado | G23: 2023-03-16T12:38:39 | L23: 6611 | M23: EBO | N23: Energisa Borborema - Distribuidora de Energia S.A | O23: 140 | P23: 6611 | Q23: NÃO SUPRIDA | T23: 8/2000 | V23: Campina Grande - PB | W23: 08.826.596/0001-95 | X23: A
F24: Rede Básica e Conexão | G24: 2023-03-31T16:13:19 | L24: 380 | M24: EDP ES | N24: EDP Espírito Santo Distribuição de Energia S.A. | O24: 154 | P24: 380 | Q24: NÃO SUPRIDA | T24: 1/1995 | V24: Vitória - ES | W24: 28.152.650/0001-71 | X24: A
B25: Quadro para vínculos | F25: Histórico de Tarifas B1 Residencial | L25: 391 | M25: EDP SP | N25: EDP São Paulo Distribuição de Energia S.A. | O25: 104 | P25: 391 | Q25: NÃO SUPRIDA | T25: 202/1998 | V25: São Paulo - SP | W25: 02.302.100/0001-06 | X25: A
B26: Descrição | C26: valor | F26: CVA | G26: 2023-03-21T14:15:53 | L26: 86 | M26: EFLUL | N26: Empresa Força e Luz de Urussanga Ltda | O26: 144 | P26: 86 | Q26: SUPRIDA | T26: 25/1999 | U26: 42347 | V26: Urussanga - SC | W26: 86.531.175/0001-40 | X26: N
B27: Tipo de contrato | C27: =IF(VLOOKUP(B6,TabEmpresas[],12,FALSE)="A", "Antigo","Novo") -> Antigo | F27: CUSD | G27: 2023-03-03T16:06:04 | L27: 398 | M27: Eletrocar | N27: Centrais Elétricas de Carazinho S.A. | O27: 147 | P27: 398 | Q27: SUPRIDA | T27: 84/2000 | U27: 42347 | V27: Carazinho - RS | W27: 88.446.034/0001-55 | X27: N
B28: Contrato de concessão | C28: =VLOOKUP(B6,TabEmpresas[],8,FALSE) -> 3/1997 | F28: Suprimento: Financeiro de Ultrapassagem e Sobrecontratação | L28: 6585 | M28: EMG | N28: Energisa Minas Gerais - Distribuidora de Energia S.A. | O28: 150 | P28: 6585 | Q28: NÃO SUPRIDA | T28: 40/1999 | U28: 42347 | V28: Cataguases - MG | W28: 19.527.639/0001-58 | X28: N
B29: Número do Processo | C29: 48500.006881/2022-21 | F29: Uderor | G29: 2023-03-03T16:07:39 | L29: 404 | M29: EMS | N29: Energisa Mato Grossodo Sul - Distribuidora de Energia S.A. | O29: 151 | P29: 404 | Q29: NÃO SUPRIDA | T29: 1/1997 | V29: Campo Grande - MS | W29: 15.413.826/0001-50 | X29: A
B30: Período de Referencia | C30: =TEXT(C16,"mmmm/aaaa")& " a "&TEXT(C15,"mmmm/aaaa") -> abril/2022 a março/2023 | F30: BMP/RIT | G30: 2023-03-03T16:08:15 | L30: 405 | M30: EMT | N30: Energisa Mato Grosso - Distribuidora de Energia S.A. | O30: 117 | P30: 405 | Q30: NÃO SUPRIDA | T30: 3/1997 | V30: Cuibá - MT | W30: 03.467.321/0001-99 | X30: A
B31: Início da vigênica por extenso | C31: =DAY(LnkTxtDRPData)&" de "&TEXT(LnkTxtDRPData,"mmmmmm")&" de "&YEAR(LnkTxtDRPData) -> 8 de abril de 2023 | L31: 39 | M31: ENEL CE | N31: Companhia Energética do Ceará | O31: 130 | P31: 39 | Q31: NÃO SUPRIDA | T31: 1/1998 | V31: Fortaleza - CE | W31: 07.047.251/0001-70 | X31: A
B32: CNPJ | C32: =VLOOKUP(B6,TabEmpresas[],11,FALSE) -> 03.467.321/0001-99 | L32: 6072 | M32: ENEL GO | N32: Enel Distribuição Goiás | O32: 112 | P32: 6072 | Q32: NÃO SUPRIDA | T32: 63/2000 | U32: 42367 | V32: Goiânia - GO | W32: 01.543.032/0001-04 | X32: N
B33: Período de competência de previsão de subsídios | C33: =TEXT(EDATE(Aj.Subsidio!G17,12),"mmmmmm")&"/"&TEXT(EDATE(Aj.Subsidio!G17,12),"aaaa")&" a "&TEXT(EDATE(Aj.Subsidio!R17,12),"mmmmmm")&"/"&TEXT(EDATE(Aj.Subsidio!R17,12),"aaaa") -> abril/2023 a março/2024 | L33: 383 | M33: ENEL RJ | N33: Ampla Energia e Serviços S.A. | O33: 103 | P33: 383 | Q33: NÃO SUPRIDA | T33: 5/1996 | U33: 42808 | V33: Rio de Janeiro - RJ | W33: 33.050.071/0001-58 | X33: N
B34: Período de competêbnc de ajuste de subsídios | C34: =TEXT(Aj.Subsidio!G17,"mmmmmm")&"/"&TEXT(Aj.Subsidio!G17,"aaaa")&" a "&TEXT(Aj.Subsidio!R17,"mmmmmm")&"/"&TEXT(Aj.Subsidio!R17,"aaaa") -> abril/2022 a março/2023 | L34: 390 | M34: ENEL SP | N34: Eletropaulo Metropolitana Eletricidade de São Paulo S.A. | O34: 148 | P34: 390 | Q34: NÃO SUPRIDA | T34: 162/1998 | V34: São Paulo - SP | W34: 61.695.227/0001-93 | X34: A
B35: Cidade Sede | C35: =VLOOKUP(B6,TabEmpresas[],10,FALSE) -> Cuibá - MT | L35: 6612 | M35: ENF | N35: Energisa Nova Friburgo - Distribuidora de Energia S.A. | O35: 152 | P35: 6612 | Q35: SUPRIDA | T35: 42/1999 | U35: 42347 | V35: Nova Friburgo - RJ | W35: 33.249.046/0001-06 | X35: N
B36: Receita | C36: =IF(Mercado!D24>2000000000,ROUND(Mercado!D24/1000000000,2)&" bilhões",IF(Mercado!D24>1000000000,ROUND(Mercado!D24/1000000000,2)&" bilhão",IF(Mercado!D24>100000000,ROUND(Mercado!D24/1000000,0)&" milhões",IF(Mercado!D24>10000000,ROUND(Mercado!D24/1000000,1)&" milhões",IF(Mercado!D24>2000000,ROUND(Mercado!D24/1000000,2)&" milhões",IF(Mercado!D24>1000000,ROUND(Mercado!D24/1000000,2)&" milhão",ROUND(Mercado!D24/1000,0)&" mil")))))) -> 6,83 bilhões | L36: 6600 | M36: EPB | N36: Energisa Paraíba - Distribuidora de Energia S.A. | O36: 153 | P36: 6600 | Q36: NÃO SUPRIDA | T36: 19/2001 | V36: João Pessoa - PB | W36: 09.095.183/0001-40 | X36: A
B37: Unidades Consumidoras | C37: =IF(Mercado!E38>2000000,ROUND(Mercado!E38/1000000,2)&" milhões",IF(Mercado!E38>1000000,ROUND(Mercado!E38/1000000,2)&" milhão",IF(Mercado!E38>100000,ROUND(Mercado!E38/1000,0)&" mil",IF(Mercado!E38>10000,ROUND(Mercado!E38/1000,1)&" mil",IF(Mercado!E38>1000,ROUND(Mercado!E38/1000,2)&" mil",Mercado!E38))))) -> 0 | L37: 44 | M37: Equatorial AL | N37: Equatorial Alagoas Distribuidora de Energia S.A. | O37: 108 | P37: 44 | Q37: NÃO SUPRIDA | T37: 2/2019 | U37: 42579 | V37: Maceió - AL | W37: 12.272.084/0001-00 | X37: N
B38: Data SAMP | C38: =TEXT(_xlfn.MAXIFS(Mercado_Receita!K:K,Mercado_Receita!B:B,"regular"),"mmmmmm")&"/"&YEAR(_xlfn.MAXIFS(Mercado_Receita!K:K,Mercado_Receita!B:B,"regular")) -> fevereiro/2023 | L38: 37 | M38: Equatorial MA | N38: Equatorial Maranhão Distribuidora de Energia S.A. | O38: 116 | P38: 37 | Q38: NÃO SUPRIDA | T38: 60/2000 | V38: São Luís - MA | W38: 06.272.793/0001-84 | X38: A
L39: 371 | M39: Equatorial PA | N39: Equatorial Pará Distribuidora de Energia S.A. | O39: 113 | P39: 371 | Q39: NÃO SUPRIDA | T39: 182/1998 | V39: Belém - PA | W39: 04.895.728/0001-80 | X39: A
L40: 38 | M40: Equatorial PI | N40: Equatorial Piauí Distribuidora de Energia S.A. | O40: 119 | P40: 38 | Q40: NÃO SUPRIDA | T40: 1/2018 | U40: 42579 | V40: Teresina - PI | W40: 06.840.748/0001-89 | X40: N
L41: 369 | M41: ERO | N41: Energisa Rondônia - Distribuidora de Energia S.A. | O41: 120 | P41: 369 | Q41: NÃO SUPRIDA | T41: 2/2018 | U41: 42579 | V41: Porto Velho - RO | W41: 05.914.650/0001-66 | X41: N
L42: 6587 | M42: ESE | N42: Energisa Sergipe - Distribuidora de Energia S.A. | O42: 155 | P42: 6587 | Q42: NÃO SUPRIDA | T42: 7/1997 | V42: Aracajú - SE | W42: 13.017.462/0001-63 | X42: A
L43: 1000040 | M43: ESS | N43: Energisa Sul-Sudeste - Distribuidora de Energia S.A. | O43: 165 | P43: 1000040 | Q43: NÃO SUPRIDA | T43: 13/1999 | U43: 42347 | V43: Presidente Prudente - SP | W43: 07.282.377/0001-20 | X43: N
L44: 32 | M44: ETO | N44: Energisa Tocantins Distribuidora de Energia S.A. | O44: 115 | P44: 32 | Q44: NÃO SUPRIDA | T44: 52/1999 | U44: 43805 | V44: Palmas - TO | W44: 25.086.034/0001-71 | X44: A
L45: 83 | M45: Forcel | N45: Força e Luz Coronel Vivida Ltda. | O45: 156 | P45: 83 | Q45: SUPRIDA | T45: 69/1999 | U45: 42347 | V45: Coronel Vivida - PR | W45: 79.850.574/0001-09 | X45: N
L46: 399 | M46: Hidropan | N46: Hidropan Distribuição de Energia S.A. | O46: 157 | P46: 399 | Q46: SUPRIDA | T46: 86/2000 | U46: 42347 | V46: Panambi - RS | W46: 91.982.348/0001-87 | X46: N
B47: Deslocar mercado | C47: Não | L47: 88 | M47: João Cesa | N47: Empresa Força e Luz João Cesa Ltda. | O47: 143 | P47: 88 | Q47: SUPRIDA | T47: 26/1999 | U47: 42347 | V47: Siderópolis - RS | W47: 86.301.124/0001-22 | X47: N
B48: Data de processamento em simulação | C48: 43811 | L48: 382 | M48: Light | N48: Light Serviços de Eletricidade S.A. | O48: 160 | P48: 382 | Q48: NÃO SUPRIDA | T48: 1/1996 | U48: 42803 | V48: Rio de Janeiro - RJ | W48: 60.444.437/0001-46 | X48: N
L49: 401 | M49: Mux Energia | N49: Muxfeldt Marin E Cia Ltda | O49: 161 | P49: 401 | Q49: SUPRIDA | T49: 87/2000 | U49: 42347 | V49: Tapejara - RS | W49: 97.578.090/0001-34 | X49: N
L50: 5160 | M50: Neoenergia Brasília | N50: Neoenergia Distribuição Brasília S.A. | O50: 109 | P50: 5160 | Q50: NÃO SUPRIDA | T50: 66/1999 | U50: 42347 | V50: Brasília - DF | W50: 07.522.669/0001-92 | X50: N
L51: 47 | M51: Neoenergia Coelba | N51: Companhia de Eletricidadedo Estado da Bahia | O51: 129 | P51: 47 | Q51: NÃO SUPRIDA | T51: 10/1997 | V51: Salvador - BA | W51: 15.139.629/0001-94 | X51: A
L52: 40 | M52: Neoenergia Cosern | N52: Companhia Energetica do Rio Grande do Norte | O52: 133 | P52: 40 | Q52: NÃO SUPRIDA | T52: 8/1997 | V52: Natal - RN | W52: 08.324.196/0001-81 | X52: A
L53: 385 | M53: Neoenergia Elektro | N53: Elektro Redes S.A. | O53: 145 | P53: 385 | Q53: NÃO SUPRIDA | T53: 187/1998 | V53: Campinas - SP | W53: 02.328.280/0001-97 | X53: A
L54: 43 | M54: Neoenergia Pernambuco | N54: Companhia Energética de Pernambuco | O54: 114 | P54: 43 | Q54: NÃO SUPRIDA | T54: 26/2000 | V54: Recife - PE | W54: 10.835.932/0001-08 | X54: A
L55: 400 | M55: Nova Palma | N55: Nova Palma Energia Ltda. | O55: 164 | P55: 400 | Q55: SUPRIDA | T55: 107/2001 | U55: 42347 | V55: Faxinal do Soturno - RS | W55: 89.889.604/0001-44 | X55: N
L56: 1000042 | M56: RGE | N56: RGE Sul Distribuidora de Energia S.A. | O56: 167 | P56: 1000042 | Q56: NÃO SUPRIDA | T56: 12/1997 | V56: São Leopoldo - RS | W56: 02.016.440/0001-62 | X56: A
L57: 370 | M57: Roraima Energia | N57: Roraima Energia S.A. | O57: 105 | P57: 370 | Q57: NÃO SUPRIDA | T57: 4/2018 | U57: 42579 | V57: Boa Vista - RR | W57: 02.341.470/0001-44 | X57: N
L58: 381 | M58: Santa Maria | N58: Empresa Luz e Força Santa Maria S/A | O58: 149 | P58: 381 | Q58: SUPRIDA | T58: 20/1999 | U58: 42347 | V58: Colatina - ES | W58: 27.485.069/0001-09 | X58: N
L59: 46 | M59: Sulgipe | N59: Companhia Sul Sergipana de Eletricidade | O59: 163 | P59: 46 | Q59: SUPRIDA | T59: 91/1999 | U59: 42347 | V59: Estância - SE | W59: 13.255.658/0001-96 | X59: N

Sheet BD
B1: Banco de Dados | M1: Anexo II | N1: =Resultado!$D$6 -> 0.02534467957
B2: =CAPA!B6 -> EMT | M2: Anexo I | N2: =Resultado!$D$8 -> 0.03743867512
B5: Informações do ano anterior | G5: Dados de abertura (Neutralidade e CVA saldo a compensar) | L5: Dados de Energia | S5: Dados para Revisão | AA5: BMP_RIT | AK5: Avaliação Parcela B
B7: Encargos | G7: Encargo | H7: Valor | I7: Norma | L7: Cotas | M7: Valor da "Cota" | N7: Ano | O7: Custo Médio da Cota | P7: Energia MWh | S7: item | T7: Descrição | U7: Detalhe | V7: Valor | AA7: IDAGENTE | AB7: ANO | AC7: SIGLA | AD7: ContaPrincipal | AE7: ContaDetalhada | AF7: CONTA | AG7: SALDO | AK7: Ano | AL7: DataRevREa | AM7: item | AN7: valor
B8: CDE Covid TE | C8: 54016078.13 | G8: CDE Eletrobras | H8: -122918517 | I8: DSP 1959/2022 | L8: Angra | M8: 0.021442 | N8: 2023 | O8: 347.5 | P8: 287673.0825 | S8: 0 | T8: Duração do Ciclo de Revisão | V8: 5 | AA8: 405 | AB8: 2020 | AC8: EMT | AD8: Pessoal | AE8: Remuneração | AF8: 610530501 | AG8: 104659194.7 | AK8: 2018 | AL8: 21282 | AM8: ANEXO II | AN8: 0.08455921834
B9: CDE Covid TUSD | C9: 95279831.53 | G9: CDE | H9: 718570484.8 | I9: REH 3.175/2023 | S9: 1 | T9: RI Limite de Neutralidade de Encargos (por grupo) | U9: Residencial | V9: 0.0295 | AA9: 405 | AB9: 2020 | AC9: EMT | AD9: Pessoal | AE9: Encargos | AF9: 610530502 | AG9: 36887206.94 | AK9: 2018 | AL9: 21282 | AM9: Base de Remuneração Bruta | AN9: 5186872757
B10: TFSEE | C10: 10958556.53 | G10: CFURH | S10: 2 | T10: RI Limite de Neutralidade de Encargos (por grupo) | U10: Industrial | V10: 0.0219 | AA10: 405 | AB10: 2020 | AC10: EMT | AD10: Pessoal | AE10: Previdência Privada Corrente | AF10: 610530503 | AG10: 3520294.72 | AK10: 2018 | AL10: 21282 | AM10: Base de Remuneração Líquida | AN10: 3459754165
B11: CDE | C11: 724226895.8 | G11: ESS/EER | H11: 124357506.2 | I11: Desp 512/2023 | L11: Ano | M11: Cota Itaipu | S11: 3 | T11: RI Limite de Neutralidade de Encargos (por grupo) | U11: COMERCIAL | V11: 0.0154 | AA11: 405 | AB11: 2020 | AC11: EMT | AD11: Pessoal | AE11: Despesas Rescisórias | AF11: 610530506 | AG11: 0 | AK11: 2018 | AL11: 21282 | AM11: CONSUMIDOR DISTRIBUIÇÃO | AN11: 3298.365
B12: ESS/ERR | C12: 117279466 | G12: PROINFA | H12: 111360526 | I12: ReH 3.147/2022 | L12: 2021 | M12: 0.02654797345 | S12: 4 | T12: RI Limite de Neutralidade de Encargos (por grupo) | U12: RURAL | V12: 0.0317 | AA12: 405 | AB12: 2020 | AC12: EMT | AD12: Pessoal | AE12: Participação Lucros Resultados | AF12: 610530507 | AG12: 0 | AK12: 2018 | AL12: 21282 | AM12: CONSUMIDOR LIVRE | AN12: 1446441.223
B13: PROINFA | C13: 131009499.5 | G13: ONS | H13: 215179.7962 | I13: Contribuição 2023 | L13: 2022 | M13: 0.027804 | S13: 5 | T13: RI Limite de Neutralidade de Encargos (por grupo) | U13: PODERPUBLICO | V13: 0.0252 | AA13: 405 | AB13: 2020 | AC13: EMT | AD13: Pessoal | AE13: Outros Benefícios | AF13: 610530508 | AG13: 39966120.45 | AK13: 2018 | AL13: 21282 | AM13: ENCARGO | AN13: 660816831.4
B14: P&D | C14: 54994497.44 | G14: TFSEE | L14: 2023 | M14: 0.028807 | S14: 6 | T14: RI Limite de Neutralidade de Encargos (por grupo) | U14: ILUMPUBLICA | V14: 0.0184 | AA14: 405 | AB14: 2020 | AC14: EMT | AD14: Pessoal | AE14: (-)Créditos Tributários Recuperáveis | AF14: 610530510 | AG14: 0 | AK14: 2018 | AL14: 21282 | AM14: ENERGIA | AN14: 1720766283
B15: ONS | C15: 199184.4643 | G15: EER | H15: 121238304 | I15: Desp 512/2023 | L15: 2024 | M15: 0.0305738 | S15: 7 | T15: RI Limite de Neutralidade de Encargos (por grupo) | U15: SERVPUBLICO | V15: 0.1299 | AA15: 405 | AB15: 2020 | AC15: EMT | AD15: Pessoal | AE15: Outros | AF15: 610530599 | AG15: 0 | AK15: 2018 | AL15: 21282 | AM15: FATOR X | AN15: 0.001292043774
G16: TFSEE Fator de Carga | H16: 0.858 | S16: 11 | T16: RI Limite de outros componentes (por empresa) | U16: Residencial | V16: 0.0072 | AA16: 405 | AB16: 2020 | AC16: EMT | AD16: Pessoal | AE16: Administradores | AF16: 6105306 | AG16: 51162.3 | AK16: 2018 | AL16: 21282 | AM16: Fornecimento | AN16: 7078905.992
G17: CDE Covid | H17: 149295909.7 | I17: DSP 939/2021 | S17: 12 | T17: RI Limite de outros componentes (por empresa) | U17: Industrial | V17: 0.0035 | AA17: 405 | AB17: 2020 | AC17: EMT | AD17: Materiais | AE17: Materiais | AF17: 610530701 | AG17: 25140691.23 | AK17: 2018 | AL17: 21282 | AM17: IGPM | AN17: 0.001991903296
B18: Pmix | C18: 266.1833118 | G18: CDE Covid TE% | H18: 0.3618054792 | S18: 13 | T18: RI Limite de outros componentes (por empresa) | U18: COMERCIAL | V18: 0.0046 | AA18: 405 | AB18: 2020 | AC18: EMT | AD18: Materiais | AE18: (-)Créditos Tributários Recuperáveis | AF18: 610530710 | AG18: -584323.7 | AK18: 2018 | AL18: 21282 | AM18: IPCA | AN18: 0.02814206222
B19: PN2022 | C19: 0.06735722159 | G19: CDE Covid TUSD% | H19: 0.6381945208 | S19: 14 | T19: RI Limite de outros componentes (por empresa) | U19: RURAL | V19: 0.005 | AA19: 405 | AB19: 2020 | AC19: EMT | AD19: Materiais | AE19: Outros | AF19: 610530799 | AG19: 9859001.29 | AK19: 2018 | AL19: 21282 | AM19: Parcela B | AN19: 1374488650
B20: PT2018 | C20: 0.10044 | G20: CDE Escassez Hidrica | H20: 240063889.6 | I20: DSP SGT | S20: 15 | T20: RI Limite de outros componentes (por empresa) | U20: PODERPUBLICO | V20: 0.0002 | AA20: 405 | AB20: 2020 | AC20: EMT | AD20: Terceiros | AE20: (-)Créditos Tributários Recuperáveis | AF20: 610530810 | AG20: -6572044.29 | AK20: 2018 | AL20: 21282 | AM20: Revisão ou Reajuste (1-REVI,0-Reaj) | AN20: 1
G21: CDE Escassez Hidr TE% | H21: 0.8415575582 | S21: 16 | T21: RI Limite de outros componentes (por empresa) | U21: ILUMPUBLICA | V21: 0 | AA21: 405 | AB21: 2020 | AC21: EMT | AD21: Seguros | AE21: Seguros | AF21: 610531001 | AG21: 1425972.97 | AK21: 2018 | AL21: 21282 | AM21: SUPRIMENTO (Mercado TUSD) | AN21: 0
B22: Perda RB total | C22: 0.01400740303 | G22: CDE Escassez Hidr TUSD% | H22: 0.1584424418 | L22: Mês | M22: Potência | N22: Tarifa | O22: Perdas | P22: Energia | S22: 17 | T22: RI Limite de outros componentes (por empresa) | U22: SERVPUBLICO | V22: 0 | AA22: 405 | AB22: 2020 | AC22: EMT | AD22: Seguros | AE22: (-)Créditos Tributários Recuperáveis | AF22: 610531010 | AG22: 0 | AK22: 2018 | AL22: 21282 | AM22: TRANSPORTE TERCEIROS | AN22: 256870666.4
B23: CVA | G23: CDE GD | H23: 44762870.64 | I23: REH 3.175/2023 | L23: 45017 | M23: 290.806665 | N23: 16.19 | O23: 0.05794699743 | P23: 129211.9059 | S23: 101 | T23: Parâmetros de Custos Operacionais | U23: CO1_Theta_inf | V23: 0.8453451216 | AA23: 405 | AB23: 2020 | AC23: EMT | AD23: Seguros | AE23: Outros | AF23: 610531099 | AG23: 0 | AK23: 2019 | AL23: 21647 | AM23: ANEXO II | AN23: 0.0562292802
B24: CVA RB | C24: 53954714.22 | L24: 45047 | M24: 300.601045 | N24: 16.19 | O24: 0.05794699743 | P24: 133518.9695 | S24: 102 | T24: Parâmetros de Custos Operacionais | U24: CO2_Theta_centro | V24: 0.8775238744 | AA24: 405 | AB24: 2020 | AC24: EMT | AD24: Tributos | AE24: Tributos | AF24: 6105316 | AG24: 997.4 | AK24: 2019 | AL24: 21647 | AM24: CONSUMIDOR DISTRIBUIÇÃO | AN24: 3391.71
B25: CVA CCC | C25: 0 | G25: Informações de Postergação | L25: 45078 | M25: 304.057885 | N25: 16.19 | O25: 0.05794699743 | P25: 129211.9059 | S25: 103 | T25: Parâmetros de Custos Operacionais | U25: CO3_Theta_sup | V25: 0.9247169016 | AA25: 405 | AB25: 2020 | AC25: EMT | AD25: Outros | AE25: Indenização Perdas Danos | AF25: 610531901 | AG25: 2687444.45 | AK25: 2019 | AL25: 21647 | AM25: CONSUMIDOR LIVRE | AN25: 1595624.278
B26: CVA CDE | C26: 21318420.88 | L26: 45108 | M26: 304.057885 | N26: 16.19 | O26: 0.05794699743 | P26: 133518.9695 | S26: 104 | T26: Parâmetros de Custos Operacionais | U26: CO4_Theta_ref | V26: 0.786868 | AA26: 405 | AB26: 2020 | AC26: EMT | AD26: Outros | AE26: Consumo Próprio Energia | AF26: 610531902 | AG26: 11427081.36 | AK26: 2019 | AL26: 21647 | AM26: ENCARGO | AN26: 648595385.6
B27: CVA CFURH | G27: Tipo | H27: Valor | L27: 45139 | M27: 292.016559 | N27: 16.19 | O27: 0.05794699743 | P27: 133518.9695 | S27: 105 | T27: Parâmetros de Custos Operacionais | U27: CO5_Opex_real | V27: 549041.7595 | AA27: 405 | AB27: 2020 | AC27: EMT | AD27: Outros | AE27: Taxas Arrecadação | AF27: 610531903 | AG27: 0 | AK27: 2019 | AL27: 21647 | AM27: ENERGIA | AN27: 1905062132
B28: CVA ESS\ERR | C28: 213278251.2 | G28: Data Postergada | H28: 45024 | L28: 45170 | M28: 289.078245 | N28: 16.19 | O28: 0.05794699743 | P28: 129211.9059 | S28: 106 | T28: Parâmetros de Custos Operacionais | U28: CO6_PMSOcorrigido | V28: 539401.4952 | AA28: 405 | AB28: 2020 | AC28: EMT | AD28: Outros | AE28: Taxas Bancárias | AF28: 610531904 | AG28: 0 | AK28: 2019 | AL28: 21647 | AM28: FATOR X | AN28: -0.005831899524
B29: CVA PROINFA | C29: 12328397.04 | G29: Data Anterior | H29: 45024 | L29: 45200 | M29: 281.876495 | N29: 16.19 | O29: 0.05794699743 | P29: 133518.9695 | S29: 107 | T29: Parâmetros de Custos Operacionais | U29: CO7_FatorEscala | V29: 0 | AA29: 405 | AB29: 2020 | AC29: EMT | AD29: Outros | AE29: DespesaConselhoConsumidores | AF29: 610531905 | AG29: 0 | AK29: 2019 | AL29: 21647 | AM29: Fornecimento | AN29: 7244742.443
B30: CVA TRANS. ITAIPU | C30: -138597.6828 | G30: Diferença de Dias | H30: 0 | L30: 45231 | M30: 281.588425 | N30: 16.19 | O30: 0.05794699743 | P30: 129211.9059 | S30: 108 | T30: Parâmetros de Custos Operacionais | U30: CO8_u | V30: 1.853906615e-06 | AA30: 405 | AB30: 2020 | AC30: EMT | AD30: Outros | AE30: (-)Créditos Tributários Recuperáveis | AF30: 610531910 | AG30: 0 | AK30: 2019 | AL30: 21647 | AM30: IGPM | AN30: 0.08266818871
B31: CVA ENERGIA | C31: 156633494.5 | G31: MesesAdin | H31: 0 | L31: 45261 | M31: 273.522465 | N31: 16.19 | O31: 0.05794699743 | P31: 133518.9695 | S31: 109 | T31: Parâmetros de Custos Operacionais | U31: CO9_Vs_Yrsub | V31: 4.600577996e-06 | AA31: 405 | AB31: 2020 | AC31: EMT | AD31: Pessoal | AE31: Remuneração | AF31: 610532501 | AG31: -30883452.48 | AK31: 2019 | AL31: 21647 | AM31: IPCA | AN31: 0.04295071936
B32: CVA CDE Covid | C32: 3081587.905 | G32: Reversão Subvenção CDE | L32: 45292 | M32: 291.521183 | N32: 16.19 | O32: 0.05794699743 | P32: 141707.997 | S32: 110 | T32: Parâmetros de Custos Operacionais | U32: CO10_Vs_Yrdist_a | V32: 4.600577996e-06 | AA32: 405 | AB32: 2020 | AC32: EMT | AD32: Pessoal | AE32: Encargos | AF32: 610532502 | AG32: 10229762.99 | AK32: 2019 | AL32: 21647 | AM32: Parcela B | AN32: 1518437779
G33: Data 4CRT | H33: 43198 | L33: 45323 | M33: 291.521183 | N33: 16.19 | O33: 0.05794699743 | P33: 127994.3198 | S33: 111 | T33: Parâmetros de Custos Operacionais | U33: CO11_Vs_Yralta | V33: 4.600577996e-06 | AA33: 405 | AB33: 2020 | AC33: EMT | AD33: Pessoal | AE33: Previdência Privada Corrente | AF33: 610532503 | AG33: 988693.5 | AK33: 2019 | AL33: 21647 | AM33: Revisão ou Reajuste (1-REVI,0-Reaj) | AN33: 0
L34: 45352 | M34: 300.693323 | N34: 16.19 | O34: 0.05794699743 | P34: 141707.997 | S34: 112 | T34: Parâmetros de Custos Operacionais | U34: CO12_Vs_Ycons | V34: 6.961604729e-08 | AA34: 405 | AB34: 2020 | AC34: EMT | AD34: Pessoal | AE34: Despesas Rescisórias | AF34: 610532506 | AG34: 0 | AK34: 2019 | AL34: 21647 | AM34: SUPRIMENTO (Mercado TUSD) | AN34: 0
G35: Nome | H35: Valor | S35: 113 | T35: Parâmetros de Custos Operacionais | U35: CO13_Vs_Ymponderado | V35: 3.560931814e-08 | AA35: 405 | AB35: 2020 | AC35: EMT | AD35: Pessoal | AE35: Participação Lucros Resultados | AF35: 610532507 | AG35: 18144567.09 | AK35: 2019 | AL35: 21647 | AM35: TRANSPORTE TERCEIROS | AN35: 251286658.9
G36: TUSDg Export DRP | H36: 43295204.22 | L36: Mês | M36: Potência | N36: Tarifa DRA | O36: Tarifa DRP | P36: Colunas1 | S36: 114 | T36: Parâmetros de Custos Operacionais | U36: CO14_Vs_Yd_perdas_dif2 | V36: 2.32053491e-08 | AA36: 405 | AB36: 2020 | AC36: EMT | AD36: Pessoal | AE36: Outros Benefícios | AF36: 610532508 | AG36: 9548971.62 | AK36: 2020 | AL36: 22013 | AM36: ANEXO II | AN36: 0.06459021884
G37: TUSDg ONS DRP | H37: 2872641.23 | L37: 44652 | M37: 288.74454 | N37: 9936.12 | O37: 11925.08 | S37: 115 | T37: Parâmetros de Custos Operacionais | U37: CO15_Vs_Yd_DEC_V8 | V37: 0 | AA37: 405 | AB37: 2020 | AC37: EMT | AD37: Pessoal | AE37: (-)Créditos Tributários Recuperáveis | AF37: 610532510 | AG37: 0 | AK37: 2020 | AL37: 22013 | AM37: CONSUMIDOR DISTRIBUIÇÃO | AN37: 4584.841
G38: TUSDg ONS DRA | H38: 4568724.912 | L38: 44682 | M38: 298.47594 | N38: 9936.12 | O38: 11925.08 | S38: 116 | T38: Parâmetros de Custos Operacionais | U38: CO16_P_AT | V38: 0.01839583107 | AA38: 405 | AB38: 2020 | AC38: EMT | AD38: Pessoal | AE38: Outros | AF38: 610532599 | AG38: 2724089.1 | AK38: 2020 | AL38: 22013 | AM38: CONSUMIDOR LIVRE | AN38: 1700187.676
B39: Transporte | G39: TUSDg Export DRA | H39: 78849731.58 | L39: 44713 | M39: 299.5881 | N39: 9936.12 | O39: 11925.08 | S39: 117 | T39: Parâmetros de Custos Operacionais | U39: CO17_P_MT | V39: 0.2545768103 | AA39: 405 | AB39: 2020 | AC39: EMT | AD39: Pessoal | AE39: Administradores | AF39: 6105326 | AG39: 8428559.09 | AK39: 2020 | AL39: 22013 | AM39: ENCARGO | AN39: 672600311.7
B40: Conexao | C40: 16037483.89 | L40: 44743 | M40: 299.5881 | N40: 9936.12 | O40: 11925.08 | S40: 118 | T40: Parâmetros de Custos Operacionais | U40: CO18_P_BT | V40: 0.7270273587 | AA40: 405 | AB40: 2020 | AC40: EMT | AD40: Materiais | AE40: Materiais | AF40: 610532701 | AG40: 4855937.3 | AK40: 2020 | AL40: 22013 | AM40: ENERGIA | AN40: 2170516792
L41: 44774 | M41: 290.13474 | N41: 9936.12 | O41: 11925.08 | S41: 119 | T41: Parâmetros de Custos Operacionais | U41: CO19_PMSO2013 | AA41: 405 | AB41: 2020 | AC41: EMT | AD41: Materiais | AE41: (-)Créditos Tributários Recuperáveis | AF41: 610532710 | AG41: 0 | AK41: 2020 | AL41: 22013 | AM41: FATOR X | AN41: 0.0007097497513
G42: Fator X | H42: Valor | L42: 44805 | M42: 288.74454 | N42: 9936.12 | O42: 11925.08 | S42: 120 | T42: Parâmetros de Custos Operacionais | U42: CO20_Cont_Associativa | V42: 631190.1573 | AA42: 405 | AB42: 2020 | AC42: EMT | AD42: Materiais | AE42: Outros | AF42: 610532799 | AG42: 0 | AK42: 2020 | AL42: 22013 | AM42: Fornecimento | AN42: 7725052.518
L43: 44835 | M43: 284.57394 | N43: 9936.12 | O43: 11925.08 | S43: 201 | T43: Parâmetros de Custos Operacionais | U43: pesoAT | V43: 0.02751655636 | AA43: 405 | AB43: 2020 | AC43: EMT | AD43: Terceiros | AE43: AdmCentral | AF43: 610532801 | AG43: 116700708.6 | AK43: 2020 | AL43: 22013 | AM43: IGPM | AN43: 0.06807876498
B44: Mercado | L44: 44866 | M44: 283.18374 | N44: 9936.12 | O44: 11925.08 | S44: 202 | T44: Parâmetros de Custos Operacionais | U44: pesoMT | V44: 0.2730784992 | AA44: 405 | AB44: 2020 | AC44: EMT | AD44: Terceiros | AE44: (-)Créditos Tributários Recuperáveis | AF44: 610532810 | AG44: 0 | AK44: 2020 | AL44: 22013 | AM44: IPCA | AN44: 0.03365121865
B45: RA0_MWh_Tusd | C45: 9537302.605 | L45: 44896 | M45: 276.23274 | N45: 9936.12 | O45: 11925.08 | S45: 203 | T45: Parâmetros de Custos Operacionais | U45: pesoBT | V45: 0.6994049444 | AA45: 405 | AB45: 2020 | AC45: EMT | AD45: Seguros | AE45: Seguros | AF45: 610533001 | AG45: 648558.89 | AK45: 2020 | AL45: 22013 | AM45: Parcela B | AN45: 1777158985
B46: RA1_R$ | C46: 6711438462 | G46: DecFec Processo Anterior | H46: Valor | L46: 44927 | M46: 274.674745 | N46: 9936.12 | O46: 11925.08 | S46: 301 | T46: Financeiro de RTP | U46: Conselho de Consumidor | V46: 120374.82 | AA46: 405 | AB46: 2020 | AC46: EMT | AD46: Seguros | AE46: (-)Créditos Tributários Recuperáveis | AF46: 610533010 | AG46: 0 | AK46: 2020 | AL46: 22013 | AM46: Revisão ou Reajuste (1-REVI,0-Reaj) | AN46: 0
B47: Proinfa | G47: DEC A-2 | L47: 44958 | M47: 274.674745 | N47: 9936.12 | O47: 11925.08 | S47: 2018 | T47: Financeiro de RTP | U47: Conselho de Consumidor | V47: 175132.89 | AA47: 405 | AB47: 2020 | AC47: EMT | AD47: Seguros | AE47: Outros | AF47: 610533099 | AG47: 0 | AK47: 2020 | AL47: 22013 | AM47: SUPRIMENTO (Mercado TUSD) | AN47: 0
B48: 2023 | C48: 176735.1769 | G48: DEC A-1 | L48: 44986 | M48: 283.316845 | N48: 9936.12 | O48: 11925.08 | S48: 401 | T48: Duração do Próximo Ciclo de Revisão | V48: 5 | AA48: 405 | AB48: 2020 | AC48: EMT | AD48: Tributos | AE48: Tributos | AF48: 6105336 | AG48: 2512215.21 | AK48: 2020 | AL48: 22013 | AM48: TRANSPORTE TERCEIROS | AN48: 315913566.5
B49: Detalhamento de Encargos ESS e CDE | G49: FEC A-2 | AA49: 405 | AB49: 2020 | AC49: EMT | AD49: Outros | AE49: Indenização Perdas Danos | AF49: 610533901 | AG49: 28922671.63 | AK49: 2021 | AL49: 22378 | AM49: ANEXO II | AN49: 0.228659725
G50: FEC A-1 | L50: Dado | M50: Valor | N50: Início | O50: Fim | AA50: 405 | AB50: 2020 | AC50: EMT | AD50: Outros | AE50: Consumo Próprio Energia | AF50: 610533902 | AG50: 0 | AK50: 2021 | AL50: 22378 | AM50: CONSUMIDOR DISTRIBUIÇÃO | AN50: 4832.13
L51: MUST | M51: 7919 | N51: 44378 | O51: 44742 | AA51: 405 | AB51: 2020 | AC51: EMT | AD51: Outros | AE51: Taxas Arrecadação | AF51: 610533903 | AG51: 0 | AK51: 2021 | AL51: 22378 | AM51: CONSUMIDOR LIVRE | AN51: 1908327.84
G52: Dados de dólar | H52: Valor | L52: MUST | M52: 7880 | N52: 44743 | O52: 45107 | AA52: 405 | AB52: 2020 | AC52: EMT | AD52: Outros | AE52: Taxas Bancárias | AF52: 610533904 | AG52: 0 | AK52: 2021 | AL52: 22378 | AM52: ENCARGO | AN52: 875954139.7
G53: Dólar médio | H53: 5.2137 | L53: Potência Max | M53: 10775 | N53: 44562 | O53: 44926 | AA53: 405 | AB53: 2020 | AC53: EMT | AD53: Outros | AE53: (-)Créditos Tributários Recuperáveis | AF53: 610533910 | AG53: 0 | AK53: 2021 | AL53: 22378 | AM53: ENERGIA | AN53: 2451472220
G54: Data Inicial | H54: 44979 | L54: Potência Max | M54: 10555 | N54: 44927 | O54: 45291 | AA54: 405 | AB54: 2020 | AC54: EMT | AD54: Pessoal | AE54: Remuneração | AF54: 610550501 | AG54: 0 | AK54: 2021 | AL54: 22378 | AM54: FATOR X | AN54: -0.0008260788325
G55: Data Final | H55: 45008 | AA55: 405 | AB55: 2020 | AC55: EMT | AD55: Pessoal | AE55: Encargos | AF55: 610550502 | AG55: 0 | AK55: 2021 | AL55: 22378 | AM55: Fornecimento | AN55: 7748338.239
G56: Último Dado Diponível | H56: 45014 | L56: Dados de perda | M56: Valor | O56: Agente | P56: Ressarcimento P&D | AA56: 405 | AB56: 2020 | AC56: EMT | AD56: Pessoal | AE56: Previdência Privada Corrente | AF56: 610550503 | AG56: 0 | AK56: 2021 | AL56: 22378 | AM56: IGPM | AN56: 0.3109697011
B57: Subsídios Concedidos (sem ajuste) | L57: Perdas RB | M57: 121426.6816 | AA57: 405 | AB57: 2020 | AC57: EMT | AD57: Pessoal | AE57: Despesas Rescisórias | AF57: 610550506 | AG57: 0 | AK57: 2021 | AL57: 22378 | AM57: IPCA | AN57: 0.06057403622
B58: Mês de Início | C58: Carga Fonte | D58: Geração | E58: Distribuição | F58: Água, Esgoto e Saneamento | G58: Rural | H58: Irrigante/Aquicultor | L58: Perdas DITs | M58: 20832.3212 | AA58: 405 | AB58: 2020 | AC58: EMT | AD58: Pessoal | AE58: Participação Lucros Resultados | AF58: 610550507 | AG58: 0 | AK58: 2021 | AL58: 22378 | AM58: Parcela B | AN58: 2384063093
B59: 2022-04-01 | C59: 13501720.24 | D59: 7482425.888 | E59: 0 | F59: 297887.6625 | G59: 3668725.998 | H59: 3341353.864 | AA59: 405 | AB59: 2020 | AC59: EMT | AD59: Pessoal | AE59: Outros Benefícios | AF59: 610550508 | AG59: 0 | AK59: 2021 | AL59: 22378 | AM59: Revisão ou Reajuste (1-REVI,0-Reaj) | AN59: 0
B60: 2023-04-01 | C60: 0 | D60: 0 | E60: 0 | F60: 0 | G60: 0 | H60: 0 | AA60: 405 | AB60: 2020 | AC60: EMT | AD60: Pessoal | AE60: (-)Créditos Tributários Recuperáveis | AF60: 610550510 | AG60: 0 | AK60: 2021 | AL60: 22378 | AM60: SUPRIMENTO (Mercado TUSD) | AN60: 0
AA61: 405 | AB61: 2020 | AC61: EMT | AD61: Pessoal | AE61: Outros | AF61: 610550599 | AG61: 0 | AK61: 2021 | AL61: 22378 | AM61: TRANSPORTE TERCEIROS | AN61: 440041147.8
AA62: 405 | AB62: 2020 | AC62: EMT | AD62: Pessoal | AE62: Administradores | AF62: 6105506 | AG62: 0 | AK62: 2022 | AL62: 22743 | AM62: ANEXO II | AN62: 0.1133485486
AA63: 405 | AB63: 2020 | AC63: EMT | AD63: Materiais | AE63: Materiais | AF63: 610550701 | AG63: 0 | AK63: 2022 | AL63: 22743 | AM63: CONSUMIDOR DISTRIBUIÇÃO | AN63: 3513.205
AA64: 405 | AB64: 2020 | AC64: EMT | AD64: Materiais | AE64: (-)Créditos Tributários Recuperáveis | AF64: 610550710 | AG64: 0 | AK64: 2022 | AL64: 22743 | AM64: CONSUMIDOR LIVRE | AN64: 2140931.206
B65: Data | C65: Tipo | D65: Valor | E65: Valor IGPM | F65: Valor IPCA | G65: EixoRef | AA65: 405 | AB65: 2020 | AC65: EMT | AD65: Materiais | AE65: Outros | AF65: 610550799 | AG65: 0 | AK65: 2022 | AL65: 22743 | AM65: ENCARGO | AN65: 1187964009
B66: =DATE(YEAR(CAPA!C10),MONTH(CAPA!C10),1) -> 2023-04-01 | C66: =IF(CAPA!C7="Revisão",1,0) -> 1 | D66: =Resultado!L11 -> 882.9069063 | E66: =IFERROR(VLOOKUP(EDATE($B66,-1),Índices!$B$6:$F$500,2,FALSE)/VLOOKUP(EDATE(MIN($B$67:$B$81),-1),Índices!$B$6:$F$500,2,FALSE)*VLOOKUP(MIN($B$67:$B$81),$B$67:$D$81,3,FALSE),0) -> 0 | F66: =IFERROR(VLOOKUP(EDATE($B66,-1),Índices!$B$6:$F$500,3,FALSE)/VLOOKUP(EDATE(MIN($B$67:$B$81),-1),Índices!$B$6:$F$500,3,FALSE)*VLOOKUP(MIN($B$67:$B$81),$B$67:$D$81,3,FALSE),0) -> 0 | G66: =IF(B66<>"",150+1,"") -> 151 | O66: Data | P66: Fat Bandeiras | AA66: 405 | AB66: 2020 | AC66: EMT | AD66: Terceiros | AE66: (-)Créditos Tributários Recuperáveis | AF66: 610550810 | AG66: 0 | AK66: 2022 | AL66: 22743 | AM66: ENERGIA | AN66: 2401688829
O67: 44652 | P67: 69000445.27 | AA67: 405 | AB67: 2020 | AC67: EMT | AD67: Seguros | AE67: Seguros | AF67: 610551001 | AG67: 0 | AK67: 2022 | AL67: 22743 | AM67: FATOR X | AN67: 0.01311698387
O68: 44682 | P68: 13590813.56 | AA68: 405 | AB68: 2020 | AC68: EMT | AD68: Seguros | AE68: (-)Créditos Tributários Recuperáveis | AF68: 610551010 | AG68: 0 | AK68: 2022 | AL68: 22743 | AM68: Fornecimento | AN68: 7392858.194
O69: 44713 | P69: 550140.46 | AA69: 405 | AB69: 2020 | AC69: EMT | AD69: Seguros | AE69: Outros | AF69: 610551099 | AG69: 0 | AK69: 2022 | AL69: 22743 | AM69: IGPM | AN69: 0.1477052181
O70: 44743 | P70: 403645.81 | AA70: 405 | AB70: 2020 | AC70: EMT | AD70: Tributos | AE70: Tributos | AF70: 6105516 | AG70: 0 | AK70: 2022 | AL70: 22743 | AM70: IPCA | AN70: 0.1012962974
O71: 44774 | P71: 79041.2 | AA71: 405 | AB71: 2020 | AC71: EMT | AD71: Outros | AE71: Indenização Perdas Danos | AF71: 610551901 | AG71: 0 | AK71: 2022 | AL71: 22743 | AM71: Parcela B | AN71: 2665053858
O72: 44805 | P72: 133292.58 | AA72: 405 | AB72: 2020 | AC72: EMT | AD72: Outros | AE72: Consumo Próprio Energia | AF72: 610551902 | AG72: 0 | AK72: 2022 | AL72: 22743 | AM72: Revisão ou Reajuste (1-REVI,0-Reaj) | AN72: 0
O73: 44835 | P73: 123748.7 | AA73: 405 | AB73: 2020 | AC73: EMT | AD73: Outros | AE73: Taxas Arrecadação | AF73: 610551903 | AG73: 0 | AK73: 2022 | AL73: 22743 | AM73: SUPRIMENTO (Mercado TUSD) | AN73: 0
O74: 44866 | P74: 20796.51 | AA74: 405 | AB74: 2020 | AC74: EMT | AD74: Outros | AE74: Taxas Bancárias | AF74: 610551904 | AG74: 0 | AK74: 2022 | AL74: 22743 | AM74: TRANSPORTE TERCEIROS | AN74: 456731765
O75: 44896 | P75: 44856.48 | AA75: 405 | AB75: 2020 | AC75: EMT | AD75: Outros | AE75: (-)Créditos Tributários Recuperáveis | AF75: 610551910 | AG75: 0
O76: 44927 | P76: 4306.47 | AA76: 405 | AB76: 2020 | AC76: EMT | AD76: Pessoal | AE76: Remuneração | AF76: 610552501 | AG76: 0
O77: 44958 | P77: 4306.47 | AA77: 405 | AB77: 2020 | AC77: EMT | AD77: Pessoal | AE77: Encargos | AF77: 610552502 | AG77: 0
O78: 44986 | P78: 4306.47 | AA78: 405 | AB78: 2020 | AC78: EMT | AD78: Pessoal | AE78: Previdência Privada Corrente | AF78: 610552503 | AG78: 0
AA79: 405 | AB79: 2020 | AC79: EMT | AD79: Pessoal | AE79: Despesas Rescisórias | AF79: 610552506 | AG79: 0
AA80: 405 | AB80: 2020 | AC80: EMT | AD80: Pessoal | AE80: Participação Lucros Resultados | AF80: 610552507 | AG80: 0
AA81: 405 | AB81: 2020 | AC81: EMT | AD81: Pessoal | AE81: Outros Benefícios | AF81: 610552508 | AG81: 0
AA82: 405 | AB82: 2020 | AC82: EMT | AD82: Pessoal | AE82: (-)Créditos Tributários Recuperáveis | AF82: 610552510 | AG82: 0
AA83: 405 | AB83: 2020 | AC83: EMT | AD83: Pessoal | AE83: Outros | AF83: 610552599 | AG83: 0
B84: Tabela de Resumo de Montante DRP ano anterior/ Montante Apurado pelo Mercado | AA84: 405 | AB84: 2020 | AC84: EMT | AD84: Pessoal | AE84: Administradores | AF84: 6105526 | AG84: 0
B85: detalhe_grupo | C85: GrupoTarifa | D85: tipoBase | E85: tipofatura | F85: ValorCTAnterior_Sum | G85: ValorAnt_Sum | L85: Prcesso Anterior | N85: RTE | AA85: 405 | AB85: 2020 | AC85: EMT | AD85: Materiais | AE85: Materiais | AF85: 610552701 | AG85: 0
L86: MWh | M86: R$ | N86: MWh | O86: R$ | S86: DthEfetivaPagamento | T86: VlrGarantiaFinanceira | V86: Conta Escassez | W86: Valor | X86: Legislacao | AA86: 405 | AB86: 2020 | AC86: EMT | AD86: Materiais | AE86: (-)Créditos Tributários Recuperáveis | AF86: 610552710 | AG86: 0
I87: BILATERAL | K87: valor | L87: 2545296.753 | M87: 923734476.1 | S87: 44621 | T87: 25079.92 | V87: IMPORTACAO | W87: -19358684.84 | AA87: 405 | AB87: 2020 | AC87: EMT | AD87: Materiais | AE87: Outros | AF87: 610552799 | AG87: 0
I88: CCEAR-DISP | J88: Nova | K88: valor | L88: 2882470.547 | M88: 867210538.1 | S88: 44652 | T88: 27902.18 | V88: BONUS_RED_VOLUNT | W88: -34597057.3 | AA88: 405 | AB88: 2020 | AC88: EMT | AD88: Terceiros | AE88: AdmCentral | AF88: 610552801 | AG88: 0
I89: CCEAR-QTD | J89: Belo Monte | K89: valor | L89: 3477.755 | M89: 537009.6975 | S89: 44682 | T89: 27902.18 | V89: DIFERIMENTOS | W89: -492122448 | AA89: 405 | AB89: 2020 | AC89: EMT | AD89: Terceiros | AE89: (-)Créditos Tributários Recuperáveis | AF89: 610552810 | AG89: 0
I90: CCEAR-QTD | J90: Madeira | K90: valor | L90: 9.338 | M90: 1485.557501 | S90: 44713 | T90: 27902.18 | X90: DSP 1177/2022 | AA90: 405 | AB90: 2020 | AC90: EMT | AD90: Seguros | AE90: Seguros | AF90: 610553001 | AG90: 0
I91: CCEAR-QTD | J91: Nova | K91: valor | L91: 865048.8892 | M91: 196997436.9 | S91: 44743 | T91: 27902.18 | AA91: 405 | AB91: 2020 | AC91: EMT | AD91: Seguros | AE91: (-)Créditos Tributários Recuperáveis | AF91: 610553010 | AG91: 0
I92: CCEN | K92: valor | L92: 278628.8451 | M92: 97283261.26 | S92: 44774 | T92: 31044.42 | AA92: 405 | AB92: 2020 | AC92: EMT | AD92: Seguros | AE92: Outros | AF92: 610553099 | AG92: 0
I93: CCGF | K93: valor | L93: 2184802.222 | M93: 267964308.6 | S93: 44805 | T93: 31044.42 | AA93: 405 | AB93: 2020 | AC93: EMT | AD93: Tributos | AE93: Tributos | AF93: 6105536 | AG93: 0
I94: GERAÇÃO PRÓPRIA | K94: valor | L94: 4689 | M94: 1284832.89 | S94: 44835 | T94: 31044.42 | AA94: 405 | AB94: 2020 | AC94: EMT | AD94: Outros | AE94: Indenização Perdas Danos | AF94: 610553901 | AG94: 0
I95: ITAIPU | K95: valor | L95: 1503528.741 | M95: 434096028.7 | S95: 44866 | T95: 31044.42 | AA95: 405 | AB95: 2020 | AC95: EMT | AD95: Outros | AE95: Consumo Próprio Energia | AF95: 610553902 | AG95: 0
I96: PROINFA | K96: valor | L96: 181002.7147 | S96: 44896 | T96: 31044.42 | AA96: 405 | AB96: 2020 | AC96: EMT | AD96: Outros | AE96: Taxas Arrecadação | AF96: 610553903 | AG96: 0
I97: SOBRA/EXPOSIÇÃO | K97: valor | L97: -1426267.346 | M97: -387420548.6 | S97: 44927 | T97: 31044.42 | AA97: 405 | AB97: 2020 | AC97: EMT | AD97: Outros | AE97: Taxas Bancárias | AF97: 610553904 | AG97: 0
S98: 44958 | T98: 31044.42 | AA98: 405 | AB98: 2020 | AC98: EMT | AD98: Outros | AE98: (-)Créditos Tributários Recuperáveis | AF98: 610553910 | AG98: 0
AA99: 405 | AB99: 2020 | AC99: EMT | AD99: Demais | AE99: Ganhos Alienação Materiais | AF99: 611112103 | AG99: -11453396.72
AA100: 405 | AB100: 2020 | AC100: EMT | AD100: Demais | AE100: Perdas Alienação Desativação | AF100: 611511401 | AG100: 49399195.06
AA101: 405 | AB101: 2021 | AC101: EMT | AD101: Pessoal | AE101: Remuneração | AF101: 610530501 | AG101: 115799093.7
AA102: 405 | AB102: 2021 | AC102: EMT | AD102: Pessoal | AE102: Encargos | AF102: 610530502 | AG102: 39687873.55
AA103: 405 | AB103: 2021 | AC103: EMT | AD103: Pessoal | AE103: Previdência Privada Corrente | AF103: 610530503 | AG103: 2943205.03
AA104: 405 | AB104: 2021 | AC104: EMT | AD104: Pessoal | AE104: Despesas Rescisórias | AF104: 610530506 | AG104: 0
V105: Empresa | W105: AT | X105: MT | Y105: BT | AA105: 405 | AB105: 2021 | AC105: EMT | AD105: Pessoal | AE105: Participação Lucros Resultados | AF105: 610530507 | AG105: 0
V106: 167 | W106: 0.02134 | X106: 0.35825 | Y106: 0.62041 | AA106: 405 | AB106: 2021 | AC106: EMT | AD106: Pessoal | AE106: Outros Benefícios | AF106: 610530508 | AG106: 42321774.42
V107: 102 | W107: 0.064 | X107: 0.32003 | Y107: 0.61596 | AA107: 405 | AB107: 2021 | AC107: EMT | AD107: Pessoal | AE107: (-)Créditos Tributários Recuperáveis | AF107: 610530510 | AG107: 0
V108: 103 | W108: 0.02996 | X108: 0.27106 | Y108: 0.69898 | AA108: 405 | AB108: 2021 | AC108: EMT | AD108: Pessoal | AE108: Outros | AF108: 610530599 | AG108: 0
V109: 104 | W109: 0.07171 | X109: 0.2909 | Y109: 0.63739 | AA109: 405 | AB109: 2021 | AC109: EMT | AD109: Pessoal | AE109: Administradores | AF109: 6105306 | AG109: 56071.8
V110: 105 | W110: 0.00823 | X110: 0.24677 | Y110: 0.745 | AA110: 405 | AB110: 2021 | AC110: EMT | AD110: Materiais | AE110: Materiais | AF110: 610530701 | AG110: 30829627.3
I111: Agente | J111: idagente | K111: indexador | L111: database | M111: RAP do ciclo | N111: Colunas1 | O111: RAP atualizada | V111: 165 | W111: 0.00795 | X111: 0.22554 | Y111: 0.76651 | AA111: 405 | AB111: 2021 | AC111: EMT | AD111: Materiais | AE111: (-)Créditos Tributários Recuperáveis | AF111: 610530710 | AG111: -754626.42
O112: =M112*VLOOKUP(CAPA!C15,Índices!$B$6:$F$626,IF(BD!K112="IPCA",3,2),FALSE)/VLOOKUP(L112,Índices!$B$6:$F$626,IF(BD!K112="IPCA",3,2),FALSE) ->  | V112: 108 | W112: 0.06098 | X112: 0.1711 | Y112: 0.76792 | AA112: 405 | AB112: 2021 | AC112: EMT | AD112: Materiais | AE112: Outros | AF112: 610530799 | AG112: 1759920.99
O113: =M113*VLOOKUP(CAPA!C16,Índices!$B$6:$F$626,IF(BD!K113="IPCA",3,2),FALSE)/VLOOKUP(L113,Índices!$B$6:$F$626,IF(BD!K113="IPCA",3,2),FALSE) ->  | V113: 109 | W113: 0.01034 | X113: 0.24366 | Y113: 0.746 | AA113: 405 | AB113: 2021 | AC113: EMT | AD113: Terceiros | AE113: (-)Créditos Tributários Recuperáveis | AF113: 610530810 | AG113: -7346870.34
O114: =M114*VLOOKUP(CAPA!C17,Índices!$B$6:$F$626,IF(BD!K114="IPCA",3,2),FALSE)/VLOOKUP(L114,Índices!$B$6:$F$626,IF(BD!K114="IPCA",3,2),FALSE) ->  | V114: 110 | W114: 0.01165 | X114: 0.24322 | Y114: 0.74513 | AA114: 405 | AB114: 2021 | AC114: EMT | AD114: Seguros | AE114: Seguros | AF114: 610531001 | AG114: 1035581.99
O115: =M115*VLOOKUP(CAPA!C18,Índices!$B$6:$F$626,IF(BD!K115="IPCA",3,2),FALSE)/VLOOKUP(L115,Índices!$B$6:$F$626,IF(BD!K115="IPCA",3,2),FALSE) ->  | V115: 111 | W115: 0.03791 | X115: 0.37961 | Y115: 0.58248 | AA115: 405 | AB115: 2021 | AC115: EMT | AD115: Seguros | AE115: (-)Créditos Tributários Recuperáveis | AF115: 610531010 | AG115: 0
O116: =M116*VLOOKUP(CAPA!C19,Índices!$B$6:$F$626,IF(BD!K116="IPCA",3,2),FALSE)/VLOOKUP(L116,Índices!$B$6:$F$626,IF(BD!K116="IPCA",3,2),FALSE) ->  | V116: 112 | W116: 0.02273 | X116: 0.26361 | Y116: 0.71367 | AA116: 405 | AB116: 2021 | AC116: EMT | AD116: Seguros | AE116: Outros | AF116: 610531099 | AG116: 0
O117: =M117*VLOOKUP(CAPA!C20,Índices!$B$6:$F$626,IF(BD!K117="IPCA",3,2),FALSE)/VLOOKUP(L117,Índices!$B$6:$F$626,IF(BD!K117="IPCA",3,2),FALSE) ->  | V117: 113 | W117: 0.01263 | X117: 0.23345 | Y117: 0.75392 | AA117: 405 | AB117: 2021 | AC117: EMT | AD117: Tributos | AE117: Tributos | AF117: 6105316 | AG117: 16348.92
O118: =M118*VLOOKUP(CAPA!C21,Índices!$B$6:$F$626,IF(BD!K118="IPCA",3,2),FALSE)/VLOOKUP(L118,Índices!$B$6:$F$626,IF(BD!K118="IPCA",3,2),FALSE) ->  | V118: 114 | W118: 0.01726 | X118: 0.23794 | Y118: 0.7448 | AA118: 405 | AB118: 2021 | AC118: EMT | AD118: Outros | AE118: Indenização Perdas Danos | AF118: 610531901 | AG118: 2679824.42
O119: =M119*VLOOKUP(CAPA!C22,Índices!$B$6:$F$626,IF(BD!K119="IPCA",3,2),FALSE)/VLOOKUP(L119,Índices!$B$6:$F$626,IF(BD!K119="IPCA",3,2),FALSE) ->  | V119: 115 | W119: 0.00993 | X119: 0.23087 | Y119: 0.7592 | AA119: 405 | AB119: 2021 | AC119: EMT | AD119: Outros | AE119: Consumo Próprio Energia | AF119: 610531902 | AG119: 12977018.5
O120: =M120*VLOOKUP(CAPA!C23,Índices!$B$6:$F$626,IF(BD!K120="IPCA",3,2),FALSE)/VLOOKUP(L120,Índices!$B$6:$F$626,IF(BD!K120="IPCA",3,2),FALSE) ->  | S120: iddet1 | T120: valor | V120: 116 | W120: 0.00806 | X120: 0.16835 | Y120: 0.82359 | AA120: 405 | AB120: 2021 | AC120: EMT | AD120: Outros | AE120: Taxas Arrecadação | AF120: 610531903 | AG120: 0
O121: =M121*VLOOKUP(CAPA!C24,Índices!$B$6:$F$626,IF(BD!K121="IPCA",3,2),FALSE)/VLOOKUP(L121,Índices!$B$6:$F$626,IF(BD!K121="IPCA",3,2),FALSE) ->  | S121: 56 | T121: 45000 | V121: 117 | W121: 0.03028 | X121: 0.29131 | Y121: 0.67841 | AA121: 405 | AB121: 2021 | AC121: EMT | AD121: Outros | AE121: Taxas Bancárias | AF121: 610531904 | AG121: 0
O122: =M122*VLOOKUP(CAPA!C25,Índices!$B$6:$F$626,IF(BD!K122="IPCA",3,2),FALSE)/VLOOKUP(L122,Índices!$B$6:$F$626,IF(BD!K122="IPCA",3,2),FALSE) ->  | S122: 57 | T122: 44972 | V122: 118 | W122: 0.04215 | X122: 0.2081 | Y122: 0.74975 | AA122: 405 | AB122: 2021 | AC122: EMT | AD122: Outros | AE122: DespesaConselhoConsumidores | AF122: 610531905 | AG122: 0
O123: =M123*VLOOKUP(CAPA!C26,Índices!$B$6:$F$626,IF(BD!K123="IPCA",3,2),FALSE)/VLOOKUP(L123,Índices!$B$6:$F$626,IF(BD!K123="IPCA",3,2),FALSE) ->  | S123: 58 | T123: 44927 | V123: 119 | W123: 0.01807 | X123: 0.11713 | Y123: 0.8648 | AA123: 405 | AB123: 2021 | AC123: EMT | AD123: Outros | AE123: (-)Créditos Tributários Recuperáveis | AF123: 610531910 | AG123: 0
O124: =M124*VLOOKUP(CAPA!C27,Índices!$B$6:$F$626,IF(BD!K124="IPCA",3,2),FALSE)/VLOOKUP(L124,Índices!$B$6:$F$626,IF(BD!K124="IPCA",3,2),FALSE) ->  | V124: 120 | W124: - | X124: 0.17688 | Y124: 0.82312 | AA124: 405 | AB124: 2021 | AC124: EMT | AD124: Pessoal | AE124: Remuneração | AF124: 610532501 | AG124: -29087855.05
O125: =M125*VLOOKUP(CAPA!C28,Índices!$B$6:$F$626,IF(BD!K125="IPCA",3,2),FALSE)/VLOOKUP(L125,Índices!$B$6:$F$626,IF(BD!K125="IPCA",3,2),FALSE) ->  | V125: 123 | W125: - | X125: 0.13612 | Y125: 0.86388 | AA125: 405 | AB125: 2021 | AC125: EMT | AD125: Pessoal | AE125: Encargos | AF125: 610532502 | AG125: 10221623.52
O126: =M126*VLOOKUP(CAPA!C29,Índices!$B$6:$F$626,IF(BD!K126="IPCA",3,2),FALSE)/VLOOKUP(L126,Índices!$B$6:$F$626,IF(BD!K126="IPCA",3,2),FALSE) ->  | V126: 166 | W126: 0.04257 | X126: 0.29652 | Y126: 0.66092 | AA126: 405 | AB126: 2021 | AC126: EMT | AD126: Pessoal | AE126: Previdência Privada Corrente | AF126: 610532503 | AG126: 1338391.91
O127: =M127*VLOOKUP(CAPA!C30,Índices!$B$6:$F$626,IF(BD!K127="IPCA",3,2),FALSE)/VLOOKUP(L127,Índices!$B$6:$F$626,IF(BD!K127="IPCA",3,2),FALSE) ->  | V127: 128 | W127: - | X127: 0.40427 | Y127: 0.59573 | AA127: 405 | AB127: 2021 | AC127: EMT | AD127: Pessoal | AE127: Despesas Rescisórias | AF127: 610532506 | AG127: 0
O128: =M128*VLOOKUP(CAPA!C31,Índices!$B$6:$F$626,IF(BD!K128="IPCA",3,2),FALSE)/VLOOKUP(L128,Índices!$B$6:$F$626,IF(BD!K128="IPCA",3,2),FALSE) ->  | V128: 129 | W128: 0.02905 | X128: 0.24895 | Y128: 0.722 | AA128: 405 | AB128: 2021 | AC128: EMT | AD128: Pessoal | AE128: Participação Lucros Resultados | AF128: 610532507 | AG128: 14855216.67
O129: =M129*VLOOKUP(CAPA!C32,Índices!$B$6:$F$626,IF(BD!K129="IPCA",3,2),FALSE)/VLOOKUP(L129,Índices!$B$6:$F$626,IF(BD!K129="IPCA",3,2),FALSE) ->  | V129: 130 | W129: 0.0175 | X129: 0.14397 | Y129: 0.83853 | AA129: 405 | AB129: 2021 | AC129: EMT | AD129: Pessoal | AE129: Outros Benefícios | AF129: 610532508 | AG129: 9185645.74
O130: =M130*VLOOKUP(CAPA!C33,Índices!$B$6:$F$626,IF(BD!K130="IPCA",3,2),FALSE)/VLOOKUP(L130,Índices!$B$6:$F$626,IF(BD!K130="IPCA",3,2),FALSE) ->  | S130: Nível | T130: Mercado Faturado A-6 | V130: 131 | W130: - | X130: 0.30099 | Y130: 0.69901 | AA130: 405 | AB130: 2021 | AC130: EMT | AD130: Pessoal | AE130: (-)Créditos Tributários Recuperáveis | AF130: 610532510 | AG130: 0
O131: =M131*VLOOKUP(CAPA!C34,Índices!$B$6:$F$626,IF(BD!K131="IPCA",3,2),FALSE)/VLOOKUP(L131,Índices!$B$6:$F$626,IF(BD!K131="IPCA",3,2),FALSE) ->  | S131: MT | T131: 2779713.924 | V131: 132 | W131: 0.02757 | X131: 0.26424 | Y131: 0.70819 | AA131: 405 | AB131: 2021 | AC131: EMT | AD131: Pessoal | AE131: Outros | AF131: 610532599 | AG131: 2330528.45
O132: =M132*VLOOKUP(CAPA!C35,Índices!$B$6:$F$626,IF(BD!K132="IPCA",3,2),FALSE)/VLOOKUP(L132,Índices!$B$6:$F$626,IF(BD!K132="IPCA",3,2),FALSE) ->  | S132: AT | T132: 593257.724 | V132: 133 | W132: 0.01856 | X132: 0.19536 | Y132: 0.78608 | AA132: 405 | AB132: 2021 | AC132: EMT | AD132: Pessoal | AE132: Administradores | AF132: 6105326 | AG132: 10122294.94
S133: BT | T133: 5191539.712 | V133: 135 | W133: 0.04788 | X133: 0.27054 | Y133: 0.68158 | AA133: 405 | AB133: 2021 | AC133: EMT | AD133: Materiais | AE133: Materiais | AF133: 610532701 | AG133: 6722097.82
V134: 136 | W134: 0.06732 | X134: 0.35547 | Y134: 0.57721 | AA134: 405 | AB134: 2021 | AC134: EMT | AD134: Materiais | AE134: (-)Créditos Tributários Recuperáveis | AF134: 610532710 | AG134: 0
V135: 138 | W135: - | X135: 0.07651 | Y135: 0.92349 | AA135: 405 | AB135: 2021 | AC135: EMT | AD135: Materiais | AE135: Outros | AF135: 610532799 | AG135: 0
V136: 139 | W136: - | X136: 0.35483 | Y136: 0.64517 | AA136: 405 | AB136: 2021 | AC136: EMT | AD136: Terceiros | AE136: AdmCentral | AF136: 610532801 | AG136: 133806265.8
V137: 140 | W137: 0.01004 | X137: 0.21058 | Y137: 0.77938 | AA137: 405 | AB137: 2021 | AC137: EMT | AD137: Terceiros | AE137: (-)Créditos Tributários Recuperáveis | AF137: 610532810 | AG137: 0
V138: 143 | W138: - | X138: 0.20409 | Y138: 0.79591 | AA138: 405 | AB138: 2021 | AC138: EMT | AD138: Seguros | AE138: Seguros | AF138: 610533001 | AG138: 1586918.58
V139: 144 | W139: - | X139: 0.48131 | Y139: 0.51869 | AA139: 405 | AB139: 2021 | AC139: EMT | AD139: Seguros | AE139: (-)Créditos Tributários Recuperáveis | AF139: 610533010 | AG139: 0
A140: NumBar | B140: Nome Conexão | C140: Tensão | D140: Posto Tarifário | E140: Tarifas RB- DRA | F140: Tarifas RB - DRP | G140: Tarifas FR- DRA | H140: Tarifas FR - DRP | I140: M01 | J140: M02 | K140: M03 | L140: M04 | M140: M05 | N140: M06 | O140: M07 | P140: M08 | Q140: M09 | R140: M10 | S140: M11 | T140: M12 | V140: 145 | W140: 0.03725 | X140: 0.29306 | Y140: 0.66969 | AA140: 405 | AB140: 2021 | AC140: EMT | AD140: Seguros | AE140: Outros | AF140: 610533099 | AG140: 0
A141: 4506 | B141: BARRA PEIXE - 13,8 kV (A) | C141: 13,8 | D141: Ponta | E141: 4144 | F141: 5323 | G141: 6228 | H141: 8983 | I141: 4 | J141: 4 | K141: 4 | L141: 4 | M141: 4 | N141: 4 | O141: 4 | P141: 4 | Q141: 4 | R141: 4 | S141: 4 | T141: 4 | V141: 146 | W141: - | X141: 0.14124 | Y141: 0.85876 | AA141: 405 | AB141: 2021 | AC141: EMT | AD141: Tributos | AE141: Tributos | AF141: 6105336 | AG141: 2629520.68
A142: 4586 | B142: SINOP - 13,8 kV (A) | C142: 13,8 | D142: Ponta | E142: 3634 | F142: 4663 | G142: 0 | H142: 0 | I142: 0 | J142: 0 | K142: 0 | L142: 0 | M142: 0 | N142: 0 | O142: 0 | P142: 0 | Q142: 0 | R142: 0 | S142: 0 | T142: 0 | V142: 147 | W142: - | X142: 0.20977 | Y142: 0.79023 | AA142: 405 | AB142: 2021 | AC142: EMT | AD142: Outros | AE142: Indenização Perdas Danos | AF142: 610533901 | AG142: 42281593.96
A143: 4503 | B143: BARRA PEIXE - 138 kV (A) | C143: 138 | D143: Ponta | E143: 4138 | F143: 5317 | G143: 6228 | H143: 8983 | I143: 110 | J143: 110 | K143: 110 | L143: 110 | M143: 110 | N143: 110 | O143: 110 | P143: 110 | Q143: 110 | R143: 110 | S143: 110 | T143: 110 | V143: 148 | W143: 0.03455 | X143: 0.23757 | Y143: 0.72788 | AA143: 405 | AB143: 2021 | AC143: EMT | AD143: Outros | AE143: Consumo Próprio Energia | AF143: 610533902 | AG143: 0
A144: 4871 | B144: BRASNORTE - 138 kV (A) | C144: 138 | D144: Ponta | E144: 3407 | F144: 4524 | G144: 945 | H144: 1037 | I144: 35.245 | J144: 35.245 | K144: 35.245 | L144: 32 | M144: 32 | N144: 32 | O144: 32 | P144: 32 | Q144: 32 | R144: 35.25 | S144: 35.25 | T144: 35.25 | V144: 149 | W144: - | X144: 0.17399 | Y144: 0.82601 | AA144: 405 | AB144: 2021 | AC144: EMT | AD144: Outros | AE144: Taxas Arrecadação | AF144: 610533903 | AG144: 0
A145: 4513 | B145: C. MAGALHAES - 138 kV (A) | C145: 138 | D145: Ponta | E145: 4240 | F145: 5306 | G145: 13111 | H145: 19349 | I145: 18.5 | J145: 18.5 | K145: 18.5 | L145: 18.5 | M145: 18.5 | N145: 18.5 | O145: 18.5 | P145: 18.5 | Q145: 18.5 | R145: 18.5 | S145: 18.5 | T145: 18.5 | V145: 150 | W145: 0.03635 | X145: 0.17413 | Y145: 0.78952 | AA145: 405 | AB145: 2021 | AC145: EMT | AD145: Outros | AE145: Taxas Bancárias | AF145: 610533904 | AG145: 0
A146: 4683 | B146: CANARANA CMT138kVA | C146: 138 | D146: Ponta | E146: 5360 | F146: 6590 | G146: 2605 | H146: 2519 | I146: 75 | J146: 75 | K146: 75 | L146: 75 | M146: 75 | N146: 75 | O146: 75 | P146: 75 | Q146: 75 | R146: 78 | S146: 78 | T146: 78 | V146: 151 | W146: 0.02735 | X146: 0.28351 | Y146: 0.68915 | AA146: 405 | AB146: 2021 | AC146: EMT | AD146: Outros | AE146: (-)Créditos Tributários Recuperáveis | AF146: 610533910 | AG146: 0
A147: 4533 | B147: COXIPO - 138 kV (A) | C147: 138 | D147: Ponta | E147: 3995 | F147: 5237 | G147: 1356 | H147: 1369 | I147: 398 | J147: 398 | K147: 398 | L147: 398 | M147: 398 | N147: 398 | O147: 398 | P147: 398 | Q147: 398 | R147: 445 | S147: 445 | T147: 445 | V147: 152 | W147: 0.00215 | X147: 0.1412 | Y147: 0.85665 | AA147: 405 | AB147: 2021 | AC147: EMT | AD147: Pessoal | AE147: Remuneração | AF147: 610550501 | AG147: 0
A148: 4643 | B148: JACIARA CMT - 138 kV (A) | C148: 138 | D148: Ponta | E148: 3955 | F148: 5219 | G148: 13111 | H148: 19349 | I148: 14.5 | J148: 14.5 | K148: 14.5 | L148: 14.5 | M148: 14.5 | N148: 14.5 | O148: 14.5 | P148: 14.5 | Q148: 14.5 | R148: 14.5 | S148: 14.5 | T148: 14.5 | V148: 153 | W148: 0.03606 | X148: 0.17601 | Y148: 0.78793 | AA148: 405 | AB148: 2021 | AC148: EMT | AD148: Pessoal | AE148: Encargos | AF148: 610550502 | AG148: 0
A149: 4807 | B149: JAURU - 138 kV (A) | C149: 138 | D149: Ponta | E149: 3548 | F149: 4700 | H149: 0 | I149: 0 | J149: 0 | K149: 0 | L149: 0 | M149: 0 | N149: 0 | O149: 0 | P149: 0 | Q149: 0 | R149: 0 | S149: 0 | T149: 0 | V149: 154 | W149: 0.12913 | X149: 0.26626 | Y149: 0.60462 | AA149: 405 | AB149: 2021 | AC149: EMT | AD149: Pessoal | AE149: Previdência Privada Corrente | AF149: 610550503 | AG149: 0
A150: 4870 | B150: JUBA - 138 kV (A) | C150: 138 | D150: Ponta | E150: 3452 | F150: 4595 | H150: 2789 | I150: 20 | J150: 20 | K150: 20 | L150: 20 | M150: 20 | N150: 20 | O150: 20 | P150: 20 | Q150: 20 | R150: 20 | S150: 20 | T150: 20 | V150: 155 | W150: 0.04008 | X150: 0.23225 | Y150: 0.72768 | AA150: 405 | AB150: 2021 | AC150: EMT | AD150: Pessoal | AE150: Despesas Rescisórias | AF150: 610550506 | AG150: 0
A151: 4895 | B151: JUINA - 138 kV (A) | C151: 138 | D151: Ponta | E151: 3312 | F151: 4416 | G151: 727 | H151: 819 | I151: 40.69 | J151: 40.69 | K151: 40.69 | L151: 40 | M151: 40 | N151: 40 | O151: 40 | P151: 40 | Q151: 40 | R151: 40.69 | S151: 40.69 | T151: 40.69 | V151: 156 | W151: - | X151: 0.35985 | Y151: 0.64015 | AA151: 405 | AB151: 2021 | AC151: EMT | AD151: Pessoal | AE151: Participação Lucros Resultados | AF151: 610550507 | AG151: 0
A152: 4575 | B152: LUCAS R.VERDE - 138 kV (A) | C152: 138 | D152: Ponta | E152: 3999 | F152: 5190 | G152: 1218 | H152: 4069 | I152: 65 | J152: 65 | K152: 65 | L152: 65 | M152: 65 | N152: 65 | O152: 65 | P152: 65 | Q152: 65 | R152: 65 | S152: 65 | T152: 65 | V152: 157 | W152: - | X152: 0.15963 | Y152: 0.84037 | AA152: 405 | AB152: 2021 | AC152: EMT | AD152: Pessoal | AE152: Outros Benefícios | AF152: 610550508 | AG152: 0
A153: 4544 | B153: NOBRES - 138 kV (A) | C153: 138 | D153: Ponta | E153: 3816 | F153: 5028 | G153: 584 | H153: 654 | I153: 95 | J153: 95 | K153: 95 | L153: 95 | M153: 95 | N153: 95 | O153: 95 | P153: 95 | Q153: 95 | R153: 100 | S153: 100 | T153: 100 | V153: 158 | W153: - | X153: 0.33049 | Y153: 0.66951 | AA153: 405 | AB153: 2021 | AC153: EMT | AD153: Pessoal | AE153: (-)Créditos Tributários Recuperáveis | AF153: 610550510 | AG153: 0
A154: 4978 | B154: PARANAITA - 138 kV (A) | C154: 138 | D154: Ponta | E154: 3443 | F154: 4434 | G154: 3039 | H154: 3653 | I154: 89.775 | J154: 89.775 | K154: 89.775 | L154: 81 | M154: 81 | N154: 81 | O154: 81 | P154: 81 | Q154: 81 | R154: 81 | S154: 81 | T154: 81 | V154: 160 | W154: 0.1013 | X154: 0.22818 | Y154: 0.67051 | AA154: 405 | AB154: 2021 | AC154: EMT | AD154: Pessoal | AE154: Outros | AF154: 610550599 | AG154: 0
A155: 4874 | B155: PARECIS - 138 kV (A) | C155: 138 | D155: Ponta | E155: 3105 | F155: 4172 | H155: 0 | I155: 0 | J155: 0 | K155: 0 | L155: 0 | M155: 0 | N155: 0 | O155: 0 | P155: 0 | Q155: 0 | R155: 0 | S155: 0 | T155: 0 | V155: 161 | W155: - | X155: 0.28355 | Y155: 0.71645 | AA155: 405 | AB155: 2021 | AC155: EMT | AD155: Pessoal | AE155: Administradores | AF155: 6105506 | AG155: 0
A156: 4613 | B156: PETROVINA - 138 kV (B) | C156: 138 | D156: Ponta | E156: 3937 | F156: 5211 | G156: 13111 | H156: 19349 | I156: 11 | J156: 11 | K156: 11 | L156: 11 | M156: 11 | N156: 11 | O156: 11 | P156: 11 | Q156: 11 | R156: 11 | S156: 11 | T156: 11 | V156: 163 | W156: 0.03507 | X156: 0.1664 | Y156: 0.79853 | AA156: 405 | AB156: 2021 | AC156: EMT | AD156: Materiais | AE156: Materiais | AF156: 610550701 | AG156: 0
A157: 4623 | B157: RONDONOPOLIS1 - 138 kV (A) | C157: 138 | D157: Ponta | E157: 3931 | F157: 5209 | G157: 1346 | H157: 1642 | I157: 270 | J157: 270 | K157: 270 | L157: 270 | M157: 270 | N157: 270 | O157: 270 | P157: 270 | Q157: 270 | R157: 270 | S157: 270 | T157: 270 | V157: 164 | W157: - | X157: 0.12897 | Y157: 0.87103 | AA157: 405 | AB157: 2021 | AC157: EMT | AD157: Materiais | AE157: (-)Créditos Tributários Recuperáveis | AF157: 610550710 | AG157: 0
A158: 6563 | B158: SANT. ARAGUAIA138kVA | C158: 138 | D158: Ponta | E158: 7281 | F158: 7708 | G158: 6072 | H158: 3000 | I158: 85 | J158: 85 | K158: 85 | L158: 85 | M158: 85 | N158: 85 | O158: 85 | P158: 87.5 | Q158: 87.5 | R158: 87.5 | S158: 87.5 | T158: 87.5 | AA158: 405 | AB158: 2021 | AC158: EMT | AD158: Materiais | AE158: Outros | AF158: 610550799 | AG158: 0
A159: 4583 | B159: SINOP - 138 kV (A) | C159: 138 | D159: Ponta | E159: 3634 | F159: 4664 | G159: 1621 | H159: 2740 | I159: 166 | J159: 166 | K159: 166 | L159: 166 | M159: 166 | N159: 166 | O159: 166 | P159: 166 | Q159: 166 | R159: 210 | S159: 210 | T159: 210 | AA159: 405 | AB159: 2021 | AC159: EMT | AD159: Terceiros | AE159: (-)Créditos Tributários Recuperáveis | AF159: 610550810 | AG159: 0
A160: 4712 | B160: VZ.GRANDE CMT - 138 kV (A) | C160: 138 | D160: Ponta | E160: 3986 | F160: 5227 | G160: 2648 | H160: 2832 | I160: 260 | J160: 260 | K160: 260 | L160: 260 | M160: 260 | N160: 260 | O160: 260 | P160: 260 | Q160: 260 | R160: 260 | S160: 260 | T160: 260 | AA160: 405 | AB160: 2021 | AC160: EMT | AD160: Seguros | AE160: Seguros | AF160: 610551001 | AG160: 0
A161: 4894 | B161: JUINA - 230 kV (A) | C161: 230 | D161: Ponta | E161: 3254 | F161: 4350 | H161: 0 | I161: 23 | J161: 23 | K161: 23 | L161: 23 | M161: 23 | N161: 23 | O161: 23 | P161: 23 | Q161: 23 | R161: 14 | S161: 14 | T161: 14 | AA161: 405 | AB161: 2021 | AC161: EMT | AD161: Seguros | AE161: (-)Créditos Tributários Recuperáveis | AF161: 610551010 | AG161: 0
A162: 4554 | B162: NOVA MUTUM - 69 kV (A) | C162: 69 | D162: Ponta | E162: 3625 | F162: 4830 | G162: 2917 | H162: 3459 | I162: 40 | J162: 40 | K162: 40 | L162: 40 | M162: 40 | N162: 40 | O162: 40 | P162: 40 | Q162: 40 | R162: 43 | S162: 43 | T162: 43 | AA162: 405 | AB162: 2021 | AC162: EMT | AD162: Seguros | AE162: Outros | AF162: 610551099 | AG162: 0
A163: 4564 | B163: SORRISO - 69 kV (A) | C163: 69 | D163: Ponta | E163: 3846 | F163: 4961 | G163: 940 | H163: 3349 | I163: 66 | J163: 66 | K163: 66 | L163: 66 | M163: 66 | N163: 66 | O163: 66 | P163: 66 | Q163: 66 | R163: 66 | S163: 66 | T163: 66 | AA163: 405 | AB163: 2021 | AC163: EMT | AD163: Tributos | AE163: Tributos | AF163: 6105516 | AG163: 0
A164: 4506 | B164: BARRA PEIXE - 13,8 kV (A) | C164: 13,8 | D164: Fora Ponta | E164: 3902 | F164: 5110 | G164: 6228 | H164: 8983 | I164: 4 | J164: 4 | K164: 4 | L164: 4 | M164: 4 | N164: 4 | O164: 4 | P164: 4 | Q164: 4 | R164: 4 | S164: 4 | T164: 4 | AA164: 405 | AB164: 2021 | AC164: EMT | AD164: Outros | AE164: Indenização Perdas Danos | AF164: 610551901 | AG164: 0
A165: 4586 | B165: SINOP - 13,8 kV (A) | C165: 13,8 | D165: Fora Ponta | E165: 3360 | F165: 4405 | G165: 0 | H165: 0 | I165: 0 | J165: 0 | K165: 0 | L165: 0 | M165: 0 | N165: 0 | O165: 0 | P165: 0 | Q165: 0 | R165: 0 | S165: 0 | T165: 0 | AA165: 405 | AB165: 2021 | AC165: EMT | AD165: Outros | AE165: Consumo Próprio Energia | AF165: 610551902 | AG165: 0
A166: 4503 | B166: BARRA PEIXE - 138 kV (A) | C166: 138 | D166: Fora Ponta | E166: 3896 | F166: 5103 | G166: 6228 | H166: 8983 | I166: 110 | J166: 110 | K166: 110 | L166: 110 | M166: 110 | N166: 110 | O166: 110 | P166: 110 | Q166: 110 | R166: 110 | S166: 110 | T166: 110 | AA166: 405 | AB166: 2021 | AC166: EMT | AD166: Outros | AE166: Taxas Arrecadação | AF166: 610551903 | AG166: 0
A167: 4871 | B167: BRASNORTE - 138 kV (A) | C167: 138 | D167: Fora Ponta | E167: 3102 | F167: 4254 | G167: 945 | H167: 1037 | I167: 48 | J167: 48 | K167: 48 | L167: 48 | M167: 48 | N167: 48 | O167: 48 | P167: 48 | Q167: 48 | R167: 48 | S167: 48 | T167: 48 | AA167: 405 | AB167: 2021 | AC167: EMT | AD167: Outros | AE167: Taxas Bancárias | AF167: 610551904 | AG167: 0
A168: 4513 | B168: C. MAGALHAES - 138 kV (A) | C168: 138 | D168: Fora Ponta | E168: 3989 | F168: 5101 | G168: 13111 | H168: 19349 | I168: 18.5 | J168: 18.5 | K168: 18.5 | L168: 18.5 | M168: 18.5 | N168: 18.5 | O168: 18.5 | P168: 18.5 | Q168: 18.5 | R168: 18.5 | S168: 18.5 | T168: 18.5 | AA168: 405 | AB168: 2021 | AC168: EMT | AD168: Outros | AE168: (-)Créditos Tributários Recuperáveis | AF168: 610551910 | AG168: 0
A169: 4683 | B169: CANARANA CMT138kVA | C169: 138 | D169: Fora Ponta | E169: 5194 | F169: 6531 | G169: 2605 | H169: 2519 | I169: 87 | J169: 87 | K169: 87 | L169: 87 | M169: 87 | N169: 87 | O169: 87 | P169: 87 | Q169: 87 | R169: 87 | S169: 87 | T169: 87 | AA169: 405 | AB169: 2021 | AC169: EMT | AD169: Pessoal | AE169: Remuneração | AF169: 610552501 | AG169: 0
A170: 4533 | B170: COXIPO - 138 kV (A) | C170: 138 | D170: Fora Ponta | E170: 3782 | F170: 5070 | G170: 1356 | H170: 1369 | I170: 480 | J170: 480 | K170: 480 | L170: 480 | M170: 480 | N170: 480 | O170: 480 | P170: 480 | Q170: 480 | R170: 500 | S170: 500 | T170: 500 | AA170: 405 | AB170: 2021 | AC170: EMT | AD170: Pessoal | AE170: Encargos | AF170: 610552502 | AG170: 0
A171: 4643 | B171: JACIARA CMT - 138 kV (A) | C171: 138 | D171: Fora Ponta | E171: 3734 | F171: 5038 | G171: 13111 | H171: 19349 | I171: 17 | J171: 17 | K171: 17 | L171: 17 | M171: 17 | N171: 17 | O171: 17 | P171: 17 | Q171: 17 | R171: 17 | S171: 17 | T171: 17 | AA171: 405 | AB171: 2021 | AC171: EMT | AD171: Pessoal | AE171: Previdência Privada Corrente | AF171: 610552503 | AG171: 0
A172: 4807 | B172: JAURU - 138 kV (A) | C172: 138 | D172: Fora Ponta | E172: 3231 | F172: 4403 | H172: 0 | I172: 0 | J172: 0 | K172: 0 | L172: 0 | M172: 0 | N172: 0 | O172: 0 | P172: 0 | Q172: 0 | R172: 0 | S172: 0 | T172: 0 | AA172: 405 | AB172: 2021 | AC172: EMT | AD172: Pessoal | AE172: Despesas Rescisórias | AF172: 610552506 | AG172: 0
A173: 4870 | B173: JUBA - 138 kV (A) | C173: 138 | D173: Fora Ponta | E173: 3131 | F173: 4304 | H173: 2789 | I173: 30 | J173: 30 | K173: 30 | L173: 30 | M173: 30 | N173: 30 | O173: 30 | P173: 30 | Q173: 30 | R173: 30 | S173: 30 | T173: 30 | AA173: 405 | AB173: 2021 | AC173: EMT | AD173: Pessoal | AE173: Participação Lucros Resultados | AF173: 610552507 | AG173: 0
A174: 4895 | B174: JUINA - 138 kV (A) | C174: 138 | D174: Fora Ponta | E174: 2992 | F174: 4130 | G174: 727 | H174: 819 | I174: 50.14 | J174: 50.14 | K174: 50.14 | L174: 50 | M174: 50 | N174: 50 | O174: 50 | P174: 50 | Q174: 50 | R174: 50.14 | S174: 50.14 | T174: 50.14 | AA174: 405 | AB174: 2021 | AC174: EMT | AD174: Pessoal | AE174: Outros Benefícios | AF174: 610552508 | AG174: 0
A175: 4575 | B175: LUCAS R.VERDE - 138 kV (A) | C175: 138 | D175: Fora Ponta | E175: 3815 | F175: 5058 | G175: 1218 | H175: 4069 | I175: 68 | J175: 68 | K175: 68 | L175: 68 | M175: 68 | N175: 68 | O175: 68 | P175: 79 | Q175: 79 | R175: 79 | S175: 79 | T175: 79 | AA175: 405 | AB175: 2021 | AC175: EMT | AD175: Pessoal | AE175: (-)Créditos Tributários Recuperáveis | AF175: 610552510 | AG175: 0
A176: 4544 | B176: NOBRES - 138 kV (A) | C176: 138 | D176: Fora Ponta | E176: 3588 | F176: 4845 | G176: 584 | H176: 654 | I176: 121 | J176: 121 | K176: 121 | L176: 121 | M176: 121 | N176: 121 | O176: 121 | P176: 121 | Q176: 121 | R176: 130 | S176: 130 | T176: 130 | AA176: 405 | AB176: 2021 | AC176: EMT | AD176: Pessoal | AE176: Outros | AF176: 610552599 | AG176: 0
A177: 4978 | B177: PARANAITA - 138 kV (A) | C177: 138 | D177: Fora Ponta | E177: 3118 | F177: 4114 | G177: 3039 | H177: 3653 | I177: 103.86 | J177: 103.86 | K177: 103.86 | L177: 98 | M177: 98 | N177: 98 | O177: 98 | P177: 98 | Q177: 98 | R177: 98 | S177: 98 | T177: 98 | AA177: 405 | AB177: 2021 | AC177: EMT | AD177: Pessoal | AE177: Administradores | AF177: 6105526 | AG177: 0
A178: 4874 | B178: PARECIS - 138 kV (A) | C178: 138 | D178: Fora Ponta | E178: 2747 | F178: 3843 | H178: 0 | I178: 0 | J178: 0 | K178: 0 | L178: 0 | M178: 0 | N178: 0 | O178: 0 | P178: 0 | Q178: 0 | R178: 0 | S178: 0 | T178: 0 | AA178: 405 | AB178: 2021 | AC178: EMT | AD178: Materiais | AE178: Materiais | AF178: 610552701 | AG178: 0
A179: 4613 | B179: PETROVINA - 138 kV (B) | C179: 138 | D179: Fora Ponta | E179: 3711 | F179: 5021 | G179: 13111 | H179: 19349 | I179: 12.5 | J179: 12.5 | K179: 12.5 | L179: 12.5 | M179: 12.5 | N179: 12.5 | O179: 12.5 | P179: 12.5 | Q179: 12.5 | R179: 12.5 | S179: 12.5 | T179: 12.5 | AA179: 405 | AB179: 2021 | AC179: EMT | AD179: Materiais | AE179: (-)Créditos Tributários Recuperáveis | AF179: 610552710 | AG179: 0
A180: 4623 | B180: RONDONOPOLIS1 - 138 kV (A) | C180: 138 | D180: Fora Ponta | E180: 3705 | F180: 5020 | G180: 1346 | H180: 1642 | I180: 305 | J180: 305 | K180: 305 | L180: 305 | M180: 305 | N180: 305 | O180: 305 | P180: 305 | Q180: 305 | R180: 305 | S180: 305 | T180: 305 | AA180: 405 | AB180: 2021 | AC180: EMT | AD180: Materiais | AE180: Outros | AF180: 610552799 | AG180: 0
A181: 6563 | B181: SANT. ARAGUAIA138kVA | C181: 138 | D181: Fora Ponta | E181: 7205 | F181: 7623 | G181: 6072 | H181: 3000 | I181: 85 | J181: 85 | K181: 85 | L181: 85 | M181: 85 | N181: 85 | O181: 85 | P181: 93.3 | Q181: 93.3 | R181: 93.3 | S181: 93.3 | T181: 93.3 | AA181: 405 | AB181: 2021 | AC181: EMT | AD181: Terceiros | AE181: AdmCentral | AF181: 610552801 | AG181: 0
A182: 4583 | B182: SINOP - 138 kV (A) | C182: 138 | D182: Fora Ponta | E182: 3361 | F182: 4407 | G182: 1621 | H182: 2740 | I182: 211 | J182: 211 | K182: 211 | L182: 211 | M182: 211 | N182: 211 | O182: 211 | P182: 211 | Q182: 211 | R182: 258 | S182: 258 | T182: 258 | AA182: 405 | AB182: 2021 | AC182: EMT | AD182: Terceiros | AE182: (-)Créditos Tributários Recuperáveis | AF182: 610552810 | AG182: 0
A183: 4712 | B183: VZ.GRANDE CMT - 138 kV (A) | C183: 138 | D183: Fora Ponta | E183: 3771 | F183: 5056 | G183: 2648 | H183: 2832 | I183: 270 | J183: 270 | K183: 270 | L183: 270 | M183: 270 | N183: 270 | O183: 270 | P183: 270 | Q183: 270 | R183: 270 | S183: 270 | T183: 270 | AA183: 405 | AB183: 2021 | AC183: EMT | AD183: Seguros | AE183: Seguros | AF183: 610553001 | AG183: 0
A184: 4894 | B184: JUINA - 230 kV (A) | C184: 230 | D184: Fora Ponta | E184: 2925 | F184: 4055 | H184: 0 | I184: 24 | J184: 24 | K184: 24 | L184: 24 | M184: 24 | N184: 24 | O184: 24 | P184: 24 | Q184: 24 | R184: 18 | S184: 18 | T184: 18 | AA184: 405 | AB184: 2021 | AC184: EMT | AD184: Seguros | AE184: (-)Créditos Tributários Recuperáveis | AF184: 610553010 | AG184: 0
A185: 4554 | B185: NOVA MUTUM - 69 kV (A) | C185: 69 | D185: Fora Ponta | E185: 3374 | F185: 4640 | G185: 2917 | H185: 3459 | I185: 55 | J185: 55 | K185: 55 | L185: 55 | M185: 55 | N185: 55 | O185: 55 | P185: 55 | Q185: 55 | R185: 72 | S185: 72 | T185: 72 | AA185: 405 | AB185: 2021 | AC185: EMT | AD185: Seguros | AE185: Outros | AF185: 610553099 | AG185: 0
A186: 4564 | B186: SORRISO - 69 kV (A) | C186: 69 | D186: Fora Ponta | E186: 3638 | F186: 4785 | G186: 940 | H186: 3349 | I186: 79 | J186: 79 | K186: 79 | L186: 79 | M186: 79 | N186: 79 | O186: 79 | P186: 79 | Q186: 79 | R186: 81 | S186: 81 | T186: 81 | AA186: 405 | AB186: 2021 | AC186: EMT | AD186: Tributos | AE186: Tributos | AF186: 6105536 | AG186: 0
AA187: 405 | AB187: 2021 | AC187: EMT | AD187: Outros | AE187: Indenização Perdas Danos | AF187: 610553901 | AG187: 0
AA188: 405 | AB188: 2021 | AC188: EMT | AD188: Outros | AE188: Consumo Próprio Energia | AF188: 610553902 | AG188: 0
AA189: 405 | AB189: 2021 | AC189: EMT | AD189: Outros | AE189: Taxas Arrecadação | AF189: 610553903 | AG189: 0
AA190: 405 | AB190: 2021 | AC190: EMT | AD190: Outros | AE190: Taxas Bancárias | AF190: 610553904 | AG190: 0
AA191: 405 | AB191: 2021 | AC191: EMT | AD191: Outros | AE191: (-)Créditos Tributários Recuperáveis | AF191: 610553910 | AG191: 0
AA192: 405 | AB192: 2021 | AC192: EMT | AD192: Demais | AE192: Ganhos Alienação Materiais | AF192: 611112103 | AG192: -12039196.91
AA193: 405 | AB193: 2021 | AC193: EMT | AD193: Demais | AE193: Perdas Alienação Desativação | AF193: 611511401 | AG193: 90401311.89
AA194: 405 | AB194: 2022 | AC194: EMT | AD194: Pessoal | AE194: Remuneração | AF194: 610530501 | AG194: 0
AA195: 405 | AB195: 2022 | AC195: EMT | AD195: Pessoal | AE195: Encargos | AF195: 610530502 | AG195: 0
AA196: 405 | AB196: 2022 | AC196: EMT | AD196: Pessoal | AE196: Previdência Privada Corrente | AF196: 610530503 | AG196: 0
AA197: 405 | AB197: 2022 | AC197: EMT | AD197: Pessoal | AE197: Despesas Rescisórias | AF197: 610530506 | AG197: 0
AA198: 405 | AB198: 2022 | AC198: EMT | AD198: Pessoal | AE198: Participação Lucros Resultados | AF198: 610530507 | AG198: 0
AA199: 405 | AB199: 2022 | AC199: EMT | AD199: Pessoal | AE199: Outros Benefícios | AF199: 610530508 | AG199: 0
AA200: 405 | AB200: 2022 | AC200: EMT | AD200: Pessoal | AE200: (-)Créditos Tributários Recuperáveis | AF200: 610530510 | AG200: 0
AA201: 405 | AB201: 2022 | AC201: EMT | AD201: Pessoal | AE201: Outros | AF201: 610530599 | AG201: 0
AA202: 405 | AB202: 2022 | AC202: EMT | AD202: Pessoal | AE202: Administradores | AF202: 6105306 | AG202: 0
AA203: 405 | AB203: 2022 | AC203: EMT | AD203: Materiais | AE203: Materiais | AF203: 610530701 | AG203: 0
... 164 more rows

Sheet BD_Uderor
K1: Número de lançamentos por item e por competência
A2: Dados SAMP Opção:Cativo Classe:Industrial | K2: Descrição | L2: =EDATE(M2,1) -> 2023-03-01 | M2: 2023-02-01 | N2: 2023-01-01 | O2: 2022-12-01 | P2: 2022-11-01 | Q2: =EDATE(R2,1) -> 2022-10-01 | R2: =Entrada!R5 -> 2022-09-01 | S2: =EDATE(R2,-1) -> 2022-08-01 | T2: 2022-07-01 | U2: 2022-06-01 | V2: 2022-05-01 | W2: 2022-04-01 | X2: 2022-03-01 | Y2: 2022-02-01 | Z2: 2022-01-01 | AA2: =EDATE(Z2,-1) -> 2021-12-01 | AB2: 2021-11-01 | AC2: 2021-10-01 | AD2: 2021-09-01 | AE2: 2021-08-01 | AF2: 2021-07-01 | AG2: 2021-06-01 | AH2: 2021-05-01 | AI2: 2021-04-01 | AJ2: 2021-03-01 | AK2: 2021-02-01 | AL2: 2021-01-01 | AM2: 2020-12-01 | AN2: 2020-11-01 | AO2: 2020-10-01 | AP2: 2020-09-01 | AQ2: 2020-08-01 | AR2: 2020-07-01 | AS2: 2020-06-01 | AT2: 2020-05-01 | AU2: 2020-04-01 | AV2: 2020-03-01 | AW2: 2020-02-01 | AX2: 2020-01-01 | AY2: 2019-12-01 | AZ2: 2019-11-01 | BA2: =EDATE(AZ2,-1) -> 2019-10-01 | BB2: 2019-09-01 | BC2: 2019-08-01 | BD2: 2019-07-01 | BE2: 2019-06-01 | BF2: 2019-05-01 | BG2: =EDATE(BF2,-1) -> 2019-04-01 | BH2: 2019-03-01 | BI2: 2019-02-01 | BJ2: 2019-01-01 | BK2: 2018-12-01 | BL2: 2018-11-01 | BM2: 2018-10-01 | BN2: 2018-09-01 | BO2: 2018-08-01 | BP2: 2018-07-01 | BQ2: 2018-06-01 | BR2: 2018-05-01
A3: Competencia | B3: COFINS (R$) | C3: ICMS (R$) | D3: PIS/PASEP (R$) | E3: Receita Bandeiras (R$) | F3: Receita Demanda (R$) | G3: Receita Energia (R$) | H3: PIS_Cofins_% | I3: ICMS_% | K3: =Entrada!P8 -> Serviços Cobráveis | L3: =IF(COUNTIFS($C$82:$C$200000,$K3,$H$82:$H$200000,L$2)=0,"",COUNTIFS($C$82:$C$200000,$K3,$H$82:$H$200000,L$2)) ->  | N3: 2 | O3: 2 | P3: 2 | Q3: 2 | R3: 2 | S3: 2 | T3: 2 | U3: 2 | V3: =IF(COUNTIFS($C$82:$C$200000,$K3,$H$82:$H$200000,V$2)=0,"",COUNTIFS($C$82:$C$200000,$K3,$H$82:$H$200000,V$2)) -> 2 | W3: 2 | X3: 2 | Y3: 2 | Z3: 2 | AA3: 2 | AB3: 2 | AC3: 2 | AD3: 2 | AE3: 2 | AF3: =IF(COUNTIFS($C$82:$C$200000,$K3,$H$82:$H$200000,AF$2)=0,"",COUNTIFS($C$82:$C$200000,$K3,$H$82:$H$200000,AF$2)) -> 2 | AG3: 2 | AH3: 2 | AI3: 2 | AJ3: 2 | AK3: 2 | AL3: 2 | AM3: 2 | AN3: 2 | AP3: =IF(COUNTIFS($C$82:$C$200000,$K3,$H$82:$H$200000,AP$2)=0,"",COUNTIFS($C$82:$C$200000,$K3,$H$82:$H$200000,AP$2)) ->  | AZ3: =IF(COUNTIFS($C$82:$C$200000,$K3,$H$82:$H$200000,AZ$2)=0,"",COUNTIFS($C$82:$C$200000,$K3,$H$82:$H$200000,AZ$2)) ->  | BJ3: =IF(COUNTIFS($C$82:$C$200000,$K3,$H$82:$H$200000,BJ$2)=0,"",COUNTIFS($C$82:$C$200000,$K3,$H$82:$H$200000,BJ$2)) -> 
A4: 42856 | B4: 1625430.89 | C4: 9649435.75 | D4: 353561.91 | E4: 1601809.47 | F4: 4015711.12 | G4: 19008664.32 | H4: 0.05987695162 | I4: 0.2919559877 | K4: =Entrada!P9 -> Arrecadação de convênios ou valores pela fatura | N4: 3 | O4: 3 | P4: 3 | Q4: 3 | R4: 3 | S4: 3 | T4: 3 | U4: 3 | V4: 3 | W4: 3 | X4: 3 | Y4: 3 | Z4: 3 | AA4: 3 | AB4: 3 | AC4: 3 | AD4: 3 | AE4: 3 | AF4: 3 | AG4: 3 | AH4: 3 | AI4: 3 | AJ4: 3 | AK4: 3 | AL4: 3 | AM4: 3 | AN4: 3
A5: 42887 | B5: 2086430.91 | C5: 10695172.07 | D5: 453448.35 | E5: 531410.6 | F5: 4160175.71 | G5: 22137842.67 | H5: 0.06512233884 | I5: 0.2742235155 | K5: =Entrada!P10 -> Arrecadação de faturas de terceiros por estrutura própria
A6: 42917 | B6: 1242599.13 | C6: 10066101.96 | D6: 269490.32 | E6: 841757.61 | F6: 4301738.18 | G6: 20966480.54 | H6: 0.04199705716 | I6: 0.2795778116 | K6: =Entrada!P11 -> Veiculação de publicidade
A7: 42948 | B7: 1385188.51 | C7: 10899221.04 | D7: 300654.14 | E7: 1646080.41 | F7: 4213793.63 | G7: 22325791.47 | H7: 0.04498151138 | I7: 0.2908120964 | K7: =Entrada!P12 -> Aluguel ou cessão onerosa de imóveis e espaços físicos
A8: 42979 | B8: 1922758.01 | C8: 11654910.79 | D8: 417358.78 | E8: 1461735.75 | F8: 4085737.63 | G8: 23920669.53 | H8: 0.05772407907 | I8: 0.2874937674 | K8: =Entrada!P13 -> Compartilhamento de infraestrutura | N8: 1 | O8: 1 | P8: 1 | Q8: 1 | R8: 1 | S8: 1 | T8: 1 | U8: 1 | V8: 1 | W8: 1 | X8: 1 | Y8: 1 | Z8: 1 | AA8: 1 | AB8: 1 | AC8: 1 | AD8: 1 | AE8: 1 | AF8: 1 | AG8: 1 | AH8: 1 | AI8: 1 | AJ8: 1 | AK8: 1 | AL8: 1 | AM8: 1 | AN8: 1
A9: 43009 | B9: 2136374.02 | C9: 10938633.31 | D9: 463749.21 | E9: 1716591.94 | F9: 4129434.11 | G9: 23044713.45 | H9: 0.06667613131 | I9: 0.2805043017 | K9: =Entrada!P14 -> Serviços de avaliação técnica e aferição de medidores.
A10: 43040 | B10: 2703745.59 | C10: 10597400.34 | D10: 586930.8 | E10: 2341089.85 | F10: 3895395.34 | G10: 21952513.79 | H10: 0.08799800885 | I10: 0.2833916248 | K10: =Entrada!P15 -> Operacionalização de serviço de créditos tributários
A11: 43070 | B11: 834076.2 | C11: 9162446.51 | D11: 180989.41 | E11: 1743041.49 | F11: 3935471.94 | G11: 20320229.33 | H11: 0.03105109429 | I11: 0.2802813805 | K11: =Entrada!P16 -> Elaboração de projeto, construção, operação, manutenção ou reforma de:
A12: 43101 | B12: 37103.09 | C12: 7546488.75 | D12: 7988.22 | E12: 406209.47 | F12: 3794619.77 | G12: 17106696.34 | H12: 0.001605433581 | I12: 0.2686856172 | K12: =Entrada!P17 -> (1) redes de distribuição de energia elétrica destinadas à regularização fundiária de interesse específico e ao atendimento dos empreendimentos de múltiplas unidades consumidoras; | L12: =IF(COUNTIFS($C$82:$C$200000,$K12,$H$82:$H$200000,L$2)=0,"",COUNTIFS($C$82:$C$200000,$K12,$H$82:$H$200000,L$2)) ->  | V12: =IF(COUNTIFS($C$82:$C$200000,$K12,$H$82:$H$200000,V$2)=0,"",COUNTIFS($C$82:$C$200000,$K12,$H$82:$H$200000,V$2)) ->  | AF12: =IF(COUNTIFS($C$82:$C$200000,$K12,$H$82:$H$200000,AF$2)=0,"",COUNTIFS($C$82:$C$200000,$K12,$H$82:$H$200000,AF$2)) ->  | AP12: =IF(COUNTIFS($C$82:$C$200000,$K12,$H$82:$H$200000,AP$2)=0,"",COUNTIFS($C$82:$C$200000,$K12,$H$82:$H$200000,AP$2)) ->  | AZ12: =IF(COUNTIFS($C$82:$C$200000,$K12,$H$82:$H$200000,AZ$2)=0,"",COUNTIFS($C$82:$C$200000,$K12,$H$82:$H$200000,AZ$2)) ->  | BJ12: =IF(COUNTIFS($C$82:$C$200000,$K12,$H$82:$H$200000,BJ$2)=0,"",COUNTIFS($C$82:$C$200000,$K12,$H$82:$H$200000,BJ$2)) -> 
A13: 43132 | B13: 457737.24 | C13: 8368444.18 | D13: 99319.1 | E13: 374.43 | F13: 3698355.83 | G13: 19057979.36 | H13: 0.01758303808 | I13: 0.264143251 | K13: =Entrada!P18 -> (2) redes de energia elétrica destinadas ao acesso dos sistemas de distribuição ou transmissão;
A14: 43160 | B14: 813240.39 | C14: 9157412.66 | D14: 176499.8 | E14: 9410.11 | F14: 3842909.41 | G14: 20420869.5 | H14: 0.02877024453 | I14: 0.2661920817 | K14: =Entrada!P19 -> (3) subestações de energia;
A15: 43191 | B15: 2248906.86 | C15: 10022001.31 | D15: 488183.79 | E15: 5003.62 | F15: 3894570.61 | G15: 20992123.18 | H15: 0.07271609396 | I15: 0.2662538009 | K15: =Entrada!P20 -> (4) instalações elétricas internas de unidades consumidoras;
A16: 43221 | B16: 2566958.7 | C16: 11018268.9 | D16: 557218.53 | E16: 405631.4 | F16: 4002392.54 | G16: 23195403.27 | H16: 0.07632116658 | I16: 0.2691675517 | K16: =Entrada!P21 -> (5) banco de capacitores;
A17: 43252 | B17: 1511901.95 | C17: 10837518.05 | D17: 328166.04 | E17: 2074935.53 | F17: 4157158.7 | G17: 23683947.99 | H17: 0.04786389583 | I17: 0.281905798 | K17: =Entrada!P22 -> (6) padrões de entrada de unidades consumidoras atendidas em baixa tensão;
A18: 43282 | B18: 2166944.91 | C18: 11348638.24 | D18: 470384.15 | E18: 2684681.29 | F18: 3883977.62 | G18: 24754173.55 | H18: 0.06603320543 | I18: 0.2841461733 | K18: =Entrada!P23 -> (7) sistemas de medição de energia elétrica;
A19: 43313 | B19: 2174566.07 | C19: 11483766.44 | D19: 472040.16 | E19: 2839509.71 | F19: 3758516.71 | G19: 25511600.88 | H19: 0.06525005545 | I19: 0.2831234917 | K19: =Entrada!P24 -> (8) geradores, incluindo-se unidades de microgeração e minigeração distribuída;
A20: 43344 | B20: 2247137.78 | C20: 11929388.21 | D20: 487792.07 | E20: 2902430.77 | F20: 3719159.26 | G20: 26229886.11 | H20: 0.06556865732 | I20: 0.2860014737 | K20: =Entrada!P25 -> (9) sistemas de iluminação pública.
A21: 43374 | B21: 1706658.14 | C21: 11612671.13 | D21: 370462.35 | E21: 2852504.91 | F21: 3745856.91 | G21: 25990140.76 | H21: 0.05119429008 | I21: 0.2862147176 | K21: =Entrada!P26 -> (10) estações de recarga de veículos elétricos, incluindo a prestação de serviços aos usuários
A22: 43405 | B22: 1535598.61 | C22: 10445713.92 | D22: 333289.27 | E22: 1235347.39 | F22: 3671200.7 | G22: 23145146.14 | H22: 0.04931674966 | I22: 0.2756444963 | K22: =Entrada!P27 -> Eficientização do consumo de energia elétrica e instalação de cogeração qualificada, desde que não enquadráveis nos projetos de Pesquisa e Desenvolvimento (P&D) ou de Eficiência Energética estabelecidos em lei
A23: 43435 | B23: 1689243.18 | C23: 9064432.62 | D23: 366663.8 | E23: 153928.79 | F23: 3770176.6 | G23: 19658049.87 | H23: 0.05977405615 | I23: 0.2635420326 | K23: =Entrada!P28 -> Serviços de comunicação de dados
A24: 43466 | B24: 1533112.46 | C24: 8412402.43 | D24: 332766.22 | E24: 15011.95 | F24: 3737765.69 | G24: 17754217.28 | H24: 0.05875811259 | I24: 0.2649137344 | K24: =Entrada!P29 -> Serviços de consultoria
A25: 43497 | B25: 1602870.35 | C25: 9445416.35 | D25: 347926.29 | E25: 13338.35 | F25: 3839215.19 | G25: 20320201.37 | H25: 0.05488663151 | I25: 0.2657514761 | K25: =Entrada!P30 -> Receita proveniente da comercialização de resultados de projetos de P&D COM comprovação
A26: 43525 | B26: 1422654.14 | C26: 9322303.53 | D26: 308798.53 | E26: 12907 | F26: 3896872.81 | G26: 20148639.32 | H26: 0.04934831098 | I26: 0.2656959336 | K26: =Entrada!P31 -> Receita proveniente da comercialização de resultados de projetos de P&D SEM comprovação
A27: 43556 | B27: 1492659.41 | C27: 10195792.34 | D27: 323977.29 | E27: 9609.8 | F27: 4092213.24 | G27: 22217968.82 | H27: 0.04741567192 | I27: 0.2661183409
A28: 43586 | B28: 2065452.76 | C28: 10865059.86 | D28: 448341.46 | E28: 343013.87 | F28: 4293278.81 | G28: 23202134.69 | H28: 0.06202113159 | I28: 0.2680662172 | K28: Descrição | L28: =L2 -> 2023-03-01 | M28: =M2 -> 2023-02-01 | N28: 2023-01-01 | O28: 2022-12-01 | P28: 2022-11-01 | Q28: 2022-10-01 | R28: 2022-09-01 | S28: 2022-08-01 | T28: 2022-07-01 | U28: 2022-06-01 | V28: 2022-05-01 | W28: 2022-04-01 | X28: 2022-03-01 | Y28: 2022-02-01 | Z28: 2022-01-01 | AA28: =AA2 -> 2021-12-01 | AB28: 2021-11-01 | AC28: 2021-10-01 | AD28: 2021-09-01 | AE28: 2021-08-01 | AF28: 2021-07-01 | AG28: 2021-06-01 | AH28: 2021-05-01 | AI28: 2021-04-01 | AJ28: 2021-03-01 | AK28: 2021-02-01 | AL28: 2021-01-01 | AM28: 2020-12-01 | AN28: 2020-11-01 | AO28: 2020-10-01 | AP28: 2020-09-01 | AQ28: 2020-08-01 | AR28: 2020-07-01 | AS28: 2020-06-01 | AT28: 2020-05-01 | AU28: 2020-04-01 | AV28: 2020-03-01 | AW28: 2020-02-01 | AX28: 2020-01-01 | AY28: 2019-12-01 | AZ28: 2019-11-01 | BA28: =BA2 -> 2019-10-01 | BB28: 2019-09-01 | BC28: 2019-08-01 | BD28: 2019-07-01 | BE28: 2019-06-01 | BF28: 2019-05-01 | BG28: =BG2 -> 2019-04-01 | BH28: 2019-03-01 | BI28: 2019-02-01 | BJ28: 2019-01-01 | BK28: 2018-12-01 | BL28: 2018-11-01 | BM28: 2018-10-01 | BN28: 2018-09-01 | BO28: 2018-08-01 | BP28: 2018-07-01 | BQ28: 2018-06-01 | BR28: 2018-05-01
A29: 43617 | B29: 2138208.58 | C29: 11289497.18 | D29: 464126.9 | E29: 252103.3 | F29: 4329613.81 | G29: 24129508.11 | H29: 0.06181488095 | I29: 0.268166395 | K29: =Entrada!P36 -> Ultrapassagem de Demanda | L29: =IF(COUNTIFS($C$82:$C$200000,$K29,$H$82:$H$200000,L$2)=0,"",COUNTIFS($C$82:$C$200000,$K29,$H$82:$H$200000,L$2)) ->  | N29: 1 | O29: 1 | P29: 1 | Q29: 1 | R29: 1 | S29: 1 | T29: 1 | U29: 1 | V29: =IF(COUNTIFS($C$82:$C$200000,$K29,$H$82:$H$200000,V$2)=0,"",COUNTIFS($C$82:$C$200000,$K29,$H$82:$H$200000,V$2)) -> 1 | W29: 1 | X29: 1 | Y29: 1 | Z29: 1 | AA29: 1 | AB29: 1 | AC29: 1 | AD29: 1 | AE29: 1 | AF29: =IF(COUNTIFS($C$82:$C$200000,$K29,$H$82:$H$200000,AF$2)=0,"",COUNTIFS($C$82:$C$200000,$K29,$H$82:$H$200000,AF$2)) -> 1 | AG29: 1 | AH29: 1 | AI29: 1 | AJ29: 1 | AK29: 1 | AL29: 1 | AM29: 1 | AN29: 1 | AP29: =IF(COUNTIFS($C$82:$C$200000,$K29,$H$82:$H$200000,AP$2)=0,"",COUNTIFS($C$82:$C$200000,$K29,$H$82:$H$200000,AP$2)) ->  | AZ29: =IF(COUNTIFS($C$82:$C$200000,$K29,$H$82:$H$200000,AZ$2)=0,"",COUNTIFS($C$82:$C$200000,$K29,$H$82:$H$200000,AZ$2)) ->  | BJ29: =IF(COUNTIFS($C$82:$C$200000,$K29,$H$82:$H$200000,BJ$2)=0,"",COUNTIFS($C$82:$C$200000,$K29,$H$82:$H$200000,BJ$2)) -> 
A30: 43647 | B30: 2179164.3 | C30: 12008502.63 | D30: 473040.46 | E30: 587352.35 | F30: 4485935.95 | G30: 25680246.79 | H30: 0.05995100521 | I30: 0.2714427689 | K30: =Entrada!P37 -> Excedente Reativo | N30: 1 | O30: 1 | P30: 1 | Q30: 1 | R30: 1 | S30: 1 | T30: 1 | U30: 1 | V30: 1 | W30: 1 | X30: 1 | Y30: 1 | Z30: 1 | AA30: 1 | AB30: 1 | AC30: 1 | AD30: 1 | AE30: 1 | AF30: 1 | AG30: 1 | AH30: 1 | AI30: 1 | AJ30: 1 | AK30: 1 | AL30: 1 | AM30: 1 | AN30: 1
A31: 43678 | B31: 1827598.26 | C31: 13122616.4 | D31: 396687.74 | E31: 1958126.7 | F31: 4554416.07 | G31: 29073926.2 | H31: 0.04730800389 | I31: 0.2791029516
A32: 43709 | B32: 1924710.38 | C32: 13946166.85 | D32: 417782.21 | E32: 2535164.58 | F32: 4598364.46 | G32: 31228246.86 | H32: 0.0472466231 | I32: 0.2812855382
A33: 43739 | B33: 2038978.69 | C33: 12588537.22 | D33: 442602.51 | E33: 1374003.22 | F33: 4623369.24 | G33: 28404074.94 | H33: 0.0531119896 | I33: 0.2694259039
A34: 43770 | B34: 2408309.87 | C34: 12737438.15 | D34: 522762.32 | E34: 1788291.72 | F34: 4499527.87 | G34: 27596550.68 | H34: 0.06375181062 | I34: 0.2770435841 | K34: Data do último Lançamento por item e competência
A35: 43800 | B35: 2069153.4 | C35: 11597466.27 | D35: 449171.55 | E35: 1251005.31 | F35: 4388995.87 | G35: 25368003.75 | H35: 0.05908539304 | I35: 0.2721018401 | K35: Descrição | L35: =L2 -> 2023-03-01 | M35: =M2 -> 2023-02-01 | N35: 2023-01-01 | O35: 2022-12-01 | P35: 2022-11-01 | Q35: 2022-10-01 | R35: 2022-09-01 | S35: 2022-08-01 | T35: 2022-07-01 | U35: 2022-06-01 | V35: 2022-05-01 | W35: 2022-04-01 | X35: 2022-03-01 | Y35: 2022-02-01 | Z35: 2022-01-01 | AA35: 2021-12-01 | AB35: 2021-11-01 | AC35: 2021-10-01 | AD35: 2021-09-01 | AE35: 2021-08-01 | AF35: 2021-07-01 | AG35: 2021-06-01 | AH35: 2021-05-01 | AI35: 2021-04-01 | AJ35: 2021-03-01 | AK35: 2021-02-01 | AL35: 2021-01-01 | AM35: 2020-12-01 | AN35: 2020-11-01 | AO35: 2020-10-01 | AP35: 2020-09-01 | AQ35: 2020-08-01 | AR35: 2020-07-01 | AS35: 2020-06-01 | AT35: 2020-05-01 | AU35: 2020-04-01 | AV35: 2020-03-01 | AW35: 2020-02-01 | AX35: 2020-01-01 | AY35: 2019-12-01 | AZ35: 2019-11-01 | BA35: 2019-10-01 | BB35: 2019-09-01 | BC35: 2019-08-01 | BD35: 2019-07-01 | BE35: 2019-06-01 | BF35: 2019-05-01 | BG35: =BG2 -> 2019-04-01 | BH35: 2019-03-01 | BI35: 2019-02-01 | BJ35: 2019-01-01 | BK35: 2018-12-01 | BL35: 2018-11-01 | BM35: 2018-10-01 | BN35: 2018-09-01 | BO35: 2018-08-01 | BP35: 2018-07-01 | BQ35: 2018-06-01 | BR35: 2018-05-01
A36: 43831 | B36: 1099727.87 | C36: 9232486.62 | D36: 238663.26 | E36: 588312.39 | F36: 4381454.8 | G36: 20300644.2 | H36: 0.03860966649 | I36: 0.2663371127 | K36: =Entrada!P8 -> Serviços Cobráveis | L36: =IF(_xlfn.MAXIFS($G$82:$G$200000,$C$82:$C$200000,$K36,$H$82:$H$200000,L$2)=0,"",_xlfn.MAXIFS($G$82:$G$200000,$C$82:$C$200000,$K36,$H$82:$H$200000,L$2)) ->  | N36: 44927 | O36: 44896 | P36: 44866 | Q36: 44835 | R36: 44805 | S36: 44774 | T36: 44743 | U36: 44713 | V36: =IF(_xlfn.MAXIFS($G$82:$G$200000,$C$82:$C$200000,$K36,$H$82:$H$200000,V$2)=0,"",_xlfn.MAXIFS($G$82:$G$200000,$C$82:$C$200000,$K36,$H$82:$H$200000,V$2)) -> 44682 | W36: 44652 | X36: 44621 | Y36: 44593 | Z36: 44562 | AA36: 44531 | AB36: 44501 | AC36: 44470 | AD36: 44440 | AE36: 44409 | AF36: =IF(_xlfn.MAXIFS($G$82:$G$200000,$C$82:$C$200000,$K36,$H$82:$H$200000,AF$2)=0,"",_xlfn.MAXIFS($G$82:$G$200000,$C$82:$C$200000,$K36,$H$82:$H$200000,AF$2)) -> 44378 | AG36: 44348 | AH36: 44317 | AI36: 44287 | AJ36: 44256 | AK36: 44228 | AL36: 44197 | AM36: 44166 | AN36: 44136 | AP36: =IF(_xlfn.MAXIFS($G$82:$G$200000,$C$82:$C$200000,$K36,$H$82:$H$200000,AP$2)=0,"",_xlfn.MAXIFS($G$82:$G$200000,$C$82:$C$200000,$K36,$H$82:$H$200000,AP$2)) ->  | AZ36: =IF(_xlfn.MAXIFS($G$82:$G$200000,$C$82:$C$200000,$K36,$H$82:$H$200000,AZ$2)=0,"",_xlfn.MAXIFS($G$82:$G$200000,$C$82:$C$200000,$K36,$H$82:$H$200000,AZ$2)) ->  | BJ36: =IF(_xlfn.MAXIFS($G$82:$G$200000,$C$82:$C$200000,$K36,$H$82:$H$200000,BJ$2)=0,"",_xlfn.MAXIFS($G$82:$G$200000,$C$82:$C$200000,$K36,$H$82:$H$200000,BJ$2)) -> 
A37: 43862 | B37: 1585680.2 | C37: 10713309.72 | D37: 344204.8 | E37: 250777.16 | F37: 4335561.18 | G37: 23514337.57 | H37: 0.04795660829 | I37: 0.2662200068 | K37: =Entrada!P9 -> Arrecadação de convênios ou valores pela fatura | N37: 44927 | O37: 44896 | P37: 44866 | Q37: 44835 | R37: 44805 | S37: 44774 | T37: 44743 | U37: 44713 | V37: 44682 | W37: 44652 | X37: 44621 | Y37: 44593 | Z37: 44562 | AA37: 44531 | AB37: 44501 | AC37: 44470 | AD37: 44440 | AE37: 44409 | AF37: 44378 | AG37: 44348 | AH37: 44317 | AI37: 44287 | AJ37: 44256 | AK37: 44228 | AL37: 44197 | AM37: 44166 | AN37: 44136
A38: 43891 | B38: 1830428.96 | C38: 10446842.06 | D38: 397329.56 | E38: 9171.41 | F38: 4968870.3 | G38: 22666416.3 | H38: 0.05527838594 | I38: 0.2592222461 | K38: =Entrada!P10 -> Arrecadação de faturas de terceiros por estrutura própria
A39: 43922 | B39: 2008761.64 | C39: 10648680.2 | D39: 436019.11 | E39: 540.45 | F39: 4076399.5 | G39: 22571261.81 | H39: 0.06151849416 | I39: 0.2679548138 | K39: =Entrada!P11 -> Veiculação de publicidade
A40: 43952 | B40: 1435096.48 | C40: 10055915.41 | D40: 311520.53 | E40: -7.09 | F40: 4465977.75 | G40: 22112940.01 | H40: 0.04550679245 | I40: 0.2619993123 | K40: =Entrada!P12 -> Aluguel ou cessão onerosa de imóveis e espaços físicos
A41: 43983 | B41: 1549547.56 | C41: 10521983.96 | D41: 336353.65 | E41: -3521.63 | F41: 4692396 | G41: 22803654.91 | H41: 0.04725686171 | I41: 0.2636595906 | K41: =Entrada!P13 -> Compartilhamento de infraestrutura | N41: 44927 | O41: 44896 | P41: 44866 | Q41: 44835 | R41: 44805 | S41: 44774 | T41: 44743 | U41: 44713 | V41: 44682 | W41: 44652 | X41: 44621 | Y41: 44593 | Z41: 44562 | AA41: 44531 | AB41: 44501 | AC41: 44470 | AD41: 44440 | AE41: 44409 | AF41: 44378 | AG41: 44348 | AH41: 44317 | AI41: 44287 | AJ41: 44256 | AK41: 44228 | AL41: 44197 | AM41: 44166 | AN41: 44136
A42: 44013 | B42: 2073135.98 | C42: 11220996.1 | D42: 450030.99 | E42: -354.19 | F42: 5153294.76 | G42: 23615360.73 | H42: 0.05935023916 | I42: 0.2639416297 | K42: =Entrada!P14 -> Serviços de avaliação técnica e aferição de medidores.
A43: 44044 | B43: 1945461.86 | C43: 11584906.26 | D43: 422298.78 | E43: -12081.44 | F43: 5288603.72 | G43: 24641840.52 | H43: 0.05394122911 | I43: 0.2639219828 | K43: =Entrada!P15 -> Operacionalização de serviço de créditos tributários
A44: 44075 | B44: 2113921.1 | C44: 12742101.67 | D44: 458882.81 | E44: -869.38 | F44: 5376082.31 | G44: 27311563.4 | H44: 0.05359626198 | I44: 0.265441535 | K44: =Entrada!P16 -> Elaboração de projeto, construção, operação, manutenção ou reforma de:
A45: 44105 | B45: 2092970.21 | C45: 12397699.45 | D45: 454360.86 | E45: 514.17 | F45: 5427109.6 | G45: 26591840.59 | H45: 0.05424069511 | I45: 0.2639860377 | K45: =Entrada!P17 -> (1) redes de distribuição de energia elétrica destinadas à regularização fundiária de interesse específico e ao atendimento dos empreendimentos de múltiplas unidades consumidoras; | L45: =IF(_xlfn.MAXIFS($G$82:$G$200000,$C$82:$C$200000,$K45,$H$82:$H$200000,L$2)=0,"",_xlfn.MAXIFS($G$82:$G$200000,$C$82:$C$200000,$K45,$H$82:$H$200000,L$2)) ->  | V45: =IF(_xlfn.MAXIFS($G$82:$G$200000,$C$82:$C$200000,$K45,$H$82:$H$200000,V$2)=0,"",_xlfn.MAXIFS($G$82:$G$200000,$C$82:$C$200000,$K45,$H$82:$H$200000,V$2)) ->  | AF45: =IF(_xlfn.MAXIFS($G$82:$G$200000,$C$82:$C$200000,$K45,$H$82:$H$200000,AF$2)=0,"",_xlfn.MAXIFS($G$82:$G$200000,$C$82:$C$200000,$K45,$H$82:$H$200000,AF$2)) ->  | AP45: =IF(_xlfn.MAXIFS($G$82:$G$200000,$C$82:$C$200000,$K45,$H$82:$H$200000,AP$2)=0,"",_xlfn.MAXIFS($G$82:$G$200000,$C$82:$C$200000,$K45,$H$82:$H$200000,AP$2)) ->  | AZ45: =IF(_xlfn.MAXIFS($G$82:$G$200000,$C$82:$C$200000,$K45,$H$82:$H$200000,AZ$2)=0,"",_xlfn.MAXIFS($G$82:$G$200000,$C$82:$C$200000,$K45,$H$82:$H$200000,AZ$2)) ->  | BJ45: =IF(_xlfn.MAXIFS($G$82:$G$200000,$C$82:$C$200000,$K45,$H$82:$H$200000,BJ$2)=0,"",_xlfn.MAXIFS($G$82:$G$200000,$C$82:$C$200000,$K45,$H$82:$H$200000,BJ$2)) -> 
A46: 44136 | B46: 1946321.02 | C46: 11643035.12 | D46: 422485.1 | E46: -538.48 | F46: 5296658 | G46: 24951031.37 | H46: 0.05352016318 | I46: 0.2630595785 | K46: =Entrada!P18 -> (2) redes de energia elétrica destinadas ao acesso dos sistemas de distribuição ou transmissão;
A47: 44166 | B47: 2114037.89 | C47: 11536204.86 | D47: 458904.77 | E47: 1990623.8 | F47: 5075153.63 | G47: 25160071.3 | H47: 0.06074887683 | I47: 0.2723774218 | K47: =Entrada!P19 -> (3) subestações de energia;
A48: 44197 | B48: 1288209.85 | C48: 9044532.16 | D48: 279614.48 | E48: 1183187.02 | F48: 4908602.99 | G48: 19678374.15 | H48: 0.04609059186 | I48: 0.2658893808 | K48: =Entrada!P20 -> (4) instalações elétricas internas de unidades consumidoras;
A49: 44228 | B49: 1442504.99 | C49: 9774406.45 | D49: 313097.06 | E49: 604046.01 | F49: 4898791.06 | G49: 21213571.21 | H49: 0.04739960734 | I49: 0.2638997987 | K49: =Entrada!P21 -> (5) banco de capacitores;
A50: 44256 | B50: 1632985.29 | C50: 10247191.42 | D50: 354457.04 | E50: 633986.17 | F50: 5038121.71 | G50: 22372979.08 | H50: 0.05094471315 | I50: 0.2626693714 | K50: =Entrada!P22 -> (6) padrões de entrada de unidades consumidoras atendidas em baixa tensão;
A51: 44287 | B51: 1617627.89 | C51: 8875093.62 | D51: 351114.18 | E51: 475383.03 | F51: 3034628.89 | G51: 18838910.19 | H51: 0.0610614284 | I51: 0.2752650547 | K51: =Entrada!P23 -> (7) sistemas de medição de energia elétrica;
A52: 44317 | B52: 2050012.72 | C52: 10701109.09 | D52: 444980.08 | E52: 1365759.83 | F52: 5161259.82 | G52: 22412220.23 | H52: 0.06331854796 | I52: 0.2715754086 | K52: =Entrada!P24 -> (8) geradores, incluindo-se unidades de microgeração e minigeração distribuída;
A53: 44348 | B53: 1664258.19 | C53: 11856014.89 | D53: 361234.14 | E53: 2522219.85 | F53: 5695445.92 | G53: 25201013.86 | H53: 0.04793412652 | I53: 0.2805775709 | K53: =Entrada!P25 -> (9) sistemas de iluminação pública.
A54: 44378 | B54: 1650718.55 | C54: 12791924.85 | D54: 358310.49 | E54: 4029084.98 | F54: 5969204.85 | G54: 27253122.95 | H54: 0.0456657739 | I54: 0.2907639145 | K54: =Entrada!P26 -> (10) estações de recarga de veículos elétricos, incluindo a prestação de serviços aos usuários
A55: 44409 | B55: 1534772.99 | C55: 14171819.38 | D55: 333130.88 | E55: 5237743.69 | F55: 6065174.07 | G55: 30850118.36 | H55: 0.03914523593 | I55: 0.2969955907 | K55: =Entrada!P27 -> Eficientização do consumo de energia elétrica e instalação de cogeração qualificada, desde que não enquadráveis nos projetos de Pesquisa e Desenvolvimento (P&D) ou de Eficiência Energética estabelecidos em lei
A56: 44440 | B56: 1321909.76 | C56: 14814270.23 | D56: 286910.98 | E56: 6696814.36 | F56: 6120003.35 | G56: 32237859.08 | H56: 0.03345844955 | I56: 0.3080905788 | K56: =Entrada!P28 -> Serviços de comunicação de dados
A57: 44470 | B57: 1238278.08 | C57: 14565402.3 | D57: 268755.54 | E57: 7263664.05 | F57: 6164848.08 | G57: 31761999.31 | H57: 0.03224593241 | I57: 0.3116552756 | K57: =Entrada!P29 -> Serviços de consultoria
A58: 44501 | B58: 1609651.73 | C58: 13404791.59 | D58: 349378.77 | E58: 6605157.64 | F58: 5894718.1 | G58: 28912017.44 | H58: 0.04496757749 | I58: 0.3076935273 | K58: =Entrada!P30 -> Receita proveniente da comercialização de resultados de projetos de P&D COM comprovação
A59: 44531 | B59: 1795828.49 | C59: 12830729.92 | D59: 389799 | E59: 6133846.81 | F59: 5829498.37 | G59: 27404831.16 | H59: 0.05189438437 | I59: 0.3046460722 | K59: =Entrada!P31 -> Receita proveniente da comercialização de resultados de projetos de P&D SEM comprovação
A60: 44562 | B60: 1164659.82 | C60: 7574940.08 | D60: 252777.82 | E60: 5238287.04 | F60: 5690041.37 | G60: 23430485.33 | H60: 0.04311647566 | I60: 0.2304191101
A61: 44593 | B61: 970718.54 | C61: 6173880.9 | D61: 210673.08 | E61: 5523999.23 | F61: 5730964.46 | G61: 24327735.22 | H61: 0.03704586458 | I61: 0.1935994397 | K61: Descrição | L61: =L35 -> 2023-03-01 | M61: =M35 -> 2023-02-01 | N61: 2023-01-01 | O61: 2022-12-01 | P61: 2022-11-01 | Q61: 2022-10-01 | R61: 2022-09-01 | S61: 2022-08-01 | T61: 2022-07-01 | U61: 2022-06-01 | V61: 2022-05-01 | W61: 2022-04-01 | X61: 2022-03-01 | Y61: 2022-02-01 | Z61: 2022-01-01 | AA61: =AA35 -> 2021-12-01 | AB61: 2021-11-01 | AC61: 2021-10-01 | AD61: 2021-09-01 | AE61: 2021-08-01 | AF61: 2021-07-01 | AG61: 2021-06-01 | AH61: 2021-05-01 | AI61: 2021-04-01 | AJ61: 2021-03-01 | AK61: 2021-02-01 | AL61: 2021-01-01 | AM61: 2020-12-01 | AN61: 2020-11-01 | AO61: 2020-10-01 | AP61: 2020-09-01 | AQ61: 2020-08-01 | AR61: 2020-07-01 | AS61: 2020-06-01 | AT61: 2020-05-01 | AU61: 2020-04-01 | AV61: 2020-03-01 | AW61: 2020-02-01 | AX61: 2020-01-01 | AY61: 2019-12-01 | AZ61: 2019-11-01 | BA61: =BA35 -> 2019-10-01 | BB61: 2019-09-01 | BC61: 2019-08-01 | BD61: 2019-07-01 | BE61: 2019-06-01 | BF61: 2019-05-01 | BG61: =BG35 -> 2019-04-01 | BH61: 2019-03-01 | BI61: 2019-02-01 | BJ61: 2019-01-01 | BK61: 2018-12-01 | BL61: 2018-11-01 | BM61: 2018-10-01 | BN61: 2018-09-01 | BO61: 2018-08-01 | BP61: 2018-07-01 | BQ61: 2018-06-01 | BR61: 2018-05-01
A62: 44621 | B62: 1111408.86 | C62: 6934021.48 | D62: 241215.67 | E62: 6377065.79 | F62: 6057117.71 | G62: 28255514.55 | H62: 0.03734240504 | I62: 0.1914300923 | K62: =Entrada!P36 -> Ultrapassagem de Demanda | L62: =IF(COUNTIFS($C$82:$C$200000,$K62,$H$82:$H$200000,L$2)=0,"",COUNTIFS($C$82:$C$200000,$K62,$H$82:$H$200000,L$2)) ->  | N62: 1 | O62: 1 | P62: 1 | Q62: 1 | R62: 1 | S62: 1 | T62: 1 | U62: 1 | V62: =IF(COUNTIFS($C$82:$C$200000,$K62,$H$82:$H$200000,V$2)=0,"",COUNTIFS($C$82:$C$200000,$K62,$H$82:$H$200000,V$2)) -> 1 | W62: 1 | X62: 1 | Y62: 1 | Z62: 1 | AA62: 1 | AB62: 1 | AC62: 1 | AD62: 1 | AE62: 1 | AF62: =IF(COUNTIFS($C$82:$C$200000,$K62,$H$82:$H$200000,AF$2)=0,"",COUNTIFS($C$82:$C$200000,$K62,$H$82:$H$200000,AF$2)) -> 1 | AG62: 1 | AH62: 1 | AI62: 1 | AJ62: 1 | AK62: 1 | AL62: 1 | AM62: 1 | AN62: 1 | AP62: =IF(COUNTIFS($C$82:$C$200000,$K62,$H$82:$H$200000,AP$2)=0,"",COUNTIFS($C$82:$C$200000,$K62,$H$82:$H$200000,AP$2)) ->  | AZ62: =IF(COUNTIFS($C$82:$C$200000,$K62,$H$82:$H$200000,AZ$2)=0,"",COUNTIFS($C$82:$C$200000,$K62,$H$82:$H$200000,AZ$2)) ->  | BJ62: =IF(COUNTIFS($C$82:$C$200000,$K62,$H$82:$H$200000,BJ$2)=0,"",COUNTIFS($C$82:$C$200000,$K62,$H$82:$H$200000,BJ$2)) -> 
A63: 44652 | B63: 1083211.2 | C63: 6681368.14 | D63: 235094.66 | E63: 4908513.75 | F63: 6356729.76 | G63: 27193647.07 | H63: 0.0359784541 | I63: 0.1823441011 | K63: =Entrada!P37 -> Excedente Reativo | N63: 1 | O63: 1 | P63: 1 | Q63: 1 | R63: 1 | S63: 1 | T63: 1 | U63: 1 | V63: 1 | W63: 1 | X63: 1 | Y63: 1 | Z63: 1 | AA63: 1 | AB63: 1 | AC63: 1 | AD63: 1 | AE63: 1 | AF63: 1 | AG63: 1 | AH63: 1 | AI63: 1 | AJ63: 1 | AK63: 1 | AL63: 1 | AM63: 1 | AN63: 1
A64: 44682 | B64: 1468306.51 | C64: 6667096.21 | D64: 318700.84 | E64: 1226231.6 | F64: 7997871.6 | G64: 25379458.48 | H64: 0.04400932049 | I64: 0.1641931544
A65: 44713 | B65: 2122958.66 | C65: 7289312 | D65: 460831.77 | E65: -2105.23 | F65: 9079756.64 | G65: 30700191.51 | H65: 0.05203468578 | I65: 0.1467986935
A66: 44743 | B66: 1523545.74 | C66: 6614554.02 | D66: 330692.25 | E66: 21791.81 | F66: 9357303.61 | G66: 27454036.51 | H66: 0.04097008368 | I66: 0.1461510513
A67: 44774 | B67: 1720815.08 | C67: 6607820.17 | D67: 373522.41 | E67: -3767.98 | F67: 9251604.95 | G67: 28046090.53 | H67: 0.0455254921 | I67: 0.1436369575
A68: 44805 | B68: 1914808.72 | C68: 6806126.31 | D68: 415655.49 | E68: 25944.89 | F68: 7755590.84 | G68: 28415589.83 | H68: 0.05146577337 | I68: 0.1503059145
A69: 44835 | B69: 1825386.14 | C69: 6057289.67 | D69: 396236.67 | E69: 5745.23 | F69: 8881864.92 | G69: 25837392.48 | H69: 0.05167475033 | I69: 0.1408920227
A70: 44866 | B70: 1324537.08 | C70: 5726152.18 | D70: 287502.6 | E70: 2461.02 | F70: 7950489 | G70: 23753966.51 | H70: 0.0412918029 | I70: 0.1466732799
A71: 44896 | B71: 1164371.55 | C71: 5478133.61 | D71: 252742.79 | E71: -9430.26 | F71: 8438125.26 | G71: 23405604.45 | H71: 0.03657219525 | I71: 0.1413769985
A72: 44927 | B72: 1117848.56 | C72: 4688267.67 | D72: 242646.02 | E72: 2264.19 | F72: 8752508.15 | G72: 19863234.54 | H72: 0.03925004704 | I72: 0.1352557587
A80: Tab_Uderor
A81: IdeTipoReceita | B81: TipoReceitaArquivo | C81: TipoReceita | D81: CompetenciaArquivo | E81: Data_envio_arquivo | F81: NomeArquivo | G81: Data_Lancamento | H81: Competencia | I81: R$
A82: 1 | B82: Serviços Cobráveis | C82: Serviços Cobráveis | D82: 202011 | E82: 44872 | F82: APLCVA00405_FLXPAGAMENTOS_112020_S006.XML | G82: 44136 | H82: 44136 | I82: 177173.42
A83: 1 | B83: Serviços Cobráveis | C83: Serviços Cobráveis | D83: 202011 | E83: 44872 | F83: APLCVA00405_FLXPAGAMENTOS_112020_S006.XML | G83: 44136 | H83: 44136 | I83: 128871.83
A84: 1 | B84: Serviços Cobráveis | C84: Serviços Cobráveis | D84: 202012 | E84: 44872 | F84: APLCVA00405_FLXPAGAMENTOS_122020_S005.XML | G84: 44166 | H84: 44166 | I84: 193196.55
A85: 1 | B85: Serviços Cobráveis | C85: Serviços Cobráveis | D85: 202012 | E85: 44872 | F85: APLCVA00405_FLXPAGAMENTOS_122020_S005.XML | G85: 44166 | H85: 44166 | I85: 115757.58
A86: 1 | B86: Serviços Cobráveis | C86: Serviços Cobráveis | D86: 202101 | E86: 44872 | F86: APLCVA00405_FLXPAGAMENTOS_012021_S004.XML | G86: 44197 | H86: 44197 | I86: 160426.07
A87: 1 | B87: Serviços Cobráveis | C87: Serviços Cobráveis | D87: 202101 | E87: 44872 | F87: APLCVA00405_FLXPAGAMENTOS_012021_S004.XML | G87: 44197 | H87: 44197 | I87: 142060.78
A88: 1 | B88: Serviços Cobráveis | C88: Serviços Cobráveis | D88: 202102 | E88: 44872 | F88: APLCVA00405_FLXPAGAMENTOS_022021_S005.XML | G88: 44228 | H88: 44228 | I88: 167271.61
A89: 1 | B89: Serviços Cobráveis | C89: Serviços Cobráveis | D89: 202102 | E89: 44872 | F89: APLCVA00405_FLXPAGAMENTOS_022021_S005.XML | G89: 44228 | H89: 44228 | I89: 187242.52
A90: 1 | B90: Serviços Cobráveis | C90: Serviços Cobráveis | D90: 202103 | E90: 44872 | F90: APLCVA00405_FLXPAGAMENTOS_032021_S005.XML | G90: 44256 | H90: 44256 | I90: 141463.61
A91: 1 | B91: Serviços Cobráveis | C91: Serviços Cobráveis | D91: 202103 | E91: 44872 | F91: APLCVA00405_FLXPAGAMENTOS_032021_S005.XML | G91: 44256 | H91: 44256 | I91: 197493.62
A92: 1 | B92: Serviços Cobráveis | C92: Serviços Cobráveis | D92: 202104 | E92: 44942 | F92: APLCVA00405_FLXPAGAMENTOS_042021_S007.XML | G92: 44287 | H92: 44287 | I92: 170027.67
A93: 1 | B93: Serviços Cobráveis | C93: Serviços Cobráveis | D93: 202104 | E93: 44942 | F93: APLCVA00405_FLXPAGAMENTOS_042021_S007.XML | G93: 44287 | H93: 44287 | I93: 137026.57
A94: 1 | B94: Serviços Cobráveis | C94: Serviços Cobráveis | D94: 202105 | E94: 44872 | F94: APLCVA00405_FLXPAGAMENTOS_052021_S006.XML | G94: 44317 | H94: 44317 | I94: 149702.73
A95: 1 | B95: Serviços Cobráveis | C95: Serviços Cobráveis | D95: 202105 | E95: 44872 | F95: APLCVA00405_FLXPAGAMENTOS_052021_S006.XML | G95: 44317 | H95: 44317 | I95: 122660.96
A96: 1 | B96: Serviços Cobráveis | C96: Serviços Cobráveis | D96: 202106 | E96: 44872 | F96: APLCVA00405_FLXPAGAMENTOS_062021_S006.XML | G96: 44348 | H96: 44348 | I96: 126619.02
A97: 1 | B97: Serviços Cobráveis | C97: Serviços Cobráveis | D97: 202106 | E97: 44872 | F97: APLCVA00405_FLXPAGAMENTOS_062021_S006.XML | G97: 44348 | H97: 44348 | I97: 114589.29
A98: 1 | B98: Serviços Cobráveis | C98: Serviços Cobráveis | D98: 202107 | E98: 44872 | F98: APLCVA00405_FLXPAGAMENTOS_072021_S005.XML | G98: 44378 | H98: 44378 | I98: 133943.12
A99: 1 | B99: Serviços Cobráveis | C99: Serviços Cobráveis | D99: 202107 | E99: 44872 | F99: APLCVA00405_FLXPAGAMENTOS_072021_S005.XML | G99: 44378 | H99: 44378 | I99: 82971.58
A100: 1 | B100: Serviços Cobráveis | C100: Serviços Cobráveis | D100: 202108 | E100: 44872 | F100: APLCVA00405_FLXPAGAMENTOS_082021_S006.XML | G100: 44409 | H100: 44409 | I100: 194268.59
A101: 1 | B101: Serviços Cobráveis | C101: Serviços Cobráveis | D101: 202108 | E101: 44872 | F101: APLCVA00405_FLXPAGAMENTOS_082021_S006.XML | G101: 44409 | H101: 44409 | I101: 135046.66
A102: 1 | B102: Serviços Cobráveis | C102: Serviços Cobráveis | D102: 202109 | E102: 44872 | F102: APLCVA00405_FLXPAGAMENTOS_092021_S004.XML | G102: 44440 | H102: 44440 | I102: 164504.16
A103: 1 | B103: Serviços Cobráveis | C103: Serviços Cobráveis | D103: 202109 | E103: 44872 | F103: APLCVA00405_FLXPAGAMENTOS_092021_S004.XML | G103: 44440 | H103: 44440 | I103: 149519.74
A104: 1 | B104: Serviços Cobráveis | C104: Serviços Cobráveis | D104: 202110 | E104: 44872 | F104: APLCVA00405_FLXPAGAMENTOS_102021_S004.XML | G104: 44470 | H104: 44470 | I104: 128502.66
A105: 1 | B105: Serviços Cobráveis | C105: Serviços Cobráveis | D105: 202110 | E105: 44872 | F105: APLCVA00405_FLXPAGAMENTOS_102021_S004.XML | G105: 44470 | H105: 44470 | I105: 110345.7
A106: 1 | B106: Serviços Cobráveis | C106: Serviços Cobráveis | D106: 202111 | E106: 44872 | F106: APLCVA00405_FLXPAGAMENTOS_112021_S003.XML | G106: 44501 | H106: 44501 | I106: 114267.49
A107: 1 | B107: Serviços Cobráveis | C107: Serviços Cobráveis | D107: 202111 | E107: 44872 | F107: APLCVA00405_FLXPAGAMENTOS_112021_S003.XML | G107: 44501 | H107: 44501 | I107: 114747.42
A108: 1 | B108: Serviços Cobráveis | C108: Serviços Cobráveis | D108: 202112 | E108: 44872 | F108: APLCVA00405_FLXPAGAMENTOS_122021_S005.XML | G108: 44531 | H108: 44531 | I108: 97969.46
A109: 1 | B109: Serviços Cobráveis | C109: Serviços Cobráveis | D109: 202112 | E109: 44872 | F109: APLCVA00405_FLXPAGAMENTOS_122021_S005.XML | G109: 44531 | H109: 44531 | I109: 145721.59
A110: 1 | B110: Serviços Cobráveis | C110: Serviços Cobráveis | D110: 202201 | E110: 44872 | F110: APLCVA00405_FLXPAGAMENTOS_012022_S004.XML | G110: 44562 | H110: 44562 | I110: 68582.09
A111: 1 | B111: Serviços Cobráveis | C111: Serviços Cobráveis | D111: 202201 | E111: 44872 | F111: APLCVA00405_FLXPAGAMENTOS_012022_S004.XML | G111: 44562 | H111: 44562 | I111: 152474.85
A112: 1 | B112: Serviços Cobráveis | C112: Serviços Cobráveis | D112: 202202 | E112: 44872 | F112: APLCVA00405_FLXPAGAMENTOS_022022_S005.XML | G112: 44593 | H112: 44593 | I112: 133632.48
A113: 1 | B113: Serviços Cobráveis | C113: Serviços Cobráveis | D113: 202202 | E113: 44872 | F113: APLCVA00405_FLXPAGAMENTOS_022022_S005.XML | G113: 44593 | H113: 44593 | I113: 68071.99
A114: 1 | B114: Serviços Cobráveis | C114: Serviços Cobráveis | D114: 202203 | E114: 44872 | F114: APLCVA00405_FLXPAGAMENTOS_032022_S004.XML | G114: 44621 | H114: 44621 | I114: 64677.93
A115: 1 | B115: Serviços Cobráveis | C115: Serviços Cobráveis | D115: 202203 | E115: 44872 | F115: APLCVA00405_FLXPAGAMENTOS_032022_S004.XML | G115: 44621 | H115: 44621 | I115: 150251.36
A116: 1 | B116: Serviços Cobráveis | C116: Serviços Cobráveis | D116: 202204 | E116: 44936 | F116: APLCVA00405_FLXPAGAMENTOS_042022_S003.XML | G116: 44652 | H116: 44652 | I116: 181533.63
A117: 1 | B117: Serviços Cobráveis | C117: Serviços Cobráveis | D117: 202204 | E117: 44936 | F117: APLCVA00405_FLXPAGAMENTOS_042022_S003.XML | G117: 44652 | H117: 44652 | I117: 62137.98
A118: 1 | B118: Serviços Cobráveis | C118: Serviços Cobráveis | D118: 202205 | E118: 44942 | F118: APLCVA00405_FLXPAGAMENTOS_052022_S004.XML | G118: 44682 | H118: 44682 | I118: 250171.77
A119: 1 | B119: Serviços Cobráveis | C119: Serviços Cobráveis | D119: 202205 | E119: 44942 | F119: APLCVA00405_FLXPAGAMENTOS_052022_S004.XML | G119: 44682 | H119: 44682 | I119: 83434.36
A120: 1 | B120: Serviços Cobráveis | C120: Serviços Cobráveis | D120: 202206 | E120: 44964 | F120: APLCVA00405_FLXPAGAMENTOS_062022_S005.XML | G120: 44713 | H120: 44713 | I120: 258932.51
A121: 1 | B121: Serviços Cobráveis | C121: Serviços Cobráveis | D121: 202206 | E121: 44964 | F121: APLCVA00405_FLXPAGAMENTOS_062022_S005.XML | G121: 44713 | H121: 44713 | I121: 71975.71
A122: 1 | B122: Serviços Cobráveis | C122: Serviços Cobráveis | D122: 202207 | E122: 44981 | F122: APLCVA00405_FLXPAGAMENTOS_072022_S004.XML | G122: 44743 | H122: 44743 | I122: 81875.58
A123: 1 | B123: Serviços Cobráveis | C123: Serviços Cobráveis | D123: 202207 | E123: 44981 | F123: APLCVA00405_FLXPAGAMENTOS_072022_S004.XML | G123: 44743 | H123: 44743 | I123: 250458.93
A124: 1 | B124: Serviços Cobráveis | C124: Serviços Cobráveis | D124: 202208 | E124: 44981 | F124: APLCVA00405_FLXPAGAMENTOS_082022_S006.XML | G124: 44774 | H124: 44774 | I124: 267877.14
A125: 1 | B125: Serviços Cobráveis | C125: Serviços Cobráveis | D125: 202208 | E125: 44981 | F125: APLCVA00405_FLXPAGAMENTOS_082022_S006.XML | G125: 44774 | H125: 44774 | I125: 90987.82
A126: 1 | B126: Serviços Cobráveis | C126: Serviços Cobráveis | D126: 202209 | E126: 44981 | F126: APLCVA00405_FLXPAGAMENTOS_092022_S007.XML | G126: 44805 | H126: 44805 | I126: 82647.9
A127: 1 | B127: Serviços Cobráveis | C127: Serviços Cobráveis | D127: 202209 | E127: 44981 | F127: APLCVA00405_FLXPAGAMENTOS_092022_S007.XML | G127: 44805 | H127: 44805 | I127: 238538.02
A128: 1 | B128: Serviços Cobráveis | C128: Serviços Cobráveis | D128: 202210 | E128: 44981 | F128: APLCVA00405_FLXPAGAMENTOS_102022_S004.XML | G128: 44835 | H128: 44835 | I128: 60587.63
A129: 1 | B129: Serviços Cobráveis | C129: Serviços Cobráveis | D129: 202210 | E129: 44981 | F129: APLCVA00405_FLXPAGAMENTOS_102022_S004.XML | G129: 44835 | H129: 44835 | I129: 175899.02
A130: 1 | B130: Serviços Cobráveis | C130: Serviços Cobráveis | D130: 202211 | E130: 44981 | F130: APLCVA00405_FLXPAGAMENTOS_112022_S003.XML | G130: 44866 | H130: 44866 | I130: 51336.8
A131: 1 | B131: Serviços Cobráveis | C131: Serviços Cobráveis | D131: 202211 | E131: 44981 | F131: APLCVA00405_FLXPAGAMENTOS_112022_S003.XML | G131: 44866 | H131: 44866 | I131: 151226.65
A132: 1 | B132: Serviços Cobráveis | C132: Serviços Cobráveis | D132: 202212 | E132: 44981 | F132: APLCVA00405_FLXPAGAMENTOS_122022_S002.XML | G132: 44896 | H132: 44896 | I132: 159461.82
A133: 1 | B133: Serviços Cobráveis | C133: Serviços Cobráveis | D133: 202212 | E133: 44981 | F133: APLCVA00405_FLXPAGAMENTOS_122022_S002.XML | G133: 44896 | H133: 44896 | I133: 54839.63
A134: 1 | B134: Serviços Cobráveis | C134: Serviços Cobráveis | D134: 202301 | E134: 44981 | F134: APLCVA00405_FLXPAGAMENTOS_012023_S001.XML | G134: 44927 | H134: 44927 | I134: 0
A135: 1 | B135: Serviços Cobráveis | C135: Serviços Cobráveis | D135: 202301 | E135: 44981 | F135: APLCVA00405_FLXPAGAMENTOS_012023_S001.XML | G135: 44927 | H135: 44927 | I135: 0
A136: 2 | B136: Arrecadação de convênios ou valores pela fatura | C136: Arrecadação de convênios ou valores pela fatura | D136: 202011 | E136: 44872 | F136: APLCVA00405_FLXPAGAMENTOS_112020_S006.XML | G136: 44136 | H136: 44136 | I136: 0
A137: 2 | B137: Arrecadação de convênios ou valores pela fatura | C137: Arrecadação de convênios ou valores pela fatura | D137: 202011 | E137: 44872 | F137: APLCVA00405_FLXPAGAMENTOS_112020_S006.XML | G137: 44136 | H137: 44136 | I137: 313505.28
A138: 2 | B138: Arrecadação de convênios ou valores pela fatura | C138: Arrecadação de convênios ou valores pela fatura | D138: 202011 | E138: 44872 | F138: APLCVA00405_FLXPAGAMENTOS_112020_S006.XML | G138: 44136 | H138: 44136 | I138: 1584.3
A139: 2 | B139: Arrecadação de convênios ou valores pela fatura | C139: Arrecadação de convênios ou valores pela fatura | D139: 202012 | E139: 44872 | F139: APLCVA00405_FLXPAGAMENTOS_122020_S005.XML | G139: 44166 | H139: 44166 | I139: 0
A140: 2 | B140: Arrecadação de convênios ou valores pela fatura | C140: Arrecadação de convênios ou valores pela fatura | D140: 202012 | E140: 44872 | F140: APLCVA00405_FLXPAGAMENTOS_122020_S005.XML | G140: 44166 | H140: 44166 | I140: 1562.36
A141: 2 | B141: Arrecadação de convênios ou valores pela fatura | C141: Arrecadação de convênios ou valores pela fatura | D141: 202012 | E141: 44872 | F141: APLCVA00405_FLXPAGAMENTOS_122020_S005.XML | G141: 44166 | H141: 44166 | I141: 236894.63
A142: 2 | B142: Arrecadação de convênios ou valores pela fatura | C142: Arrecadação de convênios ou valores pela fatura | D142: 202101 | E142: 44872 | F142: APLCVA00405_FLXPAGAMENTOS_012021_S004.XML | G142: 44197 | H142: 44197 | I142: 118758.61
A143: 2 | B143: Arrecadação de convênios ou valores pela fatura | C143: Arrecadação de convênios ou valores pela fatura | D143: 202101 | E143: 44872 | F143: APLCVA00405_FLXPAGAMENTOS_012021_S004.XML | G143: 44197 | H143: 44197 | I143: 0
A144: 2 | B144: Arrecadação de convênios ou valores pela fatura | C144: Arrecadação de convênios ou valores pela fatura | D144: 202101 | E144: 44872 | F144: APLCVA00405_FLXPAGAMENTOS_012021_S004.XML | G144: 44197 | H144: 44197 | I144: 1584.19
A145: 2 | B145: Arrecadação de convênios ou valores pela fatura | C145: Arrecadação de convênios ou valores pela fatura | D145: 202102 | E145: 44872 | F145: APLCVA00405_FLXPAGAMENTOS_022021_S005.XML | G145: 44228 | H145: 44228 | I145: 1519.16
A146: 2 | B146: Arrecadação de convênios ou valores pela fatura | C146: Arrecadação de convênios ou valores pela fatura | D146: 202102 | E146: 44872 | F146: APLCVA00405_FLXPAGAMENTOS_022021_S005.XML | G146: 44228 | H146: 44228 | I146: 217331.8
A147: 2 | B147: Arrecadação de convênios ou valores pela fatura | C147: Arrecadação de convênios ou valores pela fatura | D147: 202102 | E147: 44872 | F147: APLCVA00405_FLXPAGAMENTOS_022021_S005.XML | G147: 44228 | H147: 44228 | I147: 0
A148: 2 | B148: Arrecadação de convênios ou valores pela fatura | C148: Arrecadação de convênios ou valores pela fatura | D148: 202103 | E148: 44872 | F148: APLCVA00405_FLXPAGAMENTOS_032021_S005.XML | G148: 44256 | H148: 44256 | I148: 113097.14
A149: 2 | B149: Arrecadação de convênios ou valores pela fatura | C149: Arrecadação de convênios ou valores pela fatura | D149: 202103 | E149: 44872 | F149: APLCVA00405_FLXPAGAMENTOS_032021_S005.XML | G149: 44256 | H149: 44256 | I149: 0
A150: 2 | B150: Arrecadação de convênios ou valores pela fatura | C150: Arrecadação de convênios ou valores pela fatura | D150: 202103 | E150: 44872 | F150: APLCVA00405_FLXPAGAMENTOS_032021_S005.XML | G150: 44256 | H150: 44256 | I150: 1659.79
A151: 2 | B151: Arrecadação de convênios ou valores pela fatura | C151: Arrecadação de convênios ou valores pela fatura | D151: 202104 | E151: 44942 | F151: APLCVA00405_FLXPAGAMENTOS_042021_S007.XML | G151: 44287 | H151: 44287 | I151: 797062.2
A152: 2 | B152: Arrecadação de convênios ou valores pela fatura | C152: Arrecadação de convênios ou valores pela fatura | D152: 202104 | E152: 44942 | F152: APLCVA00405_FLXPAGAMENTOS_042021_S007.XML | G152: 44287 | H152: 44287 | I152: 1474.59
A153: 2 | B153: Arrecadação de convênios ou valores pela fatura | C153: Arrecadação de convênios ou valores pela fatura | D153: 202104 | E153: 44942 | F153: APLCVA00405_FLXPAGAMENTOS_042021_S007.XML | G153: 44287 | H153: 44287 | I153: 0
A154: 2 | B154: Arrecadação de convênios ou valores pela fatura | C154: Arrecadação de convênios ou valores pela fatura | D154: 202105 | E154: 44872 | F154: APLCVA00405_FLXPAGAMENTOS_052021_S006.XML | G154: 44317 | H154: 44317 | I154: 0
A155: 2 | B155: Arrecadação de convênios ou valores pela fatura | C155: Arrecadação de convênios ou valores pela fatura | D155: 202105 | E155: 44872 | F155: APLCVA00405_FLXPAGAMENTOS_052021_S006.XML | G155: 44317 | H155: 44317 | I155: 1015249.56
A156: 2 | B156: Arrecadação de convênios ou valores pela fatura | C156: Arrecadação de convênios ou valores pela fatura | D156: 202105 | E156: 44872 | F156: APLCVA00405_FLXPAGAMENTOS_052021_S006.XML | G156: 44317 | H156: 44317 | I156: 1604.98
A157: 2 | B157: Arrecadação de convênios ou valores pela fatura | C157: Arrecadação de convênios ou valores pela fatura | D157: 202106 | E157: 44872 | F157: APLCVA00405_FLXPAGAMENTOS_062021_S006.XML | G157: 44348 | H157: 44348 | I157: 0
A158: 2 | B158: Arrecadação de convênios ou valores pela fatura | C158: Arrecadação de convênios ou valores pela fatura | D158: 202106 | E158: 44872 | F158: APLCVA00405_FLXPAGAMENTOS_062021_S006.XML | G158: 44348 | H158: 44348 | I158: 651489.87
A159: 2 | B159: Arrecadação de convênios ou valores pela fatura | C159: Arrecadação de convênios ou valores pela fatura | D159: 202106 | E159: 44872 | F159: APLCVA00405_FLXPAGAMENTOS_062021_S006.XML | G159: 44348 | H159: 44348 | I159: 1475.62
A160: 2 | B160: Arrecadação de convênios ou valores pela fatura | C160: Arrecadação de convênios ou valores pela fatura | D160: 202107 | E160: 44872 | F160: APLCVA00405_FLXPAGAMENTOS_072021_S005.XML | G160: 44378 | H160: 44378 | I160: 1509.63
A161: 2 | B161: Arrecadação de convênios ou valores pela fatura | C161: Arrecadação de convênios ou valores pela fatura | D161: 202107 | E161: 44872 | F161: APLCVA00405_FLXPAGAMENTOS_072021_S005.XML | G161: 44378 | H161: 44378 | I161: 0
A162: 2 | B162: Arrecadação de convênios ou valores pela fatura | C162: Arrecadação de convênios ou valores pela fatura | D162: 202107 | E162: 44872 | F162: APLCVA00405_FLXPAGAMENTOS_072021_S005.XML | G162: 44378 | H162: 44378 | I162: 741946.21
A163: 2 | B163: Arrecadação de convênios ou valores pela fatura | C163: Arrecadação de convênios ou valores pela fatura | D163: 202108 | E163: 44872 | F163: APLCVA00405_FLXPAGAMENTOS_082021_S006.XML | G163: 44409 | H163: 44409 | I163: 1562.48
A164: 2 | B164: Arrecadação de convênios ou valores pela fatura | C164: Arrecadação de convênios ou valores pela fatura | D164: 202108 | E164: 44872 | F164: APLCVA00405_FLXPAGAMENTOS_082021_S006.XML | G164: 44409 | H164: 44409 | I164: 0
A165: 2 | B165: Arrecadação de convênios ou valores pela fatura | C165: Arrecadação de convênios ou valores pela fatura | D165: 202108 | E165: 44872 | F165: APLCVA00405_FLXPAGAMENTOS_082021_S006.XML | G165: 44409 | H165: 44409 | I165: 123695.87
A166: 2 | B166: Arrecadação de convênios ou valores pela fatura | C166: Arrecadação de convênios ou valores pela fatura | D166: 202109 | E166: 44872 | F166: APLCVA00405_FLXPAGAMENTOS_092021_S004.XML | G166: 44440 | H166: 44440 | I166: 1469.99
A167: 2 | B167: Arrecadação de convênios ou valores pela fatura | C167: Arrecadação de convênios ou valores pela fatura | D167: 202109 | E167: 44872 | F167: APLCVA00405_FLXPAGAMENTOS_092021_S004.XML | G167: 44440 | H167: 44440 | I167: 0
A168: 2 | B168: Arrecadação de convênios ou valores pela fatura | C168: Arrecadação de convênios ou valores pela fatura | D168: 202109 | E168: 44872 | F168: APLCVA00405_FLXPAGAMENTOS_092021_S004.XML | G168: 44440 | H168: 44440 | I168: 1282616.33
A169: 2 | B169: Arrecadação de convênios ou valores pela fatura | C169: Arrecadação de convênios ou valores pela fatura | D169: 202110 | E169: 44872 | F169: APLCVA00405_FLXPAGAMENTOS_102021_S004.XML | G169: 44470 | H169: 44470 | I169: 770750.25
A170: 2 | B170: Arrecadação de convênios ou valores pela fatura | C170: Arrecadação de convênios ou valores pela fatura | D170: 202110 | E170: 44872 | F170: APLCVA00405_FLXPAGAMENTOS_102021_S004.XML | G170: 44470 | H170: 44470 | I170: 2925.28
A171: 2 | B171: Arrecadação de convênios ou valores pela fatura | C171: Arrecadação de convênios ou valores pela fatura | D171: 202110 | E171: 44872 | F171: APLCVA00405_FLXPAGAMENTOS_102021_S004.XML | G171: 44470 | H171: 44470 | I171: 0
A172: 2 | B172: Arrecadação de convênios ou valores pela fatura | C172: Arrecadação de convênios ou valores pela fatura | D172: 202111 | E172: 44872 | F172: APLCVA00405_FLXPAGAMENTOS_112021_S003.XML | G172: 44501 | H172: 44501 | I172: 28.95
A173: 2 | B173: Arrecadação de convênios ou valores pela fatura | C173: Arrecadação de convênios ou valores pela fatura | D173: 202111 | E173: 44872 | F173: APLCVA00405_FLXPAGAMENTOS_112021_S003.XML | G173: 44501 | H173: 44501 | I173: 0
A174: 2 | B174: Arrecadação de convênios ou valores pela fatura | C174: Arrecadação de convênios ou valores pela fatura | D174: 202111 | E174: 44872 | F174: APLCVA00405_FLXPAGAMENTOS_112021_S003.XML | G174: 44501 | H174: 44501 | I174: 742478.05
A175: 2 | B175: Arrecadação de convênios ou valores pela fatura | C175: Arrecadação de convênios ou valores pela fatura | D175: 202112 | E175: 44872 | F175: APLCVA00405_FLXPAGAMENTOS_122021_S005.XML | G175: 44531 | H175: 44531 | I175: 0
A176: 2 | B176: Arrecadação de convênios ou valores pela fatura | C176: Arrecadação de convênios ou valores pela fatura | D176: 202112 | E176: 44872 | F176: APLCVA00405_FLXPAGAMENTOS_122021_S005.XML | G176: 44531 | H176: 44531 | I176: 1578.1
A177: 2 | B177: Arrecadação de convênios ou valores pela fatura | C177: Arrecadação de convênios ou valores pela fatura | D177: 202112 | E177: 44872 | F177: APLCVA00405_FLXPAGAMENTOS_122021_S005.XML | G177: 44531 | H177: 44531 | I177: 1191760.59
A178: 2 | B178: Arrecadação de convênios ou valores pela fatura | C178: Arrecadação de convênios ou valores pela fatura | D178: 202201 | E178: 44872 | F178: APLCVA00405_FLXPAGAMENTOS_012022_S004.XML | G178: 44562 | H178: 44562 | I178: 1478.15
A179: 2 | B179: Arrecadação de convênios ou valores pela fatura | C179: Arrecadação de convênios ou valores pela fatura | D179: 202201 | E179: 44872 | F179: APLCVA00405_FLXPAGAMENTOS_012022_S004.XML | G179: 44562 | H179: 44562 | I179: 858201.75
A180: 2 | B180: Arrecadação de convênios ou valores pela fatura | C180: Arrecadação de convênios ou valores pela fatura | D180: 202201 | E180: 44872 | F180: APLCVA00405_FLXPAGAMENTOS_012022_S004.XML | G180: 44562 | H180: 44562 | I180: 0
A181: 2 | B181: Arrecadação de convênios ou valores pela fatura | C181: Arrecadação de convênios ou valores pela fatura | D181: 202202 | E181: 44872 | F181: APLCVA00405_FLXPAGAMENTOS_022022_S005.XML | G181: 44593 | H181: 44593 | I181: 0
A182: 2 | B182: Arrecadação de convênios ou valores pela fatura | C182: Arrecadação de convênios ou valores pela fatura | D182: 202202 | E182: 44872 | F182: APLCVA00405_FLXPAGAMENTOS_022022_S005.XML | G182: 44593 | H182: 44593 | I182: 795236.55
A183: 2 | B183: Arrecadação de convênios ou valores pela fatura | C183: Arrecadação de convênios ou valores pela fatura | D183: 202202 | E183: 44872 | F183: APLCVA00405_FLXPAGAMENTOS_022022_S005.XML | G183: 44593 | H183: 44593 | I183: 1337.64
A184: 2 | B184: Arrecadação de convênios ou valores pela fatura | C184: Arrecadação de convênios ou valores pela fatura | D184: 202203 | E184: 44872 | F184: APLCVA00405_FLXPAGAMENTOS_032022_S004.XML | G184: 44621 | H184: 44621 | I184: 869852.57
A185: 2 | B185: Arrecadação de convênios ou valores pela fatura | C185: Arrecadação de convênios ou valores pela fatura | D185: 202203 | E185: 44872 | F185: APLCVA00405_FLXPAGAMENTOS_032022_S004.XML | G185: 44621 | H185: 44621 | I185: 0
A186: 2 | B186: Arrecadação de convênios ou valores pela fatura | C186: Arrecadação de convênios ou valores pela fatura | D186: 202203 | E186: 44872 | F186: APLCVA00405_FLXPAGAMENTOS_032022_S004.XML | G186: 44621 | H186: 44621 | I186: 0
A187: 2 | B187: Arrecadação de convênios ou valores pela fatura | C187: Arrecadação de convênios ou valores pela fatura | D187: 202204 | E187: 44936 | F187: APLCVA00405_FLXPAGAMENTOS_042022_S003.XML | G187: 44652 | H187: 44652 | I187: 2929.53
A188: 2 | B188: Arrecadação de convênios ou valores pela fatura | C188: Arrecadação de convênios ou valores pela fatura | D188: 202204 | E188: 44936 | F188: APLCVA00405_FLXPAGAMENTOS_042022_S003.XML | G188: 44652 | H188: 44652 | I188: 736633.13
A189: 2 | B189: Arrecadação de convênios ou valores pela fatura | C189: Arrecadação de convênios ou valores pela fatura | D189: 202204 | E189: 44936 | F189: APLCVA00405_FLXPAGAMENTOS_042022_S003.XML | G189: 44652 | H189: 44652 | I189: 0
A190: 2 | B190: Arrecadação de convênios ou valores pela fatura | C190: Arrecadação de convênios ou valores pela fatura | D190: 202205 | E190: 44942 | F190: APLCVA00405_FLXPAGAMENTOS_052022_S004.XML | G190: 44682 | H190: 44682 | I190: 877739.58
A191: 2 | B191: Arrecadação de convênios ou valores pela fatura | C191: Arrecadação de convênios ou valores pela fatura | D191: 202205 | E191: 44942 | F191: APLCVA00405_FLXPAGAMENTOS_052022_S004.XML | G191: 44682 | H191: 44682 | I191: 1531.57
A192: 2 | B192: Arrecadação de convênios ou valores pela fatura | C192: Arrecadação de convênios ou valores pela fatura | D192: 202205 | E192: 44942 | F192: APLCVA00405_FLXPAGAMENTOS_052022_S004.XML | G192: 44682 | H192: 44682 | I192: 0
A193: 2 | B193: Arrecadação de convênios ou valores pela fatura | C193: Arrecadação de convênios ou valores pela fatura | D193: 202206 | E193: 44964 | F193: APLCVA00405_FLXPAGAMENTOS_062022_S005.XML | G193: 44713 | H193: 44713 | I193: 794064.86
A194: 2 | B194: Arrecadação de convênios ou valores pela fatura | C194: Arrecadação de convênios ou valores pela fatura | D194: 202206 | E194: 44964 | F194: APLCVA00405_FLXPAGAMENTOS_062022_S005.XML | G194: 44713 | H194: 44713 | I194: 1364.98
A195: 2 | B195: Arrecadação de convênios ou valores pela fatura | C195: Arrecadação de convênios ou valores pela fatura | D195: 202206 | E195: 44964 | F195: APLCVA00405_FLXPAGAMENTOS_062022_S005.XML | G195: 44713 | H195: 44713 | I195: 0
A196: 2 | B196: Arrecadação de convênios ou valores pela fatura | C196: Arrecadação de convênios ou valores pela fatura | D196: 202207 | E196: 44981 | F196: APLCVA00405_FLXPAGAMENTOS_072022_S004.XML | G196: 44743 | H196: 44743 | I196: 0
A197: 2 | B197: Arrecadação de convênios ou valores pela fatura | C197: Arrecadação de convênios ou valores pela fatura | D197: 202207 | E197: 44981 | F197: APLCVA00405_FLXPAGAMENTOS_072022_S004.XML | G197: 44743 | H197: 44743 | I197: 1373.83
A198: 2 | B198: Arrecadação de convênios ou valores pela fatura | C198: Arrecadação de convênios ou valores pela fatura | D198: 202207 | E198: 44981 | F198: APLCVA00405_FLXPAGAMENTOS_072022_S004.XML | G198: 44743 | H198: 44743 | I198: 1102508.87
A199: 2 | B199: Arrecadação de convênios ou valores pela fatura | C199: Arrecadação de convênios ou valores pela fatura | D199: 202208 | E199: 44981 | F199: APLCVA00405_FLXPAGAMENTOS_082022_S006.XML | G199: 44774 | H199: 44774 | I199: 946983.3
A200: 2 | B200: Arrecadação de convênios ou valores pela fatura | C200: Arrecadação de convênios ou valores pela fatura | D200: 202208 | E200: 44981 | F200: APLCVA00405_FLXPAGAMENTOS_082022_S006.XML | G200: 44774 | H200: 44774 | I200: 1467.23
A201: 2 | B201: Arrecadação de convênios ou valores pela fatura | C201: Arrecadação de convênios ou valores pela fatura | D201: 202208 | E201: 44981 | F201: APLCVA00405_FLXPAGAMENTOS_082022_S006.XML | G201: 44774 | H201: 44774 | I201: 0
A202: 2 | B202: Arrecadação de convênios ou valores pela fatura | C202: Arrecadação de convênios ou valores pela fatura | D202: 202209 | E202: 44981 | F202: APLCVA00405_FLXPAGAMENTOS_092022_S007.XML | G202: 44805 | H202: 44805 | I202: 1343.96
A203: 2 | B203: Arrecadação de convênios ou valores pela fatura | C203: Arrecadação de convênios ou valores pela fatura | D203: 202209 | E203: 44981 | F203: APLCVA00405_FLXPAGAMENTOS_092022_S007.XML | G203: 44805 | H203: 44805 | I203: 0
A204: 2 | B204: Arrecadação de convênios ou valores pela fatura | C204: Arrecadação de convênios ou valores pela fatura | D204: 202209 | E204: 44981 | F204: APLCVA00405_FLXPAGAMENTOS_092022_S007.XML | G204: 44805 | H204: 44805 | I204: 1107304.4
A205: 2 | B205: Arrecadação de convênios ou valores pela fatura | C205: Arrecadação de convênios ou valores pela fatura | D205: 202210 | E205: 44981 | F205: APLCVA00405_FLXPAGAMENTOS_102022_S004.XML | G205: 44835 | H205: 44835 | I205: 1387.27
A206: 2 | B206: Arrecadação de convênios ou valores pela fatura | C206: Arrecadação de convênios ou valores pela fatura | D206: 202210 | E206: 44981 | F206: APLCVA00405_FLXPAGAMENTOS_102022_S004.XML | G206: 44835 | H206: 44835 | I206: 0
A207: 2 | B207: Arrecadação de convênios ou valores pela fatura | C207: Arrecadação de convênios ou valores pela fatura | D207: 202210 | E207: 44981 | F207: APLCVA00405_FLXPAGAMENTOS_102022_S004.XML | G207: 44835 | H207: 44835 | I207: 1107613.83
... 90 more rows

Sheet Entrada
A1: Entrada de parâmetros para cálculo tarifário
B4: Energia | D4: Últ. Atulização | F4: Parâmetros para Revisão | P4: ="Caso de OR para a empresa é: " &IF(BD!C53=4,"caso 1","caso 3") -> Caso de OR para a empresa é: caso 3
Q5: Competência Final OR | R5: =IF(CAPA!C7="Revisão",(DATE(YEAR('VPB e Fator X'!C10),MONTH('VPB e Fator X'!C10)-1,1)),0) -> 44805
D6: 44333 | F6: CAPEX - Ativos de Distribuição | J6: Custo Operacional Real do(s) último(s) ano(s) | P6: Outras Receitas
B7: Montante de Geração Própria | C7: 6702.11 | D7: 44988 | F7: (1) Ativo Imobilizado em Serviço (Valor Novo de Reposição) | G7: =G73*VLOOKUP(DATE(YEAR(CAPA!$C$10),MONTH(CAPA!$C$10)-1,1),Índices!$B$135:$D$638,3,0)/VLOOKUP(DATE(YEAR($G$72),MONTH($G$72)-1,1),Índices!$B$135:$D$638,3,0) -> 1.450791773e+10 | J7: Ano do Custo Operacional | L7: =MAX(Tab_RIT_BMP[ANO])-2 -> 2020 | M7: =MAX(Tab_RIT_BMP[ANO])-1 -> 2021 | P7: Tipo de Receita | Q7: =$R$5 -> 2022-09-01 | R7: =DATE(YEAR(Q7),MONTH(Q7)-1,1) -> 2022-08-01 | S7: =DATE(YEAR(R7),MONTH(R7)-1,1) -> 2022-07-01 | T7: 2022-06-01 | U7: 2022-05-01 | V7: 2022-04-01 | W7: 2022-03-01 | X7: 2022-02-01 | Y7: 2022-01-01 | Z7: 2021-12-01 | AA7: 2021-11-01 | AB7: 2021-10-01 | AC7: 2021-09-01 | AD7: 2021-08-01 | AE7: 2021-07-01 | AF7: 2021-06-01 | AG7: 2021-05-01 | AH7: 2021-04-01 | AI7: 2021-03-01 | AJ7: 2021-02-01 | AK7: 2021-01-01 | AL7: 2020-12-01 | AM7: 2020-11-01 | AN7: 2020-10-01 | AO7: 2020-09-01 | AP7: 2020-08-01 | AQ7: 2020-07-01 | AR7: 2020-06-01 | AS7: 2020-05-01 | AT7: 2020-04-01 | AU7: 2020-03-01 | AV7: 2020-02-01 | AW7: 2020-01-01 | AX7: 2019-12-01 | AY7: 2019-11-01 | AZ7: 2019-10-01
B8: Custo médio da Geração Própria | C8: 348.72 | D8: 44988 | F8: (2) Índice de Aproveitamento Integral | G8: =G74*VLOOKUP(DATE(YEAR(CAPA!$C$10),MONTH(CAPA!$C$10)-1,1),Índices!$B$135:$D$638,3,0)/VLOOKUP(DATE(YEAR($G$72),MONTH($G$72)-1,1),Índices!$B$135:$D$638,3,0) -> 20108916.88 | J8: CONTA PESSOAL | P8: Serviços Cobráveis | Q8: =SUMIFS(Tab_Uderor[R$],Tab_Uderor[Competencia],Entrada!Q$7,Tab_Uderor[TipoReceita],Entrada!$P8) -> 321185.92 | R8: =SUMIFS(Tab_Uderor[R$],Tab_Uderor[Competencia],Entrada!R$7,Tab_Uderor[TipoReceita],Entrada!$P8) -> 358864.96 | S8: =SUMIFS(Tab_Uderor[R$],Tab_Uderor[Competencia],Entrada!S$7,Tab_Uderor[TipoReceita],Entrada!$P8) -> 332334.51 | T8: =SUMIFS(Tab_Uderor[R$],Tab_Uderor[Competencia],Entrada!T$7,Tab_Uderor[TipoReceita],Entrada!$P8) -> 330908.22 | U8: =SUMIFS(Tab_Uderor[R$],Tab_Uderor[Competencia],Entrada!U$7,Tab_Uderor[TipoReceita],Entrada!$P8) -> 333606.13 | V8: =SUMIFS(Tab_Uderor[R$],Tab_Uderor[Competencia],Entrada!V$7,Tab_Uderor[TipoReceita],Entrada!$P8) -> 243671.61 | W8: =SUMIFS(Tab_Uderor[R$],Tab_Uderor[Competencia],Entrada!W$7,Tab_Uderor[TipoReceita],Entrada!$P8) -> 214929.29 | X8: =SUMIFS(Tab_Uderor[R$],Tab_Uderor[Competencia],Entrada!X$7,Tab_Uderor[TipoReceita],Entrada!$P8) -> 201704.47 | Y8: =SUMIFS(Tab_Uderor[R$],Tab_Uderor[Competencia],Entrada!Y$7,Tab_Uderor[TipoReceita],Entrada!$P8) -> 221056.94 | Z8: =SUMIFS(Tab_Uderor[R$],Tab_Uderor[Competencia],Entrada!Z$7,Tab_Uderor[TipoReceita],Entrada!$P8) -> 243691.05 | AA8: =SUMIFS(Tab_Uderor[R$],Tab_Uderor[Competencia],Entrada!AA$7,Tab_Uderor[TipoReceita],Entrada!$P8) -> 229014.91 | AB8: =SUMIFS(Tab_Uderor[R$],Tab_Uderor[Competencia],Entrada!AB$7,Tab_Uderor[TipoReceita],Entrada!$P8) -> 238848.36 | AC8: =SUMIFS(Tab_Uderor[R$],Tab_Uderor[Competencia],Entrada!AC$7,Tab_Uderor[TipoReceita],Entrada!$P8) -> 314023.9 | AD8: =SUMIFS(Tab_Uderor[R$],Tab_Uderor[Competencia],Entrada!AD$7,Tab_Uderor[TipoReceita],Entrada!$P8) -> 329315.25 | AE8: =SUMIFS(Tab_Uderor[R$],Tab_Uderor[Competencia],Entrada!AE$7,Tab_Uderor[TipoReceita],Entrada!$P8) -> 216914.7 | AF8: =SUMIFS(Tab_Uderor[R$],Tab_Uderor[Competencia],Entrada!AF$7,Tab_Uderor[TipoReceita],Entrada!$P8) -> 241208.31 | AG8: =SUMIFS(Tab_Uderor[R$],Tab_Uderor[Competencia],Entrada!AG$7,Tab_Uderor[TipoReceita],Entrada!$P8) -> 272363.69 | AH8: =SUMIFS(Tab_Uderor[R$],Tab_Uderor[Competencia],Entrada!AH$7,Tab_Uderor[TipoReceita],Entrada!$P8) -> 307054.24 | AI8: =SUMIFS(Tab_Uderor[R$],Tab_Uderor[Competencia],Entrada!AI$7,Tab_Uderor[TipoReceita],Entrada!$P8) -> 338957.23 | AJ8: =SUMIFS(Tab_Uderor[R$],Tab_Uderor[Competencia],Entrada!AJ$7,Tab_Uderor[TipoReceita],Entrada!$P8) -> 354514.13 | AK8: =SUMIFS(Tab_Uderor[R$],Tab_Uderor[Competencia],Entrada!AK$7,Tab_Uderor[TipoReceita],Entrada!$P8) -> 302486.85 | AL8: =SUMIFS(Tab_Uderor[R$],Tab_Uderor[Competencia],Entrada!AL$7,Tab_Uderor[TipoReceita],Entrada!$P8) -> 308954.13 | AM8: =SUMIFS(Tab_Uderor[R$],Tab_Uderor[Competencia],Entrada!AM$7,Tab_Uderor[TipoReceita],Entrada!$P8) -> 306045.25 | AN8: 172837.09 | AO8: 129934.72 | AP8: 71943.89 | AQ8: 62223 | AR8: 29577.54 | AS8: 25321.05 | AT8: 111073.48 | AU8: 274856.27 | AV8: 276494.6 | AW8: 239234.2 | AX8: 1329882.85 | AY8: 197334.83 | AZ8: 267271.98
D9: 44333 | F9: (3) Obrigações Especiais Bruta | G9: =G75*VLOOKUP(DATE(YEAR(CAPA!$C$10),MONTH(CAPA!$C$10)-1,1),Índices!$B$135:$D$638,3,0)/VLOOKUP(DATE(YEAR($G$72),MONTH($G$72)-1,1),Índices!$B$135:$D$638,3,0) -> 3876152835 | J9: BMP - 610530501; 610550501; 610532501; 610552501 | K9: Remuneração | L9: =SUMIFS(Tab_RIT_BMP[SALDO],Tab_RIT_BMP[CONTA],610530501,Tab_RIT_BMP[ANO],$L$7)+SUMIFS(Tab_RIT_BMP[SALDO],Tab_RIT_BMP[CONTA],610550501,Tab_RIT_BMP[ANO],$L$7)+ SUMIFS(Tab_RIT_BMP[SALDO],Tab_RIT_BMP[CONTA],610532501,Tab_RIT_BMP[ANO],$L$7)+SUMIFS(Tab_RIT_BMP[SALDO],Tab_RIT_BMP[CONTA],610552501,Tab_RIT_BMP[ANO],$L$7) -> 73775742.19 | M9: =SUMIFS(Tab_RIT_BMP[SALDO],Tab_RIT_BMP[CONTA],610530501,Tab_RIT_BMP[ANO],$M$7)+SUMIFS(Tab_RIT_BMP[SALDO],Tab_RIT_BMP[CONTA],610550501,Tab_RIT_BMP[ANO],$M$7)+ SUMIFS(Tab_RIT_BMP[SALDO],Tab_RIT_BMP[CONTA],610532501,Tab_RIT_BMP[ANO],$M$7)+SUMIFS(Tab_RIT_BMP[SALDO],Tab_RIT_BMP[CONTA],610552501,Tab_RIT_BMP[ANO],$M$7) -> 86711238.66 | P9: Arrecadação de convênios ou valores pela fatura | Q9: =SUMIFS(Tab_Uderor[R$],Tab_Uderor[Competencia],Entrada!Q$7,Tab_Uderor[TipoReceita],Entrada!$P9) -> 1108648.36 | R9: =SUMIFS(Tab_Uderor[R$],Tab_Uderor[Competencia],Entrada!R$7,Tab_Uderor[TipoReceita],Entrada!$P9) -> 948450.53 | S9: =SUMIFS(Tab_Uderor[R$],Tab_Uderor[Competencia],Entrada!S$7,Tab_Uderor[TipoReceita],Entrada!$P9) -> 1103882.7 | T9: =SUMIFS(Tab_Uderor[R$],Tab_Uderor[Competencia],Entrada!T$7,Tab_Uderor[TipoReceita],Entrada!$P9) -> 795429.84 | U9: =SUMIFS(Tab_Uderor[R$],Tab_Uderor[Competencia],Entrada!U$7,Tab_Uderor[TipoReceita],Entrada!$P9) -> 879271.15 | V9: =SUMIFS(Tab_Uderor[R$],Tab_Uderor[Competencia],Entrada!V$7,Tab_Uderor[TipoReceita],Entrada!$P9) -> 739562.66 | W9: =SUMIFS(Tab_Uderor[R$],Tab_Uderor[Competencia],Entrada!W$7,Tab_Uderor[TipoReceita],Entrada!$P9) -> 869852.57 | X9: =SUMIFS(Tab_Uderor[R$],Tab_Uderor[Competencia],Entrada!X$7,Tab_Uderor[TipoReceita],Entrada!$P9) -> 796574.19 | Y9: =SUMIFS(Tab_Uderor[R$],Tab_Uderor[Competencia],Entrada!Y$7,Tab_Uderor[TipoReceita],Entrada!$P9) -> 859679.9 | Z9: =SUMIFS(Tab_Uderor[R$],Tab_Uderor[Competencia],Entrada!Z$7,Tab_Uderor[TipoReceita],Entrada!$P9) -> 1193338.69 | AA9: =SUMIFS(Tab_Uderor[R$],Tab_Uderor[Competencia],Entrada!AA$7,Tab_Uderor[TipoReceita],Entrada!$P9) -> 742507 | AB9: =SUMIFS(Tab_Uderor[R$],Tab_Uderor[Competencia],Entrada!AB$7,Tab_Uderor[TipoReceita],Entrada!$P9) -> 773675.53 | AC9: =SUMIFS(Tab_Uderor[R$],Tab_Uderor[Competencia],Entrada!AC$7,Tab_Uderor[TipoReceita],Entrada!$P9) -> 1284086.32 | AD9: =SUMIFS(Tab_Uderor[R$],Tab_Uderor[Competencia],Entrada!AD$7,Tab_Uderor[TipoReceita],Entrada!$P9) -> 125258.35 | AE9: =SUMIFS(Tab_Uderor[R$],Tab_Uderor[Competencia],Entrada!AE$7,Tab_Uderor[TipoReceita],Entrada!$P9) -> 743455.84 | AF9: =SUMIFS(Tab_Uderor[R$],Tab_Uderor[Competencia],Entrada!AF$7,Tab_Uderor[TipoReceita],Entrada!$P9) -> 652965.49 | AG9: =SUMIFS(Tab_Uderor[R$],Tab_Uderor[Competencia],Entrada!AG$7,Tab_Uderor[TipoReceita],Entrada!$P9) -> 1016854.54 | AH9: =SUMIFS(Tab_Uderor[R$],Tab_Uderor[Competencia],Entrada!AH$7,Tab_Uderor[TipoReceita],Entrada!$P9) -> 798536.79 | AI9: =SUMIFS(Tab_Uderor[R$],Tab_Uderor[Competencia],Entrada!AI$7,Tab_Uderor[TipoReceita],Entrada!$P9) -> 114756.93 | AJ9: =SUMIFS(Tab_Uderor[R$],Tab_Uderor[Competencia],Entrada!AJ$7,Tab_Uderor[TipoReceita],Entrada!$P9) -> 218850.96 | AK9: =SUMIFS(Tab_Uderor[R$],Tab_Uderor[Competencia],Entrada!AK$7,Tab_Uderor[TipoReceita],Entrada!$P9) -> 120342.8 | AL9: =SUMIFS(Tab_Uderor[R$],Tab_Uderor[Competencia],Entrada!AL$7,Tab_Uderor[TipoReceita],Entrada!$P9) -> 238456.99 | AM9: =SUMIFS(Tab_Uderor[R$],Tab_Uderor[Competencia],Entrada!AM$7,Tab_Uderor[TipoReceita],Entrada!$P9) -> 315089.58 | AN9: 988089.36 | AO9: 1041075.72 | AP9: 991184.98 | AQ9: 993950.54 | AR9: 950102.67 | AS9: 853790.48 | AT9: 1054595.62 | AU9: 862411.36 | AV9: 865640.23 | AW9: 873349.82 | AX9: 943444.76 | AY9: 449995.38 | AZ9: 1403764.15
D10: 44333 | F10: (4) Bens Totalmente Depreciados | G10: =G76*VLOOKUP(DATE(YEAR(CAPA!$C$10),MONTH(CAPA!$C$10)-1,1),Índices!$B$135:$D$638,3,0)/VLOOKUP(DATE(YEAR($G$72),MONTH($G$72)-1,1),Índices!$B$135:$D$638,3,0) -> 1632791381 | J10: BMP - 610530502; 610550502; 610532502; 610552502 | K10: Encargos | L10: =SUMIFS(Tab_RIT_BMP[SALDO],Tab_RIT_BMP[CONTA],610530502,Tab_RIT_BMP[ANO],$L$7)+SUMIFS(Tab_RIT_BMP[SALDO],Tab_RIT_BMP[CONTA],610550502,Tab_RIT_BMP[ANO],$L$7)+ SUMIFS(Tab_RIT_BMP[SALDO],Tab_RIT_BMP[CONTA],610532502,Tab_RIT_BMP[ANO],$L$7)+SUMIFS(Tab_RIT_BMP[SALDO],Tab_RIT_BMP[CONTA],610552502,Tab_RIT_BMP[ANO],$L$7) -> 47116969.93 | M10: =SUMIFS(Tab_RIT_BMP[SALDO],Tab_RIT_BMP[CONTA],610530502,Tab_RIT_BMP[ANO],$M$7)+SUMIFS(Tab_RIT_BMP[SALDO],Tab_RIT_BMP[CONTA],610550502,Tab_RIT_BMP[ANO],$M$7)+ SUMIFS(Tab_RIT_BMP[SALDO],Tab_RIT_BMP[CONTA],610532502,Tab_RIT_BMP[ANO],$M$7)+SUMIFS(Tab_RIT_BMP[SALDO],Tab_RIT_BMP[CONTA],610552502,Tab_RIT_BMP[ANO],$M$7) -> 49909497.07 | P10: Arrecadação de faturas de terceiros por estrutura própria | Q10: =SUMIFS(Tab_Uderor[R$],Tab_Uderor[Competencia],Entrada!Q$7,Tab_Uderor[TipoReceita],Entrada!$P10) -> 0 | R10: =SUMIFS(Tab_Uderor[R$],Tab_Uderor[Competencia],Entrada!R$7,Tab_Uderor[TipoReceita],Entrada!$P10) -> 0 | S10: =SUMIFS(Tab_Uderor[R$],Tab_Uderor[Competencia],Entrada!S$7,Tab_Uderor[TipoReceita],Entrada!$P10) -> 0 | T10: =SUMIFS(Tab_Uderor[R$],Tab_Uderor[Competencia],Entrada!T$7,Tab_Uderor[TipoReceita],Entrada!$P10) -> 0 | U10: =SUMIFS(Tab_Uderor[R$],Tab_Uderor[Competencia],Entrada!U$7,Tab_Uderor[TipoReceita],Entrada!$P10) -> 0 | V10: =SUMIFS(Tab_Uderor[R$],Tab_Uderor[Competencia],Entrada!V$7,Tab_Uderor[TipoReceita],Entrada!$P10) -> 0 | W10: =SUMIFS(Tab_Uderor[R$],Tab_Uderor[Competencia],Entrada!W$7,Tab_Uderor[TipoReceita],Entrada!$P10) -> 0 | X10: =SUMIFS(Tab_Uderor[R$],Tab_Uderor[Competencia],Entrada!X$7,Tab_Uderor[TipoReceita],Entrada!$P10) -> 0 | Y10: =SUMIFS(Tab_Uderor[R$],Tab_Uderor[Competencia],Entrada!Y$7,Tab_Uderor[TipoReceita],Entrada!$P10) -> 0 | Z10: =SUMIFS(Tab_Uderor[R$],Tab_Uderor[Competencia],Entrada!Z$7,Tab_Uderor[TipoReceita],Entrada!$P10) -> 0 | AA10: =SUMIFS(Tab_Uderor[R$],Tab_Uderor[Competencia],Entrada!AA$7,Tab_Uderor[TipoReceita],Entrada!$P10) -> 0 | AB10: =SUMIFS(Tab_Uderor[R$],Tab_Uderor[Competencia],Entrada!AB$7,Tab_Uderor[TipoReceita],Entrada!$P10) -> 0 | AC10: =SUMIFS(Tab_Uderor[R$],Tab_Uderor[Competencia],Entrada!AC$7,Tab_Uderor[TipoReceita],Entrada!$P10) -> 0 | AD10: =SUMIFS(Tab_Uderor[R$],Tab_Uderor[Competencia],Entrada!AD$7,Tab_Uderor[TipoReceita],Entrada!$P10) -> 0 | AE10: =SUMIFS(Tab_Uderor[R$],Tab_Uderor[Competencia],Entrada!AE$7,Tab_Uderor[TipoReceita],Entrada!$P10) -> 0 | AF10: =SUMIFS(Tab_Uderor[R$],Tab_Uderor[Competencia],Entrada!AF$7,Tab_Uderor[TipoReceita],Entrada!$P10) -> 0 | AG10: =SUMIFS(Tab_Uderor[R$],Tab_Uderor[Competencia],Entrada!AG$7,Tab_Uderor[TipoReceita],Entrada!$P10) -> 0 | AH10: =SUMIFS(Tab_Uderor[R$],Tab_Uderor[Competencia],Entrada!AH$7,Tab_Uderor[TipoReceita],Entrada!$P10) -> 0 | AI10: =SUMIFS(Tab_Uderor[R$],Tab_Uderor[Competencia],Entrada!AI$7,Tab_Uderor[TipoReceita],Entrada!$P10) -> 0 | AJ10: =SUMIFS(Tab_Uderor[R$],Tab_Uderor[Competencia],Entrada!AJ$7,Tab_Uderor[TipoReceita],Entrada!$P10) -> 0 | AK10: =SUMIFS(Tab_Uderor[R$],Tab_Uderor[Competencia],Entrada!AK$7,Tab_Uderor[TipoReceita],Entrada!$P10) -> 0 | AL10: =SUMIFS(Tab_Uderor[R$],Tab_Uderor[Competencia],Entrada!AL$7,Tab_Uderor[TipoReceita],Entrada!$P10) -> 0 | AM10: =SUMIFS(Tab_Uderor[R$],Tab_Uderor[Competencia],Entrada!AM$7,Tab_Uderor[TipoReceita],Entrada!$P10) -> 0
F11: (5) Base de Remuneração Bruta = (1)-(2)-(3)-(4) | G11: =G7-G8-G9-G10 -> 8978864595 | J11: BMP - 610530503; 610550503; 610532503; 610552503 | K11: Previdência Privada - Corrente | L11: =SUMIFS(Tab_RIT_BMP[SALDO],Tab_RIT_BMP[CONTA],610530503,Tab_RIT_BMP[ANO],$L$7)+SUMIFS(Tab_RIT_BMP[SALDO],Tab_RIT_BMP[CONTA],610550503,Tab_RIT_BMP[ANO],$L$7)+ SUMIFS(Tab_RIT_BMP[SALDO],Tab_RIT_BMP[CONTA],610532503,Tab_RIT_BMP[ANO],$L$7)+SUMIFS(Tab_RIT_BMP[SALDO],Tab_RIT_BMP[CONTA],610552503,Tab_RIT_BMP[ANO],$L$7) -> 4508988.22 | M11: =SUMIFS(Tab_RIT_BMP[SALDO],Tab_RIT_BMP[CONTA],610530503,Tab_RIT_BMP[ANO],$M$7)+SUMIFS(Tab_RIT_BMP[SALDO],Tab_RIT_BMP[CONTA],610550503,Tab_RIT_BMP[ANO],$M$7)+ SUMIFS(Tab_RIT_BMP[SALDO],Tab_RIT_BMP[CONTA],610532503,Tab_RIT_BMP[ANO],$M$7)+SUMIFS(Tab_RIT_BMP[SALDO],Tab_RIT_BMP[CONTA],610552503,Tab_RIT_BMP[ANO],$M$7) -> 4281596.94 | P11: Veiculação de publicidade | Q11: =SUMIFS(Tab_Uderor[R$],Tab_Uderor[Competencia],Entrada!Q$7,Tab_Uderor[TipoReceita],Entrada!$P11) -> 0 | R11: =SUMIFS(Tab_Uderor[R$],Tab_Uderor[Competencia],Entrada!R$7,Tab_Uderor[TipoReceita],Entrada!$P11) -> 0 | S11: =SUMIFS(Tab_Uderor[R$],Tab_Uderor[Competencia],Entrada!S$7,Tab_Uderor[TipoReceita],Entrada!$P11) -> 0 | T11: =SUMIFS(Tab_Uderor[R$],Tab_Uderor[Competencia],Entrada!T$7,Tab_Uderor[TipoReceita],Entrada!$P11) -> 0 | U11: =SUMIFS(Tab_Uderor[R$],Tab_Uderor[Competencia],Entrada!U$7,Tab_Uderor[TipoReceita],Entrada!$P11) -> 0 | V11: =SUMIFS(Tab_Uderor[R$],Tab_Uderor[Competencia],Entrada!V$7,Tab_Uderor[TipoReceita],Entrada!$P11) -> 0 | W11: =SUMIFS(Tab_Uderor[R$],Tab_Uderor[Competencia],Entrada!W$7,Tab_Uderor[TipoReceita],Entrada!$P11) -> 0 | X11: =SUMIFS(Tab_Uderor[R$],Tab_Uderor[Competencia],Entrada!X$7,Tab_Uderor[TipoReceita],Entrada!$P11) -> 0 | Y11: =SUMIFS(Tab_Uderor[R$],Tab_Uderor[Competencia],Entrada!Y$7,Tab_Uderor[TipoReceita],Entrada!$P11) -> 0 | Z11: =SUMIFS(Tab_Uderor[R$],Tab_Uderor[Competencia],Entrada!Z$7,Tab_Uderor[TipoReceita],Entrada!$P11) -> 0 | AA11: =SUMIFS(Tab_Uderor[R$],Tab_Uderor[Competencia],Entrada!AA$7,Tab_Uderor[TipoReceita],Entrada!$P11) -> 0 | AB11: =SUMIFS(Tab_Uderor[R$],Tab_Uderor[Competencia],Entrada!AB$7,Tab_Uderor[TipoReceita],Entrada!$P11) -> 0 | AC11: =SUMIFS(Tab_Uderor[R$],Tab_Uderor[Competencia],Entrada!AC$7,Tab_Uderor[TipoReceita],Entrada!$P11) -> 0 | AD11: =SUMIFS(Tab_Uderor[R$],Tab_Uderor[Competencia],Entrada!AD$7,Tab_Uderor[TipoReceita],Entrada!$P11) -> 0 | AE11: =SUMIFS(Tab_Uderor[R$],Tab_Uderor[Competencia],Entrada!AE$7,Tab_Uderor[TipoReceita],Entrada!$P11) -> 0 | AF11: =SUMIFS(Tab_Uderor[R$],Tab_Uderor[Competencia],Entrada!AF$7,Tab_Uderor[TipoReceita],Entrada!$P11) -> 0 | AG11: =SUMIFS(Tab_Uderor[R$],Tab_Uderor[Competencia],Entrada!AG$7,Tab_Uderor[TipoReceita],Entrada!$P11) -> 0 | AH11: =SUMIFS(Tab_Uderor[R$],Tab_Uderor[Competencia],Entrada!AH$7,Tab_Uderor[TipoReceita],Entrada!$P11) -> 0 | AI11: =SUMIFS(Tab_Uderor[R$],Tab_Uderor[Competencia],Entrada!AI$7,Tab_Uderor[TipoReceita],Entrada!$P11) -> 0 | AJ11: =SUMIFS(Tab_Uderor[R$],Tab_Uderor[Competencia],Entrada!AJ$7,Tab_Uderor[TipoReceita],Entrada!$P11) -> 0 | AK11: =SUMIFS(Tab_Uderor[R$],Tab_Uderor[Competencia],Entrada!AK$7,Tab_Uderor[TipoReceita],Entrada!$P11) -> 0 | AL11: =SUMIFS(Tab_Uderor[R$],Tab_Uderor[Competencia],Entrada!AL$7,Tab_Uderor[TipoReceita],Entrada!$P11) -> 0 | AM11: =SUMIFS(Tab_Uderor[R$],Tab_Uderor[Competencia],Entrada!AM$7,Tab_Uderor[TipoReceita],Entrada!$P11) -> 0
F12: (6) Depreciação Acumulada | G12: =G78*VLOOKUP(DATE(YEAR(CAPA!$C$10),MONTH(CAPA!$C$10)-1,1),Índices!$B$135:$D$638,3,0)/VLOOKUP(DATE(YEAR($G$72),MONTH($G$72)-1,1),Índices!$B$135:$D$638,3,0) -> 6091577126 | J12: BMP - 610530508; 610550508; 610532508; 610552508 | K12: Outros Benefícios | L12: =SUMIFS(Tab_RIT_BMP[SALDO],Tab_RIT_BMP[CONTA],610530508,Tab_RIT_BMP[ANO],$L$7)+SUMIFS(Tab_RIT_BMP[SALDO],Tab_RIT_BMP[CONTA],610550508,Tab_RIT_BMP[ANO],$L$7)+ SUMIFS(Tab_RIT_BMP[SALDO],Tab_RIT_BMP[CONTA],610532508,Tab_RIT_BMP[ANO],$L$7)+SUMIFS(Tab_RIT_BMP[SALDO],Tab_RIT_BMP[CONTA],610552508,Tab_RIT_BMP[ANO],$L$7) -> 49515092.07 | M12: =SUMIFS(Tab_RIT_BMP[SALDO],Tab_RIT_BMP[CONTA],610530508,Tab_RIT_BMP[ANO],$M$7)+SUMIFS(Tab_RIT_BMP[SALDO],Tab_RIT_BMP[CONTA],610550508,Tab_RIT_BMP[ANO],$M$7)+ SUMIFS(Tab_RIT_BMP[SALDO],Tab_RIT_BMP[CONTA],610532508,Tab_RIT_BMP[ANO],$M$7)+SUMIFS(Tab_RIT_BMP[SALDO],Tab_RIT_BMP[CONTA],610552508,Tab_RIT_BMP[ANO],$M$7) -> 51507420.16 | P12: Aluguel ou cessão onerosa de imóveis e espaços físicos | Q12: =SUMIFS(Tab_Uderor[R$],Tab_Uderor[Competencia],Entrada!Q$7,Tab_Uderor[TipoReceita],Entrada!$P12) -> 0 | R12: =SUMIFS(Tab_Uderor[R$],Tab_Uderor[Competencia],Entrada!R$7,Tab_Uderor[TipoReceita],Entrada!$P12) -> 0 | S12: =SUMIFS(Tab_Uderor[R$],Tab_Uderor[Competencia],Entrada!S$7,Tab_Uderor[TipoReceita],Entrada!$P12) -> 0 | T12: =SUMIFS(Tab_Uderor[R$],Tab_Uderor[Competencia],Entrada!T$7,Tab_Uderor[TipoReceita],Entrada!$P12) -> 0 | U12: =SUMIFS(Tab_Uderor[R$],Tab_Uderor[Competencia],Entrada!U$7,Tab_Uderor[TipoReceita],Entrada!$P12) -> 0 | V12: =SUMIFS(Tab_Uderor[R$],Tab_Uderor[Competencia],Entrada!V$7,Tab_Uderor[TipoReceita],Entrada!$P12) -> 0 | W12: =SUMIFS(Tab_Uderor[R$],Tab_Uderor[Competencia],Entrada!W$7,Tab_Uderor[TipoReceita],Entrada!$P12) -> 0 | X12: =SUMIFS(Tab_Uderor[R$],Tab_Uderor[Competencia],Entrada!X$7,Tab_Uderor[TipoReceita],Entrada!$P12) -> 0 | Y12: =SUMIFS(Tab_Uderor[R$],Tab_Uderor[Competencia],Entrada!Y$7,Tab_Uderor[TipoReceita],Entrada!$P12) -> 0 | Z12: =SUMIFS(Tab_Uderor[R$],Tab_Uderor[Competencia],Entrada!Z$7,Tab_Uderor[TipoReceita],Entrada!$P12) -> 0 | AA12: =SUMIFS(Tab_Uderor[R$],Tab_Uderor[Competencia],Entrada!AA$7,Tab_Uderor[TipoReceita],Entrada!$P12) -> 0 | AB12: =SUMIFS(Tab_Uderor[R$],Tab_Uderor[Competencia],Entrada!AB$7,Tab_Uderor[TipoReceita],Entrada!$P12) -> 0 | AC12: =SUMIFS(Tab_Uderor[R$],Tab_Uderor[Competencia],Entrada!AC$7,Tab_Uderor[TipoReceita],Entrada!$P12) -> 0 | AD12: =SUMIFS(Tab_Uderor[R$],Tab_Uderor[Competencia],Entrada!AD$7,Tab_Uderor[TipoReceita],Entrada!$P12) -> 0 | AE12: =SUMIFS(Tab_Uderor[R$],Tab_Uderor[Competencia],Entrada!AE$7,Tab_Uderor[TipoReceita],Entrada!$P12) -> 0 | AF12: =SUMIFS(Tab_Uderor[R$],Tab_Uderor[Competencia],Entrada!AF$7,Tab_Uderor[TipoReceita],Entrada!$P12) -> 0 | AG12: =SUMIFS(Tab_Uderor[R$],Tab_Uderor[Competencia],Entrada!AG$7,Tab_Uderor[TipoReceita],Entrada!$P12) -> 0 | AH12: =SUMIFS(Tab_Uderor[R$],Tab_Uderor[Competencia],Entrada!AH$7,Tab_Uderor[TipoReceita],Entrada!$P12) -> 0 | AI12: =SUMIFS(Tab_Uderor[R$],Tab_Uderor[Competencia],Entrada!AI$7,Tab_Uderor[TipoReceita],Entrada!$P12) -> 0 | AJ12: =SUMIFS(Tab_Uderor[R$],Tab_Uderor[Competencia],Entrada!AJ$7,Tab_Uderor[TipoReceita],Entrada!$P12) -> 0 | AK12: =SUMIFS(Tab_Uderor[R$],Tab_Uderor[Competencia],Entrada!AK$7,Tab_Uderor[TipoReceita],Entrada!$P12) -> 0 | AL12: =SUMIFS(Tab_Uderor[R$],Tab_Uderor[Competencia],Entrada!AL$7,Tab_Uderor[TipoReceita],Entrada!$P12) -> 0 | AM12: =SUMIFS(Tab_Uderor[R$],Tab_Uderor[Competencia],Entrada!AM$7,Tab_Uderor[TipoReceita],Entrada!$P12) -> 0
F13: (7) AIS Líquido (Valor de Mercado em Uso) | G13: =G7-G12 -> 8416340601 | J13: BMP - 610530506; 610550506; 610532506; 610552506 | K13: Despesas Rescisórias | L13: =SUMIFS(Tab_RIT_BMP[SALDO],Tab_RIT_BMP[CONTA],610530506,Tab_RIT_BMP[ANO],$L$7)+SUMIFS(Tab_RIT_BMP[SALDO],Tab_RIT_BMP[CONTA],610550506,Tab_RIT_BMP[ANO],$L$7)+ SUMIFS(Tab_RIT_BMP[SALDO],Tab_RIT_BMP[CONTA],610532506,Tab_RIT_BMP[ANO],$L$7)+SUMIFS(Tab_RIT_BMP[SALDO],Tab_RIT_BMP[CONTA],610552506,Tab_RIT_BMP[ANO],$L$7) -> 0 | M13: =SUMIFS(Tab_RIT_BMP[SALDO],Tab_RIT_BMP[CONTA],610530506,Tab_RIT_BMP[ANO],$M$7)+SUMIFS(Tab_RIT_BMP[SALDO],Tab_RIT_BMP[CONTA],610550506,Tab_RIT_BMP[ANO],$M$7)+ SUMIFS(Tab_RIT_BMP[SALDO],Tab_RIT_BMP[CONTA],610532506,Tab_RIT_BMP[ANO],$M$7)+SUMIFS(Tab_RIT_BMP[SALDO],Tab_RIT_BMP[CONTA],610552506,Tab_RIT_BMP[ANO],$M$7) -> 0 | P13: Compartilhamento de infraestrutura | Q13: =SUMIFS(Tab_Uderor[R$],Tab_Uderor[Competencia],Entrada!Q$7,Tab_Uderor[TipoReceita],Entrada!$P13) -> 4460286.4 | R13: =SUMIFS(Tab_Uderor[R$],Tab_Uderor[Competencia],Entrada!R$7,Tab_Uderor[TipoReceita],Entrada!$P13) -> 3885173.84 | S13: =SUMIFS(Tab_Uderor[R$],Tab_Uderor[Competencia],Entrada!S$7,Tab_Uderor[TipoReceita],Entrada!$P13) -> 3361089.34 | T13: =SUMIFS(Tab_Uderor[R$],Tab_Uderor[Competencia],Entrada!T$7,Tab_Uderor[TipoReceita],Entrada!$P13) -> 3606876.5 | U13: =SUMIFS(Tab_Uderor[R$],Tab_Uderor[Competencia],Entrada!U$7,Tab_Uderor[TipoReceita],Entrada!$P13) -> 3696663.23 | V13: =SUMIFS(Tab_Uderor[R$],Tab_Uderor[Competencia],Entrada!V$7,Tab_Uderor[TipoReceita],Entrada!$P13) -> 3763072.92 | W13: =SUMIFS(Tab_Uderor[R$],Tab_Uderor[Competencia],Entrada!W$7,Tab_Uderor[TipoReceita],Entrada!$P13) -> 3616013.64 | X13: =SUMIFS(Tab_Uderor[R$],Tab_Uderor[Competencia],Entrada!X$7,Tab_Uderor[TipoReceita],Entrada!$P13) -> 3711335.5 | Y13: =SUMIFS(Tab_Uderor[R$],Tab_Uderor[Competencia],Entrada!Y$7,Tab_Uderor[TipoReceita],Entrada!$P13) -> 3256830.73 | Z13: =SUMIFS(Tab_Uderor[R$],Tab_Uderor[Competencia],Entrada!Z$7,Tab_Uderor[TipoReceita],Entrada!$P13) -> 3145945.86 | AA13: =SUMIFS(Tab_Uderor[R$],Tab_Uderor[Competencia],Entrada!AA$7,Tab_Uderor[TipoReceita],Entrada!$P13) -> 3082639.63 | AB13: =SUMIFS(Tab_Uderor[R$],Tab_Uderor[Competencia],Entrada!AB$7,Tab_Uderor[TipoReceita],Entrada!$P13) -> 3061017.79 | AC13: =SUMIFS(Tab_Uderor[R$],Tab_Uderor[Competencia],Entrada!AC$7,Tab_Uderor[TipoReceita],Entrada!$P13) -> 3019184.79 | AD13: =SUMIFS(Tab_Uderor[R$],Tab_Uderor[Competencia],Entrada!AD$7,Tab_Uderor[TipoReceita],Entrada!$P13) -> 903948.36 | AE13: =SUMIFS(Tab_Uderor[R$],Tab_Uderor[Competencia],Entrada!AE$7,Tab_Uderor[TipoReceita],Entrada!$P13) -> 13063125.43 | AF13: =SUMIFS(Tab_Uderor[R$],Tab_Uderor[Competencia],Entrada!AF$7,Tab_Uderor[TipoReceita],Entrada!$P13) -> 2811238.49 | AG13: =SUMIFS(Tab_Uderor[R$],Tab_Uderor[Competencia],Entrada!AG$7,Tab_Uderor[TipoReceita],Entrada!$P13) -> -237375.82 | AH13: =SUMIFS(Tab_Uderor[R$],Tab_Uderor[Competencia],Entrada!AH$7,Tab_Uderor[TipoReceita],Entrada!$P13) -> 1668976.15 | AI13: =SUMIFS(Tab_Uderor[R$],Tab_Uderor[Competencia],Entrada!AI$7,Tab_Uderor[TipoReceita],Entrada!$P13) -> 3049457.83 | AJ13: =SUMIFS(Tab_Uderor[R$],Tab_Uderor[Competencia],Entrada!AJ$7,Tab_Uderor[TipoReceita],Entrada!$P13) -> 2520302.09 | AK13: =SUMIFS(Tab_Uderor[R$],Tab_Uderor[Competencia],Entrada!AK$7,Tab_Uderor[TipoReceita],Entrada!$P13) -> 2589865.54 | AL13: =SUMIFS(Tab_Uderor[R$],Tab_Uderor[Competencia],Entrada!AL$7,Tab_Uderor[TipoReceita],Entrada!$P13) -> -1710869.98 | AM13: =SUMIFS(Tab_Uderor[R$],Tab_Uderor[Competencia],Entrada!AM$7,Tab_Uderor[TipoReceita],Entrada!$P13) -> 2350246.7 | AN13: 2043961.93 | AO13: 1990567.67 | AP13: 1778332.97 | AQ13: 1757840.66 | AR13: 1749532.57 | AS13: 1741059.84 | AT13: 1735678.92 | AU13: 2471624.91 | AV13: 1547300.39 | AW13: 2353985.03 | AX13: 2287852.99 | AY13: 2305379.04 | AZ13: 2272698.59
F14: (8) Índice de Aproveitamento Depreciado | G14: =G80*VLOOKUP(DATE(YEAR(CAPA!$C$10),MONTH(CAPA!$C$10)-1,1),Índices!$B$135:$D$638,3,0)/VLOOKUP(DATE(YEAR($G$72),MONTH($G$72)-1,1),Índices!$B$135:$D$638,3,0) -> 13661573.29 | J14: BMP - 610530507; 610550507; 610532507; 610552507 | K14: Participação nos Lucros e Resultados - PLR | L14: =SUMIFS(Tab_RIT_BMP[SALDO],Tab_RIT_BMP[CONTA],610530507,Tab_RIT_BMP[ANO],$L$7)+SUMIFS(Tab_RIT_BMP[SALDO],Tab_RIT_BMP[CONTA],610550507,Tab_RIT_BMP[ANO],$L$7)+SUMIFS(Tab_RIT_BMP[SALDO],Tab_RIT_BMP[CONTA],610532507,Tab_RIT_BMP[ANO],$L$7)+SUMIFS(Tab_RIT_BMP[SALDO],Tab_RIT_BMP[CONTA],610552507,Tab_RIT_BMP[ANO],$L$7) -> 18144567.09 | M14: =SUMIFS(Tab_RIT_BMP[SALDO],Tab_RIT_BMP[CONTA],610530507,Tab_RIT_BMP[ANO],$M$7)+SUMIFS(Tab_RIT_BMP[SALDO],Tab_RIT_BMP[CONTA],610550507,Tab_RIT_BMP[ANO],$M$7)+ SUMIFS(Tab_RIT_BMP[SALDO],Tab_RIT_BMP[CONTA],610532507,Tab_RIT_BMP[ANO],$M$7)+SUMIFS(Tab_RIT_BMP[SALDO],Tab_RIT_BMP[CONTA],610552507,Tab_RIT_BMP[ANO],$M$7) -> 14855216.67 | P14: Serviços de avaliação técnica e aferição de medidores. | Q14: =SUMIFS(Tab_Uderor[R$],Tab_Uderor[Competencia],Entrada!Q$7,Tab_Uderor[TipoReceita],Entrada!$P14) -> 0 | R14: =SUMIFS(Tab_Uderor[R$],Tab_Uderor[Competencia],Entrada!R$7,Tab_Uderor[TipoReceita],Entrada!$P14) -> 0 | S14: =SUMIFS(Tab_Uderor[R$],Tab_Uderor[Competencia],Entrada!S$7,Tab_Uderor[TipoReceita],Entrada!$P14) -> 0 | T14: =SUMIFS(Tab_Uderor[R$],Tab_Uderor[Competencia],Entrada!T$7,Tab_Uderor[TipoReceita],Entrada!$P14) -> 0 | U14: =SUMIFS(Tab_Uderor[R$],Tab_Uderor[Competencia],Entrada!U$7,Tab_Uderor[TipoReceita],Entrada!$P14) -> 0 | V14: =SUMIFS(Tab_Uderor[R$],Tab_Uderor[Competencia],Entrada!V$7,Tab_Uderor[TipoReceita],Entrada!$P14) -> 0 | W14: =SUMIFS(Tab_Uderor[R$],Tab_Uderor[Competencia],Entrada!W$7,Tab_Uderor[TipoReceita],Entrada!$P14) -> 0 | X14: =SUMIFS(Tab_Uderor[R$],Tab_Uderor[Competencia],Entrada!X$7,Tab_Uderor[TipoReceita],Entrada!$P14) -> 0 | Y14: =SUMIFS(Tab_Uderor[R$],Tab_Uderor[Competencia],Entrada!Y$7,Tab_Uderor[TipoReceita],Entrada!$P14) -> 0 | Z14: =SUMIFS(Tab_Uderor[R$],Tab_Uderor[Competencia],Entrada!Z$7,Tab_Uderor[TipoReceita],Entrada!$P14) -> 0 | AA14: =SUMIFS(Tab_Uderor[R$],Tab_Uderor[Competencia],Entrada!AA$7,Tab_Uderor[TipoReceita],Entrada!$P14) -> 0 | AB14: =SUMIFS(Tab_Uderor[R$],Tab_Uderor[Competencia],Entrada!AB$7,Tab_Uderor[TipoReceita],Entrada!$P14) -> 0 | AC14: =SUMIFS(Tab_Uderor[R$],Tab_Uderor[Competencia],Entrada!AC$7,Tab_Uderor[TipoReceita],Entrada!$P14) -> 0 | AD14: =SUMIFS(Tab_Uderor[R$],Tab_Uderor[Competencia],Entrada!AD$7,Tab_Uderor[TipoReceita],Entrada!$P14) -> 0 | AE14: =SUMIFS(Tab_Uderor[R$],Tab_Uderor[Competencia],Entrada!AE$7,Tab_Uderor[TipoReceita],Entrada!$P14) -> 0 | AF14: =SUMIFS(Tab_Uderor[R$],Tab_Uderor[Competencia],Entrada!AF$7,Tab_Uderor[TipoReceita],Entrada!$P14) -> 0 | AG14: =SUMIFS(Tab_Uderor[R$],Tab_Uderor[Competencia],Entrada!AG$7,Tab_Uderor[TipoReceita],Entrada!$P14) -> 0 | AH14: =SUMIFS(Tab_Uderor[R$],Tab_Uderor[Competencia],Entrada!AH$7,Tab_Uderor[TipoReceita],Entrada!$P14) -> 0 | AI14: =SUMIFS(Tab_Uderor[R$],Tab_Uderor[Competencia],Entrada!AI$7,Tab_Uderor[TipoReceita],Entrada!$P14) -> 0 | AJ14: =SUMIFS(Tab_Uderor[R$],Tab_Uderor[Competencia],Entrada!AJ$7,Tab_Uderor[TipoReceita],Entrada!$P14) -> 0 | AK14: =SUMIFS(Tab_Uderor[R$],Tab_Uderor[Competencia],Entrada!AK$7,Tab_Uderor[TipoReceita],Entrada!$P14) -> 0 | AL14: =SUMIFS(Tab_Uderor[R$],Tab_Uderor[Competencia],Entrada!AL$7,Tab_Uderor[TipoReceita],Entrada!$P14) -> 0 | AM14: =SUMIFS(Tab_Uderor[R$],Tab_Uderor[Competencia],Entrada!AM$7,Tab_Uderor[TipoReceita],Entrada!$P14) -> 0 | AN14: =SUMIFS(Tab_Uderor[R$],Tab_Uderor[Competencia],Entrada!AN$7,Tab_Uderor[TipoReceita],Entrada!$P14) -> 0 | AO14: =SUMIFS(Tab_Uderor[R$],Tab_Uderor[Competencia],Entrada!AO$7,Tab_Uderor[TipoReceita],Entrada!$P14) -> 0 | AP14: =SUMIFS(Tab_Uderor[R$],Tab_Uderor[Competencia],Entrada!AP$7,Tab_Uderor[TipoReceita],Entrada!$P14) -> 0 | AQ14: =SUMIFS(Tab_Uderor[R$],Tab_Uderor[Competencia],Entrada!AQ$7,Tab_Uderor[TipoReceita],Entrada!$P14) -> 0 | AR14: =SUMIFS(Tab_Uderor[R$],Tab_Uderor[Competencia],Entrada!AR$7,Tab_Uderor[TipoReceita],Entrada!$P14) -> 0 | AS14: =SUMIFS(Tab_Uderor[R$],Tab_Uderor[Competencia],Entrada!AS$7,Tab_Uderor[TipoReceita],Entrada!$P14) -> 0 | AT14: =SUMIFS(Tab_Uderor[R$],Tab_Uderor[Competencia],Entrada!AT$7,Tab_Uderor[TipoReceita],Entrada!$P14) -> 0 | AU14: =SUMIFS(Tab_Uderor[R$],Tab_Uderor[Competencia],Entrada!AU$7,Tab_Uderor[TipoReceita],Entrada!$P14) -> 0 | AV14: =SUMIFS(Tab_Uderor[R$],Tab_Uderor[Competencia],Entrada!AV$7,Tab_Uderor[TipoReceita],Entrada!$P14) -> 0 | AW14: =SUMIFS(Tab_Uderor[R$],Tab_Uderor[Competencia],Entrada!AW$7,Tab_Uderor[TipoReceita],Entrada!$P14) -> 0 | AX14: =SUMIFS(Tab_Uderor[R$],Tab_Uderor[Competencia],Entrada!AX$7,Tab_Uderor[TipoReceita],Entrada!$P14) -> 0 | AY14: =SUMIFS(Tab_Uderor[R$],Tab_Uderor[Competencia],Entrada!AY$7,Tab_Uderor[TipoReceita],Entrada!$P14) -> 0 | AZ14: =SUMIFS(Tab_Uderor[R$],Tab_Uderor[Competencia],Entrada!AZ$7,Tab_Uderor[TipoReceita],Entrada!$P14) -> 0
F15: (9) Valor da Base de Remuneração (VBR) | G15: =G13-G14 -> 8402679028 | J15: BMP - 610530599; 610550599; 610532599; 610552599 | K15: Outros | L15: =SUMIFS(Tab_RIT_BMP[SALDO],Tab_RIT_BMP[CONTA],610530599,Tab_RIT_BMP[ANO],$L$7)+SUMIFS(Tab_RIT_BMP[SALDO],Tab_RIT_BMP[CONTA],610550599,Tab_RIT_BMP[ANO],$L$7)+ SUMIFS(Tab_RIT_BMP[SALDO],Tab_RIT_BMP[CONTA],610532599,Tab_RIT_BMP[ANO],$L$7)+SUMIFS(Tab_RIT_BMP[SALDO],Tab_RIT_BMP[CONTA],610552599,Tab_RIT_BMP[ANO],$L$7) -> 2724089.1 | M15: =SUMIFS(Tab_RIT_BMP[SALDO],Tab_RIT_BMP[CONTA],610530599,Tab_RIT_BMP[ANO],$M$7)+SUMIFS(Tab_RIT_BMP[SALDO],Tab_RIT_BMP[CONTA],610550599,Tab_RIT_BMP[ANO],$M$7)+ SUMIFS(Tab_RIT_BMP[SALDO],Tab_RIT_BMP[CONTA],610532599,Tab_RIT_BMP[ANO],$M$7)+SUMIFS(Tab_RIT_BMP[SALDO],Tab_RIT_BMP[CONTA],610552599,Tab_RIT_BMP[ANO],$M$7) -> 2330528.45 | P15: Operacionalização de serviço de créditos tributários | Q15: =SUMIFS(Tab_Uderor[R$],Tab_Uderor[Competencia],Entrada!Q$7,Tab_Uderor[TipoReceita],Entrada!$P15) -> 0 | R15: =SUMIFS(Tab_Uderor[R$],Tab_Uderor[Competencia],Entrada!R$7,Tab_Uderor[TipoReceita],Entrada!$P15) -> 0 | S15: =SUMIFS(Tab_Uderor[R$],Tab_Uderor[Competencia],Entrada!S$7,Tab_Uderor[TipoReceita],Entrada!$P15) -> 0 | T15: =SUMIFS(Tab_Uderor[R$],Tab_Uderor[Competencia],Entrada!T$7,Tab_Uderor[TipoReceita],Entrada!$P15) -> 0 | U15: =SUMIFS(Tab_Uderor[R$],Tab_Uderor[Competencia],Entrada!U$7,Tab_Uderor[TipoReceita],Entrada!$P15) -> 0 | V15: =SUMIFS(Tab_Uderor[R$],Tab_Uderor[Competencia],Entrada!V$7,Tab_Uderor[TipoReceita],Entrada!$P15) -> 0 | W15: =SUMIFS(Tab_Uderor[R$],Tab_Uderor[Competencia],Entrada!W$7,Tab_Uderor[TipoReceita],Entrada!$P15) -> 0 | X15: =SUMIFS(Tab_Uderor[R$],Tab_Uderor[Competencia],Entrada!X$7,Tab_Uderor[TipoReceita],Entrada!$P15) -> 0 | Y15: =SUMIFS(Tab_Uderor[R$],Tab_Uderor[Competencia],Entrada!Y$7,Tab_Uderor[TipoReceita],Entrada!$P15) -> 0 | Z15: =SUMIFS(Tab_Uderor[R$],Tab_Uderor[Competencia],Entrada!Z$7,Tab_Uderor[TipoReceita],Entrada!$P15) -> 0 | AA15: =SUMIFS(Tab_Uderor[R$],Tab_Uderor[Competencia],Entrada!AA$7,Tab_Uderor[TipoReceita],Entrada!$P15) -> 0 | AB15: =SUMIFS(Tab_Uderor[R$],Tab_Uderor[Competencia],Entrada!AB$7,Tab_Uderor[TipoReceita],Entrada!$P15) -> 0 | AC15: =SUMIFS(Tab_Uderor[R$],Tab_Uderor[Competencia],Entrada!AC$7,Tab_Uderor[TipoReceita],Entrada!$P15) -> 0 | AD15: =SUMIFS(Tab_Uderor[R$],Tab_Uderor[Competencia],Entrada!AD$7,Tab_Uderor[TipoReceita],Entrada!$P15) -> 0 | AE15: =SUMIFS(Tab_Uderor[R$],Tab_Uderor[Competencia],Entrada!AE$7,Tab_Uderor[TipoReceita],Entrada!$P15) -> 0 | AF15: =SUMIFS(Tab_Uderor[R$],Tab_Uderor[Competencia],Entrada!AF$7,Tab_Uderor[TipoReceita],Entrada!$P15) -> 0 | AG15: =SUMIFS(Tab_Uderor[R$],Tab_Uderor[Competencia],Entrada!AG$7,Tab_Uderor[TipoReceita],Entrada!$P15) -> 0 | AH15: =SUMIFS(Tab_Uderor[R$],Tab_Uderor[Competencia],Entrada!AH$7,Tab_Uderor[TipoReceita],Entrada!$P15) -> 0 | AI15: =SUMIFS(Tab_Uderor[R$],Tab_Uderor[Competencia],Entrada!AI$7,Tab_Uderor[TipoReceita],Entrada!$P15) -> 0 | AJ15: =SUMIFS(Tab_Uderor[R$],Tab_Uderor[Competencia],Entrada!AJ$7,Tab_Uderor[TipoReceita],Entrada!$P15) -> 0 | AK15: =SUMIFS(Tab_Uderor[R$],Tab_Uderor[Competencia],Entrada!AK$7,Tab_Uderor[TipoReceita],Entrada!$P15) -> 0 | AL15: =SUMIFS(Tab_Uderor[R$],Tab_Uderor[Competencia],Entrada!AL$7,Tab_Uderor[TipoReceita],Entrada!$P15) -> 0 | AM15: =SUMIFS(Tab_Uderor[R$],Tab_Uderor[Competencia],Entrada!AM$7,Tab_Uderor[TipoReceita],Entrada!$P15) -> 0 | AN15: =SUMIFS(Tab_Uderor[R$],Tab_Uderor[Competencia],Entrada!AN$7,Tab_Uderor[TipoReceita],Entrada!$P15) -> 0 | AO15: =SUMIFS(Tab_Uderor[R$],Tab_Uderor[Competencia],Entrada!AO$7,Tab_Uderor[TipoReceita],Entrada!$P15) -> 0 | AP15: =SUMIFS(Tab_Uderor[R$],Tab_Uderor[Competencia],Entrada!AP$7,Tab_Uderor[TipoReceita],Entrada!$P15) -> 0 | AQ15: =SUMIFS(Tab_Uderor[R$],Tab_Uderor[Competencia],Entrada!AQ$7,Tab_Uderor[TipoReceita],Entrada!$P15) -> 0 | AR15: =SUMIFS(Tab_Uderor[R$],Tab_Uderor[Competencia],Entrada!AR$7,Tab_Uderor[TipoReceita],Entrada!$P15) -> 0 | AS15: =SUMIFS(Tab_Uderor[R$],Tab_Uderor[Competencia],Entrada!AS$7,Tab_Uderor[TipoReceita],Entrada!$P15) -> 0 | AT15: =SUMIFS(Tab_Uderor[R$],Tab_Uderor[Competencia],Entrada!AT$7,Tab_Uderor[TipoReceita],Entrada!$P15) -> 0 | AU15: =SUMIFS(Tab_Uderor[R$],Tab_Uderor[Competencia],Entrada!AU$7,Tab_Uderor[TipoReceita],Entrada!$P15) -> 0 | AV15: =SUMIFS(Tab_Uderor[R$],Tab_Uderor[Competencia],Entrada!AV$7,Tab_Uderor[TipoReceita],Entrada!$P15) -> 0 | AW15: =SUMIFS(Tab_Uderor[R$],Tab_Uderor[Competencia],Entrada!AW$7,Tab_Uderor[TipoReceita],Entrada!$P15) -> 0 | AX15: =SUMIFS(Tab_Uderor[R$],Tab_Uderor[Competencia],Entrada!AX$7,Tab_Uderor[TipoReceita],Entrada!$P15) -> 0 | AY15: =SUMIFS(Tab_Uderor[R$],Tab_Uderor[Competencia],Entrada!AY$7,Tab_Uderor[TipoReceita],Entrada!$P15) -> 0 | AZ15: =SUMIFS(Tab_Uderor[R$],Tab_Uderor[Competencia],Entrada!AZ$7,Tab_Uderor[TipoReceita],Entrada!$P15) -> 0
F16: (10) Almoxarifado em Operação | G16: =G82*VLOOKUP(DATE(YEAR(CAPA!$C$10),MONTH(CAPA!$C$10)-1,1),Índices!$B$135:$D$638,3,0)/VLOOKUP(DATE(YEAR($G$72),MONTH($G$72)-1,1),Índices!$B$135:$D$638,3,0) -> 10987733.47 | J16: BMP - 610530510; 610550510; 610532510; 610552510 | K16: (-) Créditos de Tributos Recuperáveis | L16: =SUMIFS(Tab_RIT_BMP[SALDO],Tab_RIT_BMP[CONTA],610530510,Tab_RIT_BMP[ANO],$L$7)+SUMIFS(Tab_RIT_BMP[SALDO],Tab_RIT_BMP[CONTA],610550510,Tab_RIT_BMP[ANO],$L$7)+ SUMIFS(Tab_RIT_BMP[SALDO],Tab_RIT_BMP[CONTA],610532510,Tab_RIT_BMP[ANO],$L$7)+SUMIFS(Tab_RIT_BMP[SALDO],Tab_RIT_BMP[CONTA],610552510,Tab_RIT_BMP[ANO],$L$7) -> 0 | M16: =SUMIFS(Tab_RIT_BMP[SALDO],Tab_RIT_BMP[CONTA],610530510,Tab_RIT_BMP[ANO],$M$7)+SUMIFS(Tab_RIT_BMP[SALDO],Tab_RIT_BMP[CONTA],610550510,Tab_RIT_BMP[ANO],$M$7)+ SUMIFS(Tab_RIT_BMP[SALDO],Tab_RIT_BMP[CONTA],610532510,Tab_RIT_BMP[ANO],$M$7)+SUMIFS(Tab_RIT_BMP[SALDO],Tab_RIT_BMP[CONTA],610552510,Tab_RIT_BMP[ANO],$M$7) -> 0 | P16: Elaboração de projeto, construção, operação, manutenção ou reforma de:
F17: (11) Ativo Diferido | G17: =G83*VLOOKUP(DATE(YEAR(CAPA!$C$10),MONTH(CAPA!$C$10)-1,1),Índices!$B$135:$D$638,3,0)/VLOOKUP(DATE(YEAR($G$72),MONTH($G$72)-1,1),Índices!$B$135:$D$638,3,0) -> 0 | J17: BMP - 6105306; 6105506; 6105326; 6105526 | K17: Administradores | L17: =SUMIFS(Tab_RIT_BMP[SALDO],Tab_RIT_BMP[CONTA],6105306,Tab_RIT_BMP[ANO],$L$7)+SUMIFS(Tab_RIT_BMP[SALDO],Tab_RIT_BMP[CONTA],6105506,Tab_RIT_BMP[ANO],$L$7)+ SUMIFS(Tab_RIT_BMP[SALDO],Tab_RIT_BMP[CONTA],6105326,Tab_RIT_BMP[ANO],$L$7)+SUMIFS(Tab_RIT_BMP[SALDO],Tab_RIT_BMP[CONTA],6105526,Tab_RIT_BMP[ANO],$L$7) -> 8479721.39 | M17: =SUMIFS(Tab_RIT_BMP[SALDO],Tab_RIT_BMP[CONTA],6105306,Tab_RIT_BMP[ANO],$M$7)+SUMIFS(Tab_RIT_BMP[SALDO],Tab_RIT_BMP[CONTA],6105506,Tab_RIT_BMP[ANO],$M$7)+ SUMIFS(Tab_RIT_BMP[SALDO],Tab_RIT_BMP[CONTA],6105326,Tab_RIT_BMP[ANO],$M$7)+SUMIFS(Tab_RIT_BMP[SALDO],Tab_RIT_BMP[CONTA],6105526,Tab_RIT_BMP[ANO],$M$7) -> 10178366.74 | P17: (1) redes de distribuição de energia elétrica destinadas à regularização fundiária de interesse específico e ao atendimento dos empreendimentos de múltiplas unidades consumidoras; | Q17: =SUMIFS(Tab_Uderor[R$],Tab_Uderor[Competencia],Entrada!Q$7,Tab_Uderor[TipoReceita],Entrada!$P17) -> 0 | R17: =SUMIFS(Tab_Uderor[R$],Tab_Uderor[Competencia],Entrada!R$7,Tab_Uderor[TipoReceita],Entrada!$P17) -> 0 | S17: =SUMIFS(Tab_Uderor[R$],Tab_Uderor[Competencia],Entrada!S$7,Tab_Uderor[TipoReceita],Entrada!$P17) -> 0 | T17: =SUMIFS(Tab_Uderor[R$],Tab_Uderor[Competencia],Entrada!T$7,Tab_Uderor[TipoReceita],Entrada!$P17) -> 0 | U17: =SUMIFS(Tab_Uderor[R$],Tab_Uderor[Competencia],Entrada!U$7,Tab_Uderor[TipoReceita],Entrada!$P17) -> 0 | V17: =SUMIFS(Tab_Uderor[R$],Tab_Uderor[Competencia],Entrada!V$7,Tab_Uderor[TipoReceita],Entrada!$P17) -> 0 | W17: =SUMIFS(Tab_Uderor[R$],Tab_Uderor[Competencia],Entrada!W$7,Tab_Uderor[TipoReceita],Entrada!$P17) -> 0 | X17: =SUMIFS(Tab_Uderor[R$],Tab_Uderor[Competencia],Entrada!X$7,Tab_Uderor[TipoReceita],Entrada!$P17) -> 0 | Y17: =SUMIFS(Tab_Uderor[R$],Tab_Uderor[Competencia],Entrada!Y$7,Tab_Uderor[TipoReceita],Entrada!$P17) -> 0 | Z17: =SUMIFS(Tab_Uderor[R$],Tab_Uderor[Competencia],Entrada!Z$7,Tab_Uderor[TipoReceita],Entrada!$P17) -> 0 | AA17: =SUMIFS(Tab_Uderor[R$],Tab_Uderor[Competencia],Entrada!AA$7,Tab_Uderor[TipoReceita],Entrada!$P17) -> 0 | AB17: =SUMIFS(Tab_Uderor[R$],Tab_Uderor[Competencia],Entrada!AB$7,Tab_Uderor[TipoReceita],Entrada!$P17) -> 0 | AC17: =SUMIFS(Tab_Uderor[R$],Tab_Uderor[Competencia],Entrada!AC$7,Tab_Uderor[TipoReceita],Entrada!$P17) -> 0 | AD17: =SUMIFS(Tab_Uderor[R$],Tab_Uderor[Competencia],Entrada!AD$7,Tab_Uderor[TipoReceita],Entrada!$P17) -> 0 | AE17: =SUMIFS(Tab_Uderor[R$],Tab_Uderor[Competencia],Entrada!AE$7,Tab_Uderor[TipoReceita],Entrada!$P17) -> 0 | AF17: =SUMIFS(Tab_Uderor[R$],Tab_Uderor[Competencia],Entrada!AF$7,Tab_Uderor[TipoReceita],Entrada!$P17) -> 0 | AG17: =SUMIFS(Tab_Uderor[R$],Tab_Uderor[Competencia],Entrada!AG$7,Tab_Uderor[TipoReceita],Entrada!$P17) -> 0 | AH17: =SUMIFS(Tab_Uderor[R$],Tab_Uderor[Competencia],Entrada!AH$7,Tab_Uderor[TipoReceita],Entrada!$P17) -> 0 | AI17: =SUMIFS(Tab_Uderor[R$],Tab_Uderor[Competencia],Entrada!AI$7,Tab_Uderor[TipoReceita],Entrada!$P17) -> 0 | AJ17: =SUMIFS(Tab_Uderor[R$],Tab_Uderor[Competencia],Entrada!AJ$7,Tab_Uderor[TipoReceita],Entrada!$P17) -> 0 | AK17: =SUMIFS(Tab_Uderor[R$],Tab_Uderor[Competencia],Entrada!AK$7,Tab_Uderor[TipoReceita],Entrada!$P17) -> 0 | AL17: =SUMIFS(Tab_Uderor[R$],Tab_Uderor[Competencia],Entrada!AL$7,Tab_Uderor[TipoReceita],Entrada!$P17) -> 0 | AM17: =SUMIFS(Tab_Uderor[R$],Tab_Uderor[Competencia],Entrada!AM$7,Tab_Uderor[TipoReceita],Entrada!$P17) -> 0 | AN17: =SUMIFS(Tab_Uderor[R$],Tab_Uderor[Competencia],Entrada!AN$7,Tab_Uderor[TipoReceita],Entrada!$P17) -> 0 | AO17: =SUMIFS(Tab_Uderor[R$],Tab_Uderor[Competencia],Entrada!AO$7,Tab_Uderor[TipoReceita],Entrada!$P17) -> 0 | AP17: =SUMIFS(Tab_Uderor[R$],Tab_Uderor[Competencia],Entrada!AP$7,Tab_Uderor[TipoReceita],Entrada!$P17) -> 0 | AQ17: =SUMIFS(Tab_Uderor[R$],Tab_Uderor[Competencia],Entrada!AQ$7,Tab_Uderor[TipoReceita],Entrada!$P17) -> 0 | AR17: =SUMIFS(Tab_Uderor[R$],Tab_Uderor[Competencia],Entrada!AR$7,Tab_Uderor[TipoReceita],Entrada!$P17) -> 0 | AS17: =SUMIFS(Tab_Uderor[R$],Tab_Uderor[Competencia],Entrada!AS$7,Tab_Uderor[TipoReceita],Entrada!$P17) -> 0 | AT17: =SUMIFS(Tab_Uderor[R$],Tab_Uderor[Competencia],Entrada!AT$7,Tab_Uderor[TipoReceita],Entrada!$P17) -> 0 | AU17: =SUMIFS(Tab_Uderor[R$],Tab_Uderor[Competencia],Entrada!AU$7,Tab_Uderor[TipoReceita],Entrada!$P17) -> 0 | AV17: =SUMIFS(Tab_Uderor[R$],Tab_Uderor[Competencia],Entrada!AV$7,Tab_Uderor[TipoReceita],Entrada!$P17) -> 0 | AW17: =SUMIFS(Tab_Uderor[R$],Tab_Uderor[Competencia],Entrada!AW$7,Tab_Uderor[TipoReceita],Entrada!$P17) -> 0 | AX17: =SUMIFS(Tab_Uderor[R$],Tab_Uderor[Competencia],Entrada!AX$7,Tab_Uderor[TipoReceita],Entrada!$P17) -> 0 | AY17: =SUMIFS(Tab_Uderor[R$],Tab_Uderor[Competencia],Entrada!AY$7,Tab_Uderor[TipoReceita],Entrada!$P17) -> 0 | AZ17: =SUMIFS(Tab_Uderor[R$],Tab_Uderor[Competencia],Entrada!AZ$7,Tab_Uderor[TipoReceita],Entrada!$P17) -> 0
F18: (12) Obrigações Especiais Líquida | G18: =G84*VLOOKUP(DATE(YEAR(CAPA!$C$10),MONTH(CAPA!$C$10)-1,1),Índices!$B$135:$D$638,3,0)/VLOOKUP(DATE(YEAR($G$72),MONTH($G$72)-1,1),Índices!$B$135:$D$638,3,0) -> 1893667444 | K18: Subtotal | L18: =SUM(L9:L17) -> 204265170 | M18: =SUM(M9:M17) -> 219773864.7 | P18: (2) redes de energia elétrica destinadas ao acesso dos sistemas de distribuição ou transmissão; | Q18: =SUMIFS(Tab_Uderor[R$],Tab_Uderor[Competencia],Entrada!Q$7,Tab_Uderor[TipoReceita],Entrada!$P18) -> 0 | R18: =SUMIFS(Tab_Uderor[R$],Tab_Uderor[Competencia],Entrada!R$7,Tab_Uderor[TipoReceita],Entrada!$P18) -> 0 | S18: =SUMIFS(Tab_Uderor[R$],Tab_Uderor[Competencia],Entrada!S$7,Tab_Uderor[TipoReceita],Entrada!$P18) -> 0 | T18: =SUMIFS(Tab_Uderor[R$],Tab_Uderor[Competencia],Entrada!T$7,Tab_Uderor[TipoReceita],Entrada!$P18) -> 0 | U18: =SUMIFS(Tab_Uderor[R$],Tab_Uderor[Competencia],Entrada!U$7,Tab_Uderor[TipoReceita],Entrada!$P18) -> 0 | V18: =SUMIFS(Tab_Uderor[R$],Tab_Uderor[Competencia],Entrada!V$7,Tab_Uderor[TipoReceita],Entrada!$P18) -> 0 | W18: =SUMIFS(Tab_Uderor[R$],Tab_Uderor[Competencia],Entrada!W$7,Tab_Uderor[TipoReceita],Entrada!$P18) -> 0 | X18: =SUMIFS(Tab_Uderor[R$],Tab_Uderor[Competencia],Entrada!X$7,Tab_Uderor[TipoReceita],Entrada!$P18) -> 0 | Y18: =SUMIFS(Tab_Uderor[R$],Tab_Uderor[Competencia],Entrada!Y$7,Tab_Uderor[TipoReceita],Entrada!$P18) -> 0 | Z18: =SUMIFS(Tab_Uderor[R$],Tab_Uderor[Competencia],Entrada!Z$7,Tab_Uderor[TipoReceita],Entrada!$P18) -> 0 | AA18: =SUMIFS(Tab_Uderor[R$],Tab_Uderor[Competencia],Entrada!AA$7,Tab_Uderor[TipoReceita],Entrada!$P18) -> 0 | AB18: =SUMIFS(Tab_Uderor[R$],Tab_Uderor[Competencia],Entrada!AB$7,Tab_Uderor[TipoReceita],Entrada!$P18) -> 0 | AC18: =SUMIFS(Tab_Uderor[R$],Tab_Uderor[Competencia],Entrada!AC$7,Tab_Uderor[TipoReceita],Entrada!$P18) -> 0 | AD18: =SUMIFS(Tab_Uderor[R$],Tab_Uderor[Competencia],Entrada!AD$7,Tab_Uderor[TipoReceita],Entrada!$P18) -> 0 | AE18: =SUMIFS(Tab_Uderor[R$],Tab_Uderor[Competencia],Entrada!AE$7,Tab_Uderor[TipoReceita],Entrada!$P18) -> 0 | AF18: =SUMIFS(Tab_Uderor[R$],Tab_Uderor[Competencia],Entrada!AF$7,Tab_Uderor[TipoReceita],Entrada!$P18) -> 0 | AG18: =SUMIFS(Tab_Uderor[R$],Tab_Uderor[Competencia],Entrada!AG$7,Tab_Uderor[TipoReceita],Entrada!$P18) -> 0 | AH18: =SUMIFS(Tab_Uderor[R$],Tab_Uderor[Competencia],Entrada!AH$7,Tab_Uderor[TipoReceita],Entrada!$P18) -> 0 | AI18: =SUMIFS(Tab_Uderor[R$],Tab_Uderor[Competencia],Entrada!AI$7,Tab_Uderor[TipoReceita],Entrada!$P18) -> 0 | AJ18: =SUMIFS(Tab_Uderor[R$],Tab_Uderor[Competencia],Entrada!AJ$7,Tab_Uderor[TipoReceita],Entrada!$P18) -> 0 | AK18: =SUMIFS(Tab_Uderor[R$],Tab_Uderor[Competencia],Entrada!AK$7,Tab_Uderor[TipoReceita],Entrada!$P18) -> 0 | AL18: =SUMIFS(Tab_Uderor[R$],Tab_Uderor[Competencia],Entrada!AL$7,Tab_Uderor[TipoReceita],Entrada!$P18) -> 0 | AM18: =SUMIFS(Tab_Uderor[R$],Tab_Uderor[Competencia],Entrada!AM$7,Tab_Uderor[TipoReceita],Entrada!$P18) -> 0 | AN18: =SUMIFS(Tab_Uderor[R$],Tab_Uderor[Competencia],Entrada!AN$7,Tab_Uderor[TipoReceita],Entrada!$P18) -> 0 | AO18: =SUMIFS(Tab_Uderor[R$],Tab_Uderor[Competencia],Entrada!AO$7,Tab_Uderor[TipoReceita],Entrada!$P18) -> 0 | AP18: =SUMIFS(Tab_Uderor[R$],Tab_Uderor[Competencia],Entrada!AP$7,Tab_Uderor[TipoReceita],Entrada!$P18) -> 0 | AQ18: =SUMIFS(Tab_Uderor[R$],Tab_Uderor[Competencia],Entrada!AQ$7,Tab_Uderor[TipoReceita],Entrada!$P18) -> 0 | AR18: =SUMIFS(Tab_Uderor[R$],Tab_Uderor[Competencia],Entrada!AR$7,Tab_Uderor[TipoReceita],Entrada!$P18) -> 0 | AS18: =SUMIFS(Tab_Uderor[R$],Tab_Uderor[Competencia],Entrada!AS$7,Tab_Uderor[TipoReceita],Entrada!$P18) -> 0 | AT18: =SUMIFS(Tab_Uderor[R$],Tab_Uderor[Competencia],Entrada!AT$7,Tab_Uderor[TipoReceita],Entrada!$P18) -> 0 | AU18: =SUMIFS(Tab_Uderor[R$],Tab_Uderor[Competencia],Entrada!AU$7,Tab_Uderor[TipoReceita],Entrada!$P18) -> 0 | AV18: =SUMIFS(Tab_Uderor[R$],Tab_Uderor[Competencia],Entrada!AV$7,Tab_Uderor[TipoReceita],Entrada!$P18) -> 0 | AW18: =SUMIFS(Tab_Uderor[R$],Tab_Uderor[Competencia],Entrada!AW$7,Tab_Uderor[TipoReceita],Entrada!$P18) -> 0 | AX18: =SUMIFS(Tab_Uderor[R$],Tab_Uderor[Competencia],Entrada!AX$7,Tab_Uderor[TipoReceita],Entrada!$P18) -> 0 | AY18: =SUMIFS(Tab_Uderor[R$],Tab_Uderor[Competencia],Entrada!AY$7,Tab_Uderor[TipoReceita],Entrada!$P18) -> 0 | AZ18: =SUMIFS(Tab_Uderor[R$],Tab_Uderor[Competencia],Entrada!AZ$7,Tab_Uderor[TipoReceita],Entrada!$P18) -> 0
F19: (13) Terrenos e Servidões | G19: =G85*VLOOKUP(DATE(YEAR(CAPA!$C$10),MONTH(CAPA!$C$10)-1,1),Índices!$B$135:$D$638,3,0)/VLOOKUP(DATE(YEAR($G$72),MONTH($G$72)-1,1),Índices!$B$135:$D$638,3,0) -> 104985828.7 | J19: CONTA MATERIAIS | P19: (3) subestações de energia; | Q19: =SUMIFS(Tab_Uderor[R$],Tab_Uderor[Competencia],Entrada!Q$7,Tab_Uderor[TipoReceita],Entrada!$P19) -> 0 | R19: =SUMIFS(Tab_Uderor[R$],Tab_Uderor[Competencia],Entrada!R$7,Tab_Uderor[TipoReceita],Entrada!$P19) -> 0 | S19: =SUMIFS(Tab_Uderor[R$],Tab_Uderor[Competencia],Entrada!S$7,Tab_Uderor[TipoReceita],Entrada!$P19) -> 0 | T19: =SUMIFS(Tab_Uderor[R$],Tab_Uderor[Competencia],Entrada!T$7,Tab_Uderor[TipoReceita],Entrada!$P19) -> 0 | U19: =SUMIFS(Tab_Uderor[R$],Tab_Uderor[Competencia],Entrada!U$7,Tab_Uderor[TipoReceita],Entrada!$P19) -> 0 | V19: =SUMIFS(Tab_Uderor[R$],Tab_Uderor[Competencia],Entrada!V$7,Tab_Uderor[TipoReceita],Entrada!$P19) -> 0 | W19: =SUMIFS(Tab_Uderor[R$],Tab_Uderor[Competencia],Entrada!W$7,Tab_Uderor[TipoReceita],Entrada!$P19) -> 0 | X19: =SUMIFS(Tab_Uderor[R$],Tab_Uderor[Competencia],Entrada!X$7,Tab_Uderor[TipoReceita],Entrada!$P19) -> 0 | Y19: =SUMIFS(Tab_Uderor[R$],Tab_Uderor[Competencia],Entrada!Y$7,Tab_Uderor[TipoReceita],Entrada!$P19) -> 0 | Z19: =SUMIFS(Tab_Uderor[R$],Tab_Uderor[Competencia],Entrada!Z$7,Tab_Uderor[TipoReceita],Entrada!$P19) -> 0 | AA19: =SUMIFS(Tab_Uderor[R$],Tab_Uderor[Competencia],Entrada!AA$7,Tab_Uderor[TipoReceita],Entrada!$P19) -> 0 | AB19: =SUMIFS(Tab_Uderor[R$],Tab_Uderor[Competencia],Entrada!AB$7,Tab_Uderor[TipoReceita],Entrada!$P19) -> 0 | AC19: =SUMIFS(Tab_Uderor[R$],Tab_Uderor[Competencia],Entrada!AC$7,Tab_Uderor[TipoReceita],Entrada!$P19) -> 0 | AD19: =SUMIFS(Tab_Uderor[R$],Tab_Uderor[Competencia],Entrada!AD$7,Tab_Uderor[TipoReceita],Entrada!$P19) -> 0 | AE19: =SUMIFS(Tab_Uderor[R$],Tab_Uderor[Competencia],Entrada!AE$7,Tab_Uderor[TipoReceita],Entrada!$P19) -> 0 | AF19: =SUMIFS(Tab_Uderor[R$],Tab_Uderor[Competencia],Entrada!AF$7,Tab_Uderor[TipoReceita],Entrada!$P19) -> 0 | AG19: =SUMIFS(Tab_Uderor[R$],Tab_Uderor[Competencia],Entrada!AG$7,Tab_Uderor[TipoReceita],Entrada!$P19) -> 0 | AH19: =SUMIFS(Tab_Uderor[R$],Tab_Uderor[Competencia],Entrada!AH$7,Tab_Uderor[TipoReceita],Entrada!$P19) -> 0 | AI19: =SUMIFS(Tab_Uderor[R$],Tab_Uderor[Competencia],Entrada!AI$7,Tab_Uderor[TipoReceita],Entrada!$P19) -> 0 | AJ19: =SUMIFS(Tab_Uderor[R$],Tab_Uderor[Competencia],Entrada!AJ$7,Tab_Uderor[TipoReceita],Entrada!$P19) -> 0 | AK19: =SUMIFS(Tab_Uderor[R$],Tab_Uderor[Competencia],Entrada!AK$7,Tab_Uderor[TipoReceita],Entrada!$P19) -> 0 | AL19: =SUMIFS(Tab_Uderor[R$],Tab_Uderor[Competencia],Entrada!AL$7,Tab_Uderor[TipoReceita],Entrada!$P19) -> 0 | AM19: =SUMIFS(Tab_Uderor[R$],Tab_Uderor[Competencia],Entrada!AM$7,Tab_Uderor[TipoReceita],Entrada!$P19) -> 0 | AN19: =SUMIFS(Tab_Uderor[R$],Tab_Uderor[Competencia],Entrada!AN$7,Tab_Uderor[TipoReceita],Entrada!$P19) -> 0 | AO19: =SUMIFS(Tab_Uderor[R$],Tab_Uderor[Competencia],Entrada!AO$7,Tab_Uderor[TipoReceita],Entrada!$P19) -> 0 | AP19: =SUMIFS(Tab_Uderor[R$],Tab_Uderor[Competencia],Entrada!AP$7,Tab_Uderor[TipoReceita],Entrada!$P19) -> 0 | AQ19: =SUMIFS(Tab_Uderor[R$],Tab_Uderor[Competencia],Entrada!AQ$7,Tab_Uderor[TipoReceita],Entrada!$P19) -> 0 | AR19: =SUMIFS(Tab_Uderor[R$],Tab_Uderor[Competencia],Entrada!AR$7,Tab_Uderor[TipoReceita],Entrada!$P19) -> 0 | AS19: =SUMIFS(Tab_Uderor[R$],Tab_Uderor[Competencia],Entrada!AS$7,Tab_Uderor[TipoReceita],Entrada!$P19) -> 0 | AT19: =SUMIFS(Tab_Uderor[R$],Tab_Uderor[Competencia],Entrada!AT$7,Tab_Uderor[TipoReceita],Entrada!$P19) -> 0 | AU19: =SUMIFS(Tab_Uderor[R$],Tab_Uderor[Competencia],Entrada!AU$7,Tab_Uderor[TipoReceita],Entrada!$P19) -> 0 | AV19: =SUMIFS(Tab_Uderor[R$],Tab_Uderor[Competencia],Entrada!AV$7,Tab_Uderor[TipoReceita],Entrada!$P19) -> 0 | AW19: =SUMIFS(Tab_Uderor[R$],Tab_Uderor[Competencia],Entrada!AW$7,Tab_Uderor[TipoReceita],Entrada!$P19) -> 0 | AX19: =SUMIFS(Tab_Uderor[R$],Tab_Uderor[Competencia],Entrada!AX$7,Tab_Uderor[TipoReceita],Entrada!$P19) -> 0 | AY19: =SUMIFS(Tab_Uderor[R$],Tab_Uderor[Competencia],Entrada!AY$7,Tab_Uderor[TipoReceita],Entrada!$P19) -> 0 | AZ19: =SUMIFS(Tab_Uderor[R$],Tab_Uderor[Competencia],Entrada!AZ$7,Tab_Uderor[TipoReceita],Entrada!$P19) -> 0
F20: (14) Base de Rem. Líquida Total = (1)-(6)-(8)+(10)+(11)-(12)+(13) | G20: =G15+G16+G17-G18+G19 -> 6624985146 | J20: BMP - 610530701; 610550701; 610532701; 610552701 | K20: Materiais | L20: =SUMIFS(Tab_RIT_BMP[SALDO],Tab_RIT_BMP[CONTA],610530701,Tab_RIT_BMP[ANO],$L$7)+SUMIFS(Tab_RIT_BMP[SALDO],Tab_RIT_BMP[CONTA],610550701,Tab_RIT_BMP[ANO],$L$7)+ SUMIFS(Tab_RIT_BMP[SALDO],Tab_RIT_BMP[CONTA],610532701,Tab_RIT_BMP[ANO],$L$7)+SUMIFS(Tab_RIT_BMP[SALDO],Tab_RIT_BMP[CONTA],610552701,Tab_RIT_BMP[ANO],$L$7) -> 29996628.53 | M20: =SUMIFS(Tab_RIT_BMP[SALDO],Tab_RIT_BMP[CONTA],610530701,Tab_RIT_BMP[ANO],$M$7)+SUMIFS(Tab_RIT_BMP[SALDO],Tab_RIT_BMP[CONTA],610550701,Tab_RIT_BMP[ANO],$M$7)+ SUMIFS(Tab_RIT_BMP[SALDO],Tab_RIT_BMP[CONTA],610532701,Tab_RIT_BMP[ANO],$M$7)+SUMIFS(Tab_RIT_BMP[SALDO],Tab_RIT_BMP[CONTA],610552701,Tab_RIT_BMP[ANO],$M$7) -> 37551725.12 | P20: (4) instalações elétricas internas de unidades consumidoras; | Q20: =SUMIFS(Tab_Uderor[R$],Tab_Uderor[Competencia],Entrada!Q$7,Tab_Uderor[TipoReceita],Entrada!$P20) -> 0 | R20: =SUMIFS(Tab_Uderor[R$],Tab_Uderor[Competencia],Entrada!R$7,Tab_Uderor[TipoReceita],Entrada!$P20) -> 0 | S20: =SUMIFS(Tab_Uderor[R$],Tab_Uderor[Competencia],Entrada!S$7,Tab_Uderor[TipoReceita],Entrada!$P20) -> 0 | T20: =SUMIFS(Tab_Uderor[R$],Tab_Uderor[Competencia],Entrada!T$7,Tab_Uderor[TipoReceita],Entrada!$P20) -> 0 | U20: =SUMIFS(Tab_Uderor[R$],Tab_Uderor[Competencia],Entrada!U$7,Tab_Uderor[TipoReceita],Entrada!$P20) -> 0 | V20: =SUMIFS(Tab_Uderor[R$],Tab_Uderor[Competencia],Entrada!V$7,Tab_Uderor[TipoReceita],Entrada!$P20) -> 0 | W20: =SUMIFS(Tab_Uderor[R$],Tab_Uderor[Competencia],Entrada!W$7,Tab_Uderor[TipoReceita],Entrada!$P20) -> 0 | X20: =SUMIFS(Tab_Uderor[R$],Tab_Uderor[Competencia],Entrada!X$7,Tab_Uderor[TipoReceita],Entrada!$P20) -> 0 | Y20: =SUMIFS(Tab_Uderor[R$],Tab_Uderor[Competencia],Entrada!Y$7,Tab_Uderor[TipoReceita],Entrada!$P20) -> 0 | Z20: =SUMIFS(Tab_Uderor[R$],Tab_Uderor[Competencia],Entrada!Z$7,Tab_Uderor[TipoReceita],Entrada!$P20) -> 0 | AA20: =SUMIFS(Tab_Uderor[R$],Tab_Uderor[Competencia],Entrada!AA$7,Tab_Uderor[TipoReceita],Entrada!$P20) -> 0 | AB20: =SUMIFS(Tab_Uderor[R$],Tab_Uderor[Competencia],Entrada!AB$7,Tab_Uderor[TipoReceita],Entrada!$P20) -> 0 | AC20: =SUMIFS(Tab_Uderor[R$],Tab_Uderor[Competencia],Entrada!AC$7,Tab_Uderor[TipoReceita],Entrada!$P20) -> 0 | AD20: =SUMIFS(Tab_Uderor[R$],Tab_Uderor[Competencia],Entrada!AD$7,Tab_Uderor[TipoReceita],Entrada!$P20) -> 0 | AE20: =SUMIFS(Tab_Uderor[R$],Tab_Uderor[Competencia],Entrada!AE$7,Tab_Uderor[TipoReceita],Entrada!$P20) -> 0 | AF20: =SUMIFS(Tab_Uderor[R$],Tab_Uderor[Competencia],Entrada!AF$7,Tab_Uderor[TipoReceita],Entrada!$P20) -> 0 | AG20: =SUMIFS(Tab_Uderor[R$],Tab_Uderor[Competencia],Entrada!AG$7,Tab_Uderor[TipoReceita],Entrada!$P20) -> 0 | AH20: =SUMIFS(Tab_Uderor[R$],Tab_Uderor[Competencia],Entrada!AH$7,Tab_Uderor[TipoReceita],Entrada!$P20) -> 0 | AI20: =SUMIFS(Tab_Uderor[R$],Tab_Uderor[Competencia],Entrada!AI$7,Tab_Uderor[TipoReceita],Entrada!$P20) -> 0 | AJ20: =SUMIFS(Tab_Uderor[R$],Tab_Uderor[Competencia],Entrada!AJ$7,Tab_Uderor[TipoReceita],Entrada!$P20) -> 0 | AK20: =SUMIFS(Tab_Uderor[R$],Tab_Uderor[Competencia],Entrada!AK$7,Tab_Uderor[TipoReceita],Entrada!$P20) -> 0 | AL20: =SUMIFS(Tab_Uderor[R$],Tab_Uderor[Competencia],Entrada!AL$7,Tab_Uderor[TipoReceita],Entrada!$P20) -> 0 | AM20: =SUMIFS(Tab_Uderor[R$],Tab_Uderor[Competencia],Entrada!AM$7,Tab_Uderor[TipoReceita],Entrada!$P20) -> 0 | AN20: =SUMIFS(Tab_Uderor[R$],Tab_Uderor[Competencia],Entrada!AN$7,Tab_Uderor[TipoReceita],Entrada!$P20) -> 0 | AO20: =SUMIFS(Tab_Uderor[R$],Tab_Uderor[Competencia],Entrada!AO$7,Tab_Uderor[TipoReceita],Entrada!$P20) -> 0 | AP20: =SUMIFS(Tab_Uderor[R$],Tab_Uderor[Competencia],Entrada!AP$7,Tab_Uderor[TipoReceita],Entrada!$P20) -> 0 | AQ20: =SUMIFS(Tab_Uderor[R$],Tab_Uderor[Competencia],Entrada!AQ$7,Tab_Uderor[TipoReceita],Entrada!$P20) -> 0 | AR20: =SUMIFS(Tab_Uderor[R$],Tab_Uderor[Competencia],Entrada!AR$7,Tab_Uderor[TipoReceita],Entrada!$P20) -> 0 | AS20: =SUMIFS(Tab_Uderor[R$],Tab_Uderor[Competencia],Entrada!AS$7,Tab_Uderor[TipoReceita],Entrada!$P20) -> 0 | AT20: =SUMIFS(Tab_Uderor[R$],Tab_Uderor[Competencia],Entrada!AT$7,Tab_Uderor[TipoReceita],Entrada!$P20) -> 0 | AU20: =SUMIFS(Tab_Uderor[R$],Tab_Uderor[Competencia],Entrada!AU$7,Tab_Uderor[TipoReceita],Entrada!$P20) -> 0 | AV20: =SUMIFS(Tab_Uderor[R$],Tab_Uderor[Competencia],Entrada!AV$7,Tab_Uderor[TipoReceita],Entrada!$P20) -> 0 | AW20: =SUMIFS(Tab_Uderor[R$],Tab_Uderor[Competencia],Entrada!AW$7,Tab_Uderor[TipoReceita],Entrada!$P20) -> 0 | AX20: =SUMIFS(Tab_Uderor[R$],Tab_Uderor[Competencia],Entrada!AX$7,Tab_Uderor[TipoReceita],Entrada!$P20) -> 0 | AY20: =SUMIFS(Tab_Uderor[R$],Tab_Uderor[Competencia],Entrada!AY$7,Tab_Uderor[TipoReceita],Entrada!$P20) -> 0 | AZ20: =SUMIFS(Tab_Uderor[R$],Tab_Uderor[Competencia],Entrada!AZ$7,Tab_Uderor[TipoReceita],Entrada!$P20) -> 0
F21: (15) Saldo RGR PLPT | G21: =G87*VLOOKUP(DATE(YEAR(CAPA!$C$10),MONTH(CAPA!$C$10)-1,1),Índices!$B$135:$D$638,3,0)/VLOOKUP(DATE(YEAR($G$72),MONTH($G$72)-1,1),Índices!$B$135:$D$638,3,0) -> 0 | J21: BMP - 610530799; 610550799; 610532799; 610552799 | K21: Outros | L21: =SUMIFS(Tab_RIT_BMP[SALDO],Tab_RIT_BMP[CONTA],610530799,Tab_RIT_BMP[ANO],$L$7)+SUMIFS(Tab_RIT_BMP[SALDO],Tab_RIT_BMP[CONTA],610550799,Tab_RIT_BMP[ANO],$L$7)+ SUMIFS(Tab_RIT_BMP[SALDO],Tab_RIT_BMP[CONTA],610532799,Tab_RIT_BMP[ANO],$L$7)+SUMIFS(Tab_RIT_BMP[SALDO],Tab_RIT_BMP[CONTA],610552799,Tab_RIT_BMP[ANO],$L$7) -> 9859001.29 | M21: =SUMIFS(Tab_RIT_BMP[SALDO],Tab_RIT_BMP[CONTA],610530799,Tab_RIT_BMP[ANO],$M$7)+SUMIFS(Tab_RIT_BMP[SALDO],Tab_RIT_BMP[CONTA],610550799,Tab_RIT_BMP[ANO],$M$7)+ SUMIFS(Tab_RIT_BMP[SALDO],Tab_RIT_BMP[CONTA],610532799,Tab_RIT_BMP[ANO],$M$7)+SUMIFS(Tab_RIT_BMP[SALDO],Tab_RIT_BMP[CONTA],610552799,Tab_RIT_BMP[ANO],$M$7) -> 1759920.99 | P21: (5) banco de capacitores; | Q21: =SUMIFS(Tab_Uderor[R$],Tab_Uderor[Competencia],Entrada!Q$7,Tab_Uderor[TipoReceita],Entrada!$P21) -> 0 | R21: =SUMIFS(Tab_Uderor[R$],Tab_Uderor[Competencia],Entrada!R$7,Tab_Uderor[TipoReceita],Entrada!$P21) -> 0 | S21: =SUMIFS(Tab_Uderor[R$],Tab_Uderor[Competencia],Entrada!S$7,Tab_Uderor[TipoReceita],Entrada!$P21) -> 0 | T21: =SUMIFS(Tab_Uderor[R$],Tab_Uderor[Competencia],Entrada!T$7,Tab_Uderor[TipoReceita],Entrada!$P21) -> 0 | U21: =SUMIFS(Tab_Uderor[R$],Tab_Uderor[Competencia],Entrada!U$7,Tab_Uderor[TipoReceita],Entrada!$P21) -> 0 | V21: =SUMIFS(Tab_Uderor[R$],Tab_Uderor[Competencia],Entrada!V$7,Tab_Uderor[TipoReceita],Entrada!$P21) -> 0 | W21: =SUMIFS(Tab_Uderor[R$],Tab_Uderor[Competencia],Entrada!W$7,Tab_Uderor[TipoReceita],Entrada!$P21) -> 0 | X21: =SUMIFS(Tab_Uderor[R$],Tab_Uderor[Competencia],Entrada!X$7,Tab_Uderor[TipoReceita],Entrada!$P21) -> 0 | Y21: =SUMIFS(Tab_Uderor[R$],Tab_Uderor[Competencia],Entrada!Y$7,Tab_Uderor[TipoReceita],Entrada!$P21) -> 0 | Z21: =SUMIFS(Tab_Uderor[R$],Tab_Uderor[Competencia],Entrada!Z$7,Tab_Uderor[TipoReceita],Entrada!$P21) -> 0 | AA21: =SUMIFS(Tab_Uderor[R$],Tab_Uderor[Competencia],Entrada!AA$7,Tab_Uderor[TipoReceita],Entrada!$P21) -> 0 | AB21: =SUMIFS(Tab_Uderor[R$],Tab_Uderor[Competencia],Entrada!AB$7,Tab_Uderor[TipoReceita],Entrada!$P21) -> 0 | AC21: =SUMIFS(Tab_Uderor[R$],Tab_Uderor[Competencia],Entrada!AC$7,Tab_Uderor[TipoReceita],Entrada!$P21) -> 0 | AD21: =SUMIFS(Tab_Uderor[R$],Tab_Uderor[Competencia],Entrada!AD$7,Tab_Uderor[TipoReceita],Entrada!$P21) -> 0 | AE21: =SUMIFS(Tab_Uderor[R$],Tab_Uderor[Competencia],Entrada!AE$7,Tab_Uderor[TipoReceita],Entrada!$P21) -> 0 | AF21: =SUMIFS(Tab_Uderor[R$],Tab_Uderor[Competencia],Entrada!AF$7,Tab_Uderor[TipoReceita],Entrada!$P21) -> 0 | AG21: =SUMIFS(Tab_Uderor[R$],Tab_Uderor[Competencia],Entrada!AG$7,Tab_Uderor[TipoReceita],Entrada!$P21) -> 0 | AH21: =SUMIFS(Tab_Uderor[R$],Tab_Uderor[Competencia],Entrada!AH$7,Tab_Uderor[TipoReceita],Entrada!$P21) -> 0 | AI21: =SUMIFS(Tab_Uderor[R$],Tab_Uderor[Competencia],Entrada!AI$7,Tab_Uderor[TipoReceita],Entrada!$P21) -> 0 | AJ21: =SUMIFS(Tab_Uderor[R$],Tab_Uderor[Competencia],Entrada!AJ$7,Tab_Uderor[TipoReceita],Entrada!$P21) -> 0 | AK21: =SUMIFS(Tab_Uderor[R$],Tab_Uderor[Competencia],Entrada!AK$7,Tab_Uderor[TipoReceita],Entrada!$P21) -> 0 | AL21: =SUMIFS(Tab_Uderor[R$],Tab_Uderor[Competencia],Entrada!AL$7,Tab_Uderor[TipoReceita],Entrada!$P21) -> 0 | AM21: =SUMIFS(Tab_Uderor[R$],Tab_Uderor[Competencia],Entrada!AM$7,Tab_Uderor[TipoReceita],Entrada!$P21) -> 0 | AN21: =SUMIFS(Tab_Uderor[R$],Tab_Uderor[Competencia],Entrada!AN$7,Tab_Uderor[TipoReceita],Entrada!$P21) -> 0 | AO21: =SUMIFS(Tab_Uderor[R$],Tab_Uderor[Competencia],Entrada!AO$7,Tab_Uderor[TipoReceita],Entrada!$P21) -> 0 | AP21: =SUMIFS(Tab_Uderor[R$],Tab_Uderor[Competencia],Entrada!AP$7,Tab_Uderor[TipoReceita],Entrada!$P21) -> 0 | AQ21: =SUMIFS(Tab_Uderor[R$],Tab_Uderor[Competencia],Entrada!AQ$7,Tab_Uderor[TipoReceita],Entrada!$P21) -> 0 | AR21: =SUMIFS(Tab_Uderor[R$],Tab_Uderor[Competencia],Entrada!AR$7,Tab_Uderor[TipoReceita],Entrada!$P21) -> 0 | AS21: =SUMIFS(Tab_Uderor[R$],Tab_Uderor[Competencia],Entrada!AS$7,Tab_Uderor[TipoReceita],Entrada!$P21) -> 0 | AT21: =SUMIFS(Tab_Uderor[R$],Tab_Uderor[Competencia],Entrada!AT$7,Tab_Uderor[TipoReceita],Entrada!$P21) -> 0 | AU21: =SUMIFS(Tab_Uderor[R$],Tab_Uderor[Competencia],Entrada!AU$7,Tab_Uderor[TipoReceita],Entrada!$P21) -> 0 | AV21: =SUMIFS(Tab_Uderor[R$],Tab_Uderor[Competencia],Entrada!AV$7,Tab_Uderor[TipoReceita],Entrada!$P21) -> 0 | AW21: =SUMIFS(Tab_Uderor[R$],Tab_Uderor[Competencia],Entrada!AW$7,Tab_Uderor[TipoReceita],Entrada!$P21) -> 0 | AX21: =SUMIFS(Tab_Uderor[R$],Tab_Uderor[Competencia],Entrada!AX$7,Tab_Uderor[TipoReceita],Entrada!$P21) -> 0 | AY21: =SUMIFS(Tab_Uderor[R$],Tab_Uderor[Competencia],Entrada!AY$7,Tab_Uderor[TipoReceita],Entrada!$P21) -> 0 | AZ21: =SUMIFS(Tab_Uderor[R$],Tab_Uderor[Competencia],Entrada!AZ$7,Tab_Uderor[TipoReceita],Entrada!$P21) -> 0
F22: (16) Saldo RGR Demais Investimentos | G22: =G88*VLOOKUP(DATE(YEAR(CAPA!$C$10),MONTH(CAPA!$C$10)-1,1),Índices!$B$135:$D$638,3,0)/VLOOKUP(DATE(YEAR($G$72),MONTH($G$72)-1,1),Índices!$B$135:$D$638,3,0) -> 0 | J22: BMP - 610530710; 610550710; 610532710; 610552710 | K22: (-) Créditos de Tributos Recuperáveis | L22: =SUMIFS(Tab_RIT_BMP[SALDO],Tab_RIT_BMP[CONTA],610530710,Tab_RIT_BMP[ANO],$L$7)+SUMIFS(Tab_RIT_BMP[SALDO],Tab_RIT_BMP[CONTA],610550710,Tab_RIT_BMP[ANO],$L$7)+ SUMIFS(Tab_RIT_BMP[SALDO],Tab_RIT_BMP[CONTA],610532710,Tab_RIT_BMP[ANO],$L$7)+SUMIFS(Tab_RIT_BMP[SALDO],Tab_RIT_BMP[CONTA],610552710,Tab_RIT_BMP[ANO],$L$7) -> -584323.7 | M22: =SUMIFS(Tab_RIT_BMP[SALDO],Tab_RIT_BMP[CONTA],610530710,Tab_RIT_BMP[ANO],$M$7)+SUMIFS(Tab_RIT_BMP[SALDO],Tab_RIT_BMP[CONTA],610550710,Tab_RIT_BMP[ANO],$M$7)+ SUMIFS(Tab_RIT_BMP[SALDO],Tab_RIT_BMP[CONTA],610532710,Tab_RIT_BMP[ANO],$M$7)+SUMIFS(Tab_RIT_BMP[SALDO],Tab_RIT_BMP[CONTA],610552710,Tab_RIT_BMP[ANO],$M$7) -> -754626.42 | P22: (6) padrões de entrada de unidades consumidoras atendidas em baixa tensão; | Q22: =SUMIFS(Tab_Uderor[R$],Tab_Uderor[Competencia],Entrada!Q$7,Tab_Uderor[TipoReceita],Entrada!$P22) -> 0 | R22: =SUMIFS(Tab_Uderor[R$],Tab_Uderor[Competencia],Entrada!R$7,Tab_Uderor[TipoReceita],Entrada!$P22) -> 0 | S22: =SUMIFS(Tab_Uderor[R$],Tab_Uderor[Competencia],Entrada!S$7,Tab_Uderor[TipoReceita],Entrada!$P22) -> 0 | T22: =SUMIFS(Tab_Uderor[R$],Tab_Uderor[Competencia],Entrada!T$7,Tab_Uderor[TipoReceita],Entrada!$P22) -> 0 | U22: =SUMIFS(Tab_Uderor[R$],Tab_Uderor[Competencia],Entrada!U$7,Tab_Uderor[TipoReceita],Entrada!$P22) -> 0 | V22: =SUMIFS(Tab_Uderor[R$],Tab_Uderor[Competencia],Entrada!V$7,Tab_Uderor[TipoReceita],Entrada!$P22) -> 0 | W22: =SUMIFS(Tab_Uderor[R$],Tab_Uderor[Competencia],Entrada!W$7,Tab_Uderor[TipoReceita],Entrada!$P22) -> 0 | X22: =SUMIFS(Tab_Uderor[R$],Tab_Uderor[Competencia],Entrada!X$7,Tab_Uderor[TipoReceita],Entrada!$P22) -> 0 | Y22: =SUMIFS(Tab_Uderor[R$],Tab_Uderor[Competencia],Entrada!Y$7,Tab_Uderor[TipoReceita],Entrada!$P22) -> 0 | Z22: =SUMIFS(Tab_Uderor[R$],Tab_Uderor[Competencia],Entrada!Z$7,Tab_Uderor[TipoReceita],Entrada!$P22) -> 0 | AA22: =SUMIFS(Tab_Uderor[R$],Tab_Uderor[Competencia],Entrada!AA$7,Tab_Uderor[TipoReceita],Entrada!$P22) -> 0 | AB22: =SUMIFS(Tab_Uderor[R$],Tab_Uderor[Competencia],Entrada!AB$7,Tab_Uderor[TipoReceita],Entrada!$P22) -> 0 | AC22: =SUMIFS(Tab_Uderor[R$],Tab_Uderor[Competencia],Entrada!AC$7,Tab_Uderor[TipoReceita],Entrada!$P22) -> 0 | AD22: =SUMIFS(Tab_Uderor[R$],Tab_Uderor[Competencia],Entrada!AD$7,Tab_Uderor[TipoReceita],Entrada!$P22) -> 0 | AE22: =SUMIFS(Tab_Uderor[R$],Tab_Uderor[Competencia],Entrada!AE$7,Tab_Uderor[TipoReceita],Entrada!$P22) -> 0 | AF22: =SUMIFS(Tab_Uderor[R$],Tab_Uderor[Competencia],Entrada!AF$7,Tab_Uderor[TipoReceita],Entrada!$P22) -> 0 | AG22: =SUMIFS(Tab_Uderor[R$],Tab_Uderor[Competencia],Entrada!AG$7,Tab_Uderor[TipoReceita],Entrada!$P22) -> 0 | AH22: =SUMIFS(Tab_Uderor[R$],Tab_Uderor[Competencia],Entrada!AH$7,Tab_Uderor[TipoReceita],Entrada!$P22) -> 0 | AI22: =SUMIFS(Tab_Uderor[R$],Tab_Uderor[Competencia],Entrada!AI$7,Tab_Uderor[TipoReceita],Entrada!$P22) -> 0 | AJ22: =SUMIFS(Tab_Uderor[R$],Tab_Uderor[Competencia],Entrada!AJ$7,Tab_Uderor[TipoReceita],Entrada!$P22) -> 0 | AK22: =SUMIFS(Tab_Uderor[R$],Tab_Uderor[Competencia],Entrada!AK$7,Tab_Uderor[TipoReceita],Entrada!$P22) -> 0 | AL22: =SUMIFS(Tab_Uderor[R$],Tab_Uderor[Competencia],Entrada!AL$7,Tab_Uderor[TipoReceita],Entrada!$P22) -> 0 | AM22: =SUMIFS(Tab_Uderor[R$],Tab_Uderor[Competencia],Entrada!AM$7,Tab_Uderor[TipoReceita],Entrada!$P22) -> 0 | AN22: =SUMIFS(Tab_Uderor[R$],Tab_Uderor[Competencia],Entrada!AN$7,Tab_Uderor[TipoReceita],Entrada!$P22) -> 0 | AO22: =SUMIFS(Tab_Uderor[R$],Tab_Uderor[Competencia],Entrada!AO$7,Tab_Uderor[TipoReceita],Entrada!$P22) -> 0 | AP22: =SUMIFS(Tab_Uderor[R$],Tab_Uderor[Competencia],Entrada!AP$7,Tab_Uderor[TipoReceita],Entrada!$P22) -> 0 | AQ22: =SUMIFS(Tab_Uderor[R$],Tab_Uderor[Competencia],Entrada!AQ$7,Tab_Uderor[TipoReceita],Entrada!$P22) -> 0 | AR22: =SUMIFS(Tab_Uderor[R$],Tab_Uderor[Competencia],Entrada!AR$7,Tab_Uderor[TipoReceita],Entrada!$P22) -> 0 | AS22: =SUMIFS(Tab_Uderor[R$],Tab_Uderor[Competencia],Entrada!AS$7,Tab_Uderor[TipoReceita],Entrada!$P22) -> 0 | AT22: =SUMIFS(Tab_Uderor[R$],Tab_Uderor[Competencia],Entrada!AT$7,Tab_Uderor[TipoReceita],Entrada!$P22) -> 0 | AU22: =SUMIFS(Tab_Uderor[R$],Tab_Uderor[Competencia],Entrada!AU$7,Tab_Uderor[TipoReceita],Entrada!$P22) -> 0 | AV22: =SUMIFS(Tab_Uderor[R$],Tab_Uderor[Competencia],Entrada!AV$7,Tab_Uderor[TipoReceita],Entrada!$P22) -> 0 | AW22: =SUMIFS(Tab_Uderor[R$],Tab_Uderor[Competencia],Entrada!AW$7,Tab_Uderor[TipoReceita],Entrada!$P22) -> 0 | AX22: =SUMIFS(Tab_Uderor[R$],Tab_Uderor[Competencia],Entrada!AX$7,Tab_Uderor[TipoReceita],Entrada!$P22) -> 0 | AY22: =SUMIFS(Tab_Uderor[R$],Tab_Uderor[Competencia],Entrada!AY$7,Tab_Uderor[TipoReceita],Entrada!$P22) -> 0 | AZ22: =SUMIFS(Tab_Uderor[R$],Tab_Uderor[Competencia],Entrada!AZ$7,Tab_Uderor[TipoReceita],Entrada!$P22) -> 0
F23: (17) Taxa de Depreciação | G23: =G89 -> 0.0368 | K23: Subtotal | L23: =SUM(L20:L22) -> 39271306.12 | M23: =SUM(M20:M22) -> 38557019.69 | P23: (7) sistemas de medição de energia elétrica; | Q23: =SUMIFS(Tab_Uderor[R$],Tab_Uderor[Competencia],Entrada!Q$7,Tab_Uderor[TipoReceita],Entrada!$P23) -> 0 | R23: =SUMIFS(Tab_Uderor[R$],Tab_Uderor[Competencia],Entrada!R$7,Tab_Uderor[TipoReceita],Entrada!$P23) -> 0 | S23: =SUMIFS(Tab_Uderor[R$],Tab_Uderor[Competencia],Entrada!S$7,Tab_Uderor[TipoReceita],Entrada!$P23) -> 0 | T23: =SUMIFS(Tab_Uderor[R$],Tab_Uderor[Competencia],Entrada!T$7,Tab_Uderor[TipoReceita],Entrada!$P23) -> 0 | U23: =SUMIFS(Tab_Uderor[R$],Tab_Uderor[Competencia],Entrada!U$7,Tab_Uderor[TipoReceita],Entrada!$P23) -> 0 | V23: =SUMIFS(Tab_Uderor[R$],Tab_Uderor[Competencia],Entrada!V$7,Tab_Uderor[TipoReceita],Entrada!$P23) -> 0 | W23: =SUMIFS(Tab_Uderor[R$],Tab_Uderor[Competencia],Entrada!W$7,Tab_Uderor[TipoReceita],Entrada!$P23) -> 0 | X23: =SUMIFS(Tab_Uderor[R$],Tab_Uderor[Competencia],Entrada!X$7,Tab_Uderor[TipoReceita],Entrada!$P23) -> 0 | Y23: =SUMIFS(Tab_Uderor[R$],Tab_Uderor[Competencia],Entrada!Y$7,Tab_Uderor[TipoReceita],Entrada!$P23) -> 0 | Z23: =SUMIFS(Tab_Uderor[R$],Tab_Uderor[Competencia],Entrada!Z$7,Tab_Uderor[TipoReceita],Entrada!$P23) -> 0 | AA23: =SUMIFS(Tab_Uderor[R$],Tab_Uderor[Competencia],Entrada!AA$7,Tab_Uderor[TipoReceita],Entrada!$P23) -> 0 | AB23: =SUMIFS(Tab_Uderor[R$],Tab_Uderor[Competencia],Entrada!AB$7,Tab_Uderor[TipoReceita],Entrada!$P23) -> 0 | AC23: =SUMIFS(Tab_Uderor[R$],Tab_Uderor[Competencia],Entrada!AC$7,Tab_Uderor[TipoReceita],Entrada!$P23) -> 0 | AD23: =SUMIFS(Tab_Uderor[R$],Tab_Uderor[Competencia],Entrada!AD$7,Tab_Uderor[TipoReceita],Entrada!$P23) -> 0 | AE23: =SUMIFS(Tab_Uderor[R$],Tab_Uderor[Competencia],Entrada!AE$7,Tab_Uderor[TipoReceita],Entrada!$P23) -> 0 | AF23: =SUMIFS(Tab_Uderor[R$],Tab_Uderor[Competencia],Entrada!AF$7,Tab_Uderor[TipoReceita],Entrada!$P23) -> 0 | AG23: =SUMIFS(Tab_Uderor[R$],Tab_Uderor[Competencia],Entrada!AG$7,Tab_Uderor[TipoReceita],Entrada!$P23) -> 0 | AH23: =SUMIFS(Tab_Uderor[R$],Tab_Uderor[Competencia],Entrada!AH$7,Tab_Uderor[TipoReceita],Entrada!$P23) -> 0 | AI23: =SUMIFS(Tab_Uderor[R$],Tab_Uderor[Competencia],Entrada!AI$7,Tab_Uderor[TipoReceita],Entrada!$P23) -> 0 | AJ23: =SUMIFS(Tab_Uderor[R$],Tab_Uderor[Competencia],Entrada!AJ$7,Tab_Uderor[TipoReceita],Entrada!$P23) -> 0 | AK23: =SUMIFS(Tab_Uderor[R$],Tab_Uderor[Competencia],Entrada!AK$7,Tab_Uderor[TipoReceita],Entrada!$P23) -> 0 | AL23: =SUMIFS(Tab_Uderor[R$],Tab_Uderor[Competencia],Entrada!AL$7,Tab_Uderor[TipoReceita],Entrada!$P23) -> 0 | AM23: =SUMIFS(Tab_Uderor[R$],Tab_Uderor[Competencia],Entrada!AM$7,Tab_Uderor[TipoReceita],Entrada!$P23) -> 0 | AN23: =SUMIFS(Tab_Uderor[R$],Tab_Uderor[Competencia],Entrada!AN$7,Tab_Uderor[TipoReceita],Entrada!$P23) -> 0 | AO23: =SUMIFS(Tab_Uderor[R$],Tab_Uderor[Competencia],Entrada!AO$7,Tab_Uderor[TipoReceita],Entrada!$P23) -> 0 | AP23: =SUMIFS(Tab_Uderor[R$],Tab_Uderor[Competencia],Entrada!AP$7,Tab_Uderor[TipoReceita],Entrada!$P23) -> 0 | AQ23: =SUMIFS(Tab_Uderor[R$],Tab_Uderor[Competencia],Entrada!AQ$7,Tab_Uderor[TipoReceita],Entrada!$P23) -> 0 | AR23: =SUMIFS(Tab_Uderor[R$],Tab_Uderor[Competencia],Entrada!AR$7,Tab_Uderor[TipoReceita],Entrada!$P23) -> 0 | AS23: =SUMIFS(Tab_Uderor[R$],Tab_Uderor[Competencia],Entrada!AS$7,Tab_Uderor[TipoReceita],Entrada!$P23) -> 0 | AT23: =SUMIFS(Tab_Uderor[R$],Tab_Uderor[Competencia],Entrada!AT$7,Tab_Uderor[TipoReceita],Entrada!$P23) -> 0 | AU23: =SUMIFS(Tab_Uderor[R$],Tab_Uderor[Competencia],Entrada!AU$7,Tab_Uderor[TipoReceita],Entrada!$P23) -> 0 | AV23: =SUMIFS(Tab_Uderor[R$],Tab_Uderor[Competencia],Entrada!AV$7,Tab_Uderor[TipoReceita],Entrada!$P23) -> 0 | AW23: =SUMIFS(Tab_Uderor[R$],Tab_Uderor[Competencia],Entrada!AW$7,Tab_Uderor[TipoReceita],Entrada!$P23) -> 0 | AX23: =SUMIFS(Tab_Uderor[R$],Tab_Uderor[Competencia],Entrada!AX$7,Tab_Uderor[TipoReceita],Entrada!$P23) -> 0 | AY23: =SUMIFS(Tab_Uderor[R$],Tab_Uderor[Competencia],Entrada!AY$7,Tab_Uderor[TipoReceita],Entrada!$P23) -> 0 | AZ23: =SUMIFS(Tab_Uderor[R$],Tab_Uderor[Competencia],Entrada!AZ$7,Tab_Uderor[TipoReceita],Entrada!$P23) -> 0
F24: (18) Quota de Reintegração Regulatória = (5) * (17) | G24: =G23*G11 -> 330422217.1 | J24: CONTA TERCEIROS | P24: (8) geradores, incluindo-se unidades de microgeração e minigeração distribuída; | Q24: =SUMIFS(Tab_Uderor[R$],Tab_Uderor[Competencia],Entrada!Q$7,Tab_Uderor[TipoReceita],Entrada!$P24) -> 0 | R24: =SUMIFS(Tab_Uderor[R$],Tab_Uderor[Competencia],Entrada!R$7,Tab_Uderor[TipoReceita],Entrada!$P24) -> 0 | S24: =SUMIFS(Tab_Uderor[R$],Tab_Uderor[Competencia],Entrada!S$7,Tab_Uderor[TipoReceita],Entrada!$P24) -> 0 | T24: =SUMIFS(Tab_Uderor[R$],Tab_Uderor[Competencia],Entrada!T$7,Tab_Uderor[TipoReceita],Entrada!$P24) -> 0 | U24: =SUMIFS(Tab_Uderor[R$],Tab_Uderor[Competencia],Entrada!U$7,Tab_Uderor[TipoReceita],Entrada!$P24) -> 0 | V24: =SUMIFS(Tab_Uderor[R$],Tab_Uderor[Competencia],Entrada!V$7,Tab_Uderor[TipoReceita],Entrada!$P24) -> 0 | W24: =SUMIFS(Tab_Uderor[R$],Tab_Uderor[Competencia],Entrada!W$7,Tab_Uderor[TipoReceita],Entrada!$P24) -> 0 | X24: =SUMIFS(Tab_Uderor[R$],Tab_Uderor[Competencia],Entrada!X$7,Tab_Uderor[TipoReceita],Entrada!$P24) -> 0 | Y24: =SUMIFS(Tab_Uderor[R$],Tab_Uderor[Competencia],Entrada!Y$7,Tab_Uderor[TipoReceita],Entrada!$P24) -> 0 | Z24: =SUMIFS(Tab_Uderor[R$],Tab_Uderor[Competencia],Entrada!Z$7,Tab_Uderor[TipoReceita],Entrada!$P24) -> 0 | AA24: =SUMIFS(Tab_Uderor[R$],Tab_Uderor[Competencia],Entrada!AA$7,Tab_Uderor[TipoReceita],Entrada!$P24) -> 0 | AB24: =SUMIFS(Tab_Uderor[R$],Tab_Uderor[Competencia],Entrada!AB$7,Tab_Uderor[TipoReceita],Entrada!$P24) -> 0 | AC24: =SUMIFS(Tab_Uderor[R$],Tab_Uderor[Competencia],Entrada!AC$7,Tab_Uderor[TipoReceita],Entrada!$P24) -> 0 | AD24: =SUMIFS(Tab_Uderor[R$],Tab_Uderor[Competencia],Entrada!AD$7,Tab_Uderor[TipoReceita],Entrada!$P24) -> 0 | AE24: =SUMIFS(Tab_Uderor[R$],Tab_Uderor[Competencia],Entrada!AE$7,Tab_Uderor[TipoReceita],Entrada!$P24) -> 0 | AF24: =SUMIFS(Tab_Uderor[R$],Tab_Uderor[Competencia],Entrada!AF$7,Tab_Uderor[TipoReceita],Entrada!$P24) -> 0 | AG24: =SUMIFS(Tab_Uderor[R$],Tab_Uderor[Competencia],Entrada!AG$7,Tab_Uderor[TipoReceita],Entrada!$P24) -> 0 | AH24: =SUMIFS(Tab_Uderor[R$],Tab_Uderor[Competencia],Entrada!AH$7,Tab_Uderor[TipoReceita],Entrada!$P24) -> 0 | AI24: =SUMIFS(Tab_Uderor[R$],Tab_Uderor[Competencia],Entrada!AI$7,Tab_Uderor[TipoReceita],Entrada!$P24) -> 0 | AJ24: =SUMIFS(Tab_Uderor[R$],Tab_Uderor[Competencia],Entrada!AJ$7,Tab_Uderor[TipoReceita],Entrada!$P24) -> 0 | AK24: =SUMIFS(Tab_Uderor[R$],Tab_Uderor[Competencia],Entrada!AK$7,Tab_Uderor[TipoReceita],Entrada!$P24) -> 0 | AL24: =SUMIFS(Tab_Uderor[R$],Tab_Uderor[Competencia],Entrada!AL$7,Tab_Uderor[TipoReceita],Entrada!$P24) -> 0 | AM24: =SUMIFS(Tab_Uderor[R$],Tab_Uderor[Competencia],Entrada!AM$7,Tab_Uderor[TipoReceita],Entrada!$P24) -> 0 | AN24: =SUMIFS(Tab_Uderor[R$],Tab_Uderor[Competencia],Entrada!AN$7,Tab_Uderor[TipoReceita],Entrada!$P24) -> 0 | AO24: =SUMIFS(Tab_Uderor[R$],Tab_Uderor[Competencia],Entrada!AO$7,Tab_Uderor[TipoReceita],Entrada!$P24) -> 0 | AP24: =SUMIFS(Tab_Uderor[R$],Tab_Uderor[Competencia],Entrada!AP$7,Tab_Uderor[TipoReceita],Entrada!$P24) -> 0 | AQ24: =SUMIFS(Tab_Uderor[R$],Tab_Uderor[Competencia],Entrada!AQ$7,Tab_Uderor[TipoReceita],Entrada!$P24) -> 0 | AR24: =SUMIFS(Tab_Uderor[R$],Tab_Uderor[Competencia],Entrada!AR$7,Tab_Uderor[TipoReceita],Entrada!$P24) -> 0 | AS24: =SUMIFS(Tab_Uderor[R$],Tab_Uderor[Competencia],Entrada!AS$7,Tab_Uderor[TipoReceita],Entrada!$P24) -> 0 | AT24: =SUMIFS(Tab_Uderor[R$],Tab_Uderor[Competencia],Entrada!AT$7,Tab_Uderor[TipoReceita],Entrada!$P24) -> 0 | AU24: =SUMIFS(Tab_Uderor[R$],Tab_Uderor[Competencia],Entrada!AU$7,Tab_Uderor[TipoReceita],Entrada!$P24) -> 0 | AV24: =SUMIFS(Tab_Uderor[R$],Tab_Uderor[Competencia],Entrada!AV$7,Tab_Uderor[TipoReceita],Entrada!$P24) -> 0 | AW24: =SUMIFS(Tab_Uderor[R$],Tab_Uderor[Competencia],Entrada!AW$7,Tab_Uderor[TipoReceita],Entrada!$P24) -> 0 | AX24: =SUMIFS(Tab_Uderor[R$],Tab_Uderor[Competencia],Entrada!AX$7,Tab_Uderor[TipoReceita],Entrada!$P24) -> 0 | AY24: =SUMIFS(Tab_Uderor[R$],Tab_Uderor[Competencia],Entrada!AY$7,Tab_Uderor[TipoReceita],Entrada!$P24) -> 0 | AZ24: =SUMIFS(Tab_Uderor[R$],Tab_Uderor[Competencia],Entrada!AZ$7,Tab_Uderor[TipoReceita],Entrada!$P24) -> 0
J25: RIT - RP 800 - Célula F20 | K25: Manut. e Conserv. Bens e Instalações vinculadas ao Serviço Concedido | L25: =SUMIFS(Tab_RIT_BMP[SALDO],Tab_RIT_BMP[CONTA],1,Tab_RIT_BMP[ANO],$L$7) -> 64741839.84 | M25: =SUMIFS(Tab_RIT_BMP[SALDO],Tab_RIT_BMP[CONTA],1,Tab_RIT_BMP[ANO],$M$7) -> 73994343.87 | P25: (9) sistemas de iluminação pública. | Q25: =SUMIFS(Tab_Uderor[R$],Tab_Uderor[Competencia],Entrada!Q$7,Tab_Uderor[TipoReceita],Entrada!$P25) -> 0 | R25: =SUMIFS(Tab_Uderor[R$],Tab_Uderor[Competencia],Entrada!R$7,Tab_Uderor[TipoReceita],Entrada!$P25) -> 0 | S25: =SUMIFS(Tab_Uderor[R$],Tab_Uderor[Competencia],Entrada!S$7,Tab_Uderor[TipoReceita],Entrada!$P25) -> 0 | T25: =SUMIFS(Tab_Uderor[R$],Tab_Uderor[Competencia],Entrada!T$7,Tab_Uderor[TipoReceita],Entrada!$P25) -> 0 | U25: =SUMIFS(Tab_Uderor[R$],Tab_Uderor[Competencia],Entrada!U$7,Tab_Uderor[TipoReceita],Entrada!$P25) -> 0 | V25: =SUMIFS(Tab_Uderor[R$],Tab_Uderor[Competencia],Entrada!V$7,Tab_Uderor[TipoReceita],Entrada!$P25) -> 0 | W25: =SUMIFS(Tab_Uderor[R$],Tab_Uderor[Competencia],Entrada!W$7,Tab_Uderor[TipoReceita],Entrada!$P25) -> 0 | X25: =SUMIFS(Tab_Uderor[R$],Tab_Uderor[Competencia],Entrada!X$7,Tab_Uderor[TipoReceita],Entrada!$P25) -> 0 | Y25: =SUMIFS(Tab_Uderor[R$],Tab_Uderor[Competencia],Entrada!Y$7,Tab_Uderor[TipoReceita],Entrada!$P25) -> 0 | Z25: =SUMIFS(Tab_Uderor[R$],Tab_Uderor[Competencia],Entrada!Z$7,Tab_Uderor[TipoReceita],Entrada!$P25) -> 0 | AA25: =SUMIFS(Tab_Uderor[R$],Tab_Uderor[Competencia],Entrada!AA$7,Tab_Uderor[TipoReceita],Entrada!$P25) -> 0 | AB25: =SUMIFS(Tab_Uderor[R$],Tab_Uderor[Competencia],Entrada!AB$7,Tab_Uderor[TipoReceita],Entrada!$P25) -> 0 | AC25: =SUMIFS(Tab_Uderor[R$],Tab_Uderor[Competencia],Entrada!AC$7,Tab_Uderor[TipoReceita],Entrada!$P25) -> 0 | AD25: =SUMIFS(Tab_Uderor[R$],Tab_Uderor[Competencia],Entrada!AD$7,Tab_Uderor[TipoReceita],Entrada!$P25) -> 0 | AE25: =SUMIFS(Tab_Uderor[R$],Tab_Uderor[Competencia],Entrada!AE$7,Tab_Uderor[TipoReceita],Entrada!$P25) -> 0 | AF25: =SUMIFS(Tab_Uderor[R$],Tab_Uderor[Competencia],Entrada!AF$7,Tab_Uderor[TipoReceita],Entrada!$P25) -> 0 | AG25: =SUMIFS(Tab_Uderor[R$],Tab_Uderor[Competencia],Entrada!AG$7,Tab_Uderor[TipoReceita],Entrada!$P25) -> 0 | AH25: =SUMIFS(Tab_Uderor[R$],Tab_Uderor[Competencia],Entrada!AH$7,Tab_Uderor[TipoReceita],Entrada!$P25) -> 0 | AI25: =SUMIFS(Tab_Uderor[R$],Tab_Uderor[Competencia],Entrada!AI$7,Tab_Uderor[TipoReceita],Entrada!$P25) -> 0 | AJ25: =SUMIFS(Tab_Uderor[R$],Tab_Uderor[Competencia],Entrada!AJ$7,Tab_Uderor[TipoReceita],Entrada!$P25) -> 0 | AK25: =SUMIFS(Tab_Uderor[R$],Tab_Uderor[Competencia],Entrada!AK$7,Tab_Uderor[TipoReceita],Entrada!$P25) -> 0 | AL25: =SUMIFS(Tab_Uderor[R$],Tab_Uderor[Competencia],Entrada!AL$7,Tab_Uderor[TipoReceita],Entrada!$P25) -> 0 | AM25: =SUMIFS(Tab_Uderor[R$],Tab_Uderor[Competencia],Entrada!AM$7,Tab_Uderor[TipoReceita],Entrada!$P25) -> 0 | AN25: =SUMIFS(Tab_Uderor[R$],Tab_Uderor[Competencia],Entrada!AN$7,Tab_Uderor[TipoReceita],Entrada!$P25) -> 0 | AO25: =SUMIFS(Tab_Uderor[R$],Tab_Uderor[Competencia],Entrada!AO$7,Tab_Uderor[TipoReceita],Entrada!$P25) -> 0 | AP25: =SUMIFS(Tab_Uderor[R$],Tab_Uderor[Competencia],Entrada!AP$7,Tab_Uderor[TipoReceita],Entrada!$P25) -> 0 | AQ25: =SUMIFS(Tab_Uderor[R$],Tab_Uderor[Competencia],Entrada!AQ$7,Tab_Uderor[TipoReceita],Entrada!$P25) -> 0 | AR25: =SUMIFS(Tab_Uderor[R$],Tab_Uderor[Competencia],Entrada!AR$7,Tab_Uderor[TipoReceita],Entrada!$P25) -> 0 | AS25: =SUMIFS(Tab_Uderor[R$],Tab_Uderor[Competencia],Entrada!AS$7,Tab_Uderor[TipoReceita],Entrada!$P25) -> 0 | AT25: =SUMIFS(Tab_Uderor[R$],Tab_Uderor[Competencia],Entrada!AT$7,Tab_Uderor[TipoReceita],Entrada!$P25) -> 0 | AU25: =SUMIFS(Tab_Uderor[R$],Tab_Uderor[Competencia],Entrada!AU$7,Tab_Uderor[TipoReceita],Entrada!$P25) -> 0 | AV25: =SUMIFS(Tab_Uderor[R$],Tab_Uderor[Competencia],Entrada!AV$7,Tab_Uderor[TipoReceita],Entrada!$P25) -> 0 | AW25: =SUMIFS(Tab_Uderor[R$],Tab_Uderor[Competencia],Entrada!AW$7,Tab_Uderor[TipoReceita],Entrada!$P25) -> 0 | AX25: =SUMIFS(Tab_Uderor[R$],Tab_Uderor[Competencia],Entrada!AX$7,Tab_Uderor[TipoReceita],Entrada!$P25) -> 0 | AY25: =SUMIFS(Tab_Uderor[R$],Tab_Uderor[Competencia],Entrada!AY$7,Tab_Uderor[TipoReceita],Entrada!$P25) -> 0 | AZ25: =SUMIFS(Tab_Uderor[R$],Tab_Uderor[Competencia],Entrada!AZ$7,Tab_Uderor[TipoReceita],Entrada!$P25) -> 0
F26: Gasto do Conselho de Consumidores | J26: RIT - RP 800 - Célula F21 | K26: Auditoria e Consultoria | L26: =SUMIFS(Tab_RIT_BMP[SALDO],Tab_RIT_BMP[CONTA],2,Tab_RIT_BMP[ANO],$L$7) -> 717950.78 | M26: =SUMIFS(Tab_RIT_BMP[SALDO],Tab_RIT_BMP[CONTA],2,Tab_RIT_BMP[ANO],$M$7) -> 1375886.56 | P26: (10) estações de recarga de veículos elétricos, incluindo a prestação de serviços aos usuários | Q26: =SUMIFS(Tab_Uderor[R$],Tab_Uderor[Competencia],Entrada!Q$7,Tab_Uderor[TipoReceita],Entrada!$P26) -> 0 | R26: =SUMIFS(Tab_Uderor[R$],Tab_Uderor[Competencia],Entrada!R$7,Tab_Uderor[TipoReceita],Entrada!$P26) -> 0 | S26: =SUMIFS(Tab_Uderor[R$],Tab_Uderor[Competencia],Entrada!S$7,Tab_Uderor[TipoReceita],Entrada!$P26) -> 0 | T26: =SUMIFS(Tab_Uderor[R$],Tab_Uderor[Competencia],Entrada!T$7,Tab_Uderor[TipoReceita],Entrada!$P26) -> 0 | U26: =SUMIFS(Tab_Uderor[R$],Tab_Uderor[Competencia],Entrada!U$7,Tab_Uderor[TipoReceita],Entrada!$P26) -> 0 | V26: =SUMIFS(Tab_Uderor[R$],Tab_Uderor[Competencia],Entrada!V$7,Tab_Uderor[TipoReceita],Entrada!$P26) -> 0 | W26: =SUMIFS(Tab_Uderor[R$],Tab_Uderor[Competencia],Entrada!W$7,Tab_Uderor[TipoReceita],Entrada!$P26) -> 0 | X26: =SUMIFS(Tab_Uderor[R$],Tab_Uderor[Competencia],Entrada!X$7,Tab_Uderor[TipoReceita],Entrada!$P26) -> 0 | Y26: =SUMIFS(Tab_Uderor[R$],Tab_Uderor[Competencia],Entrada!Y$7,Tab_Uderor[TipoReceita],Entrada!$P26) -> 0 | Z26: =SUMIFS(Tab_Uderor[R$],Tab_Uderor[Competencia],Entrada!Z$7,Tab_Uderor[TipoReceita],Entrada!$P26) -> 0 | AA26: =SUMIFS(Tab_Uderor[R$],Tab_Uderor[Competencia],Entrada!AA$7,Tab_Uderor[TipoReceita],Entrada!$P26) -> 0 | AB26: =SUMIFS(Tab_Uderor[R$],Tab_Uderor[Competencia],Entrada!AB$7,Tab_Uderor[TipoReceita],Entrada!$P26) -> 0 | AC26: =SUMIFS(Tab_Uderor[R$],Tab_Uderor[Competencia],Entrada!AC$7,Tab_Uderor[TipoReceita],Entrada!$P26) -> 0 | AD26: =SUMIFS(Tab_Uderor[R$],Tab_Uderor[Competencia],Entrada!AD$7,Tab_Uderor[TipoReceita],Entrada!$P26) -> 0 | AE26: =SUMIFS(Tab_Uderor[R$],Tab_Uderor[Competencia],Entrada!AE$7,Tab_Uderor[TipoReceita],Entrada!$P26) -> 0 | AF26: =SUMIFS(Tab_Uderor[R$],Tab_Uderor[Competencia],Entrada!AF$7,Tab_Uderor[TipoReceita],Entrada!$P26) -> 0 | AG26: =SUMIFS(Tab_Uderor[R$],Tab_Uderor[Competencia],Entrada!AG$7,Tab_Uderor[TipoReceita],Entrada!$P26) -> 0 | AH26: =SUMIFS(Tab_Uderor[R$],Tab_Uderor[Competencia],Entrada!AH$7,Tab_Uderor[TipoReceita],Entrada!$P26) -> 0 | AI26: =SUMIFS(Tab_Uderor[R$],Tab_Uderor[Competencia],Entrada!AI$7,Tab_Uderor[TipoReceita],Entrada!$P26) -> 0 | AJ26: =SUMIFS(Tab_Uderor[R$],Tab_Uderor[Competencia],Entrada!AJ$7,Tab_Uderor[TipoReceita],Entrada!$P26) -> 0 | AK26: =SUMIFS(Tab_Uderor[R$],Tab_Uderor[Competencia],Entrada!AK$7,Tab_Uderor[TipoReceita],Entrada!$P26) -> 0 | AL26: =SUMIFS(Tab_Uderor[R$],Tab_Uderor[Competencia],Entrada!AL$7,Tab_Uderor[TipoReceita],Entrada!$P26) -> 0 | AM26: =SUMIFS(Tab_Uderor[R$],Tab_Uderor[Competencia],Entrada!AM$7,Tab_Uderor[TipoReceita],Entrada!$P26) -> 0 | AN26: =SUMIFS(Tab_Uderor[R$],Tab_Uderor[Competencia],Entrada!AN$7,Tab_Uderor[TipoReceita],Entrada!$P26) -> 0 | AO26: =SUMIFS(Tab_Uderor[R$],Tab_Uderor[Competencia],Entrada!AO$7,Tab_Uderor[TipoReceita],Entrada!$P26) -> 0 | AP26: =SUMIFS(Tab_Uderor[R$],Tab_Uderor[Competencia],Entrada!AP$7,Tab_Uderor[TipoReceita],Entrada!$P26) -> 0 | AQ26: =SUMIFS(Tab_Uderor[R$],Tab_Uderor[Competencia],Entrada!AQ$7,Tab_Uderor[TipoReceita],Entrada!$P26) -> 0 | AR26: =SUMIFS(Tab_Uderor[R$],Tab_Uderor[Competencia],Entrada!AR$7,Tab_Uderor[TipoReceita],Entrada!$P26) -> 0 | AS26: =SUMIFS(Tab_Uderor[R$],Tab_Uderor[Competencia],Entrada!AS$7,Tab_Uderor[TipoReceita],Entrada!$P26) -> 0 | AT26: =SUMIFS(Tab_Uderor[R$],Tab_Uderor[Competencia],Entrada!AT$7,Tab_Uderor[TipoReceita],Entrada!$P26) -> 0 | AU26: =SUMIFS(Tab_Uderor[R$],Tab_Uderor[Competencia],Entrada!AU$7,Tab_Uderor[TipoReceita],Entrada!$P26) -> 0 | AV26: =SUMIFS(Tab_Uderor[R$],Tab_Uderor[Competencia],Entrada!AV$7,Tab_Uderor[TipoReceita],Entrada!$P26) -> 0 | AW26: =SUMIFS(Tab_Uderor[R$],Tab_Uderor[Competencia],Entrada!AW$7,Tab_Uderor[TipoReceita],Entrada!$P26) -> 0 | AX26: =SUMIFS(Tab_Uderor[R$],Tab_Uderor[Competencia],Entrada!AX$7,Tab_Uderor[TipoReceita],Entrada!$P26) -> 0 | AY26: =SUMIFS(Tab_Uderor[R$],Tab_Uderor[Competencia],Entrada!AY$7,Tab_Uderor[TipoReceita],Entrada!$P26) -> 0 | AZ26: =SUMIFS(Tab_Uderor[R$],Tab_Uderor[Competencia],Entrada!AZ$7,Tab_Uderor[TipoReceita],Entrada!$P26) -> 0
F27: =Indexador!D132 -> Despesa 2022 | G27: 72337 | H27: 44988 | J27: RIT - RP 800 - Célula F22 | K27: Serviços Jurídicos | L27: =SUMIFS(Tab_RIT_BMP[SALDO],Tab_RIT_BMP[CONTA],3,Tab_RIT_BMP[ANO],$L$7) -> 0 | M27: =SUMIFS(Tab_RIT_BMP[SALDO],Tab_RIT_BMP[CONTA],3,Tab_RIT_BMP[ANO],$M$7) -> 0 | P27: Eficientização do consumo de energia elétrica e instalação de cogeração qualificada, desde que não enquadráveis nos projetos de Pesquisa e Desenvolvimento (P&D) ou de Eficiência Energética estabelecidos em lei | Q27: =SUMIFS(Tab_Uderor[R$],Tab_Uderor[Competencia],Entrada!Q$7,Tab_Uderor[TipoReceita],Entrada!$P27) -> 0 | R27: =SUMIFS(Tab_Uderor[R$],Tab_Uderor[Competencia],Entrada!R$7,Tab_Uderor[TipoReceita],Entrada!$P27) -> 0 | S27: =SUMIFS(Tab_Uderor[R$],Tab_Uderor[Competencia],Entrada!S$7,Tab_Uderor[TipoReceita],Entrada!$P27) -> 0 | T27: =SUMIFS(Tab_Uderor[R$],Tab_Uderor[Competencia],Entrada!T$7,Tab_Uderor[TipoReceita],Entrada!$P27) -> 0 | U27: =SUMIFS(Tab_Uderor[R$],Tab_Uderor[Competencia],Entrada!U$7,Tab_Uderor[TipoReceita],Entrada!$P27) -> 0 | V27: =SUMIFS(Tab_Uderor[R$],Tab_Uderor[Competencia],Entrada!V$7,Tab_Uderor[TipoReceita],Entrada!$P27) -> 0 | W27: =SUMIFS(Tab_Uderor[R$],Tab_Uderor[Competencia],Entrada!W$7,Tab_Uderor[TipoReceita],Entrada!$P27) -> 0 | X27: =SUMIFS(Tab_Uderor[R$],Tab_Uderor[Competencia],Entrada!X$7,Tab_Uderor[TipoReceita],Entrada!$P27) -> 0 | Y27: =SUMIFS(Tab_Uderor[R$],Tab_Uderor[Competencia],Entrada!Y$7,Tab_Uderor[TipoReceita],Entrada!$P27) -> 0 | Z27: =SUMIFS(Tab_Uderor[R$],Tab_Uderor[Competencia],Entrada!Z$7,Tab_Uderor[TipoReceita],Entrada!$P27) -> 0 | AA27: =SUMIFS(Tab_Uderor[R$],Tab_Uderor[Competencia],Entrada!AA$7,Tab_Uderor[TipoReceita],Entrada!$P27) -> 0 | AB27: =SUMIFS(Tab_Uderor[R$],Tab_Uderor[Competencia],Entrada!AB$7,Tab_Uderor[TipoReceita],Entrada!$P27) -> 0 | AC27: =SUMIFS(Tab_Uderor[R$],Tab_Uderor[Competencia],Entrada!AC$7,Tab_Uderor[TipoReceita],Entrada!$P27) -> 0 | AD27: =SUMIFS(Tab_Uderor[R$],Tab_Uderor[Competencia],Entrada!AD$7,Tab_Uderor[TipoReceita],Entrada!$P27) -> 0 | AE27: =SUMIFS(Tab_Uderor[R$],Tab_Uderor[Competencia],Entrada!AE$7,Tab_Uderor[TipoReceita],Entrada!$P27) -> 0 | AF27: =SUMIFS(Tab_Uderor[R$],Tab_Uderor[Competencia],Entrada!AF$7,Tab_Uderor[TipoReceita],Entrada!$P27) -> 0 | AG27: =SUMIFS(Tab_Uderor[R$],Tab_Uderor[Competencia],Entrada!AG$7,Tab_Uderor[TipoReceita],Entrada!$P27) -> 0 | AH27: =SUMIFS(Tab_Uderor[R$],Tab_Uderor[Competencia],Entrada!AH$7,Tab_Uderor[TipoReceita],Entrada!$P27) -> 0 | AI27: =SUMIFS(Tab_Uderor[R$],Tab_Uderor[Competencia],Entrada!AI$7,Tab_Uderor[TipoReceita],Entrada!$P27) -> 0 | AJ27: =SUMIFS(Tab_Uderor[R$],Tab_Uderor[Competencia],Entrada!AJ$7,Tab_Uderor[TipoReceita],Entrada!$P27) -> 0 | AK27: =SUMIFS(Tab_Uderor[R$],Tab_Uderor[Competencia],Entrada!AK$7,Tab_Uderor[TipoReceita],Entrada!$P27) -> 0 | AL27: =SUMIFS(Tab_Uderor[R$],Tab_Uderor[Competencia],Entrada!AL$7,Tab_Uderor[TipoReceita],Entrada!$P27) -> 0 | AM27: =SUMIFS(Tab_Uderor[R$],Tab_Uderor[Competencia],Entrada!AM$7,Tab_Uderor[TipoReceita],Entrada!$P27) -> 0 | AN27: =SUMIFS(Tab_Uderor[R$],Tab_Uderor[Competencia],Entrada!AN$7,Tab_Uderor[TipoReceita],Entrada!$P27) -> 0 | AO27: =SUMIFS(Tab_Uderor[R$],Tab_Uderor[Competencia],Entrada!AO$7,Tab_Uderor[TipoReceita],Entrada!$P27) -> 0 | AP27: =SUMIFS(Tab_Uderor[R$],Tab_Uderor[Competencia],Entrada!AP$7,Tab_Uderor[TipoReceita],Entrada!$P27) -> 0 | AQ27: =SUMIFS(Tab_Uderor[R$],Tab_Uderor[Competencia],Entrada!AQ$7,Tab_Uderor[TipoReceita],Entrada!$P27) -> 0 | AR27: =SUMIFS(Tab_Uderor[R$],Tab_Uderor[Competencia],Entrada!AR$7,Tab_Uderor[TipoReceita],Entrada!$P27) -> 0 | AS27: =SUMIFS(Tab_Uderor[R$],Tab_Uderor[Competencia],Entrada!AS$7,Tab_Uderor[TipoReceita],Entrada!$P27) -> 0 | AT27: =SUMIFS(Tab_Uderor[R$],Tab_Uderor[Competencia],Entrada!AT$7,Tab_Uderor[TipoReceita],Entrada!$P27) -> 0 | AU27: =SUMIFS(Tab_Uderor[R$],Tab_Uderor[Competencia],Entrada!AU$7,Tab_Uderor[TipoReceita],Entrada!$P27) -> 0 | AV27: =SUMIFS(Tab_Uderor[R$],Tab_Uderor[Competencia],Entrada!AV$7,Tab_Uderor[TipoReceita],Entrada!$P27) -> 0 | AW27: =SUMIFS(Tab_Uderor[R$],Tab_Uderor[Competencia],Entrada!AW$7,Tab_Uderor[TipoReceita],Entrada!$P27) -> 0 | AX27: =SUMIFS(Tab_Uderor[R$],Tab_Uderor[Competencia],Entrada!AX$7,Tab_Uderor[TipoReceita],Entrada!$P27) -> 0 | AY27: =SUMIFS(Tab_Uderor[R$],Tab_Uderor[Competencia],Entrada!AY$7,Tab_Uderor[TipoReceita],Entrada!$P27) -> 0 | AZ27: =SUMIFS(Tab_Uderor[R$],Tab_Uderor[Competencia],Entrada!AZ$7,Tab_Uderor[TipoReceita],Entrada!$P27) -> 0
F28: =Indexador!E132 -> Despesa 2021 | G28: 72337 | J28: RIT - RP 800 - Célula F23 | K28: Serviços de Informática | L28: =SUMIFS(Tab_RIT_BMP[SALDO],Tab_RIT_BMP[CONTA],4,Tab_RIT_BMP[ANO],$L$7)+SUMIFS(Tab_RIT_BMP[SALDO],Tab_RIT_BMP[CONTA],5,Tab_RIT_BMP[ANO],$L$7) -> 568724.54 | M28: =SUMIFS(Tab_RIT_BMP[SALDO],Tab_RIT_BMP[CONTA],4,Tab_RIT_BMP[ANO],$M$7)+SUMIFS(Tab_RIT_BMP[SALDO],Tab_RIT_BMP[CONTA],5,Tab_RIT_BMP[ANO],$M$7) -> 510541.87 | P28: Serviços de comunicação de dados | Q28: =SUMIFS(Tab_Uderor[R$],Tab_Uderor[Competencia],Entrada!Q$7,Tab_Uderor[TipoReceita],Entrada!$P28) -> 0 | R28: =SUMIFS(Tab_Uderor[R$],Tab_Uderor[Competencia],Entrada!R$7,Tab_Uderor[TipoReceita],Entrada!$P28) -> 0 | S28: =SUMIFS(Tab_Uderor[R$],Tab_Uderor[Competencia],Entrada!S$7,Tab_Uderor[TipoReceita],Entrada!$P28) -> 0 | T28: =SUMIFS(Tab_Uderor[R$],Tab_Uderor[Competencia],Entrada!T$7,Tab_Uderor[TipoReceita],Entrada!$P28) -> 0 | U28: =SUMIFS(Tab_Uderor[R$],Tab_Uderor[Competencia],Entrada!U$7,Tab_Uderor[TipoReceita],Entrada!$P28) -> 0 | V28: =SUMIFS(Tab_Uderor[R$],Tab_Uderor[Competencia],Entrada!V$7,Tab_Uderor[TipoReceita],Entrada!$P28) -> 0 | W28: =SUMIFS(Tab_Uderor[R$],Tab_Uderor[Competencia],Entrada!W$7,Tab_Uderor[TipoReceita],Entrada!$P28) -> 0 | X28: =SUMIFS(Tab_Uderor[R$],Tab_Uderor[Competencia],Entrada!X$7,Tab_Uderor[TipoReceita],Entrada!$P28) -> 0 | Y28: =SUMIFS(Tab_Uderor[R$],Tab_Uderor[Competencia],Entrada!Y$7,Tab_Uderor[TipoReceita],Entrada!$P28) -> 0 | Z28: =SUMIFS(Tab_Uderor[R$],Tab_Uderor[Competencia],Entrada!Z$7,Tab_Uderor[TipoReceita],Entrada!$P28) -> 0 | AA28: =SUMIFS(Tab_Uderor[R$],Tab_Uderor[Competencia],Entrada!AA$7,Tab_Uderor[TipoReceita],Entrada!$P28) -> 0 | AB28: =SUMIFS(Tab_Uderor[R$],Tab_Uderor[Competencia],Entrada!AB$7,Tab_Uderor[TipoReceita],Entrada!$P28) -> 0 | AC28: =SUMIFS(Tab_Uderor[R$],Tab_Uderor[Competencia],Entrada!AC$7,Tab_Uderor[TipoReceita],Entrada!$P28) -> 0 | AD28: =SUMIFS(Tab_Uderor[R$],Tab_Uderor[Competencia],Entrada!AD$7,Tab_Uderor[TipoReceita],Entrada!$P28) -> 0 | AE28: =SUMIFS(Tab_Uderor[R$],Tab_Uderor[Competencia],Entrada!AE$7,Tab_Uderor[TipoReceita],Entrada!$P28) -> 0 | AF28: =SUMIFS(Tab_Uderor[R$],Tab_Uderor[Competencia],Entrada!AF$7,Tab_Uderor[TipoReceita],Entrada!$P28) -> 0 | AG28: =SUMIFS(Tab_Uderor[R$],Tab_Uderor[Competencia],Entrada!AG$7,Tab_Uderor[TipoReceita],Entrada!$P28) -> 0 | AH28: =SUMIFS(Tab_Uderor[R$],Tab_Uderor[Competencia],Entrada!AH$7,Tab_Uderor[TipoReceita],Entrada!$P28) -> 0 | AI28: =SUMIFS(Tab_Uderor[R$],Tab_Uderor[Competencia],Entrada!AI$7,Tab_Uderor[TipoReceita],Entrada!$P28) -> 0 | AJ28: =SUMIFS(Tab_Uderor[R$],Tab_Uderor[Competencia],Entrada!AJ$7,Tab_Uderor[TipoReceita],Entrada!$P28) -> 0 | AK28: =SUMIFS(Tab_Uderor[R$],Tab_Uderor[Competencia],Entrada!AK$7,Tab_Uderor[TipoReceita],Entrada!$P28) -> 0 | AL28: =SUMIFS(Tab_Uderor[R$],Tab_Uderor[Competencia],Entrada!AL$7,Tab_Uderor[TipoReceita],Entrada!$P28) -> 0 | AM28: =SUMIFS(Tab_Uderor[R$],Tab_Uderor[Competencia],Entrada!AM$7,Tab_Uderor[TipoReceita],Entrada!$P28) -> 0 | AN28: =SUMIFS(Tab_Uderor[R$],Tab_Uderor[Competencia],Entrada!AN$7,Tab_Uderor[TipoReceita],Entrada!$P28) -> 0 | AO28: =SUMIFS(Tab_Uderor[R$],Tab_Uderor[Competencia],Entrada!AO$7,Tab_Uderor[TipoReceita],Entrada!$P28) -> 0 | AP28: =SUMIFS(Tab_Uderor[R$],Tab_Uderor[Competencia],Entrada!AP$7,Tab_Uderor[TipoReceita],Entrada!$P28) -> 0 | AQ28: =SUMIFS(Tab_Uderor[R$],Tab_Uderor[Competencia],Entrada!AQ$7,Tab_Uderor[TipoReceita],Entrada!$P28) -> 0 | AR28: =SUMIFS(Tab_Uderor[R$],Tab_Uderor[Competencia],Entrada!AR$7,Tab_Uderor[TipoReceita],Entrada!$P28) -> 0 | AS28: =SUMIFS(Tab_Uderor[R$],Tab_Uderor[Competencia],Entrada!AS$7,Tab_Uderor[TipoReceita],Entrada!$P28) -> 0 | AT28: =SUMIFS(Tab_Uderor[R$],Tab_Uderor[Competencia],Entrada!AT$7,Tab_Uderor[TipoReceita],Entrada!$P28) -> 0 | AU28: =SUMIFS(Tab_Uderor[R$],Tab_Uderor[Competencia],Entrada!AU$7,Tab_Uderor[TipoReceita],Entrada!$P28) -> 0 | AV28: =SUMIFS(Tab_Uderor[R$],Tab_Uderor[Competencia],Entrada!AV$7,Tab_Uderor[TipoReceita],Entrada!$P28) -> 0 | AW28: =SUMIFS(Tab_Uderor[R$],Tab_Uderor[Competencia],Entrada!AW$7,Tab_Uderor[TipoReceita],Entrada!$P28) -> 0 | AX28: =SUMIFS(Tab_Uderor[R$],Tab_Uderor[Competencia],Entrada!AX$7,Tab_Uderor[TipoReceita],Entrada!$P28) -> 0 | AY28: =SUMIFS(Tab_Uderor[R$],Tab_Uderor[Competencia],Entrada!AY$7,Tab_Uderor[TipoReceita],Entrada!$P28) -> 0 | AZ28: =SUMIFS(Tab_Uderor[R$],Tab_Uderor[Competencia],Entrada!AZ$7,Tab_Uderor[TipoReceita],Entrada!$P28) -> 0
F29: =Indexador!F132 -> Despesa 2020 | G29: 89610 | J29: RIT - RP 800 - Célula F26 | K29: Viagens (Passagens Aéreas, etc) | L29: =SUMIFS(Tab_RIT_BMP[SALDO],Tab_RIT_BMP[CONTA],6,Tab_RIT_BMP[ANO],$L$7) -> 3313620.56 | M29: =SUMIFS(Tab_RIT_BMP[SALDO],Tab_RIT_BMP[CONTA],6,Tab_RIT_BMP[ANO],$M$7) -> 3862207.92 | P29: Serviços de consultoria | Q29: =SUMIFS(Tab_Uderor[R$],Tab_Uderor[Competencia],Entrada!Q$7,Tab_Uderor[TipoReceita],Entrada!$P29) -> 0 | R29: =SUMIFS(Tab_Uderor[R$],Tab_Uderor[Competencia],Entrada!R$7,Tab_Uderor[TipoReceita],Entrada!$P29) -> 0 | S29: =SUMIFS(Tab_Uderor[R$],Tab_Uderor[Competencia],Entrada!S$7,Tab_Uderor[TipoReceita],Entrada!$P29) -> 0 | T29: =SUMIFS(Tab_Uderor[R$],Tab_Uderor[Competencia],Entrada!T$7,Tab_Uderor[TipoReceita],Entrada!$P29) -> 0 | U29: =SUMIFS(Tab_Uderor[R$],Tab_Uderor[Competencia],Entrada!U$7,Tab_Uderor[TipoReceita],Entrada!$P29) -> 0 | V29: =SUMIFS(Tab_Uderor[R$],Tab_Uderor[Competencia],Entrada!V$7,Tab_Uderor[TipoReceita],Entrada!$P29) -> 0 | W29: =SUMIFS(Tab_Uderor[R$],Tab_Uderor[Competencia],Entrada!W$7,Tab_Uderor[TipoReceita],Entrada!$P29) -> 0 | X29: =SUMIFS(Tab_Uderor[R$],Tab_Uderor[Competencia],Entrada!X$7,Tab_Uderor[TipoReceita],Entrada!$P29) -> 0 | Y29: =SUMIFS(Tab_Uderor[R$],Tab_Uderor[Competencia],Entrada!Y$7,Tab_Uderor[TipoReceita],Entrada!$P29) -> 0 | Z29: =SUMIFS(Tab_Uderor[R$],Tab_Uderor[Competencia],Entrada!Z$7,Tab_Uderor[TipoReceita],Entrada!$P29) -> 0 | AA29: =SUMIFS(Tab_Uderor[R$],Tab_Uderor[Competencia],Entrada!AA$7,Tab_Uderor[TipoReceita],Entrada!$P29) -> 0 | AB29: =SUMIFS(Tab_Uderor[R$],Tab_Uderor[Competencia],Entrada!AB$7,Tab_Uderor[TipoReceita],Entrada!$P29) -> 0 | AC29: =SUMIFS(Tab_Uderor[R$],Tab_Uderor[Competencia],Entrada!AC$7,Tab_Uderor[TipoReceita],Entrada!$P29) -> 0 | AD29: =SUMIFS(Tab_Uderor[R$],Tab_Uderor[Competencia],Entrada!AD$7,Tab_Uderor[TipoReceita],Entrada!$P29) -> 0 | AE29: =SUMIFS(Tab_Uderor[R$],Tab_Uderor[Competencia],Entrada!AE$7,Tab_Uderor[TipoReceita],Entrada!$P29) -> 0 | AF29: =SUMIFS(Tab_Uderor[R$],Tab_Uderor[Competencia],Entrada!AF$7,Tab_Uderor[TipoReceita],Entrada!$P29) -> 0 | AG29: =SUMIFS(Tab_Uderor[R$],Tab_Uderor[Competencia],Entrada!AG$7,Tab_Uderor[TipoReceita],Entrada!$P29) -> 0 | AH29: =SUMIFS(Tab_Uderor[R$],Tab_Uderor[Competencia],Entrada!AH$7,Tab_Uderor[TipoReceita],Entrada!$P29) -> 0 | AI29: =SUMIFS(Tab_Uderor[R$],Tab_Uderor[Competencia],Entrada!AI$7,Tab_Uderor[TipoReceita],Entrada!$P29) -> 0 | AJ29: =SUMIFS(Tab_Uderor[R$],Tab_Uderor[Competencia],Entrada!AJ$7,Tab_Uderor[TipoReceita],Entrada!$P29) -> 0 | AK29: =SUMIFS(Tab_Uderor[R$],Tab_Uderor[Competencia],Entrada!AK$7,Tab_Uderor[TipoReceita],Entrada!$P29) -> 0 | AL29: =SUMIFS(Tab_Uderor[R$],Tab_Uderor[Competencia],Entrada!AL$7,Tab_Uderor[TipoReceita],Entrada!$P29) -> 0 | AM29: =SUMIFS(Tab_Uderor[R$],Tab_Uderor[Competencia],Entrada!AM$7,Tab_Uderor[TipoReceita],Entrada!$P29) -> 0 | AN29: =SUMIFS(Tab_Uderor[R$],Tab_Uderor[Competencia],Entrada!AN$7,Tab_Uderor[TipoReceita],Entrada!$P29) -> 0 | AO29: =SUMIFS(Tab_Uderor[R$],Tab_Uderor[Competencia],Entrada!AO$7,Tab_Uderor[TipoReceita],Entrada!$P29) -> 0 | AP29: =SUMIFS(Tab_Uderor[R$],Tab_Uderor[Competencia],Entrada!AP$7,Tab_Uderor[TipoReceita],Entrada!$P29) -> 0 | AQ29: =SUMIFS(Tab_Uderor[R$],Tab_Uderor[Competencia],Entrada!AQ$7,Tab_Uderor[TipoReceita],Entrada!$P29) -> 0 | AR29: =SUMIFS(Tab_Uderor[R$],Tab_Uderor[Competencia],Entrada!AR$7,Tab_Uderor[TipoReceita],Entrada!$P29) -> 0 | AS29: =SUMIFS(Tab_Uderor[R$],Tab_Uderor[Competencia],Entrada!AS$7,Tab_Uderor[TipoReceita],Entrada!$P29) -> 0 | AT29: =SUMIFS(Tab_Uderor[R$],Tab_Uderor[Competencia],Entrada!AT$7,Tab_Uderor[TipoReceita],Entrada!$P29) -> 0 | AU29: =SUMIFS(Tab_Uderor[R$],Tab_Uderor[Competencia],Entrada!AU$7,Tab_Uderor[TipoReceita],Entrada!$P29) -> 0 | AV29: =SUMIFS(Tab_Uderor[R$],Tab_Uderor[Competencia],Entrada!AV$7,Tab_Uderor[TipoReceita],Entrada!$P29) -> 0 | AW29: =SUMIFS(Tab_Uderor[R$],Tab_Uderor[Competencia],Entrada!AW$7,Tab_Uderor[TipoReceita],Entrada!$P29) -> 0 | AX29: =SUMIFS(Tab_Uderor[R$],Tab_Uderor[Competencia],Entrada!AX$7,Tab_Uderor[TipoReceita],Entrada!$P29) -> 0 | AY29: =SUMIFS(Tab_Uderor[R$],Tab_Uderor[Competencia],Entrada!AY$7,Tab_Uderor[TipoReceita],Entrada!$P29) -> 0 | AZ29: =SUMIFS(Tab_Uderor[R$],Tab_Uderor[Competencia],Entrada!AZ$7,Tab_Uderor[TipoReceita],Entrada!$P29) -> 0
F30: =Indexador!G132 -> Despesa 2019 | G30: 246077 | J30: RIT - RP 800 - Célula F27 | K30: Transportes (inclui Fretes) | L30: =SUMIFS(Tab_RIT_BMP[SALDO],Tab_RIT_BMP[CONTA],7,Tab_RIT_BMP[ANO],$L$7) -> 13135858.5 | M30: =SUMIFS(Tab_RIT_BMP[SALDO],Tab_RIT_BMP[CONTA],7,Tab_RIT_BMP[ANO],$M$7) -> 3558877.3 | P30: Receita proveniente da comercialização de resultados de projetos de P&D COM comprovação | Q30: =SUMIFS(Tab_Uderor[R$],Tab_Uderor[Competencia],Entrada!Q$7,Tab_Uderor[TipoReceita],Entrada!$P30) -> 0 | R30: =SUMIFS(Tab_Uderor[R$],Tab_Uderor[Competencia],Entrada!R$7,Tab_Uderor[TipoReceita],Entrada!$P30) -> 0 | S30: =SUMIFS(Tab_Uderor[R$],Tab_Uderor[Competencia],Entrada!S$7,Tab_Uderor[TipoReceita],Entrada!$P30) -> 0 | T30: =SUMIFS(Tab_Uderor[R$],Tab_Uderor[Competencia],Entrada!T$7,Tab_Uderor[TipoReceita],Entrada!$P30) -> 0 | U30: =SUMIFS(Tab_Uderor[R$],Tab_Uderor[Competencia],Entrada!U$7,Tab_Uderor[TipoReceita],Entrada!$P30) -> 0 | V30: =SUMIFS(Tab_Uderor[R$],Tab_Uderor[Competencia],Entrada!V$7,Tab_Uderor[TipoReceita],Entrada!$P30) -> 0 | W30: =SUMIFS(Tab_Uderor[R$],Tab_Uderor[Competencia],Entrada!W$7,Tab_Uderor[TipoReceita],Entrada!$P30) -> 0 | X30: =SUMIFS(Tab_Uderor[R$],Tab_Uderor[Competencia],Entrada!X$7,Tab_Uderor[TipoReceita],Entrada!$P30) -> 0 | Y30: =SUMIFS(Tab_Uderor[R$],Tab_Uderor[Competencia],Entrada!Y$7,Tab_Uderor[TipoReceita],Entrada!$P30) -> 0 | Z30: =SUMIFS(Tab_Uderor[R$],Tab_Uderor[Competencia],Entrada!Z$7,Tab_Uderor[TipoReceita],Entrada!$P30) -> 0 | AA30: =SUMIFS(Tab_Uderor[R$],Tab_Uderor[Competencia],Entrada!AA$7,Tab_Uderor[TipoReceita],Entrada!$P30) -> 0 | AB30: =SUMIFS(Tab_Uderor[R$],Tab_Uderor[Competencia],Entrada!AB$7,Tab_Uderor[TipoReceita],Entrada!$P30) -> 0 | AC30: =SUMIFS(Tab_Uderor[R$],Tab_Uderor[Competencia],Entrada!AC$7,Tab_Uderor[TipoReceita],Entrada!$P30) -> 0 | AD30: =SUMIFS(Tab_Uderor[R$],Tab_Uderor[Competencia],Entrada!AD$7,Tab_Uderor[TipoReceita],Entrada!$P30) -> 0 | AE30: =SUMIFS(Tab_Uderor[R$],Tab_Uderor[Competencia],Entrada!AE$7,Tab_Uderor[TipoReceita],Entrada!$P30) -> 0 | AF30: =SUMIFS(Tab_Uderor[R$],Tab_Uderor[Competencia],Entrada!AF$7,Tab_Uderor[TipoReceita],Entrada!$P30) -> 0 | AG30: =SUMIFS(Tab_Uderor[R$],Tab_Uderor[Competencia],Entrada!AG$7,Tab_Uderor[TipoReceita],Entrada!$P30) -> 0 | AH30: =SUMIFS(Tab_Uderor[R$],Tab_Uderor[Competencia],Entrada!AH$7,Tab_Uderor[TipoReceita],Entrada!$P30) -> 0 | AI30: =SUMIFS(Tab_Uderor[R$],Tab_Uderor[Competencia],Entrada!AI$7,Tab_Uderor[TipoReceita],Entrada!$P30) -> 0 | AJ30: =SUMIFS(Tab_Uderor[R$],Tab_Uderor[Competencia],Entrada!AJ$7,Tab_Uderor[TipoReceita],Entrada!$P30) -> 0 | AK30: =SUMIFS(Tab_Uderor[R$],Tab_Uderor[Competencia],Entrada!AK$7,Tab_Uderor[TipoReceita],Entrada!$P30) -> 0 | AL30: =SUMIFS(Tab_Uderor[R$],Tab_Uderor[Competencia],Entrada!AL$7,Tab_Uderor[TipoReceita],Entrada!$P30) -> 0 | AM30: =SUMIFS(Tab_Uderor[R$],Tab_Uderor[Competencia],Entrada!AM$7,Tab_Uderor[TipoReceita],Entrada!$P30) -> 0 | AN30: =SUMIFS(Tab_Uderor[R$],Tab_Uderor[Competencia],Entrada!AN$7,Tab_Uderor[TipoReceita],Entrada!$P30) -> 0 | AO30: =SUMIFS(Tab_Uderor[R$],Tab_Uderor[Competencia],Entrada!AO$7,Tab_Uderor[TipoReceita],Entrada!$P30) -> 0 | AP30: =SUMIFS(Tab_Uderor[R$],Tab_Uderor[Competencia],Entrada!AP$7,Tab_Uderor[TipoReceita],Entrada!$P30) -> 0 | AQ30: =SUMIFS(Tab_Uderor[R$],Tab_Uderor[Competencia],Entrada!AQ$7,Tab_Uderor[TipoReceita],Entrada!$P30) -> 0 | AR30: =SUMIFS(Tab_Uderor[R$],Tab_Uderor[Competencia],Entrada!AR$7,Tab_Uderor[TipoReceita],Entrada!$P30) -> 0 | AS30: =SUMIFS(Tab_Uderor[R$],Tab_Uderor[Competencia],Entrada!AS$7,Tab_Uderor[TipoReceita],Entrada!$P30) -> 0 | AT30: =SUMIFS(Tab_Uderor[R$],Tab_Uderor[Competencia],Entrada!AT$7,Tab_Uderor[TipoReceita],Entrada!$P30) -> 0 | AU30: =SUMIFS(Tab_Uderor[R$],Tab_Uderor[Competencia],Entrada!AU$7,Tab_Uderor[TipoReceita],Entrada!$P30) -> 0 | AV30: =SUMIFS(Tab_Uderor[R$],Tab_Uderor[Competencia],Entrada!AV$7,Tab_Uderor[TipoReceita],Entrada!$P30) -> 0 | AW30: =SUMIFS(Tab_Uderor[R$],Tab_Uderor[Competencia],Entrada!AW$7,Tab_Uderor[TipoReceita],Entrada!$P30) -> 0 | AX30: =SUMIFS(Tab_Uderor[R$],Tab_Uderor[Competencia],Entrada!AX$7,Tab_Uderor[TipoReceita],Entrada!$P30) -> 0 | AY30: =SUMIFS(Tab_Uderor[R$],Tab_Uderor[Competencia],Entrada!AY$7,Tab_Uderor[TipoReceita],Entrada!$P30) -> 0 | AZ30: =SUMIFS(Tab_Uderor[R$],Tab_Uderor[Competencia],Entrada!AZ$7,Tab_Uderor[TipoReceita],Entrada!$P30) -> 0
F31: =Indexador!H132 -> Despesa 2018 | G31: 121248 | J31: RIT - RP 800 - Célula F28 | K31: Propaganda e Publicidade (exceto Publicações Oficiais) | L31: =SUMIFS(Tab_RIT_BMP[SALDO],Tab_RIT_BMP[CONTA],8,Tab_RIT_BMP[ANO],$L$7) -> 0 | M31: =SUMIFS(Tab_RIT_BMP[SALDO],Tab_RIT_BMP[CONTA],8,Tab_RIT_BMP[ANO],$M$7) -> 0 | P31: Receita proveniente da comercialização de resultados de projetos de P&D SEM comprovação | Q31: =SUMIFS(Tab_Uderor[R$],Tab_Uderor[Competencia],Entrada!Q$7,Tab_Uderor[TipoReceita],Entrada!$P31) -> 0 | R31: =SUMIFS(Tab_Uderor[R$],Tab_Uderor[Competencia],Entrada!R$7,Tab_Uderor[TipoReceita],Entrada!$P31) -> 0 | S31: =SUMIFS(Tab_Uderor[R$],Tab_Uderor[Competencia],Entrada!S$7,Tab_Uderor[TipoReceita],Entrada!$P31) -> 0 | T31: =SUMIFS(Tab_Uderor[R$],Tab_Uderor[Competencia],Entrada!T$7,Tab_Uderor[TipoReceita],Entrada!$P31) -> 0 | U31: =SUMIFS(Tab_Uderor[R$],Tab_Uderor[Competencia],Entrada!U$7,Tab_Uderor[TipoReceita],Entrada!$P31) -> 0 | V31: =SUMIFS(Tab_Uderor[R$],Tab_Uderor[Competencia],Entrada!V$7,Tab_Uderor[TipoReceita],Entrada!$P31) -> 0 | W31: =SUMIFS(Tab_Uderor[R$],Tab_Uderor[Competencia],Entrada!W$7,Tab_Uderor[TipoReceita],Entrada!$P31) -> 0 | X31: =SUMIFS(Tab_Uderor[R$],Tab_Uderor[Competencia],Entrada!X$7,Tab_Uderor[TipoReceita],Entrada!$P31) -> 0 | Y31: =SUMIFS(Tab_Uderor[R$],Tab_Uderor[Competencia],Entrada!Y$7,Tab_Uderor[TipoReceita],Entrada!$P31) -> 0 | Z31: =SUMIFS(Tab_Uderor[R$],Tab_Uderor[Competencia],Entrada!Z$7,Tab_Uderor[TipoReceita],Entrada!$P31) -> 0 | AA31: =SUMIFS(Tab_Uderor[R$],Tab_Uderor[Competencia],Entrada!AA$7,Tab_Uderor[TipoReceita],Entrada!$P31) -> 0 | AB31: =SUMIFS(Tab_Uderor[R$],Tab_Uderor[Competencia],Entrada!AB$7,Tab_Uderor[TipoReceita],Entrada!$P31) -> 0 | AC31: =SUMIFS(Tab_Uderor[R$],Tab_Uderor[Competencia],Entrada!AC$7,Tab_Uderor[TipoReceita],Entrada!$P31) -> 0 | AD31: =SUMIFS(Tab_Uderor[R$],Tab_Uderor[Competencia],Entrada!AD$7,Tab_Uderor[TipoReceita],Entrada!$P31) -> 0 | AE31: =SUMIFS(Tab_Uderor[R$],Tab_Uderor[Competencia],Entrada!AE$7,Tab_Uderor[TipoReceita],Entrada!$P31) -> 0 | AF31: =SUMIFS(Tab_Uderor[R$],Tab_Uderor[Competencia],Entrada!AF$7,Tab_Uderor[TipoReceita],Entrada!$P31) -> 0 | AG31: =SUMIFS(Tab_Uderor[R$],Tab_Uderor[Competencia],Entrada!AG$7,Tab_Uderor[TipoReceita],Entrada!$P31) -> 0 | AH31: =SUMIFS(Tab_Uderor[R$],Tab_Uderor[Competencia],Entrada!AH$7,Tab_Uderor[TipoReceita],Entrada!$P31) -> 0 | AI31: =SUMIFS(Tab_Uderor[R$],Tab_Uderor[Competencia],Entrada!AI$7,Tab_Uderor[TipoReceita],Entrada!$P31) -> 0 | AJ31: =SUMIFS(Tab_Uderor[R$],Tab_Uderor[Competencia],Entrada!AJ$7,Tab_Uderor[TipoReceita],Entrada!$P31) -> 0 | AK31: =SUMIFS(Tab_Uderor[R$],Tab_Uderor[Competencia],Entrada!AK$7,Tab_Uderor[TipoReceita],Entrada!$P31) -> 0 | AL31: =SUMIFS(Tab_Uderor[R$],Tab_Uderor[Competencia],Entrada!AL$7,Tab_Uderor[TipoReceita],Entrada!$P31) -> 0 | AM31: =SUMIFS(Tab_Uderor[R$],Tab_Uderor[Competencia],Entrada!AM$7,Tab_Uderor[TipoReceita],Entrada!$P31) -> 0 | AN31: =SUMIFS(Tab_Uderor[R$],Tab_Uderor[Competencia],Entrada!AN$7,Tab_Uderor[TipoReceita],Entrada!$P31) -> 0 | AO31: =SUMIFS(Tab_Uderor[R$],Tab_Uderor[Competencia],Entrada!AO$7,Tab_Uderor[TipoReceita],Entrada!$P31) -> 0 | AP31: =SUMIFS(Tab_Uderor[R$],Tab_Uderor[Competencia],Entrada!AP$7,Tab_Uderor[TipoReceita],Entrada!$P31) -> 0 | AQ31: =SUMIFS(Tab_Uderor[R$],Tab_Uderor[Competencia],Entrada!AQ$7,Tab_Uderor[TipoReceita],Entrada!$P31) -> 0 | AR31: =SUMIFS(Tab_Uderor[R$],Tab_Uderor[Competencia],Entrada!AR$7,Tab_Uderor[TipoReceita],Entrada!$P31) -> 0 | AS31: =SUMIFS(Tab_Uderor[R$],Tab_Uderor[Competencia],Entrada!AS$7,Tab_Uderor[TipoReceita],Entrada!$P31) -> 0 | AT31: =SUMIFS(Tab_Uderor[R$],Tab_Uderor[Competencia],Entrada!AT$7,Tab_Uderor[TipoReceita],Entrada!$P31) -> 0 | AU31: =SUMIFS(Tab_Uderor[R$],Tab_Uderor[Competencia],Entrada!AU$7,Tab_Uderor[TipoReceita],Entrada!$P31) -> 0 | AV31: =SUMIFS(Tab_Uderor[R$],Tab_Uderor[Competencia],Entrada!AV$7,Tab_Uderor[TipoReceita],Entrada!$P31) -> 0 | AW31: =SUMIFS(Tab_Uderor[R$],Tab_Uderor[Competencia],Entrada!AW$7,Tab_Uderor[TipoReceita],Entrada!$P31) -> 0 | AX31: =SUMIFS(Tab_Uderor[R$],Tab_Uderor[Competencia],Entrada!AX$7,Tab_Uderor[TipoReceita],Entrada!$P31) -> 0 | AY31: =SUMIFS(Tab_Uderor[R$],Tab_Uderor[Competencia],Entrada!AY$7,Tab_Uderor[TipoReceita],Entrada!$P31) -> 0 | AZ31: =SUMIFS(Tab_Uderor[R$],Tab_Uderor[Competencia],Entrada!AZ$7,Tab_Uderor[TipoReceita],Entrada!$P31) -> 0
F32: Perdas Regulatórias | J32: RIT - RP 800 - Célula F29 | K32: Publicações Oficiais | L32: =SUMIFS(Tab_RIT_BMP[SALDO],Tab_RIT_BMP[CONTA],9,Tab_RIT_BMP[ANO],$L$7) -> 1874.73 | M32: =SUMIFS(Tab_RIT_BMP[SALDO],Tab_RIT_BMP[CONTA],9,Tab_RIT_BMP[ANO],$M$7) -> 5779.44
F33: Perdas Não Técnicas | G33: 0.06893260084 | H33: 45013 | J33: RIT - RP 800 - Célula F30 | K33: Serviço de Engenharia e Supervisão de Obras | L33: =SUMIFS(Tab_RIT_BMP[SALDO],Tab_RIT_BMP[CONTA],10,Tab_RIT_BMP[ANO],$L$7) -> 0 | M33: =SUMIFS(Tab_RIT_BMP[SALDO],Tab_RIT_BMP[CONTA],10,Tab_RIT_BMP[ANO],$M$7) -> 0 | P33: Ultrapassagem de demanda e Excedente de reativos | Q33: Competência Final UDER | R33: =IF(CAPA!C7="Revisão",(DATE(YEAR('VPB e Fator X'!C10),MONTH('VPB e Fator X'!C10),1)),0) -> 44835
F34: Perdas Técnicas | G34: 0.08690014456 | J34: RIT - RP 800 - Célula F31 | K34: Gestão Comercial | L34: =SUMIFS(Tab_RIT_BMP[SALDO],Tab_RIT_BMP[CONTA],11,Tab_RIT_BMP[ANO],$L$7) -> 16918494.13 | M34: =SUMIFS(Tab_RIT_BMP[SALDO],Tab_RIT_BMP[CONTA],11,Tab_RIT_BMP[ANO],$M$7) -> 20786978.84 | Q34: 60 | R34: =Q34-1 -> 59 | S34: =R34-1 -> 58 | T34: 57 | U34: 56 | V34: 55 | W34: 54 | X34: 53 | Y34: 52 | Z34: 51 | AA34: 50 | AB34: 49 | AC34: 48 | AD34: 47 | AE34: 46 | AF34: 45 | AG34: 44 | AH34: 43 | AI34: 42 | AJ34: 41 | AK34: 40 | AL34: 39 | AM34: 38 | AN34: 37 | AO34: 36 | AP34: 35 | AQ34: 34 | AR34: 33 | AS34: 32 | AT34: 31 | AU34: 30 | AV34: 29 | AW34: 28 | AX34: 27 | AY34: 26 | AZ34: 25 | BA34: 24 | BB34: 23 | BC34: 22 | BD34: 21 | BE34: 20 | BF34: 19 | BG34: 18 | BH34: 17 | BI34: 16 | BJ34: 15 | BK34: 14 | BL34: 13 | BM34: =BL34-1 -> 12 | BN34: 11 | BO34: 10 | BP34: 9 | BQ34: 8 | BR34: 7 | BS34: 6 | BT34: 5 | BU34: 4 | BV34: 3 | BW34: 2 | BX34: 1
J35: RIT - RP 800 - Célula F32 | K35: Outros Serviços Terceirizados | L35: =SUMIFS(Tab_RIT_BMP[SALDO],Tab_RIT_BMP[CONTA],12,Tab_RIT_BMP[ANO],$L$7) -> 34263135.85 | M35: =SUMIFS(Tab_RIT_BMP[SALDO],Tab_RIT_BMP[CONTA],12,Tab_RIT_BMP[ANO],$M$7) -> 31947203.38 | P35: Tipo de Receita | Q35: =$R$33 -> 2022-10-01 | R35: =DATE(YEAR(Q35),MONTH(Q35)-1,1) -> 2022-09-01 | S35: =DATE(YEAR(R35),MONTH(R35)-1,1) -> 2022-08-01 | T35: 2022-07-01 | U35: 2022-06-01 | V35: 2022-05-01 | W35: 2022-04-01 | X35: 2022-03-01 | Y35: 2022-02-01 | Z35: 2022-01-01 | AA35: 2021-12-01 | AB35: 2021-11-01 | AC35: 2021-10-01 | AD35: 2021-09-01 | AE35: 2021-08-01 | AF35: 2021-07-01 | AG35: 2021-06-01 | AH35: 2021-05-01 | AI35: 2021-04-01 | AJ35: 2021-03-01 | AK35: 2021-02-01 | AL35: 2021-01-01 | AM35: 2020-12-01 | AN35: 2020-11-01 | AO35: 2020-10-01 | AP35: 2020-09-01 | AQ35: 2020-08-01 | AR35: 2020-07-01 | AS35: 2020-06-01 | AT35: 2020-05-01 | AU35: 2020-04-01 | AV35: 2020-03-01 | AW35: 2020-02-01 | AX35: 2020-01-01 | AY35: 2019-12-01 | AZ35: 2019-11-01 | BA35: 2019-10-01 | BB35: 2019-09-01 | BC35: 2019-08-01 | BD35: 2019-07-01 | BE35: 2019-06-01 | BF35: 2019-05-01 | BG35: 2019-04-01 | BH35: 2019-03-01 | BI35: 2019-02-01 | BJ35: 2019-01-01 | BK35: 2018-12-01 | BL35: 2018-11-01 | BM35: =DATE(YEAR(BL35),MONTH(BL35)-1,1) -> 2018-10-01 | BN35: =DATE(YEAR(BM35),MONTH(BM35)-1,1) -> 2018-09-01 | BO35: =DATE(YEAR(BN35),MONTH(BN35)-1,1) -> 2018-08-01 | BP35: =DATE(YEAR(BO35),MONTH(BO35)-1,1) -> 2018-07-01 | BQ35: =DATE(YEAR(BP35),MONTH(BP35)-1,1) -> 2018-06-01 | BR35: =DATE(YEAR(BQ35),MONTH(BQ35)-1,1) -> 2018-05-01 | BS35: =DATE(YEAR(BR35),MONTH(BR35)-1,1) -> 2018-04-01 | BT35: =DATE(YEAR(BS35),MONTH(BS35)-1,1) -> 2018-03-01 | BU35: =DATE(YEAR(BT35),MONTH(BT35)-1,1) -> 2018-02-01 | BV35: =DATE(YEAR(BU35),MONTH(BU35)-1,1) -> 2018-01-01 | BW35: =DATE(YEAR(BV35),MONTH(BV35)-1,1) -> 2017-12-01 | BX35: =DATE(YEAR(BW35),MONTH(BW35)-1,1) -> 2017-11-01
F36: Dados da Revisão Anterior - Componente Pd | J36: RIT - RP 800 - Célula F33 - BMP - 610530810,610550810,610532810,610552810 | K36: (-) Créditos de Tributos Recuperáveis | L36: =SUMIFS(Tab_RIT_BMP[SALDO],Tab_RIT_BMP[CONTA],610530810,Tab_RIT_BMP[ANO],$L$7)+SUMIFS(Tab_RIT_BMP[SALDO],Tab_RIT_BMP[CONTA],610550810,Tab_RIT_BMP[ANO],$L$7)+ SUMIFS(Tab_RIT_BMP[SALDO],Tab_RIT_BMP[CONTA],610532810,Tab_RIT_BMP[ANO],$L$7)+SUMIFS(Tab_RIT_BMP[SALDO],Tab_RIT_BMP[CONTA],610552810,Tab_RIT_BMP[ANO],$L$7) -> -6572044.29 | M36: =SUMIFS(Tab_RIT_BMP[SALDO],Tab_RIT_BMP[CONTA],610530810,Tab_RIT_BMP[ANO],$M$7)+SUMIFS(Tab_RIT_BMP[SALDO],Tab_RIT_BMP[CONTA],610550810,Tab_RIT_BMP[ANO],$M$7)+ SUMIFS(Tab_RIT_BMP[SALDO],Tab_RIT_BMP[CONTA],610532810,Tab_RIT_BMP[ANO],$M$7)+SUMIFS(Tab_RIT_BMP[SALDO],Tab_RIT_BMP[CONTA],610552810,Tab_RIT_BMP[ANO],$M$7) -> -7346870.34 | P36: Ultrapassagem de Demanda | Q36: =SUMIFS(Tab_Uderor[R$],Tab_Uderor[Competencia],Entrada!Q35,Tab_Uderor[TipoReceita],Entrada!$P36) -> 6861027.98 | R36: =SUMIFS(Tab_Uderor[R$],Tab_Uderor[Competencia],Entrada!R35,Tab_Uderor[TipoReceita],Entrada!$P36) -> 5706407.97 | S36: =SUMIFS(Tab_Uderor[R$],Tab_Uderor[Competencia],Entrada!S35,Tab_Uderor[TipoReceita],Entrada!$P36) -> 5786196.46 | T36: =SUMIFS(Tab_Uderor[R$],Tab_Uderor[Competencia],Entrada!T35,Tab_Uderor[TipoReceita],Entrada!$P36) -> 6652760.18 | U36: =SUMIFS(Tab_Uderor[R$],Tab_Uderor[Competencia],Entrada!U35,Tab_Uderor[TipoReceita],Entrada!$P36) -> 5358131.38 | V36: =SUMIFS(Tab_Uderor[R$],Tab_Uderor[Competencia],Entrada!V35,Tab_Uderor[TipoReceita],Entrada!$P36) -> 4572080.08 | W36: =SUMIFS(Tab_Uderor[R$],Tab_Uderor[Competencia],Entrada!W35,Tab_Uderor[TipoReceita],Entrada!$P36) -> 4235264.48 | X36: =SUMIFS(Tab_Uderor[R$],Tab_Uderor[Competencia],Entrada!X35,Tab_Uderor[TipoReceita],Entrada!$P36) -> 4546379.1 | Y36: =SUMIFS(Tab_Uderor[R$],Tab_Uderor[Competencia],Entrada!Y35,Tab_Uderor[TipoReceita],Entrada!$P36) -> 3679481.94 | Z36: =SUMIFS(Tab_Uderor[R$],Tab_Uderor[Competencia],Entrada!Z35,Tab_Uderor[TipoReceita],Entrada!$P36) -> 4175343.25 | AA36: =SUMIFS(Tab_Uderor[R$],Tab_Uderor[Competencia],Entrada!AA35,Tab_Uderor[TipoReceita],Entrada!$P36) -> 4288766.76 | AB36: =SUMIFS(Tab_Uderor[R$],Tab_Uderor[Competencia],Entrada!AB35,Tab_Uderor[TipoReceita],Entrada!$P36) -> 4568117.27 | AC36: =SUMIFS(Tab_Uderor[R$],Tab_Uderor[Competencia],Entrada!AC35,Tab_Uderor[TipoReceita],Entrada!$P36) -> 5140113.39 | AD36: =SUMIFS(Tab_Uderor[R$],Tab_Uderor[Competencia],Entrada!AD35,Tab_Uderor[TipoReceita],Entrada!$P36) -> 4508725.16 | AE36: =SUMIFS(Tab_Uderor[R$],Tab_Uderor[Competencia],Entrada!AE35,Tab_Uderor[TipoReceita],Entrada!$P36) -> 4684549.44 | AF36: =SUMIFS(Tab_Uderor[R$],Tab_Uderor[Competencia],Entrada!AF35,Tab_Uderor[TipoReceita],Entrada!$P36) -> 4028137.54 | AG36: =SUMIFS(Tab_Uderor[R$],Tab_Uderor[Competencia],Entrada!AG35,Tab_Uderor[TipoReceita],Entrada!$P36) -> 2821095.37 | AH36: =SUMIFS(Tab_Uderor[R$],Tab_Uderor[Competencia],Entrada!AH35,Tab_Uderor[TipoReceita],Entrada!$P36) -> 3608137.51 | AI36: =SUMIFS(Tab_Uderor[R$],Tab_Uderor[Competencia],Entrada!AI35,Tab_Uderor[TipoReceita],Entrada!$P36) -> 2649449.6 | AJ36: =SUMIFS(Tab_Uderor[R$],Tab_Uderor[Competencia],Entrada!AJ35,Tab_Uderor[TipoReceita],Entrada!$P36) -> 4412099.38 | AK36: =SUMIFS(Tab_Uderor[R$],Tab_Uderor[Competencia],Entrada!AK35,Tab_Uderor[TipoReceita],Entrada!$P36) -> 3760373.57 | AL36: =SUMIFS(Tab_Uderor[R$],Tab_Uderor[Competencia],Entrada!AL35,Tab_Uderor[TipoReceita],Entrada!$P36) -> 3682461.1 | AM36: =SUMIFS(Tab_Uderor[R$],Tab_Uderor[Competencia],Entrada!AM35,Tab_Uderor[TipoReceita],Entrada!$P36) -> 4617769.26 | AN36: =SUMIFS(Tab_Uderor[R$],Tab_Uderor[Competencia],Entrada!AN35,Tab_Uderor[TipoReceita],Entrada!$P36) -> 4385986.78 | AO36: 4404460.519 | AP36: 3848986.01 | AQ36: 3332041.468 | AR36: 3773469.811 | AS36: 3348687.735 | AT36: 2658677.091 | AU36: 3467744.751 | AV36: 3689598.951 | AW36: 4122113.09 | AX36: 3134002.886 | AY36: 2926474.443 | AZ36: 3582247.349 | BA36: 3734369.098 | BB36: 3639284.14 | BC36: 3127537.708 | BD36: 3581797.49 | BE36: 3146121.654 | BF36: 2897524.927 | BG36: 3201186.821 | BH36: 3273586.913 | BI36: 3664798.421 | BJ36: 3687380.97 | BK36: 3585852.019 | BL36: 3144352.058 | BM36: 2712072.531 | BN36: 2751290.34 | BO36: 2325142.231 | BP36: 2863099.84 | BQ36: 2661083.473 | BR36: 2666691.622 | BS36: 2613374.956 | BT36: 2868124.795 | BU36: 2537598.793 | BV36: 2719081.772 | BW36: 2998351.864 | BX36: 3569038.051
F37: Data Base Ativos e Consumidores | G37: 43039 | J37: RIT - RP 800 - Célula F34 - BMP - 610532801,610552801 | K37: Transferências da Administração Central | L37: =SUMIFS(Tab_RIT_BMP[SALDO],Tab_RIT_BMP[CONTA],610532801,Tab_RIT_BMP[ANO],$L$7)+SUMIFS(Tab_RIT_BMP[SALDO],Tab_RIT_BMP[CONTA],610552801,Tab_RIT_BMP[ANO],$M$7) -> 116700708.6 | M37: =SUMIFS(Tab_RIT_BMP[SALDO],Tab_RIT_BMP[CONTA],610532801,Tab_RIT_BMP[ANO],$M$7)+SUMIFS(Tab_RIT_BMP[SALDO],Tab_RIT_BMP[CONTA],610552801,Tab_RIT_BMP[ANO],$L$7) -> 133806265.8 | P37: Excedente Reativo | Q37: =SUMIFS(Tab_Uderor[R$],Tab_Uderor[Competencia],Entrada!Q35,Tab_Uderor[TipoReceita],Entrada!$P37) -> 4478310.75 | R37: =SUMIFS(Tab_Uderor[R$],Tab_Uderor[Competencia],Entrada!R35,Tab_Uderor[TipoReceita],Entrada!$P37) -> 4637553.38 | S37: =SUMIFS(Tab_Uderor[R$],Tab_Uderor[Competencia],Entrada!S35,Tab_Uderor[TipoReceita],Entrada!$P37) -> 4867812.47 | T37: =SUMIFS(Tab_Uderor[R$],Tab_Uderor[Competencia],Entrada!T35,Tab_Uderor[TipoReceita],Entrada!$P37) -> 5128289.55 | U37: =SUMIFS(Tab_Uderor[R$],Tab_Uderor[Competencia],Entrada!U35,Tab_Uderor[TipoReceita],Entrada!$P37) -> 4900305.26 | V37: =SUMIFS(Tab_Uderor[R$],Tab_Uderor[Competencia],Entrada!V35,Tab_Uderor[TipoReceita],Entrada!$P37) -> 4106929.3 | W37: =SUMIFS(Tab_Uderor[R$],Tab_Uderor[Competencia],Entrada!W35,Tab_Uderor[TipoReceita],Entrada!$P37) -> 4377296.56 | X37: =SUMIFS(Tab_Uderor[R$],Tab_Uderor[Competencia],Entrada!X35,Tab_Uderor[TipoReceita],Entrada!$P37) -> 4518904.17 | Y37: =SUMIFS(Tab_Uderor[R$],Tab_Uderor[Competencia],Entrada!Y35,Tab_Uderor[TipoReceita],Entrada!$P37) -> 4163520.36 | Z37: =SUMIFS(Tab_Uderor[R$],Tab_Uderor[Competencia],Entrada!Z35,Tab_Uderor[TipoReceita],Entrada!$P37) -> 4119438.56 | AA37: =SUMIFS(Tab_Uderor[R$],Tab_Uderor[Competencia],Entrada!AA35,Tab_Uderor[TipoReceita],Entrada!$P37) -> 4285714.81 | AB37: =SUMIFS(Tab_Uderor[R$],Tab_Uderor[Competencia],Entrada!AB35,Tab_Uderor[TipoReceita],Entrada!$P37) -> 4357727.29 | AC37: =SUMIFS(Tab_Uderor[R$],Tab_Uderor[Competencia],Entrada!AC35,Tab_Uderor[TipoReceita],Entrada!$P37) -> 4409315.65 | AD37: =SUMIFS(Tab_Uderor[R$],Tab_Uderor[Competencia],Entrada!AD35,Tab_Uderor[TipoReceita],Entrada!$P37) -> 4576736.28 | AE37: =SUMIFS(Tab_Uderor[R$],Tab_Uderor[Competencia],Entrada!AE35,Tab_Uderor[TipoReceita],Entrada!$P37) -> 5097695.62 | AF37: =SUMIFS(Tab_Uderor[R$],Tab_Uderor[Competencia],Entrada!AF35,Tab_Uderor[TipoReceita],Entrada!$P37) -> 4914217.9 | AG37: =SUMIFS(Tab_Uderor[R$],Tab_Uderor[Competencia],Entrada!AG35,Tab_Uderor[TipoReceita],Entrada!$P37) -> 4579584.28 | AH37: =SUMIFS(Tab_Uderor[R$],Tab_Uderor[Competencia],Entrada!AH35,Tab_Uderor[TipoReceita],Entrada!$P37) -> 4678814.46 | AI37: =SUMIFS(Tab_Uderor[R$],Tab_Uderor[Competencia],Entrada!AI35,Tab_Uderor[TipoReceita],Entrada!$P37) -> 3288425.62 | AJ37: =SUMIFS(Tab_Uderor[R$],Tab_Uderor[Competencia],Entrada!AJ35,Tab_Uderor[TipoReceita],Entrada!$P37) -> 4851258 | AK37: =SUMIFS(Tab_Uderor[R$],Tab_Uderor[Competencia],Entrada!AK35,Tab_Uderor[TipoReceita],Entrada!$P37) -> 4488384.05 | AL37: =SUMIFS(Tab_Uderor[R$],Tab_Uderor[Competencia],Entrada!AL35,Tab_Uderor[TipoReceita],Entrada!$P37) -> 4165682.53 | AM37: =SUMIFS(Tab_Uderor[R$],Tab_Uderor[Competencia],Entrada!AM35,Tab_Uderor[TipoReceita],Entrada!$P37) -> 4424398.63 | AN37: =SUMIFS(Tab_Uderor[R$],Tab_Uderor[Competencia],Entrada!AN35,Tab_Uderor[TipoReceita],Entrada!$P37) -> 4369169.61 | AO37: 4457566.331 | AP37: 4428015.43 | AQ37: 4488554.252 | AR37: 4674269.029 | AS37: 4218177.515 | AT37: 3862336.289 | AU37: 4007479.669 | AV37: 4206889.719 | AW37: 4377697 | AX37: 3831449.794 | AY37: 4191571.507 | AZ37: 4101787.411 | BA37: 4374279.612 | BB37: 4328623.82 | BC37: 4744291.592 | BD37: 4925376.35 | BE37: 4358960.696 | BF37: 3783605.653 | BG37: 3562523.809 | BH37: 3646951.507 | BI37: 4112142.069 | BJ37: 3796478.95 | BK37: 3515439.181 | BL37: 3920837.182 | BM37: 3626177.869 | BN37: 3964368.1 | BO37: 3772869.349 | BP37: 3925104.9 | BQ37: 3645315.987 | BR37: 3729546.348 | BS37: 3572029.284 | BT37: 3509308.225 | BU37: 3487599.477 | BV37: 3274421.548 | BW37: 3615840.406 | BX37: 3661556.389
F38: Mercado AT (MWh) | G38: 587451 | K38: Subtotal | L38: =SUM(L25:L37) -> 243790163.2 | M38: =SUM(M25:M37) -> 262501214.6
F39: Mercado MT (MWh) | G39: 2781019 | J39: CONTA SEGUROS | P39: Receitas Irrecuperáveis | Q39: Meses
F40: Mercado BT (MWh) | G40: 5160176 | J40: BMP - 610531001; 610551001; 610533001; 610553001 | K40: Seguros | L40: =SUMIFS(Tab_RIT_BMP[SALDO],Tab_RIT_BMP[CONTA],610531001,Tab_RIT_BMP[ANO],$L$7)+SUMIFS(Tab_RIT_BMP[SALDO],Tab_RIT_BMP[CONTA],610551001,Tab_RIT_BMP[ANO],$L$7)+ SUMIFS(Tab_RIT_BMP[SALDO],Tab_RIT_BMP[CONTA],610533001,Tab_RIT_BMP[ANO],$L$7)+SUMIFS(Tab_RIT_BMP[SALDO],Tab_RIT_BMP[CONTA],610553001,Tab_RIT_BMP[ANO],$L$7) -> 2074531.86 | M40: =SUMIFS(Tab_RIT_BMP[SALDO],Tab_RIT_BMP[CONTA],610531001,Tab_RIT_BMP[ANO],$M$7)+SUMIFS(Tab_RIT_BMP[SALDO],Tab_RIT_BMP[CONTA],610551001,Tab_RIT_BMP[ANO],$M$7)+ SUMIFS(Tab_RIT_BMP[SALDO],Tab_RIT_BMP[CONTA],610533001,Tab_RIT_BMP[ANO],$M$7)+SUMIFS(Tab_RIT_BMP[SALDO],Tab_RIT_BMP[CONTA],610553001,Tab_RIT_BMP[ANO],$M$7) -> 2622500.57 | P40: Faturamento Total | Q40: 49 | R40: 50 | S40: 51 | T40: 52 | U40: 53 | V40: 54 | W40: 55 | X40: 56 | Y40: 57 | Z40: 58 | AA40: 59 | AB40: 60
F41: Número de unidades consumidoras | G41: 1356251 | J41: BMP - 610531099; 610551099; 610533099; 610553099 | K41: Outros | L41: =SUMIFS(Tab_RIT_BMP[SALDO],Tab_RIT_BMP[CONTA],610531099,Tab_RIT_BMP[ANO],$L$7)+SUMIFS(Tab_RIT_BMP[SALDO],Tab_RIT_BMP[CONTA],610551099,Tab_RIT_BMP[ANO],$L$7)+ SUMIFS(Tab_RIT_BMP[SALDO],Tab_RIT_BMP[CONTA],610533099,Tab_RIT_BMP[ANO],$L$7)+SUMIFS(Tab_RIT_BMP[SALDO],Tab_RIT_BMP[CONTA],610553099,Tab_RIT_BMP[ANO],$L$7) -> 0 | M41: =SUMIFS(Tab_RIT_BMP[SALDO],Tab_RIT_BMP[CONTA],610531099,Tab_RIT_BMP[ANO],$M$7)+SUMIFS(Tab_RIT_BMP[SALDO],Tab_RIT_BMP[CONTA],610551099,Tab_RIT_BMP[ANO],$M$7)+ SUMIFS(Tab_RIT_BMP[SALDO],Tab_RIT_BMP[CONTA],610533099,Tab_RIT_BMP[ANO],$M$7)+SUMIFS(Tab_RIT_BMP[SALDO],Tab_RIT_BMP[CONTA],610553099,Tab_RIT_BMP[ANO],$M$7) -> 0 | P41: 1.Residencial | Q41: 200920558.4 | R41: 196062907.8 | S41: 209122928.6 | T41: 158371387.4 | U41: 143796506.7 | V41: 168253615.2 | W41: 172313692.9 | X41: 161939433.1 | Y41: 181128125.6 | Z41: 146197803.7 | AA41: 153751516.2 | AB41: 163527072.3
J42: BMP - 610531010; 610551010; 610533010; 610553010 | K42: (-) Créditos de Tributos Recuperáveis | L42: =SUMIFS(Tab_RIT_BMP[SALDO],Tab_RIT_BMP[CONTA],610531010,Tab_RIT_BMP[ANO],$L$7)+SUMIFS(Tab_RIT_BMP[SALDO],Tab_RIT_BMP[CONTA],610551010,Tab_RIT_BMP[ANO],$L$7)+ SUMIFS(Tab_RIT_BMP[SALDO],Tab_RIT_BMP[CONTA],610533010,Tab_RIT_BMP[ANO],$L$7)+SUMIFS(Tab_RIT_BMP[SALDO],Tab_RIT_BMP[CONTA],610553010,Tab_RIT_BMP[ANO],$L$7) -> 0 | M42: =SUMIFS(Tab_RIT_BMP[SALDO],Tab_RIT_BMP[CONTA],610531010,Tab_RIT_BMP[ANO],$M$7)+SUMIFS(Tab_RIT_BMP[SALDO],Tab_RIT_BMP[CONTA],610551010,Tab_RIT_BMP[ANO],$M$7)+ SUMIFS(Tab_RIT_BMP[SALDO],Tab_RIT_BMP[CONTA],610533010,Tab_RIT_BMP[ANO],$M$7)+SUMIFS(Tab_RIT_BMP[SALDO],Tab_RIT_BMP[CONTA],610553010,Tab_RIT_BMP[ANO],$M$7) -> 0 | P42: 2.Industrial | Q42: 73560158.45 | R42: 72563699.93 | S42: 74996302.19 | T42: 72434218.71 | U42: 68962686.77 | V42: 75125779.68 | W42: 67803355.63 | X42: 67748129.76 | Y42: 63824571.87 | Z42: 62814712.15 | AA42: 58599090.05 | AB42: 64094966.89
F43: OPEX | K43: Subtotal | L43: =SUM(L40:L42) -> 2074531.86 | M43: =SUM(M40:M42) -> 2622500.57 | P43: 3.Comercial | Q43: 111413182.8 | R43: 107894211.2 | S43: 111674632.3 | T43: 95033785.55 | U43: 93753509.15 | V43: 106189961.3 | W43: 97617244.71 | X43: 98111765.97 | Y43: 108103354.7 | Z43: 97344390.83 | AA43: 90970767.37 | AB43: 95061315.36
F44: Extensão de redes subterrâneas (Km) | G44: 30.13 | J44: CONTA TRIBUTOS | P44: 4.Rural | Q44: 56894577.76 | R44: 58320698.54 | S44: 58447261.81 | T44: 57054997.06 | U44: 52467164.21 | V44: 48450187.52 | W44: 41841326.65 | X44: 39744461.41 | Y44: 45726864.8 | Z44: 41255008.48 | AA44: 35287717.5 | AB44: 32865881.01
F45: Extensão de rede de distribuição aérea (Km) | G45: 215279.12 | J45: BMP - 6105316; 6105516; 6105336; 6105536 | K45: Tributos | L45: =SUMIFS(Tab_RIT_BMP[SALDO],Tab_RIT_BMP[CONTA],6105316,Tab_RIT_BMP[ANO],$L$7)+SUMIFS(Tab_RIT_BMP[SALDO],Tab_RIT_BMP[CONTA],6105516,Tab_RIT_BMP[ANO],$L$7)+ SUMIFS(Tab_RIT_BMP[SALDO],Tab_RIT_BMP[CONTA],6105336,Tab_RIT_BMP[ANO],$L$7)+SUMIFS(Tab_RIT_BMP[SALDO],Tab_RIT_BMP[CONTA],6105536,Tab_RIT_BMP[ANO],$L$7) -> 2513212.61 | M45: =SUMIFS(Tab_RIT_BMP[SALDO],Tab_RIT_BMP[CONTA],6105316,Tab_RIT_BMP[ANO],$M$7)+SUMIFS(Tab_RIT_BMP[SALDO],Tab_RIT_BMP[CONTA],6105516,Tab_RIT_BMP[ANO],$M$7)+ SUMIFS(Tab_RIT_BMP[SALDO],Tab_RIT_BMP[CONTA],6105336,Tab_RIT_BMP[ANO],$M$7)+SUMIFS(Tab_RIT_BMP[SALDO],Tab_RIT_BMP[CONTA],6105536,Tab_RIT_BMP[ANO],$M$7) -> 2645869.6 | P45: 5.Poder Público | Q45: 25057517.08 | R45: 26912653.47 | S45: 26107644.51 | T45: 16766479.62 | U45: 25239255.75 | V45: 23884181.61 | W45: 21604207.23 | X45: 22428111 | Y45: 22822080.18 | Z45: 17653409.58 | AA45: 17287780.02 | AB45: 21480918.3
F46: Extensão de rede de alta tensão (Km) | G46: 7235.73 | K46: (+) Créditos de Tributos Recuperáveis | L46: =L45 -> 2513212.61 | M46: =M45 -> 2645869.6 | P46: 6.Iluminação Pública | Q46: 10154748.5 | R46: 9480803.32 | S46: 9538876.32 | T46: 9292410.79 | U46: 8861198.61 | V46: 9364259.87 | W46: 8731292.6 | X46: 8989168.68 | Y46: 9030764.31 | Z46: 12155375.13 | AA46: 9179082.46 | AB46: 8967902.48
F47: ="% PNT / BT Real de "&IF(MONTH(LnkTxtDRPData)>6,YEAR(LnkTxtDRPData)-1,YEAR(LnkTxtDRPData)-2) & " (Medido)" -> % PNT / BT Real de 2021 (Medido) | G47: 0.1124301021 | J47: CONTA OUTROS | P47: 7.Serviço Público | Q47: 10460673.96 | R47: 10904739.37 | S47: 10307501.49 | T47: 9988090.95 | U47: 9176246.33 | V47: 10041984.26 | W47: 8760753.35 | X47: 9107762.76 | Y47: 8888475.26 | Z47: 8976985.35 | AA47: 8287980.97 | AB47: 8469650.39
F48: ="% PNT / BT Real de "&IF(MONTH(LnkTxtDRPData)>6,YEAR(LnkTxtDRPData)-1,YEAR(LnkTxtDRPData)-2)-1 & " (Medido)" -> % PNT / BT Real de 2020 (Medido) | G48: 0.1230903577 | J48: BMP - 610531901; 610551901; 610533901; 610553901 | K48: Indenização por Perdas e Danos | L48: =SUMIFS(Tab_RIT_BMP[SALDO],Tab_RIT_BMP[CONTA],610531901,Tab_RIT_BMP[ANO],$L$7)+SUMIFS(Tab_RIT_BMP[SALDO],Tab_RIT_BMP[CONTA],610551901,Tab_RIT_BMP[ANO],$L$7)+ SUMIFS(Tab_RIT_BMP[SALDO],Tab_RIT_BMP[CONTA],610533901,Tab_RIT_BMP[ANO],$L$7)+SUMIFS(Tab_RIT_BMP[SALDO],Tab_RIT_BMP[CONTA],610553901,Tab_RIT_BMP[ANO],$L$7) -> 31610116.08 | M48: =SUMIFS(Tab_RIT_BMP[SALDO],Tab_RIT_BMP[CONTA],610531901,Tab_RIT_BMP[ANO],$M$7)+SUMIFS(Tab_RIT_BMP[SALDO],Tab_RIT_BMP[CONTA],610551901,Tab_RIT_BMP[ANO],$M$7)+ SUMIFS(Tab_RIT_BMP[SALDO],Tab_RIT_BMP[CONTA],610533901,Tab_RIT_BMP[ANO],$M$7)+SUMIFS(Tab_RIT_BMP[SALDO],Tab_RIT_BMP[CONTA],610553901,Tab_RIT_BMP[ANO],$M$7) -> 44961418.38
F49: ="% PNT / BT Real de "&IF(MONTH(LnkTxtDRPData)>6,YEAR(LnkTxtDRPData)-1,YEAR(LnkTxtDRPData)-2)-2 & " (Medido)" -> % PNT / BT Real de 2019 (Medido) | G49: 0.1030945904 | J49: BMP - 610531902; 610551902; 610533902; 610553902 | K49: Consumo Próprio de Energia | L49: =SUMIFS(Tab_RIT_BMP[SALDO],Tab_RIT_BMP[CONTA],610531902,Tab_RIT_BMP[ANO],$L$7)+SUMIFS(Tab_RIT_BMP[SALDO],Tab_RIT_BMP[CONTA],610551902,Tab_RIT_BMP[ANO],$L$7)+ SUMIFS(Tab_RIT_BMP[SALDO],Tab_RIT_BMP[CONTA],610533902,Tab_RIT_BMP[ANO],$L$7)+SUMIFS(Tab_RIT_BMP[SALDO],Tab_RIT_BMP[CONTA],610553902,Tab_RIT_BMP[ANO],$L$7) -> 11427081.36 | M49: =SUMIFS(Tab_RIT_BMP[SALDO],Tab_RIT_BMP[CONTA],610531902,Tab_RIT_BMP[ANO],$M$7)+SUMIFS(Tab_RIT_BMP[SALDO],Tab_RIT_BMP[CONTA],610551902,Tab_RIT_BMP[ANO],$M$7)+ SUMIFS(Tab_RIT_BMP[SALDO],Tab_RIT_BMP[CONTA],610533902,Tab_RIT_BMP[ANO],$M$7)+SUMIFS(Tab_RIT_BMP[SALDO],Tab_RIT_BMP[CONTA],610553902,Tab_RIT_BMP[ANO],$M$7) -> 12977018.5 | P49: Receitas Irrecuperáveis | Q49: Meses
F50: ="DEC Apurado "&IF(MONTH(LnkTxtDRPData)>3,YEAR(LnkTxtDRPData)-1,YEAR(LnkTxtDRPData)-2) -> DEC Apurado 2022 | G50: 20.01 | J50: BMP - 610531905 | K50: Despesas com Conselho de Consumidores | L50: =SUMIFS(Tab_RIT_BMP[SALDO],Tab_RIT_BMP[CONTA],610531905,Tab_RIT_BMP[ANO],$L$7) -> 0 | M50: =SUMIFS(Tab_RIT_BMP[SALDO],Tab_RIT_BMP[CONTA],610531905,Tab_RIT_BMP[ANO],$M$7) -> 0 | P50: Faturamento não recebido até dez do ano anterior | Q50: 49 | R50: 50 | S50: 51 | T50: 52 | U50: 53 | V50: 54 | W50: 55 | X50: 56 | Y50: 57 | Z50: 58 | AA50: 59 | AB50: 60
F51: ="DEC Apurado "&IF(MONTH(LnkTxtDRPData)>3,YEAR(LnkTxtDRPData)-1,YEAR(LnkTxtDRPData)-2)-1 -> DEC Apurado 2021 | G51: 20.01 | J51: BMP - 610531903; 610551903; 610533903; 610553903 | K51: Taxa de Arrecadação | L51: =SUMIFS(Tab_RIT_BMP[SALDO],Tab_RIT_BMP[CONTA],610531903,Tab_RIT_BMP[ANO],$L$7)+SUMIFS(Tab_RIT_BMP[SALDO],Tab_RIT_BMP[CONTA],610551903,Tab_RIT_BMP[ANO],$L$7)+ SUMIFS(Tab_RIT_BMP[SALDO],Tab_RIT_BMP[CONTA],610533903,Tab_RIT_BMP[ANO],$L$7)+SUMIFS(Tab_RIT_BMP[SALDO],Tab_RIT_BMP[CONTA],610553903,Tab_RIT_BMP[ANO],$L$7) -> 0 | M51: =SUMIFS(Tab_RIT_BMP[SALDO],Tab_RIT_BMP[CONTA],610531903,Tab_RIT_BMP[ANO],$M$7)+SUMIFS(Tab_RIT_BMP[SALDO],Tab_RIT_BMP[CONTA],610551903,Tab_RIT_BMP[ANO],$M$7)+ SUMIFS(Tab_RIT_BMP[SALDO],Tab_RIT_BMP[CONTA],610533903,Tab_RIT_BMP[ANO],$M$7)+SUMIFS(Tab_RIT_BMP[SALDO],Tab_RIT_BMP[CONTA],610553903,Tab_RIT_BMP[ANO],$M$7) -> 0 | P51: 1.Residencial | Q51: 1721758.93 | R51: 2766340.69 | S51: 2914020.33 | U51: 2455847.39 | V51: 2249261.9 | Y51: 3807258.34 | Z51: 1819946.34 | AB51: 2453057.17
F52: ="DEC Apurado "&IF(MONTH(LnkTxtDRPData)>3,YEAR(LnkTxtDRPData)-1,YEAR(LnkTxtDRPData)-2)-2 -> DEC Apurado 2020 | G52: 17.48 | J52: BMP - 610531904; 610551904; 610533904; 610553904 | K52: Taxas Bancárias | L52: =SUMIFS(Tab_RIT_BMP[SALDO],Tab_RIT_BMP[CONTA],610531904,Tab_RIT_BMP[ANO],$L$7)+SUMIFS(Tab_RIT_BMP[SALDO],Tab_RIT_BMP[CONTA],610551904,Tab_RIT_BMP[ANO],$L$7)+ SUMIFS(Tab_RIT_BMP[SALDO],Tab_RIT_BMP[CONTA],610533904,Tab_RIT_BMP[ANO],$L$7)+SUMIFS(Tab_RIT_BMP[SALDO],Tab_RIT_BMP[CONTA],610553904,Tab_RIT_BMP[ANO],$L$7) -> 0 | M52: =SUMIFS(Tab_RIT_BMP[SALDO],Tab_RIT_BMP[CONTA],610531904,Tab_RIT_BMP[ANO],$M$7)+SUMIFS(Tab_RIT_BMP[SALDO],Tab_RIT_BMP[CONTA],610551904,Tab_RIT_BMP[ANO],$M$7)+ SUMIFS(Tab_RIT_BMP[SALDO],Tab_RIT_BMP[CONTA],610533904,Tab_RIT_BMP[ANO],$M$7)+SUMIFS(Tab_RIT_BMP[SALDO],Tab_RIT_BMP[CONTA],610553904,Tab_RIT_BMP[ANO],$M$7) -> 0 | P52: 2.Industrial | R52: 204993.23 | S52: 158932.09 | T52: 157830.82 | V52: 174359.89 | W52: 203920.25 | X52: 191189.9 | Z52: 128835.37 | AA52: 163378.88 | AB52: 284989.22
F53: Meta de % PNT / BT (Medido) | G53: 0.06698619356 | J53: BMP - 610531910; 610551910; 610533910; 610553910 | K53: (-) Créditos de Tributos Recuperáveis | L53: =SUMIFS(Tab_RIT_BMP[SALDO],Tab_RIT_BMP[CONTA],610531910,Tab_RIT_BMP[ANO],$L$7)+SUMIFS(Tab_RIT_BMP[SALDO],Tab_RIT_BMP[CONTA],610551910,Tab_RIT_BMP[ANO],$L$7)+ SUMIFS(Tab_RIT_BMP[SALDO],Tab_RIT_BMP[CONTA],610533910,Tab_RIT_BMP[ANO],$L$7)+SUMIFS(Tab_RIT_BMP[SALDO],Tab_RIT_BMP[CONTA],610553910,Tab_RIT_BMP[ANO],$L$7) -> 0 | M53: =SUMIFS(Tab_RIT_BMP[SALDO],Tab_RIT_BMP[CONTA],610531910,Tab_RIT_BMP[ANO],$M$7)+SUMIFS(Tab_RIT_BMP[SALDO],Tab_RIT_BMP[CONTA],610551910,Tab_RIT_BMP[ANO],$M$7)+ SUMIFS(Tab_RIT_BMP[SALDO],Tab_RIT_BMP[CONTA],610533910,Tab_RIT_BMP[ANO],$M$7)+SUMIFS(Tab_RIT_BMP[SALDO],Tab_RIT_BMP[CONTA],610553910,Tab_RIT_BMP[ANO],$M$7) -> 0 | P53: 3.Comercial | Q53: 534965.47 | T53: 705183.94 | V53: 906270.55 | W53: 896019.84 | Z53: 761401.66 | AA53: 480466.7
F54: DEC 8 anos (Limite V8) | G54: 12.87 | K54: Subtotal | L54: =SUM(L48:L53) -> 43037197.44 | M54: =SUM(M48:M53) -> 57938436.88 | P54: 4.Rural | Q54: 321364.46 | S54: 782825.23 | T54: 483952.42 | U54: 339610.86 | W54: 463270.87 | X54: 222675.16 | Y54: 244784.11 | Z54: 190215.93 | AA54: 187041.19
J55: Demais | P55: 5.Poder Público | S55: 104068.36 | T55: 142.23 | U55: 7374.95 | W55: 22556.43 | AB55: 44.59
K56: Condenações Trabalhistas | P56: 6.Iluminação Pública | R56: 25839.93
F57: Dados da última Revisão Tarifária | K57: Gastos com CCEE | L57: 900185.21 | M57: 917891.01 | P57: 7.Serviço Público | R57: 703174.87 | S57: 692450.56 | X57: 669780.39 | Z57: 686851.73 | AB57: 655486.31
F58: Custos Operacionais (CO3) | G58: 640257070 | J58: BMP - 611511401 | K58: Perdas na Alienação e Desativação | L58: =SUMIFS(Tab_RIT_BMP[SALDO],Tab_RIT_BMP[CONTA],611511401,Tab_RIT_BMP[ANO],$L$7) -> 49399195.06 | M58: =SUMIFS(Tab_RIT_BMP[SALDO],Tab_RIT_BMP[CONTA],611511401,Tab_RIT_BMP[ANO],$M$7) -> 90401311.89
F59: Receitas Irrecuperáveis - Encargos Setoriais (Vi) | G59: 5025014 | J59: BMP - 611112103 | K59: Ganhos na Alienação de Materiais | L59: =SUMIFS(Tab_RIT_BMP[SALDO],Tab_RIT_BMP[CONTA],611112103,Tab_RIT_BMP[ANO],$L$7) -> -11453396.72 | M59: =SUMIFS(Tab_RIT_BMP[SALDO],Tab_RIT_BMP[CONTA],611112103,Tab_RIT_BMP[ANO],$M$7) -> -12039196.91 | P59: Previsão CCEE | Q59: =DATE(YEAR(LnkTxtDRPData),MONTH(LnkTxtDRPData),DAY(1)) -> 2023-04-01 | R59: =DATE(YEAR(Q59),MONTH(Q59)+1,DAY(1)) -> 2023-05-01 | S59: =DATE(YEAR(R59),MONTH(R59)+1,DAY(1)) -> 2023-06-01 | T59: 2023-07-01 | U59: 2023-08-01 | V59: 2023-09-01 | W59: 2023-10-01 | X59: 2023-11-01 | Y59: 2023-12-01 | Z59: 2024-01-01 | AA59: 2024-02-01 | AB59: 2024-03-01
F60: Demais Receitas Irrecuperáveis (Vse) | G60: 17638165 | P60: GSF | Q60: 1.072 | R60: 0.963 | S60: 0.78 | T60: 0.74 | U60: 0.702 | V60: 0.719 | W60: 0.757 | X60: 0.757 | Y60: 0.822 | Z60: 1.043 | AA60: 1 | AB60: 1.02 | AC60: PMO abril/21
F61: Remuneração do Capital (RC) | G61: 463692255 | P61: PLD | Q61: 69 | R61: 69 | S61: 69 | T61: 69 | U61: 69 | V61: 69 | W61: 69 | X61: 69 | Y61: 69 | Z61: 69 | AA61: 69 | AB61: 69
F62: Quota de Reintegração Regulatória (QRR) | G62: 191914292
F63: Custo anual das instalações móveis e imóveis (CAIMI) | G63: 95980228
F64: Índice de Produtividade (Pd) | G64: 0.01477212122
F65: Mecanismo de Qualidade (Q) | G65: 0.001292043774
F66: Outras Receitas (OR) (inserir o valor positivo) | G66: 17295499
F67: Componente T - Última Revisão | G67: -0.0121
F68: Ultrapassagem de Demanda | G68: 0
F69: Excedente de Reativos | G69: 0
F72: Base de Ativos - SFF | G72: 44866
F73: (1) Ativo Imobilizado em Serviço (Valor Novo de Reposição) | G73: 1.406029591e+10 | H73: 45005
F74: (2) Índice de Aproveitamento Integral | G74: 19488483.94
F75: (3) Obrigações Especiais Bruta | G75: 3756559479
F76: (4) Bens Totalmente Depreciados | G76: 1582413852
F77: (5) Base de Remuneração Bruta = (1)-(2)-(3)-(4) | G77: =G73-G74-G75-G76 -> 8701834095 | H77: =G77*(Índices!$D$389/Índices!$D$341)/1000 -> 10241320.36
F78: (6) Depreciação Acumulada | G78: 5903629905
F79: (7) AIS Líquido (Valor de Mercado em Uso) | G79: =G73-G78 -> 8156666005
F80: (8) Índice de Aproveitamento Depreciado | G80: 13240064.26
F81: (9) Valor da Base de Remuneração (VBR) | G81: =G79-G80 -> 8143425941
F82: (10) Almoxarifado em Operação | G82: 10648722.09
F83: (11) Ativo Diferido | G83: 0
F84: (12) Obrigações Especiais Líquida | G84: 1835240944
F85: (13) Terrenos e Servidões | G85: 101746635.6
F86: (14) Base de Rem. Líquida Total = (9)+(10)+(11)-(12)+(13) | G86: =G81+G82+G83-G84+G85 -> 6420580355 | H86: =G86*(Índices!$D$389/Índices!$D$341)/1000 -> 7556478.279
F87: (15) Saldo RGR PLPT | G87: =G108*F114 -> 0
F88: (16) Saldo RGR Demais Investimentos | G88: 0
F89: (17) Taxa de Depreciação | G89: 0.0368
F90: (18) Quota de Reintegração Regulatória = (5) * (17) | G90: =G89*G77 -> 320227494.7
F93: Base de Ativios - Ciclo anterior | G93: 43191
F94: (1) Ativo Imobilizado em Serviço (Valor Novo de Reposição) | G94: 8570161200 | H94: =G7/G94-1 -> 0.692840705
F95: (2) Índice de Aproveitamento Integral | G95: 26679324 | H95: -0.2462733735
F96: (3) Obrigações Especiais Bruta | G96: 2663263393 | H96: 0.4554147537
F97: (4) Bens Totalmente Depreciados | G97: 693345726 | H97: 1.354945477
F98: (5) Base de Remuneração Bruta = (1)-(2)-(3)-(4) | G98: =G94-G95-G96-G97 -> 5186872757 | H98: 0.7310747757
F99: (6) Depreciação Acumulada | G99: 3472554605 | H99: 0.7542062889
F100: (7) AIS Líquido (Valor de Mercado em Uso) | G100: =G94-G99 -> 5097606595 | H100: 0.6510376869
F101: (8) Índice de Aproveitamento Depreciado | G101: 31820831 | H101: -0.570672014
F102: (9) Valor da Base de Remuneração (VBR) | G102: =G100-G101 -> 5065785764 | H102: 0.65871188
F103: (10) Almoxarifado em Operação | G103: 9819229 | H103: 0.1190016516
F104: (11) Ativo Diferido | G104: 0
F105: (12) Obrigações Especiais Líquida | G105: 1689417553 | H105: =G18/G105-1 -> 0.120899591
F106: (13) Terrenos e Servidões | G106: 73566724 | H106: =G19/G106-1 -> 0.4270831024
F107: (14) Base de Rem. Líquida Total = (1)-(6)-(8)+(10)+(11)-(12)+(13) | G107: =G102+G103+G104-G105+G106 -> 3459754164 | H107: =G20/G107-1 -> 0.9148716447
F108: (15) Saldo RGR PLPT
F109: (16) Saldo RGR Demais Investimentos
F110: (17) Taxa de Depreciação | G110: 0.037
F111: (18) Quota de Reintegração Regulatória = (5) * (17) | G111: =G98*G110 -> 191914292

Sheet Subvenção Permissionária (hidden)
A1: Cooperativa
S2: Outras Receitas
A3: Cálculo PB | D3: Receita Agregada | K3: Subvenção
A4: UC | D4: Subgrupo | E4: Modalidade | F4: Classe | G4: Mercado TUSD | H4: Tarifa Fio B eco | I4: Receita | K4: Subvenção | R4: OUTRAS RECEITAS (R$) | W4: ='VPB e Fator X - Subvenção'!G163 -> 44805 | X4: ='VPB e Fator X - Subvenção'!H163 -> 44774 | Y4: ='VPB e Fator X - Subvenção'!I163 -> 44743 | Z4: ='VPB e Fator X - Subvenção'!J163 -> 44713 | AA4: ='VPB e Fator X - Subvenção'!K163 -> 44682 | AB4: ='VPB e Fator X - Subvenção'!L163 -> 44652 | AC4: ='VPB e Fator X - Subvenção'!M163 -> 44621 | AD4: ='VPB e Fator X - Subvenção'!N163 -> 44593 | AE4: ='VPB e Fator X - Subvenção'!O163 -> 44562 | AF4: ='VPB e Fator X - Subvenção'!P163 -> 44531 | AG4: ='VPB e Fator X - Subvenção'!Q163 -> 44501 | AH4: ='VPB e Fator X - Subvenção'!R163 -> 44470
A5: Data Base | D5: A3 | E5: Azul | F5: Demanda azul P | I5: =G5*H5 -> 0 | K5: PB COM COOPERATIVA | L5: ='VPB e Fator X - Subvenção'!C26 -> 2517763273 | R5: Tipo de Receita | Y5: 3 meses antes | Z5: 4 meses antes | AA5: 5 meses antes | AB5: 6 meses antes | AC5: 7 meses antes | AD5: 8 meses antes | AE5: 9 meses antes | AF5: 10 meses antes | AG5: 11 meses antes | AH5: 12 meses antes
A6: (1) Ativo Imobilizado em Serviço (Valor Novo de Reposição) | F6: Demanda azul FP | I6: =G6*H6 -> 0 | K6: PB ORIGINAL SUPRIDORA | L6: =Resultado!D44 -> 2712612844 | R6: Serviços Cobráveis | V6: Atividade inerente ao serviço
A7: (2) Obrigações Especiais Bruta | F7: Energia TUSD azul | I7: 0 | K7: Diferença | L7: =L5-L6 -> -194849571.9 | R7: Arrecadação de convênios ou valores pela fatura | V7: Atividades acessórias próprias
A8: (3) Bens Totalmente Depreciados | E8: Geração | F8: Demanda Geração | I8: 0 | K8: Receita Agregada | L8: =I24 -> 0 | R8: Arrecadação de faturas de terceiros por estrutura própria
A9: (4) Base de Remuneração Bruta = (1)-(2)-(3) | K9: Subvenção | L9: =L7-L8 -> -194849571.9 | R9: Veiculação de publicidade
A10: (5) Depreciação Acumulada | D10: A4 | E10: Azul | F10: Demanda azul P | I10: 0 | R10: Aluguel ou cessão onerosa de imóveis e espaços físicos
A11: (6) Valor da Base de Remuneração (VBR) | F11: Demanda azul FP | I11: 0 | K11: subvenção de 2016 | R11: Compartilhamento de infraestrutura
A12: (7) Obrigações Especiais Líquida | F12: Energia TUSD azul E | I12: 0 | L12: =L9/L11-1 ->  | R12: Serviços de avaliação técnica e aferição de medidores.
A13: (8) Terrenos e Servidões | E13: Verde | F13: Demanda verde | I13: 0 | R13: Operacionalização de serviço de créditos tributários
A14: (9) Almoxarifado em Operação | F14: Energia TUSD verde EP | I14: 0 | K14: Item | L14: 2023 | M14: Calculo anterior | N14: variação | R14: Elaboração de projeto, construção, operação, manutenção ou reforma de: | V14: Atividades acessórias complementares
A15: (10) Base de Remuneração Líquida Total = (1)-(5)-(7)+(8)+(9) | F15: Energia TUSD verde EFP | I15: 0 | K15: Densidade Cooperativa | L15: =G24/B21 ->  | N15: =L15/M15-1 ->  | R15: (1) redes de distribuição de energia elétrica destinadas à regularização fundiária de interesse específico e ao atendimento dos empreendimentos de múltiplas unidades consumidoras;
A16: (11) Taxa de Depreciação | E16: Geração | F16: Demanda geração | I16: 0 | K16: Densidade Supridora | L16: =(Mercado!C24-Mercado!C17)/(Entrada!G44+Entrada!G45+Entrada!G46) -> 43.87818659 | N16: =L16/M16-1 ->  | R16: (2) redes de energia elétrica destinadas ao acesso dos sistemas de distribuição ou transmissão;
A17: (12) Quota de Reintegração Regulatória | K17: Mercado | L17: =G24 -> 0 | R17: (3) subestações de energia;
A18: (13) Remuneração de Capital (RC) = BRR líq x WACC | D18: BT | E18: Convencional ( B1, B2, B3) | F18: Energia TUSD B | I18: =G18*H18 -> 0 | K18: Km de rede | L18: =B21 -> 0 | R18: (4) instalações elétricas internas de unidades consumidoras;
E19: Branca | F19: Ponta | I19: 0 | R19: (5) banco de capacitores:
B20: Valores | E20: Branca | F20: Fora Ponta | I20: 0 | R20: (6) padrões de entrada de unidades consumidoras atendidas em baixa tensão;
A21: Total de km de rede (linhas e redes de distribuição) | E21: Branca | F21: Intermediário | I21: 0 | R21: (7) sistemas de medição de energia elétrica;
E22: Iluminação | F22: Energia TUSD B4a | I22: 0 | R22: (8) geradores, incluindo-se unidades de microgeração e minigeração distribuída;
F23: Energia TUSD B4b | I23: =G23*H23 -> 0 | R23: (9) sistemas de iluminação pública.
D24: Total Energia | G24: =G7+G12+G14+G15+G18+G22+G23 -> 0 | H24: Receita total | I24: =SUM(I5:I23) -> 0 | R24: Eficientização do consumo de energia elétrica e instalação de cogeração qualificada, desde que não enquadráveis nos projetos de Pesquisa e Desenvolvimento (P&D) ou de Eficiência Energética estabelecidos em lei
D25: Total demanda | G25: =G5+G6+G8+G10+G11+G13+G16 -> 0 | R25: Serviços de comunicação de dados
R26: Serviços de consultoria

Sheet VPB e Fator X - Subvenção (hidden)
B2: Cálculo da Parcela B de Revisão | E2: Anexo II | F2: =Resultado!$D$6 -> 0.02534467957
E3: Anexo I | F3: =Resultado!$D$8 -> 0.03743867512
B5: Parâmetros | E5: Parcela A
B6: Descrição | C6: Valor | E6: Descrição | F6: Valor
B7: Número de anos no Ciclo | C7: =VLOOKUP(0,Dados_Revisao[],4,FALSE) -> 5 | E7: Encagos | F7: =Resultado!D19 -> 1310283614
B8: Data da Revisão | C8: =CAPA!C10 -> 45024 | E8: Transporte | F8: =Resultado!D29 -> 530398529.8
B9: Data Base Ativos, Consumidores e Mercado da Revisao Anterior | C9: =Entrada!G37 -> 43039 | E9: Energia | F9: =Resultado!D38 -> 2451428206
B10: Data Base Ativos, Consumidores e Mercado da Revisão Atual | C10: =DATE(YEAR(C8),MONTH(C8)-5,0) -> 44865 | E10: VPA | F10: =Resultado!D39 -> 4292110350
B11: Número de anos do próximo Ciclo | C11: =VLOOKUP(401,Dados_Revisao[],4,FALSE) -> 5
B12: Formação da Parcela B (resumo)
B13: Descrição | C13: Valor
B14: Custo de Administração, Operação e Manutenção (CAOM) | C14: =SUM(C15:C17) -> 1283548032
B15: Custos Operacionais (CO) | C15: ='VPB e Fator X'!C15+'VPB e Fator X - Subvenção'!H158 -> 1272297375
B16: Receitas Irrecuperáveis - Encargos Setoriais (Vi) | C16: =C204 -> 11250656.73
B17: Demais Receitas Irrecuperáveis (Vse) | C17: =C208 -> 0
B18: Custo Anual dos Ativos (CAA) | C18: =SUM(C19:C21) -> 1298311937
B19: Remuneração do Capital (RC) | C19: =C95 -> 815535780.2
B20: Quota de Reintegração Regulatória (QRR) | C20: =C77 -> 330422217.1
B21: Custo anual das instalações móveis e imóveis (CAIMI) | C21: =C67 -> 152353939.9
B22: CAOM + CAA | C22: =C18+C14 -> 2581859969
B23: Fator de Ajuste do Mercado | C23: =C33 -> 0.009043197702
B24: Mecanismo de Incentivo à Qualidade | C24: =C40 -> -0.01334556749
B25: OR + UD + ER | C25: =D189+D196+D197 -> 75204812.87
B26: VPB | C26: =(1-C23-C24)*C22-C25 -> 2517763273
B29: Fator X
B31: Fator X
B32: Descrição | C32: Valor
B33: Componente Pd | C33: =0.663%+0.317*(C34-1.521%) -> 0.009043197702
B34: MWhXT-6 | C34: =(POWER(1 + IFERROR(LN(DSUM(MercadoBase,"TUSD_E",C45:C48)/VLOOKUP("AT",TabMercado6[],2,FALSE))*VLOOKUP(CAPA!$C$23,TaBTodososPesos[],2,FALSE),0) + IFERROR(LN(DSUM(MercadoBase,"TUSD_E",D45:D48)/VLOOKUP("MT",TabMercado6[],2,FALSE))*VLOOKUP(CAPA!$C$23,TaBTodososPesos[],3,FALSE),0) + IFERROR(LN(DSUM(MercadoBase,"TUSD_E",E45:E46)/VLOOKUP("BT",TabMercado6[],2,FALSE))*VLOOKUP(CAPA!$C$23,TaBTodososPesos[],4,FALSE),0),1/5) - 1) -> 0.02282261105
B36: Componente T | C36: =(1-(C39/C38)^(1/(C11-1)))*(C38/C37) -> 0.0181340958
B37: VPB | C37: =C26 -> 2517763273 | E37: Ajuste de Custos Operacionais para Calculo do Componente T
B38: Custos Operacionais | C38: =C121+G41 -> 1240711596 | E38: Descrição | G38: Valor
B39: Meta de Custos Operacionais | C39: =C120+G41 -> 1067918077 | E39: Valor de Ajuste da Parcela B [VPB- (CAOM+CAA)] | G39: =C26-C22 -> -64096696.54
B40: Componente Q (Fator de Qualidade) | C40: ='VPB1'!F42 -> -0.01334556749 | E40: Participação dos CO no VPB antes do Ajuste | G40: =C15/C22 -> 0.492783261
B41: Fator X Revisão | C41: =C33+C36+C40 -> 0.01383172601 | E41: Valor de Ajuste dos Custos Operacionais | G41: =G40*G39 -> -31585779.14
B43: Variação de Mercado e Unidades Consumidoras
B44: Descrição | C44: Mercado AT (MWh) | D44: Mercado MT (MWh) | E44: Mercado BT (MWh) | F44: Total | G44: Unidades Consumidoras
B45: Critérios | C45: Subgrupo | D45: Subgrupo | E45: Subgrupo | F45: - | G45: AnoMes
C46: ="=A1" -> =A1 | D46: ="=A3a" -> =A3a | E46: B | F46: - | G46: =DATE(YEAR(CAPA!C10),MONTH(CAPA!C10)-6,1) -> 44835
C47: ="=A2" -> =A2 | D47: ="=A4" -> =A4 | E47: B | F47: -
C48: ="=A3" -> =A3 | D48: ="=As" -> =As | E48: B | F48: -
B49: Revisão Atual | C49: =DSUM(MercadoBase,"TUSD_E",C45:C48) -> 780042.397 | D49: =DSUM(MercadoBase,"TUSD_E",D45:D48) -> 3312979.756 | E49: =DSUM(MercadoBase,"TUSD_E",E45:E46) -> 5671848.004 | F49: =SUM(C49:E49) -> 9764870.157 | G49: =DSUM(MercadoBase,"UC",G45:G46)+'Subvenção Permissionária'!B4 -> 1587718
B50: Revisão Anterior | C50: =Entrada!G38 -> 587451 | D50: =Entrada!G39 -> 2781019 | E50: =Entrada!G40 -> 5160176 | F50: =SUM(C50:E50) -> 8528646 | G50: =Entrada!G41 -> 1356251
B51: Variação | C51: =IFERROR((C49/C50-1),0) -> 0.3278424873 | D51: =IFERROR((D49/D50-1),0) -> 0.1912826759 | E51: =IFERROR((E49/E50-1),0) -> 0.09915785896 | F51: =IFERROR((F49/F50-1),0) -> 0.1449496388 | G51: =IFERROR((G49/G50-1),0) -> 0.1706667866
B52: Peso | C52: =VLOOKUP(201,Dados_Revisao[#Data],4,FALSE) -> 0.02751655636 | D52: =VLOOKUP(202,Dados_Revisao[#Data],4,FALSE) -> 0.2730784992 | E52: =VLOOKUP(203,Dados_Revisao[#Data],4,FALSE) -> 0.6994049444 | F52: 0 | G52: -
B53: Participação na Variação de Mercado | C53: =IFERROR(LN(C49/C50)*C52,0) -> 0.007802469109 | D53: =IFERROR(LN(D49/D50)*D52,0) -> 0.04779709507 | E53: =IFERROR(LN(E49/E50)*E52,0) -> 0.06612475357 | F53: =SUM(C53:E53) -> 0.1217243177 | G53: -
B56: Custo Anual do Ativos (CAA)
B58: Custo Anual das Instalações Móveis e Imóveis (CAIMI)
B59: Descrição | C59: Valores
B60: (1) Base de Anuidade Regulatória (BAR) | C60: =2.7159*(Entrada!G7-Entrada!G8+'Subvenção Permissionária'!B6)^(-0.167+1)*(VLOOKUP((DATE(YEAR(CAPA!C10),MONTH(CAPA!C10)-1,1)),Índices!B82:D10000,3,FALSE)/VLOOKUP(DATE(2014,12,1),Índices!B82:D10000,3,FALSE))^0.167 -> 857832552.4
B61: (2) Base de Anuidade - Infraestrutura de imóveis e móveis administrativos (BARA) | C61: =C60*0.45 -> 386024648.6
B62: (3) Base de Anuidade - Veículos (BARV) | C62: =C60*0.12 -> 102939906.3
B63: (4) Base de Anuidade - Sistemas de Informática (BARI) | C63: =C60*0.43 -> 368867997.5
B64: (5) Anuidade - Infraestrutura de imóveis e móveis administrativos (CAL) | C64: =C61*(1/19.5+F81/2) -> 41510601.34
B65: (6) Anuidade - Veículos (CAV) | C65: =C62*(1/7+F81/2) -> 20496225.04
B66: (7) Anuidade - Sistemas de Informática (CAI) | C66: =C63*(1/5.3+F81/2) -> 90347113.55
B67: (8) CAIMI = (5)+(6)+(7) | C67: =SUM(C64:C66) -> 152353939.9
B69: Base de Remuneração Bruta e Quota de Reintegração Regulatória (QRR)
B70: Descrição | C70: Valor
B71: (1) Ativo Imobilizado em Serviço (Valor Novo de Reposição) | C71: =Entrada!G7+'Subvenção Permissionária'!B6 -> 1.450791773e+10
B72: (2) Índice de Aproveitamento Integral | C72: =Entrada!G8 -> 20108916.88
B73: (3) Obrigações Especiais Bruta | C73: =Entrada!G9+'Subvenção Permissionária'!B7 -> 3876152835 | F73: 0.1136 | G73: 0.1108366985 | H73: 0.1063543545
B74: (4) Bens Totalmente Depreciados | C74: =Entrada!G10+'Subvenção Permissionária'!B7 -> 1632791381 | F74: 0.0135 | G74: 0.02281926149 | H74: 0.02168624234
B75: (5) Base de Remuneração Bruta | C75: =C71-C72-C73-C74 -> 8978864595 | F75: 0.0362 | G75: 0.02281926149 | H75: 0.02168624234
B76: (17) Taxa de Depreciação | C76: =Entrada!G23 -> 0.0368
B77: (18) Quota de Reintegração Regulatória | C77: =C75*C76 -> 330422217.1 | G77: 0.5782 | H77: 0.5183503422
G78: 0.0545 | H78: 0.09120246719
B79: Base de Remuneração Líquida e Remuneração do Capital (RC) | E79: Custo Médio do Capital | I79: Cálculo do Beta (Res. Normativa 473)
B80: Descrição | C80: Valor | E80: Tipo | F80: Valor | G80: Norma | I80: Descrição | J80: Valor
B81: (1) Ativo Imobilizado em Serviço (Valor Novo de Reposição) | C81: =C71 -> 1.450791773e+10 | E81: WACC real antes de impostos | F81: ='VPB e Fator X'!F81 -> 0.112503 | G81: ='VPB e Fator X'!G81 -> Despacho n° 452/2023, 17/02/2023 | I81: Depreciação AIS | J81: =SUM(C61/27.9,C62/7,C63/5.3) -> 98139445.19
B82: (6) Depreciação Acumulada | C82: =Entrada!G12+'Subvenção Permissionária'!B10 -> 6091577126 | E82: Taxa RGR/PLPT real | F82: ='VPB e Fator X'!F82 -> 0.000797 | G82: ='VPB e Fator X'!G82 -> Despacho n° 452/2023, 17/02/2023 | I82: Remuneração AIS | J82: =SUM(C61,C62,C63)*(F81/2) -> 48254367.82
B83: (7) AIS Líquido (Valor de Mercado em Uso) | C83: =Entrada!G13+'Subvenção Permissionária'!B6-'Subvenção Permissionária'!B10 -> 8416340601 | E83: Taxa RGR Demais Investimentos | F83: ='VPB e Fator X'!F83 -> 0.000797 | G83: ='VPB e Fator X'!G83 -> Despacho n° 452/2023, 17/02/2023 | I83: Remuneração de Capital Bruta pós pd | J83: =(C95+J82)*Resultado!G30/Resultado!G27 -> 908180223.4
B84: (8) Índice de Aproveitamento Depreciado | C84: =Entrada!G14 -> 13661573.29 | I84: Quota de Reintegração Bruta pós pd | J84: =(C77+J81)*(Resultado!G30/Resultado!G27) -> 450585396.3
B85: (9) Valor da Base de Remuneração (VBR) | C85: =Entrada!G15+'Subvenção Permissionária'!B11 -> 8402679028 | I85: Custo Operacional pós pd | J85: =Resultado!G19*(Resultado!G30/Resultado!G27) -> 1386047089
B86: (10) Almoxarifado em Operação | C86: =Entrada!G16+'Subvenção Permissionária'!B14 -> 10987733.47 | I86: Outras Receitas (OR) proporcional RCB | J86: =C25*(J83/(J85+J84+J83)) -> 24883127.19
B87: (11) Ativo Diferido | C87: =Entrada!G17 -> 0 | E87: Remuneração sobre Obrigações Especiais | I87: Remuenração de Capital Bruta - OR proporcional | J87: =J83-J86 -> 883297096.2
B88: (12) Obrigações Especiais Líquida | C88: =Entrada!G18+'Subvenção Permissionária'!B7 -> 1893667444 | E88: Descrição | G88: Valor | I88: Beta | J88: =J87/Resultado!G30 -> 0.3209605034
B89: (13) Terrenos e Servidões | C89: =Entrada!G19+'Subvenção Permissionária'!B13 -> 104985828.7 | E89: CAA-RCOE | G89: =C77+C93+C67 -> 1228106861
B90: (14) Base de Remuneração Líquida | C90: =C81-C82-C84+C86+C87-C88+C89 -> 6624985146 | E90: CAOM / (CAOM+CAA-RCOE) | G90: =(C14+H158)/(C14+G89+H158) -> 0.5110367812
B91: (15) Saldo RGR PLPT | C91: =Entrada!G21 -> 0 | E91: Obrigações Especiais Bruta (OESb) | G91: =C73 -> 3876152835
B92: (16) Saldo RGR Demais Investimentos | C92: =Entrada!G22 -> 0 | E92: Custo de Capital Próprio - Nominal (rp) | G92: ='VPB e Fator X'!G92 -> 0.5244453
B93: (19) RC sem Obrigações Especiais | C93: =$F$83*$C$92+$C$91*$F$82+($C$90-$C$91-$C$92)*$F$81 -> 745330703.9 | E93: Prêmio de Risco do negócio e financeiro após impostos | G93: ='VPB e Fator X'!G93 -> 0.089205
B94: (20) Remuneração de Obrigações Especiais | C94: =G95 -> 70205076.32 | E94: Impostos e Contribuições sobre a Renda (t) | G94: ='VPB e Fator X'!G94 -> 0.34
B95: (21) Remuneração do Capital (RC) | C95: =C94+C93 -> 815535780.2 | E95: RC Obrigações Especiais | G95: =(G93)/(1-G94)*0.5*G92*G90*G91 -> 70205076.32
B98: Custo de Administração, Operação e Manutenção (CAOM)
B100: Receita de Custos Operacionais no Ano Teste
B101: Descrição | C101: Valor
B102: Receita de Parcela B no Ano Teste (Receita Verificada) | C102: =SUM(INDIRECT("DADOS_MercadoBase[DISTRIBUICAO]")) -> 2719234532
B103: Custos Operacionais da Última Revisão com Ajustes | C103: =Entrada!G58*(1-(Entrada!G64+Entrada!G65)) -> 629971874.8
B104: VPB da Última Revisão com Ajustes | C104: =SUM(Entrada!G58:G63)*(1-(Entrada!G64+Entrada!G65))-Entrada!G66-Entrada!G68-Entrada!G69 -> 1374488651
B105: Componente T da Última Revisão (TRev) | C105: =Entrada!G67 -> -0.0121
B106: Fator (1-TRev)N-1 | C106: =(1-C105)^(C7-1) -> 1.049285568
B107: Receita de Custos Operacionais no Ano Teste | C107: =(C103-C104*(1-C106))*C102/(C104*C106) -> 1315495755
B109: Meta e Custos Operacionais Regulaórios | E109: Custos Operacionais Reais (Opex) - Valores Atualizados
B110: Descrição | C110: Valor | F110: =Entrada!L7 -> 2020 | G110: =IF(Entrada!M7=0,2013,Entrada!M7) -> 2021
B111: Custo Operacional no Ano Teste | C111: =C107 -> 1315495755 | E111: IPCA junho | F111: =VLOOKUP(DATE($F$110,6,1),Índices!$B:$D,3,FALSE) -> 5325.46 | G111: =VLOOKUP(DATE($G$110,6,1),Índices!$B:$D,3,FALSE) -> 5769.98
B112: Limite Superior dos Custos Operacionais Eficientes | C112: =C135 -> 1329202528 | E112: IPCA dezembro | F112: =VLOOKUP(DATE(F110,12,1),Índices!$B:$F,3,FALSE) -> 5560.59 | G112: =VLOOKUP(DATE(G110,12,1),Índices!$B:$F,3,FALSE) -> 6120.04
B113: Limite Inferior dos Custos Operacionais Eficientes | C113: =C136 -> 1215112291 | E113: Conta Pessoal | F113: =Entrada!L18*$F$112/$F$111 -> 213283896.9 | G113: =Entrada!M18*$G$112/$G$111 -> 233107366.6
B114: Custo Operacional Eficiente | C114: =MIN(MAX(C111,C113),C112) -> 1315495755 | E114: Conta Materiais | F114: =Entrada!L23*$F$112/$F$111 -> 41005214.97 | G114: =Entrada!M23*$G$112/$G$111 -> 40896242.76
B115: Variação Anual dos Custos Operacionais - Sem limite | C115: =((C114/C111)^(1/C11)-1) -> 0 | E115: Conta Terceiros | F115: =Entrada!L38*$F$112/$F$111 -> 254553999.8 | G115: =Entrada!M38*$G$112/$G$111 -> 278426950.1
B116: Variação Anual dos Custos Operacionais - Limitada a ±5% | C116: =MIN(ABS(C115),5%)*SIGN(C115) -> 0 | E116: Conta Seguros | F116: =Entrada!L43*$F$112/$F$111 -> 2166126.704 | G116: =Entrada!M43*$G$112/$G$111 -> 2781605.549
B117: Meta Custos Operacionais sem Compartilhamento | C117: =C111*(1+C116)^C11 -> 1315495755 | E117: Conta Tributos | F117: =Entrada!L46*$F$112/$F$111 -> 2624176.11 | G117: =Entrada!M46*$G$112/$G$111 -> 2806392.36
B118: Média dos Custos Operacionais Reais (Opex medio) | C118: =(F121+G121)/2 -> 736259965.1 | E118: Conta Outros | F118: =Entrada!L54*$F$112/$F$111 -> 44937378.13 | G118: =Entrada!M54*$G$112/$G$111 -> 61453514.79
B119: Razão entre CO regulatórios Ajustado e Custos Operacionais Reais Médios | C119: =C117/C118 -> 1.786727266 | E119: Demais Custos | F119: =(Entrada!L56+Entrada!L57+Entrada!L58+Entrada!L59)*$F$112/$F$111 -> 40561113.53 | G119: =(Entrada!M56+Entrada!M57+Entrada!M58+Entrada!M59)*$G$112/$G$111 -> 84089859.56
B120: Meta Custos Operacionais Regulatórios | C120: =IF(C119>1.2,(1.2+C119)/2,C119)*C118 -> 1099503856 | E120: Custo Operacional | F120: =IF(F110=2013,(VLOOKUP(119,Dados_Revisao[#Data],4,FALSE))*1000+F119,SUM(F113:F119)) -> 599131906.1 | G120: =IF(G110=2013,(VLOOKUP(119,Dados_Revisao[#Data],4,FALSE))*1000+G119,SUM(G113:G119)) -> 703561931.6
B121: Custos Operacionais Regulatórios | C121: =C111+(C120-C111)/C11 -> 1272297375 | E121: Custo Operacional Atualizado | F121: =F120*C125/F112 -> 712409916.2 | G121: =G120*C125/G112 -> 760110013.9
B123: Intervalo de Custos Eficientes
B124: Descrição | C124: Valor
B125: Número índice do IPCA no mês anterior à data base da revisão tarifária | C125: =VLOOKUP(DATE(YEAR(C8),MONTH(C8)-1,1),Índices!$B:$F,3,FALSE) -> 6611.932056
B126: Número índice do IPCA no mês anterior à data base do cálculo da eficiência | C126: =VLOOKUP(DATE(2016,12,1),Índices!B:D,3,FALSE) -> 4775.7
B127: Custo eficiente estimado na data base do cálculo da eficiência | C127: =(VLOOKUP(106,Dados_Revisao[#Data],4,FALSE)*1000)*C131 -> 473337689.9
B128: Custo eficiente estimado na data da revisão tarifária | C128: =F157 -> 704301497.1
B129: Fator de Atualização (α) | C129: =(C128/C127)*(C125/C126) -> 2.060055256
B130: Referência de eficiência média | C130: =VLOOKUP(104,Dados_Revisao[],4,FALSE) -> 0.786868
B131: Eficiência apurada para a empresa | C131: =VLOOKUP(102,Dados_Revisao[#Data],4,FALSE) -> 0.8775238744
B132: Limite superor do intervalo de eficiência | C132: =VLOOKUP(103,Dados_Revisao[#Data],4,FALSE) -> 0.9247169016
B133: Limite inferior do intervalo de eficiência | C133: =VLOOKUP(101,Dados_Revisao[#Data],4,FALSE) -> 0.8453451216
B134: Custo operacional real usado no estudo de eficiência | C134: =VLOOKUP(105,Dados_Revisao[#Data],4,FALSE)*1000 -> 549041759.5
B135: Limite Superior dos Custos Operacionais Eficientes | C135: =$C$129*(C132/$C$130)*$C$134 -> 1329202528
B136: Limite Inferior dos Custos Operacionais Eficientes | C136: =$C$129*(C133/$C$130)*$C$134 -> 1215112291
B138: Custo Eficiente Estimado
B139: Parametros | D139: Valor
B140: Indicador médio de perdas não técnicas (% PNT / BT) | D140: =AVERAGE(Entrada!G47:G49) -> 0.1128716834
B141: Meta (% PNT / BT) | D141: =Entrada!G53 -> 0.06698619356
B142: DEC Global Médio realizado | D142: =AVERAGE(Entrada!G50:G52) -> 19.16666667
B143: Limite V8 global | D143: =Entrada!G54 -> 12.87
B144: Peso do Insumo (u) | D144: =VLOOKUP(108,Dados_Revisao[#Data],4,FALSE) -> 1.853906615e-06
B145: Produto | D145: Valor | E145: Peso | F145: Custo (R$) | H145: Custo Operacional agregado pela Permissionária
B146: "Fator de escala" da empresa | D146: =VLOOKUP(107,Dados_Revisao[#Data],4,FALSE) -> 0 | E146: 1 | F146: =(E146*D146)*1000/$D$144 -> 0 | H146: 0
B147: Extensão de redes subterrâneas (Km) | D147: =Entrada!G44 -> 30.13 | E147: =VLOOKUP(109,Dados_Revisao[#Data],4,FALSE) -> 4.600577996e-06 | F147: 74769.36212 | H147: 0
B148: Extensão de rede de distribuição aérea (Km) | D148: =Entrada!G45 -> 215279.12 | E148: =VLOOKUP(110,Dados_Revisao[#Data],4,FALSE) -> 4.600577996e-06 | F148: 534227762.4 | G148: ='Subvenção Permissionária'!B21 -> 0 | H148: =(E148*G148)*1000/$D$144 -> 0
B149: Extensão de rede de alta tensão (Km) | D149: =Entrada!G46 -> 7235.73 | E149: =VLOOKUP(111,Dados_Revisao[#Data],4,FALSE) -> 4.600577996e-06 | F149: 17955888.37 | H149: 0
B150: Número de consumidores | D150: =DSUM(Mercado_Receita!A:AAA,"UC",G45:G46) -> 1587718 | E150: =VLOOKUP(112,Dados_Revisao[#Data],4,FALSE) -> 6.961604729e-08 | F150: 59620398.62 | G150: ='Subvenção Permissionária'!B4 -> 0 | H150: =(E150*G150)*1000/$D$144 -> 0
B151: Perdas Não Técnicas Ajustadas (MWh) | D151: =-MAX((D140-D141)*D156,0) -> -260255.5239 | E151: =VLOOKUP(114,Dados_Revisao[#Data],4,FALSE) -> 2.32053491e-08 | F151: =(E151*D151)*1000/$D$144 -> -3257618.393 | H151: 0
B152: Consumidor Hora Interrompido Ajustado (horas) | D152: =-MAX((D142-D143)*D150,0) -> -9997331.007 | E152: =VLOOKUP(115,Dados_Revisao[#Data],4,FALSE) -> 0 | F152: =(E152*D152)*1000/$D$144 -> 0 | H152: 0
B153: Mercado Ponderado (MWh) | D153: =D154*E154+D155*E155+D156*E156 -> 4981346.02 | E153: =VLOOKUP(113,Dados_Revisao[#Data],4,FALSE) -> 3.560931814e-08 | F153: =(E153*D153)*1000/$D$144 -> 95680296.83 | H153: 0
B154: Mercado AT (MWh) | D154: =DSUM(MercadoBase,"TUSD_E",C45:C48) -> 780042.397 | E154: =VLOOKUP(116,Dados_Revisao[#Data],4,FALSE) -> 0.01839583107 | H154: 0
B155: Mercado MT (MWh) | D155: =DSUM(MercadoBase,"TUSD_E",D45:D48) -> 3312979.756 | E155: =VLOOKUP(117,Dados_Revisao[#Data],4,FALSE) -> 0.2545768103 | H155: 0
B156: Mercado BT (MWh) | D156: =DSUM(MercadoBase,"TUSD_E",E45:E46) -> 5671848.004 | E156: =VLOOKUP(118,Dados_Revisao[#Data],4,FALSE) -> 0.7270273587 | H156: 0
B157: Custo Eficiente Estimado | F157: =SUM(F146:F153) -> 704301497.1 | H157: =SUM(H147:H156) -> 0
H158: =IFERROR(H157*C125/C126/C130,0) -> 0
B160: Outras Receitas
B162: Outras Receitas (Valor Presente e Média)
D163: Receita Regulatória | E163: Compartilhamento | F163: Média 36 meses | G163: =Entrada!$R$5 -> 2022-09-01 | H163: =DATE(YEAR(G163),MONTH(G163)-1,1) -> 2022-08-01 | I163: 2022-07-01 | J163: 2022-06-01 | K163: 2022-05-01 | L163: 2022-04-01 | M163: 2022-03-01 | N163: 2022-02-01 | O163: 2022-01-01 | P163: 2021-12-01 | Q163: 2021-11-01 | R163: 2021-10-01 | S163: 2021-09-01 | T163: 2021-08-01 | U163: 2021-07-01 | V163: 2021-06-01 | W163: 2021-05-01 | X163: 2021-04-01 | Y163: 2021-03-01 | Z163: 2021-02-01 | AA163: 2021-01-01 | AB163: 2020-12-01 | AC163: 2020-11-01 | AD163: 2020-10-01 | AE163: 2020-09-01 | AF163: 2020-08-01 | AG163: 2020-07-01 | AH163: 2020-06-01 | AI163: 2020-05-01 | AJ163: 2020-04-01 | AK163: 2020-03-01 | AL163: 2020-02-01 | AM163: 2020-01-01 | AN163: 2019-12-01 | AO163: 2019-11-01 | AP163: 2019-10-01
B164: Fator IGP- M | F164: =VLOOKUP(CAPA!C15,Índices!$B$7:$C$626,2,FALSE) -> 1163.359 | G164: =VLOOKUP(EDATE(G163,0),Índices!$B$7:$C$626,2,FALSE) -> 1173.793 | H164: =VLOOKUP(EDATE(H163,0),Índices!$B$7:$C$626,2,FALSE) -> 1185.004 | I164: =VLOOKUP(EDATE(I163,0),Índices!$B$7:$C$626,2,FALSE) -> 1193.337 | J164: =VLOOKUP(EDATE(J163,0),Índices!$B$7:$C$626,2,FALSE) -> 1190.882 | K164: =VLOOKUP(EDATE(K163,0),Índices!$B$7:$C$626,2,FALSE) -> 1183.953 | L164: =VLOOKUP(EDATE(L163,0),Índices!$B$7:$C$626,2,FALSE) -> 1177.809 | M164: =VLOOKUP(EDATE(M163,0),Índices!$B$7:$C$626,2,FALSE) -> 1161.418 | N164: =VLOOKUP(EDATE(N163,0),Índices!$B$7:$C$626,2,FALSE) -> 1141.546 | O164: =VLOOKUP(EDATE(O163,0),Índices!$B$7:$C$626,2,FALSE) -> 1120.999 | P164: =VLOOKUP(EDATE(P163,0),Índices!$B$7:$C$626,2,FALSE) -> 1100.988 | Q164: =VLOOKUP(EDATE(Q163,0),Índices!$B$7:$C$626,2,FALSE) -> 1091.483 | R164: =VLOOKUP(EDATE(R163,0),Índices!$B$7:$C$626,2,FALSE) -> 1091.283 | S164: =VLOOKUP(EDATE(S163,0),Índices!$B$7:$C$626,2,FALSE) -> 1084.312 | T164: =VLOOKUP(EDATE(T163,0),Índices!$B$7:$C$626,2,FALSE) -> 1091.29 | U164: =VLOOKUP(EDATE(U163,0),Índices!$B$7:$C$626,2,FALSE) -> 1084.095 | V164: =VLOOKUP(EDATE(V163,0),Índices!$B$7:$C$626,2,FALSE) -> 1075.733 | W164: =VLOOKUP(EDATE(W163,0),Índices!$B$7:$C$626,2,FALSE) -> 1069.289 | X164: =VLOOKUP(EDATE(X163,0),Índices!$B$7:$C$626,2,FALSE) -> 1027.211 | Y164: =VLOOKUP(EDATE(Y163,0),Índices!$B$7:$C$626,2,FALSE) -> 1011.948 | Z164: =VLOOKUP(EDATE(Z163,0),Índices!$B$7:$C$626,2,FALSE) -> 983.063 | AA164: =VLOOKUP(EDATE(AA163,0),Índices!$B$7:$C$626,2,FALSE) -> 958.844 | AB164: =VLOOKUP(EDATE(AB163,0),Índices!$B$7:$C$626,2,FALSE) -> 934.758 | AC164: =VLOOKUP(EDATE(AC163,0),Índices!$B$7:$C$626,2,FALSE) -> 925.887 | AD164: =VLOOKUP(EDATE(AD163,0),Índices!$B$7:$C$626,2,FALSE) -> 896.505 | AE164: =VLOOKUP(EDATE(AE163,0),Índices!$B$7:$C$626,2,FALSE) -> 868.442 | AF164: =VLOOKUP(EDATE(AF163,0),Índices!$B$7:$C$626,2,FALSE) -> 832.313 | AG164: =VLOOKUP(EDATE(AG163,0),Índices!$B$7:$C$626,2,FALSE) -> 810.083 | AH164: =VLOOKUP(EDATE(AH163,0),Índices!$B$7:$C$626,2,FALSE) -> 792.429 | AI164: =VLOOKUP(EDATE(AI163,0),Índices!$B$7:$C$626,2,FALSE) -> 780.28 | AJ164: =VLOOKUP(EDATE(AJ163,0),Índices!$B$7:$C$626,2,FALSE) -> 778.101 | AK164: =VLOOKUP(EDATE(AK163,0),Índices!$B$7:$C$626,2,FALSE) -> 771.908 | AL164: =VLOOKUP(EDATE(AL163,0),Índices!$B$7:$C$626,2,FALSE) -> 762.423 | AM164: =VLOOKUP(EDATE(AM163,0),Índices!$B$7:$C$626,2,FALSE) -> 762.733 | AN164: =VLOOKUP(EDATE(AN163,0),Índices!$B$7:$C$626,2,FALSE) -> 759.112 | AO164: =VLOOKUP(EDATE(AO163,0),Índices!$B$7:$C$626,2,FALSE) -> 743.558 | AP164: =VLOOKUP(EDATE(AP163,0),Índices!$B$7:$C$626,2,FALSE) -> 741.333
B165: Serviços Cobráveis | D165: =F165*12*E165 -> 2373315.993 | E165: 0.6 | F165: =AVERAGE(G165:AP165) -> 329627.2212 | G165: =(Entrada!Q8+'Subvenção Permissionária'!W6)*$F$164/G$164 -> 318330.8562 | H165: =(Entrada!R8+'Subvenção Permissionária'!X6)*$F$164/H$164 -> 352310.0184 | I165: =(Entrada!S8+'Subvenção Permissionária'!Y6)*$F$164/I$164 -> 323985.8843 | J165: =(Entrada!T8+'Subvenção Permissionária'!Z6)*$F$164/J$164 -> 323260.4539 | K165: =(Entrada!U8+'Subvenção Permissionária'!AA6)*$F$164/K$164 -> 327803.2944 | L165: =(Entrada!V8+'Subvenção Permissionária'!AB6)*$F$164/L$164 -> 240682.1144 | M165: =(Entrada!W8+'Subvenção Permissionária'!AC6)*$F$164/M$164 -> 215288.4869 | N165: =(Entrada!X8+'Subvenção Permissionária'!AD6)*$F$164/N$164 -> 205558.6989 | O165: =(Entrada!Y8+'Subvenção Permissionária'!AE6)*$F$164/O$164 -> 229410.1785 | P165: =(Entrada!Z8+'Subvenção Permissionária'!AF6)*$F$164/P$164 -> 257496.1546 | Q165: =(Entrada!AA8+'Subvenção Permissionária'!AG6)*$F$164/Q$164 -> 244095.9288 | R165: =(Entrada!AB8+'Subvenção Permissionária'!AH6)*$F$164/R$164 -> 254623.5846 | S165: =(Entrada!AC8+'Subvenção Permissionária'!AI6)*$F$164/S$164 -> 336916.4321 | T165: =(Entrada!AD8+'Subvenção Permissionária'!AJ6)*$F$164/T$164 -> 351063.292 | U165: =(Entrada!AE8+'Subvenção Permissionária'!AK6)*$F$164/U$164 -> 232774.4971 | V165: =(Entrada!AF8+'Subvenção Permissionária'!AL6)*$F$164/V$164 -> 260856.4191 | W165: =(Entrada!AG8+'Subvenção Permissionária'!AM6)*$F$164/W$164 -> 296324.7074 | X165: =(Entrada!AH8+'Subvenção Permissionária'!AN6)*$F$164/X$164 -> 347751.6436 | Y165: =(Entrada!AI8+'Subvenção Permissionária'!AO6)*$F$164/Y$164 -> 389673.1296 | Z165: =(Entrada!AJ8+'Subvenção Permissionária'!AP6)*$F$164/Z$164 -> 419532.8313 | AA165: =(Entrada!AK8+'Subvenção Permissionária'!AQ6)*$F$164/AA$164 -> 367005.2681 | AB165: =(Entrada!AL8+'Subvenção Permissionária'!AR6)*$F$164/AB$164 -> 384510.8228 | AC165: =(Entrada!AM8+'Subvenção Permissionária'!AS6)*$F$164/AC$164 -> 384539.9017 | AD165: =(Entrada!AN8+'Subvenção Permissionária'!AT6)*$F$164/AD$164 -> 224283.8402 | AE165: =(Entrada!AO8+'Subvenção Permissionária'!AU6)*$F$164/AE$164 -> 174059.6677 | AF165: =(Entrada!AP8+'Subvenção Permissionária'!AV6)*$F$164/AF$164 -> 100559.0108 | AG165: =(Entrada!AQ8+'Subvenção Permissionária'!AW6)*$F$164/AG$164 -> 89358.35841 | AH165: =(Entrada!AR8+'Subvenção Permissionária'!AX6)*$F$164/AH$164 -> 43422.56197 | AI165: =(Entrada!AS8+'Subvenção Permissionária'!AY6)*$F$164/AI$164 -> 37752.43683 | AJ165: =(Entrada!AT8+'Subvenção Permissionária'!AZ6)*$F$164/AJ$164 -> 166068.8428 | AK165: =(Entrada!AU8+'Subvenção Permissionária'!BA6)*$F$164/AK$164 -> 414241.7431 | AL165: =(Entrada!AV8+'Subvenção Permissionária'!BB6)*$F$164/AL$164 -> 421895.0391 | AM165: =(Entrada!AW8+'Subvenção Permissionária'!BC6)*$F$164/AM$164 -> 364892.1178 | AN165: =(Entrada!AX8+'Subvenção Permissionária'!BD6)*$F$164/AN$164 -> 2038080.26 | AO165: =(Entrada!AY8+'Subvenção Permissionária'!BE6)*$F$164/AO$164 -> 308746.931 | AP165: =(Entrada!AZ8+'Subvenção Permissionária'!BF6)*$F$164/AP$164 -> 419424.5547
B166: Arrecadação de convênios ou valores pela fatura | D166: 7045032.3 | E166: 0.6 | F166: =AVERAGE(G166:AP166) -> 978476.7083 | G166: =(Entrada!Q9+'Subvenção Permissionária'!W7)*$F$164/G$164 -> 1098793.439 | H166: =(Entrada!R9+'Subvenção Permissionária'!X7)*$F$164/H$164 -> 931126.3592 | I166: =(Entrada!S9+'Subvenção Permissionária'!Y7)*$F$164/I$164 -> 1076151.895 | J166: =(Entrada!T9+'Subvenção Permissionária'!Z7)*$F$164/J$164 -> 777046.3096 | K166: =(Entrada!U9+'Subvenção Permissionária'!AA7)*$F$164/K$164 -> 863976.8688 | L166: =(Entrada!V9+'Subvenção Permissionária'!AB7)*$F$164/L$164 -> 730489.3039 | M166: =(Entrada!W9+'Subvenção Permissionária'!AC7)*$F$164/M$164 -> 871306.2963 | N166: =(Entrada!X9+'Subvenção Permissionária'!AD7)*$F$164/N$164 -> 811795.3662 | O166: =(Entrada!Y9+'Subvenção Permissionária'!AE7)*$F$164/O$164 -> 892165.2462 | P166: =(Entrada!Z9+'Subvenção Permissionária'!AF7)*$F$164/P$164 -> 1260941.359 | Q166: =(Entrada!AA9+'Subvenção Permissionária'!AG7)*$F$164/Q$164 -> 791402.3407 | R166: =(Entrada!AB9+'Subvenção Permissionária'!AH7)*$F$164/R$164 -> 824774.5002 | S166: =(Entrada!AC9+'Subvenção Permissionária'!AI7)*$F$164/S$164 -> 1377696.989 | T166: =(Entrada!AD9+'Subvenção Permissionária'!AJ7)*$F$164/T$164 -> 133530.4354 | U166: =(Entrada!AE9+'Subvenção Permissionária'!AK7)*$F$164/U$164 -> 797813.884 | V166: =(Entrada!AF9+'Subvenção Permissionária'!AL7)*$F$164/V$164 -> 706154.1102 | W166: =(Entrada!AG9+'Subvenção Permissionária'!AM7)*$F$164/W$164 -> 1106311.653 | X166: =(Entrada!AH9+'Subvenção Permissionária'!AN7)*$F$164/X$164 -> 904375.9865 | Y166: =(Entrada!AI9+'Subvenção Permissionária'!AO7)*$F$164/Y$164 -> 131927.2407 | Z166: =(Entrada!AJ9+'Subvenção Permissionária'!AP7)*$F$164/Z$164 -> 258988.726 | AA166: =(Entrada!AK9+'Subvenção Permissionária'!AQ7)*$F$164/AA$164 -> 146011.1128 | AB166: =(Entrada!AL9+'Subvenção Permissionária'!AR7)*$F$164/AB$164 -> 296773.1599 | AC166: =(Entrada!AM9+'Subvenção Permissionária'!AS7)*$F$164/AC$164 -> 395903.9264 | AD166: =(Entrada!AN9+'Subvenção Permissionária'!AT7)*$F$164/AD$164 -> 1282204.393 | AE166: =(Entrada!AO9+'Subvenção Permissionária'!AU7)*$F$164/AE$164 -> 1394617.958 | AF166: =(Entrada!AP9+'Subvenção Permissionária'!AV7)*$F$164/AF$164 -> 1385421.07 | AG166: =(Entrada!AQ9+'Subvenção Permissionária'!AW7)*$F$164/AG$164 -> 1427410.903 | AH166: =(Entrada!AR9+'Subvenção Permissionária'!AX7)*$F$164/AH$164 -> 1394838.518 | AI166: =(Entrada!AS9+'Subvenção Permissionária'!AY7)*$F$164/AI$164 -> 1272959.5 | AJ166: =(Entrada!AT9+'Subvenção Permissionária'!AZ7)*$F$164/AJ$164 -> 1576753.283 | AK166: =(Entrada!AU9+'Subvenção Permissionária'!BA7)*$F$164/AK$164 -> 1299758.543 | AL166: =(Entrada!AV9+'Subvenção Permissionária'!BB7)*$F$164/AL$164 -> 1320855.158 | AM166: =(Entrada!AW9+'Subvenção Permissionária'!BC7)*$F$164/AM$164 -> 1332077.376 | AN166: =(Entrada!AX9+'Subvenção Permissionária'!BD7)*$F$164/AN$164 -> 1445853.777 | AO166: =(Entrada!AY9+'Subvenção Permissionária'!BE7)*$F$164/AO$164 -> 704055.602 | AP166: =(Entrada!AZ9+'Subvenção Permissionária'!BF7)*$F$164/AP$164 -> 2202898.91
B167: Arrecadação de faturas de terceiros por estrutura própria | D167: 0 | E167: 0.6 | F167: 0 | G167: =(Entrada!Q10+'Subvenção Permissionária'!W8)*$F$164/G$164 -> 0 | H167: =(Entrada!R10+'Subvenção Permissionária'!X8)*$F$164/H$164 -> 0 | I167: =(Entrada!S10+'Subvenção Permissionária'!Y8)*$F$164/I$164 -> 0 | J167: =(Entrada!T10+'Subvenção Permissionária'!Z8)*$F$164/J$164 -> 0 | K167: =(Entrada!U10+'Subvenção Permissionária'!AA8)*$F$164/K$164 -> 0 | L167: =(Entrada!V10+'Subvenção Permissionária'!AB8)*$F$164/L$164 -> 0 | M167: =(Entrada!W10+'Subvenção Permissionária'!AC8)*$F$164/M$164 -> 0 | N167: =(Entrada!X10+'Subvenção Permissionária'!AD8)*$F$164/N$164 -> 0 | O167: =(Entrada!Y10+'Subvenção Permissionária'!AE8)*$F$164/O$164 -> 0 | P167: =(Entrada!Z10+'Subvenção Permissionária'!AF8)*$F$164/P$164 -> 0 | Q167: =(Entrada!AA10+'Subvenção Permissionária'!AG8)*$F$164/Q$164 -> 0 | R167: =(Entrada!AB10+'Subvenção Permissionária'!AH8)*$F$164/R$164 -> 0 | S167: =(Entrada!AC10+'Subvenção Permissionária'!AI8)*$F$164/S$164 -> 0 | T167: =(Entrada!AD10+'Subvenção Permissionária'!AJ8)*$F$164/T$164 -> 0 | U167: =(Entrada!AE10+'Subvenção Permissionária'!AK8)*$F$164/U$164 -> 0 | V167: =(Entrada!AF10+'Subvenção Permissionária'!AL8)*$F$164/V$164 -> 0 | W167: =(Entrada!AG10+'Subvenção Permissionária'!AM8)*$F$164/W$164 -> 0 | X167: =(Entrada!AH10+'Subvenção Permissionária'!AN8)*$F$164/X$164 -> 0 | Y167: =(Entrada!AI10+'Subvenção Permissionária'!AO8)*$F$164/Y$164 -> 0 | Z167: =(Entrada!AJ10+'Subvenção Permissionária'!AP8)*$F$164/Z$164 -> 0 | AA167: =(Entrada!AK10+'Subvenção Permissionária'!AQ8)*$F$164/AA$164 -> 0 | AB167: =(Entrada!AL10+'Subvenção Permissionária'!AR8)*$F$164/AB$164 -> 0 | AC167: =(Entrada!AM10+'Subvenção Permissionária'!AS8)*$F$164/AC$164 -> 0 | AD167: =(Entrada!AN10+'Subvenção Permissionária'!AT8)*$F$164/AD$164 -> 0 | AE167: =(Entrada!AO10+'Subvenção Permissionária'!AU8)*$F$164/AE$164 -> 0 | AF167: =(Entrada!AP10+'Subvenção Permissionária'!AV8)*$F$164/AF$164 -> 0 | AG167: =(Entrada!AQ10+'Subvenção Permissionária'!AW8)*$F$164/AG$164 -> 0 | AH167: =(Entrada!AR10+'Subvenção Permissionária'!AX8)*$F$164/AH$164 -> 0 | AI167: =(Entrada!AS10+'Subvenção Permissionária'!AY8)*$F$164/AI$164 -> 0 | AJ167: =(Entrada!AT10+'Subvenção Permissionária'!AZ8)*$F$164/AJ$164 -> 0 | AK167: =(Entrada!AU10+'Subvenção Permissionária'!BA8)*$F$164/AK$164 -> 0 | AL167: =(Entrada!AV10+'Subvenção Permissionária'!BB8)*$F$164/AL$164 -> 0 | AM167: =(Entrada!AW10+'Subvenção Permissionária'!BC8)*$F$164/AM$164 -> 0 | AN167: =(Entrada!AX10+'Subvenção Permissionária'!BD8)*$F$164/AN$164 -> 0 | AO167: =(Entrada!AY10+'Subvenção Permissionária'!BE8)*$F$164/AO$164 -> 0 | AP167: =(Entrada!AZ10+'Subvenção Permissionária'!BF8)*$F$164/AP$164 -> 0
B168: Veiculação de publicidade | D168: 0 | E168: 0.6 | F168: 0 | G168: =(Entrada!Q11+'Subvenção Permissionária'!W9)*$F$164/G$164 -> 0 | H168: =(Entrada!R11+'Subvenção Permissionária'!X9)*$F$164/H$164 -> 0 | I168: =(Entrada!S11+'Subvenção Permissionária'!Y9)*$F$164/I$164 -> 0 | J168: =(Entrada!T11+'Subvenção Permissionária'!Z9)*$F$164/J$164 -> 0 | K168: =(Entrada!U11+'Subvenção Permissionária'!AA9)*$F$164/K$164 -> 0 | L168: =(Entrada!V11+'Subvenção Permissionária'!AB9)*$F$164/L$164 -> 0 | M168: =(Entrada!W11+'Subvenção Permissionária'!AC9)*$F$164/M$164 -> 0 | N168: =(Entrada!X11+'Subvenção Permissionária'!AD9)*$F$164/N$164 -> 0 | O168: =(Entrada!Y11+'Subvenção Permissionária'!AE9)*$F$164/O$164 -> 0 | P168: =(Entrada!Z11+'Subvenção Permissionária'!AF9)*$F$164/P$164 -> 0 | Q168: =(Entrada!AA11+'Subvenção Permissionária'!AG9)*$F$164/Q$164 -> 0 | R168: =(Entrada!AB11+'Subvenção Permissionária'!AH9)*$F$164/R$164 -> 0 | S168: =(Entrada!AC11+'Subvenção Permissionária'!AI9)*$F$164/S$164 -> 0 | T168: =(Entrada!AD11+'Subvenção Permissionária'!AJ9)*$F$164/T$164 -> 0 | U168: =(Entrada!AE11+'Subvenção Permissionária'!AK9)*$F$164/U$164 -> 0 | V168: =(Entrada!AF11+'Subvenção Permissionária'!AL9)*$F$164/V$164 -> 0 | W168: =(Entrada!AG11+'Subvenção Permissionária'!AM9)*$F$164/W$164 -> 0 | X168: =(Entrada!AH11+'Subvenção Permissionária'!AN9)*$F$164/X$164 -> 0 | Y168: =(Entrada!AI11+'Subvenção Permissionária'!AO9)*$F$164/Y$164 -> 0 | Z168: =(Entrada!AJ11+'Subvenção Permissionária'!AP9)*$F$164/Z$164 -> 0 | AA168: =(Entrada!AK11+'Subvenção Permissionária'!AQ9)*$F$164/AA$164 -> 0 | AB168: =(Entrada!AL11+'Subvenção Permissionária'!AR9)*$F$164/AB$164 -> 0 | AC168: =(Entrada!AM11+'Subvenção Permissionária'!AS9)*$F$164/AC$164 -> 0 | AD168: =(Entrada!AN11+'Subvenção Permissionária'!AT9)*$F$164/AD$164 -> 0 | AE168: =(Entrada!AO11+'Subvenção Permissionária'!AU9)*$F$164/AE$164 -> 0 | AF168: =(Entrada!AP11+'Subvenção Permissionária'!AV9)*$F$164/AF$164 -> 0 | AG168: =(Entrada!AQ11+'Subvenção Permissionária'!AW9)*$F$164/AG$164 -> 0 | AH168: =(Entrada!AR11+'Subvenção Permissionária'!AX9)*$F$164/AH$164 -> 0 | AI168: =(Entrada!AS11+'Subvenção Permissionária'!AY9)*$F$164/AI$164 -> 0 | AJ168: =(Entrada!AT11+'Subvenção Permissionária'!AZ9)*$F$164/AJ$164 -> 0 | AK168: =(Entrada!AU11+'Subvenção Permissionária'!BA9)*$F$164/AK$164 -> 0 | AL168: =(Entrada!AV11+'Subvenção Permissionária'!BB9)*$F$164/AL$164 -> 0 | AM168: =(Entrada!AW11+'Subvenção Permissionária'!BC9)*$F$164/AM$164 -> 0 | AN168: =(Entrada!AX11+'Subvenção Permissionária'!BD9)*$F$164/AN$164 -> 0 | AO168: =(Entrada!AY11+'Subvenção Permissionária'!BE9)*$F$164/AO$164 -> 0 | AP168: =(Entrada!AZ11+'Subvenção Permissionária'!BF9)*$F$164/AP$164 -> 0
